Workbook

Sheet Cover
C2: United Energy
C3: Revised regulatory proposal 2026-31
C5: =REPLACE(LEFT(_xlfn.TEXTAFTER(CELL("filename")," - ",1),FIND("Dec2025",_xlfn.TEXTAFTER(CELL("filename")," - "),1)-4),1,1,UPPER(LEFT(LEFT(_xlfn.TEXTAFTER(CELL("filename")," - ",1),FIND("Dec2025",_xlfn.TEXTAFTER(CELL("filename")," - "),1)-4),1))) -> Connections
C6: Model number: | D6: =LEFT(_xlfn.TEXTAFTER(CELL("filename")," MOD "),FIND(" - ",_xlfn.TEXTAFTER(CELL("filename")," MOD "),1)-1) -> 3.6.01
C8: 2025-12-01

Sheet Assumptions
A1: =business -> United Energy
A2: =title -> Connections
A3: Assumptions
B5: Business: | C5: United Energy
B6: Title | C6: Connections
B8: Output dollars | C8: 2026-06-30
B12: Input
B13: Link/Calculated
B16: Forecast | D16: 2026 | G16: =AND(G$19>=$D16, G$19<$D$17) -> FALSE | H16: =AND(H$19>=$D16, H$19<$D$17) -> FALSE | I16: FALSE | J16: FALSE | K16: FALSE | L16: FALSE | M16: FALSE | N16: FALSE | O16: FALSE | P16: FALSE | Q16: FALSE | R16: FALSE | S16: FALSE | T16: FALSE | U16: TRUE | V16: FALSE | W16: FALSE | X16: FALSE | Y16: FALSE | Z16: FALSE
B17: 2025/6 - 2030/31 reg period | D17: 2027 | G17: =AND(G$19>=$D$17, SUM(F$17:F$17)<5) -> FALSE | H17: =AND(H19>=$D$17, SUM(G17:G17)<5) -> FALSE | I17: FALSE | J17: FALSE | K17: FALSE | L17: FALSE | M17: FALSE | N17: FALSE | O17: FALSE | P17: FALSE | Q17: FALSE | R17: FALSE | S17: FALSE | T17: FALSE | U17: FALSE | V17: TRUE | W17: TRUE | X17: TRUE | Y17: TRUE | Z17: TRUE
B18: Forecast period | G18: =OR(G16:G17) -> FALSE | H18: =OR(H16:H17) -> FALSE | I18: FALSE | J18: FALSE | K18: FALSE | L18: FALSE | M18: FALSE | N18: FALSE | O18: FALSE | P18: FALSE | Q18: FALSE | R18: FALSE | S18: FALSE | T18: FALSE | U18: TRUE | V18: TRUE | W18: TRUE | X18: TRUE | Y18: TRUE | Z18: TRUE
B19: Fin year end | G19: 2012 | H19: =G19+1 -> 2013 | I19: 2014 | J19: 2015 | K19: 2016 | L19: 2017 | M19: 2018 | N19: 2019 | O19: 2020 | P19: 2021 | Q19: 2022 | R19: 2023 | S19: 2024 | T19: 2025 | U19: 2026 | V19: 2027 | W19: 2028 | X19: 2029 | Y19: 2030 | Z19: 2031
B20: Basis | G20: Actual | H20: Actual | I20: Actual | J20: Actual | K20: Actual | L20: Actual | M20: Actual | N20: Actual | O20: Actual | P20: Actual | Q20: Actual | R20: Actual | S20: Actual | T20: Actual | U20: Forecast | V20: Forecast | W20: Forecast | X20: Forecast | Y20: Forecast | Z20: Forecast
G24: =G19-1&"/"&RIGHT(G19,2) -> 2011/12 | H24: =H19-1&"/"&RIGHT(H19,2) -> 2012/13 | I24: 2013/14 | J24: 2014/15 | K24: 2015/16 | L24: 2016/17 | M24: 2017/18 | N24: 2018/19 | O24: 2019/20 | P24: 2020/21 | Q24: 2021/22 | R24: 2022/23 | S24: 2023/24 | T24: 2024/25 | U24: 2025/26 | V24: 2026/27 | W24: 2027/28 | X24: 2028/29 | Y24: 2029/30 | Z24: 2030/31
B25: Inflation conversions
B27: Cumulative escalation
B29: Conversion to June 2026 | D29: 2025/26 | G29: 1.44596459 | H29: 1.407139328 | I29: 1.378433129 | J29: 1.348306963 | K29: 1.32305647 | L29: 1.30650612 | M29: 1.287484088 | N29: 1.26216915 | O29: 1.239425501 | P29: 1.214855055 | Q29: 1.204489398 | R29: 1.16377706 | S29: 1.079251968 | T29: 1.037223787 | U29: 1.012669709 | V29: 0.9874888044 | W29: 0.962934045 | X29: 0.9389898608 | Y29: 0.9156410693 | Z29: 0.8928728656

Sheet Hist_vol
A1: =Assumptions!$A$1 -> United Energy
A2: =Assumptions!$A$2 -> Connections
A3: Historical volumes
B7: =Assumptions!B17 -> 2025/6 - 2030/31 reg period | G7: =Assumptions!G17 -> FALSE | H7: =Assumptions!H17 -> FALSE | I7: =Assumptions!I17 -> FALSE | J7: =Assumptions!J17 -> FALSE | K7: =Assumptions!K17 -> FALSE | L7: =Assumptions!L17 -> FALSE | M7: =Assumptions!M17 -> FALSE | N7: =Assumptions!N17 -> FALSE | O7: =Assumptions!O17 -> FALSE | P7: =Assumptions!P17 -> FALSE | Q7: =Assumptions!Q17 -> FALSE | R7: =Assumptions!R17 -> FALSE | S7: =Assumptions!S17 -> FALSE | T7: =Assumptions!T17 -> FALSE | U7: =Assumptions!U17 -> FALSE | V7: =Assumptions!V17 -> TRUE | W7: =Assumptions!W17 -> TRUE | X7: =Assumptions!X17 -> TRUE | Y7: =Assumptions!Y17 -> TRUE | Z7: =Assumptions!Z17 -> TRUE
B8: =Assumptions!B18 -> Forecast period | G8: =Assumptions!G18 -> FALSE | H8: =Assumptions!H18 -> FALSE | I8: =Assumptions!I18 -> FALSE | J8: =Assumptions!J18 -> FALSE | K8: =Assumptions!K18 -> FALSE | L8: =Assumptions!L18 -> FALSE | M8: =Assumptions!M18 -> FALSE | N8: =Assumptions!N18 -> FALSE | O8: =Assumptions!O18 -> FALSE | P8: =Assumptions!P18 -> FALSE | Q8: =Assumptions!Q18 -> FALSE | R8: =Assumptions!R18 -> FALSE | S8: =Assumptions!S18 -> FALSE | T8: =Assumptions!T18 -> FALSE | U8: =Assumptions!U18 -> TRUE | V8: =Assumptions!V18 -> TRUE | W8: =Assumptions!W18 -> TRUE | X8: =Assumptions!X18 -> TRUE | Y8: =Assumptions!Y18 -> TRUE | Z8: =Assumptions!Z18 -> TRUE
B9: =Assumptions!B19 -> Fin year end | G9: =Assumptions!G19 -> 2012 | H9: =Assumptions!H19 -> 2013 | I9: =Assumptions!I19 -> 2014 | J9: =Assumptions!J19 -> 2015 | K9: =Assumptions!K19 -> 2016 | L9: =Assumptions!L19 -> 2017 | M9: =Assumptions!M19 -> 2018 | N9: =Assumptions!N19 -> 2019 | O9: =Assumptions!O19 -> 2020 | P9: =Assumptions!P19 -> 2021 | Q9: =Assumptions!Q19 -> 2022 | R9: =Assumptions!R19 -> 2023 | S9: =Assumptions!S19 -> 2024 | T9: =Assumptions!T19 -> 2025 | U9: =Assumptions!U19 -> 2026 | V9: =Assumptions!V19 -> 2027 | W9: =Assumptions!W19 -> 2028 | X9: =Assumptions!X19 -> 2029 | Y9: =Assumptions!Y19 -> 2030 | Z9: =Assumptions!Z19 -> 2031
B10: =Assumptions!B20 -> Basis | G10: =Assumptions!G20 -> Actual | H10: =Assumptions!H20 -> Actual | I10: =Assumptions!I20 -> Actual | J10: =Assumptions!J20 -> Actual | K10: =Assumptions!K20 -> Actual | L10: =Assumptions!L20 -> Actual | M10: =Assumptions!M20 -> Actual | N10: =Assumptions!N20 -> Actual | O10: =Assumptions!O20 -> Actual | P10: =Assumptions!P20 -> Actual | Q10: =Assumptions!Q20 -> Actual | R10: =Assumptions!R20 -> Actual | S10: =Assumptions!S20 -> Actual | T10: =Assumptions!T20 -> Actual | U10: =Assumptions!U20 -> Forecast | V10: =Assumptions!V20 -> Forecast | W10: =Assumptions!W20 -> Forecast | X10: =Assumptions!X20 -> Forecast | Y10: =Assumptions!Y20 -> Forecast | Z10: =Assumptions!Z20 -> Forecast
B13: Category | C13: Type | D13: RIN category | E13: Description | G13: =Assumptions!G$24 -> 2011/12 | H13: =Assumptions!H$24 -> 2012/13 | I13: =Assumptions!I$24 -> 2013/14 | J13: =Assumptions!J$24 -> 2014/15 | K13: =Assumptions!K$24 -> 2015/16 | L13: =Assumptions!L$24 -> 2016/17 | M13: =Assumptions!M$24 -> 2017/18 | N13: =Assumptions!N$24 -> 2018/19 | O13: =Assumptions!O$24 -> 2019/20 | P13: =Assumptions!P$24 -> 2020/21 | Q13: =Assumptions!Q$24 -> 2021/22 | R13: =Assumptions!R$24 -> 2022/23 | S13: =Assumptions!S$24 -> 2023/24 | T13: =Assumptions!T$24 -> 2024/25 | U13: =Assumptions!U$24 -> 2025/26 | V13: =Assumptions!V$24 -> 2026/27 | W13: =Assumptions!W$24 -> 2027/28 | X13: =Assumptions!X$24 -> 2028/29 | Y13: =Assumptions!Y$24 -> 2029/30 | Z13: =Assumptions!Z$24 -> 2030/31
B14: Volumes
B15: Connections | C15: R1 | D15: =IF(ISBLANK($C15), "", INDEX(Lists!T$7:T$21, MATCH($C15, Lists!$S$7:$S$21,0))) -> Residential | E15: =IF(ISBLANK($C15), "", INDEX(Lists!U$7:U$21, MATCH($C15, Lists!$S$7:$S$21,0))) -> Simple connection LV | G15: 9659 | H15: 9682.5 | I15: 8873.5 | J15: 9240.167766 | K15: 9806.167766 | L15: 9670.5 | M15: 10237 | N15: 9357.5 | O15: 7441.5 | P15: 5568 | Q15: 5672 | R15: 6355 | S15: 6553 | T15: 3103
B16: Connections | C16: R2 | D16: =IF(ISBLANK($C16), "", INDEX(Lists!T$7:T$21, MATCH($C16, Lists!$S$7:$S$21,0))) -> Residential | E16: =IF(ISBLANK($C16), "", INDEX(Lists!U$7:U$21, MATCH($C16, Lists!$S$7:$S$21,0))) -> Complex connection LV | G16: 0 | H16: 0 | I16: 0 | J16: 0 | K16: 0 | L16: 0 | M16: 0 | N16: 0 | O16: 0 | P16: 0 | Q16: 0 | R16: 0 | S16: 0 | T16: 0
B17: Connections | C17: R3 | D17: =IF(ISBLANK($C17), "", INDEX(Lists!T$7:T$21, MATCH($C17, Lists!$S$7:$S$21,0))) -> Residential | E17: =IF(ISBLANK($C17), "", INDEX(Lists!U$7:U$21, MATCH($C17, Lists!$S$7:$S$21,0))) -> Complex connection HV | G17: 0 | H17: 0 | I17: 0 | J17: 0 | K17: 0 | L17: 0 | M17: 0 | N17: 0 | O17: 0 | P17: 0 | Q17: 0 | R17: 0 | S17: 0 | T17: 0
B18: Connections | C18: CI1 | D18: =IF(ISBLANK($C18), "", INDEX(Lists!T$7:T$21, MATCH($C18, Lists!$S$7:$S$21,0))) -> Commercial/Industrial | E18: =IF(ISBLANK($C18), "", INDEX(Lists!U$7:U$21, MATCH($C18, Lists!$S$7:$S$21,0))) -> Simple connection LV | G18: 2603 | H18: 3109.5 | I18: 2298.041534 | J18: 780.115143 | K18: 716.553759 | L18: 888.9801496 | M18: 981.5 | N18: 926 | O18: 822 | P18: 693 | Q18: 634 | R18: 627 | S18: 607 | T18: 385
B19: Connections | C19: CI2 | D19: =IF(ISBLANK($C19), "", INDEX(Lists!T$7:T$21, MATCH($C19, Lists!$S$7:$S$21,0))) -> Commercial/Industrial | E19: =IF(ISBLANK($C19), "", INDEX(Lists!U$7:U$21, MATCH($C19, Lists!$S$7:$S$21,0))) -> Complex connection HV (customer connected at LV, minor HV works) | G19: 315.5 | H19: 473.5 | I19: 1207.29992 | J19: 1542.842164 | K19: 1324.246789 | L19: 1413.204545 | M19: 1414 | N19: 1186.5 | O19: 944.5 | P19: 792 | Q19: 827 | R19: 835 | S19: 749 | T19: 824
B20: Connections | C20: CI3 | D20: =IF(ISBLANK($C20), "", INDEX(Lists!T$7:T$21, MATCH($C20, Lists!$S$7:$S$21,0))) -> Commercial/Industrial | E20: =IF(ISBLANK($C20), "", INDEX(Lists!U$7:U$21, MATCH($C20, Lists!$S$7:$S$21,0))) -> Complex connection HV (customer connected at LV, upstream asset works) | G20: 3.5 | H20: 1.5 | I20: 5.469249201 | J20: 18.20059161 | K20: 24.99457601 | L20: 19.2632336 | M20: 10.5 | N20: 4.5 | O20: 2 | P20: 0 | Q20: 5 | R20: 2 | S20: 18 | T20: 8
B21: Connections | C21: CI4 | D21: =IF(ISBLANK($C21), "", INDEX(Lists!T$7:T$21, MATCH($C21, Lists!$S$7:$S$21,0))) -> Commercial/Industrial | E21: =IF(ISBLANK($C21), "", INDEX(Lists!U$7:U$21, MATCH($C21, Lists!$S$7:$S$21,0))) -> Complex connection HV (customer connected at HV) | G21: 8.5 | H21: 12 | I21: 27.68929712 | J21: 541.6743357 | K21: 1087.03711 | L21: 1241.052071 | M21: 1356 | N21: 1232.5 | O21: 1023.5 | P21: 858 | Q21: 797 | R21: 860 | S21: 684 | T21: 22
B22: Connections | C22: CI5 | D22: =IF(ISBLANK($C22), "", INDEX(Lists!T$7:T$21, MATCH($C22, Lists!$S$7:$S$21,0))) -> Commercial/Industrial | E22: =IF(ISBLANK($C22), "", INDEX(Lists!U$7:U$21, MATCH($C22, Lists!$S$7:$S$21,0))) -> Complex connection sub-transmission | G22: 0 | H22: 0 | I22: 0 | J22: 0 | K22: 0 | L22: 0 | M22: 0 | N22: 0 | O22: 0 | P22: 0 | Q22: 9 | R22: 27 | S22: 47 | T22: 4
B23: Connections | C23: S1 | D23: =IF(ISBLANK($C23), "", INDEX(Lists!T$7:T$21, MATCH($C23, Lists!$S$7:$S$21,0))) -> Subdivision | E23: =IF(ISBLANK($C23), "", INDEX(Lists!U$7:U$21, MATCH($C23, Lists!$S$7:$S$21,0))) -> Complex connection LV | G23: 102.5 | H23: 163.5 | I23: 249 | J23: 301 | K23: 898 | L23: 1272.5 | M23: 581.5 | N23: 604 | O23: 762.5 | P23: 685 | Q23: 492 | R23: 700 | S23: 340 | T23: 158
B24: Connections | C24: S2 | D24: =IF(ISBLANK($C24), "", INDEX(Lists!T$7:T$21, MATCH($C24, Lists!$S$7:$S$21,0))) -> Subdivision | E24: =IF(ISBLANK($C24), "", INDEX(Lists!U$7:U$21, MATCH($C24, Lists!$S$7:$S$21,0))) -> Complex connection HV (no upstream asset works) | G24: 32.5 | H24: 43.5 | I24: 63 | J24: 70 | K24: 109.5 | L24: 93 | M24: 203 | N24: 351 | O24: 632.5 | P24: 1109 | Q24: 476 | R24: 644 | S24: 83 | T24: 82
B25: Connections | C25: S3 | D25: =IF(ISBLANK($C25), "", INDEX(Lists!T$7:T$21, MATCH($C25, Lists!$S$7:$S$21,0))) -> Subdivision | E25: =IF(ISBLANK($C25), "", INDEX(Lists!U$7:U$21, MATCH($C25, Lists!$S$7:$S$21,0))) -> Complex connection HV (with upstream asset works) | G25: 0 | H25: 0 | I25: 0 | J25: 0 | K25: 0 | L25: 0.5 | M25: 16.5 | N25: 16 | O25: 0 | P25: 0 | Q25: 0 | R25: 0 | S25: 0 | T25: 0
B26: Connections | C26: EG1 | D26: =IF(ISBLANK($C26), "", INDEX(Lists!T$7:T$21, MATCH($C26, Lists!$S$7:$S$21,0))) -> Embedded generation | E26: =IF(ISBLANK($C26), "", INDEX(Lists!U$7:U$21, MATCH($C26, Lists!$S$7:$S$21,0))) -> Simple connection LV | G26: 11674.5 | H26: 7420 | I26: 3143.5 | J26: 5632 | K26: 6484.5 | L26: 4168 | M26: 5570.5 | N26: 3383.5 | O26: 0 | P26: 0 | Q26: 10157 | R26: 12070 | S26: 0 | T26: 1
B27: Connections | C27: EG2 | D27: =IF(ISBLANK($C27), "", INDEX(Lists!T$7:T$21, MATCH($C27, Lists!$S$7:$S$21,0))) -> Embedded generation | E27: =IF(ISBLANK($C27), "", INDEX(Lists!U$7:U$21, MATCH($C27, Lists!$S$7:$S$21,0))) -> Complex connection HV (small capacity) | G27: 0 | H27: 0 | I27: 0 | J27: 0 | K27: 0 | L27: 0 | M27: 0 | N27: 0 | O27: 0 | P27: 0 | Q27: 0 | R27: 0 | S27: 0 | T27: 0
B28: Connections | C28: EG3 | D28: =IF(ISBLANK($C28), "", INDEX(Lists!T$7:T$21, MATCH($C28, Lists!$S$7:$S$21,0))) -> Embedded generation | E28: =IF(ISBLANK($C28), "", INDEX(Lists!U$7:U$21, MATCH($C28, Lists!$S$7:$S$21,0))) -> Complex connection HV (large capacity) | G28: 0 | H28: 1 | I28: 1 | J28: 0 | K28: 0 | L28: 0 | M28: 0 | N28: 0 | O28: 0 | P28: 0 | Q28: 0 | R28: 0 | S28: 0 | T28: 5

Sheet Hist_expenditure
A1: =Assumptions!$A$1 -> United Energy
A2: =Assumptions!$A$2 -> Connections
A3: Historical expenditure (nominal)
B7: =Assumptions!B17 -> 2025/6 - 2030/31 reg period | G7: =Assumptions!G17 -> FALSE | H7: =Assumptions!H17 -> FALSE | I7: =Assumptions!I17 -> FALSE | J7: =Assumptions!J17 -> FALSE | K7: =Assumptions!K17 -> FALSE | L7: =Assumptions!L17 -> FALSE | M7: =Assumptions!M17 -> FALSE | N7: =Assumptions!N17 -> FALSE | O7: =Assumptions!O17 -> FALSE | P7: =Assumptions!P17 -> FALSE | Q7: =Assumptions!Q17 -> FALSE | R7: =Assumptions!R17 -> FALSE | S7: =Assumptions!S17 -> FALSE | T7: =Assumptions!T17 -> FALSE | U7: =Assumptions!U17 -> FALSE | V7: =Assumptions!V17 -> TRUE | W7: =Assumptions!W17 -> TRUE | X7: =Assumptions!X17 -> TRUE | Y7: =Assumptions!Y17 -> TRUE | Z7: =Assumptions!Z17 -> TRUE
B8: =Assumptions!B18 -> Forecast period | G8: =Assumptions!G18 -> FALSE | H8: =Assumptions!H18 -> FALSE | I8: =Assumptions!I18 -> FALSE | J8: =Assumptions!J18 -> FALSE | K8: =Assumptions!K18 -> FALSE | L8: =Assumptions!L18 -> FALSE | M8: =Assumptions!M18 -> FALSE | N8: =Assumptions!N18 -> FALSE | O8: =Assumptions!O18 -> FALSE | P8: =Assumptions!P18 -> FALSE | Q8: =Assumptions!Q18 -> FALSE | R8: =Assumptions!R18 -> FALSE | S8: =Assumptions!S18 -> FALSE | T8: =Assumptions!T18 -> FALSE | U8: =Assumptions!U18 -> TRUE | V8: =Assumptions!V18 -> TRUE | W8: =Assumptions!W18 -> TRUE | X8: =Assumptions!X18 -> TRUE | Y8: =Assumptions!Y18 -> TRUE | Z8: =Assumptions!Z18 -> TRUE
B9: =Assumptions!B19 -> Fin year end | G9: =Assumptions!G19 -> 2012 | H9: =Assumptions!H19 -> 2013 | I9: =Assumptions!I19 -> 2014 | J9: =Assumptions!J19 -> 2015 | K9: =Assumptions!K19 -> 2016 | L9: =Assumptions!L19 -> 2017 | M9: =Assumptions!M19 -> 2018 | N9: =Assumptions!N19 -> 2019 | O9: =Assumptions!O19 -> 2020 | P9: =Assumptions!P19 -> 2021 | Q9: =Assumptions!Q19 -> 2022 | R9: =Assumptions!R19 -> 2023 | S9: =Assumptions!S19 -> 2024 | T9: =Assumptions!T19 -> 2025 | U9: =Assumptions!U19 -> 2026 | V9: =Assumptions!V19 -> 2027 | W9: =Assumptions!W19 -> 2028 | X9: =Assumptions!X19 -> 2029 | Y9: =Assumptions!Y19 -> 2030 | Z9: =Assumptions!Z19 -> 2031
B10: =Assumptions!B20 -> Basis | G10: =Assumptions!G20 -> Actual | H10: =Assumptions!H20 -> Actual | I10: =Assumptions!I20 -> Actual | J10: =Assumptions!J20 -> Actual | K10: =Assumptions!K20 -> Actual | L10: =Assumptions!L20 -> Actual | M10: =Assumptions!M20 -> Actual | N10: =Assumptions!N20 -> Actual | O10: =Assumptions!O20 -> Actual | P10: =Assumptions!P20 -> Actual | Q10: =Assumptions!Q20 -> Actual | R10: =Assumptions!R20 -> Actual | S10: =Assumptions!S20 -> Actual | T10: =Assumptions!T20 -> Actual | U10: =Assumptions!U20 -> Forecast | V10: =Assumptions!V20 -> Forecast | W10: =Assumptions!W20 -> Forecast | X10: =Assumptions!X20 -> Forecast | Y10: =Assumptions!Y20 -> Forecast | Z10: =Assumptions!Z20 -> Forecast
B13: =Hist_vol!B$13 -> Category | C13: Type | D13: =Hist_vol!D$13 -> RIN category | E13: =Hist_vol!E$13 -> Description | G13: =Assumptions!G$24 -> 2011/12 | H13: =Assumptions!H$24 -> 2012/13 | I13: =Assumptions!I$24 -> 2013/14 | J13: =Assumptions!J$24 -> 2014/15 | K13: =Assumptions!K$24 -> 2015/16 | L13: =Assumptions!L$24 -> 2016/17 | M13: =Assumptions!M$24 -> 2017/18 | N13: =Assumptions!N$24 -> 2018/19 | O13: =Assumptions!O$24 -> 2019/20 | P13: =Assumptions!P$24 -> 2020/21 | Q13: =Assumptions!Q$24 -> 2021/22 | R13: =Assumptions!R$24 -> 2022/23 | S13: =Assumptions!S$24 -> 2023/24 | T13: =Assumptions!T$24 -> 2024/25 | U13: =Assumptions!U$24 -> 2025/26 | V13: =Assumptions!V$24 -> 2026/27 | W13: =Assumptions!W$24 -> 2027/28 | X13: =Assumptions!X$24 -> 2028/29 | Y13: =Assumptions!Y$24 -> 2029/30 | Z13: =Assumptions!Z$24 -> 2030/31
B14: Spend ($ nominal)
B15: =Hist_vol!B15 -> Connections | C15: =Hist_vol!C15 -> R1 | D15: =Hist_vol!D15 -> Residential | E15: =Hist_vol!E15 -> Simple connection LV | G15: 0 | H15: 0 | I15: 0 | J15: 0 | K15: 4598081.671 | L15: 10207574.35 | M15: 14269042.68 | N15: 14867959 | O15: 11819079.5 | P15: 12157157 | Q15: 13416104 | R15: 19467498 | S15: 19510372 | T15: 25534853
B16: =Hist_vol!B16 -> Connections | C16: =Hist_vol!C16 -> R2 | D16: =Hist_vol!D16 -> Residential | E16: =Hist_vol!E16 -> Complex connection LV | G16: 0 | H16: 0 | I16: 0 | J16: 0 | K16: 0 | L16: 0 | M16: 0 | N16: 0 | O16: 0 | P16: 0 | Q16: 0 | R16: 0 | S16: 0 | T16: 0
B17: =Hist_vol!B17 -> Connections | C17: =Hist_vol!C17 -> R3 | D17: =Hist_vol!D17 -> Residential | E17: =Hist_vol!E17 -> Complex connection HV | G17: 0 | H17: 0 | I17: 0 | J17: 0 | K17: 0 | L17: 0 | M17: 0 | N17: 0 | O17: 0 | P17: 0 | Q17: 0 | R17: 0 | S17: 0 | T17: 0
B18: =Hist_vol!B18 -> Connections | C18: =Hist_vol!C18 -> CI1 | D18: =Hist_vol!D18 -> Commercial/Industrial | E18: =Hist_vol!E18 -> Simple connection LV | G18: 3532400.5 | H18: 3729710.5 | I18: 3710133.96 | J18: 3836542.64 | K18: 2043292.778 | L18: 2047640.64 | M18: 2807754.189 | N18: 3505903.539 | O18: 3951881 | P18: 5612030.5 | Q18: 5091251 | R18: 5130555 | S18: 7363087 | T18: 8118568
B19: =Hist_vol!B19 -> Connections | C19: =Hist_vol!C19 -> CI2 | D19: =Hist_vol!D19 -> Commercial/Industrial | E19: =Hist_vol!E19 -> Complex connection HV (customer connected at LV, minor HV works) | G19: 17999637.5 | H19: 17719767 | I19: 18813867.44 | J19: 20348922.4 | K19: 21385575.85 | L19: 19880046.5 | M19: 13851055.26 | N19: 10965925.04 | O19: 10949854.5 | P19: 14735244.5 | Q19: 11725987 | R19: 16019592 | S19: 18205648 | T19: 42643565
B20: =Hist_vol!B20 -> Connections | C20: =Hist_vol!C20 -> CI3 | D20: =Hist_vol!D20 -> Commercial/Industrial | E20: =Hist_vol!E20 -> Complex connection HV (customer connected at LV, upstream asset works) | G20: 2288746.5 | H20: 892431.5 | I20: 1000657.24 | J20: 5036985.441 | K20: 6370784.364 | L20: 2928223.435 | M20: 1180277.771 | N20: 1079596.5 | O20: 821569.5 | P20: 0 | Q20: 1714541 | R20: 417858 | S20: 5775429 | T20: 1810741
B21: =Hist_vol!B21 -> Connections | C21: =Hist_vol!C21 -> CI4 | D21: =Hist_vol!D21 -> Commercial/Industrial | E21: =Hist_vol!E21 -> Complex connection HV (customer connected at HV) | G21: 862333.5 | H21: 941163.5 | I21: 1406405.9 | J21: 5987817.965 | K21: 10009239.11 | L21: 11819080.76 | M21: 10822490.05 | N21: 8786653.22 | O21: 11934556 | P21: 19911542.73 | Q21: 9398553 | R21: 12379006 | S21: 41972585 | T21: 16247111
B22: =Hist_vol!B22 -> Connections | C22: =Hist_vol!C22 -> CI5 | D22: =Hist_vol!D22 -> Commercial/Industrial | E22: =Hist_vol!E22 -> Complex connection sub-transmission | G22: 0 | H22: 0 | I22: 0 | J22: 0 | K22: 0 | L22: 0 | M22: 0 | N22: 0 | O22: 0 | P22: 0 | Q22: 6429 | R22: 35874 | S22: 412534 | T22: 358299
B23: =Hist_vol!B23 -> Connections | C23: =Hist_vol!C23 -> S1 | D23: =Hist_vol!D23 -> Subdivision | E23: =Hist_vol!E23 -> Complex connection LV | G23: 10081998.5 | H23: 9526519.5 | I23: 11118254.46 | J23: 13169785.09 | K23: 8646432.094 | L23: 3292574.317 | M23: 1286070.427 | N23: 1277070.251 | O23: 1623785.25 | P23: 1838576.29 | Q23: 1163068 | R23: 1530187 | S23: 2916214 | T23: 2791259
B24: =Hist_vol!B24 -> Connections | C24: =Hist_vol!C24 -> S2 | D24: =Hist_vol!D24 -> Subdivision | E24: =Hist_vol!E24 -> Complex connection HV (no upstream asset works) | G24: 1623704 | H24: 1711281 | I24: 2396876.57 | J24: 2333512.005 | K24: 1476101.935 | L24: 1634512.304 | M24: 1091564.716 | N24: 1058066.751 | O24: 1425795.25 | P24: 1880309.29 | Q24: 1169108 | R24: 1901160 | S24: 3085437 | T24: 1927923
B25: =Hist_vol!B25 -> Connections | C25: =Hist_vol!C25 -> S3 | D25: =Hist_vol!D25 -> Subdivision | E25: =Hist_vol!E25 -> Complex connection HV (with upstream asset works) | G25: 0 | H25: 0 | I25: 0 | J25: 0 | K25: 0 | L25: 202742.6402 | M25: 627496.6402 | N25: 694059 | O25: 269305 | P25: 0 | Q25: 0 | R25: 0 | S25: 0 | T25: 0
B26: =Hist_vol!B26 -> Connections | C26: =Hist_vol!C26 -> EG1 | D26: =Hist_vol!D26 -> Embedded generation | E26: =Hist_vol!E26 -> Simple connection LV | G26: 380000 | H26: 380000 | I26: 0 | J26: 0 | K26: 0 | L26: 0 | M26: 0 | N26: 0 | O26: 0 | P26: 0 | Q26: 0 | R26: 0 | S26: 0 | T26: 4006
B27: =Hist_vol!B27 -> Connections | C27: =Hist_vol!C27 -> EG2 | D27: =Hist_vol!D27 -> Embedded generation | E27: =Hist_vol!E27 -> Complex connection HV (small capacity) | G27: 90000 | H27: 90000 | I27: 0 | J27: 0 | K27: 0 | L27: 0 | M27: 0 | N27: 0 | O27: 2961.5 | P27: 13586 | Q27: 183618 | R27: 4202460 | S27: 1957670 | T27: 0
B28: =Hist_vol!B28 -> Connections | C28: =Hist_vol!C28 -> EG3 | D28: =Hist_vol!D28 -> Embedded generation | E28: =Hist_vol!E28 -> Complex connection HV (large capacity) | G28: 0 | H28: 80000 | I28: 80000 | J28: 0 | K28: 0 | L28: 0 | M28: 0 | N28: 0 | O28: 0 | P28: 0 | Q28: 0 | R28: 0 | S28: 0 | T28: 133414
C29: Total | G29: =SUM(G15:G28) -> 36858820.5 | H29: =SUM(H15:H28) -> 35070873 | I29: 38526195.56 | J29: 50713565.54 | K29: 54529507.79 | L29: 52012394.94 | M29: 45935751.74 | N29: 42235233.3 | O29: 42798787.5 | P29: 56148446.31 | Q29: 43868659 | R29: 61084190 | S29: =SUM(S15:S28) -> 101198976 | T29: 99569739
C42: ,

Sheet Hist_contributions
A1: =Assumptions!$A$1 -> United Energy
A2: =Assumptions!$A$2 -> Connections
A3: Type 1 Contributions (nominal)
B7: =Assumptions!B17 -> 2025/6 - 2030/31 reg period | G7: =Assumptions!G17 -> FALSE | H7: =Assumptions!H17 -> FALSE | I7: =Assumptions!I17 -> FALSE | J7: =Assumptions!J17 -> FALSE | K7: =Assumptions!K17 -> FALSE | L7: =Assumptions!L17 -> FALSE | M7: =Assumptions!M17 -> FALSE | N7: =Assumptions!N17 -> FALSE | O7: =Assumptions!O17 -> FALSE | P7: =Assumptions!P17 -> FALSE | Q7: =Assumptions!Q17 -> FALSE | R7: =Assumptions!R17 -> FALSE | S7: =Assumptions!S17 -> FALSE | T7: =Assumptions!T17 -> FALSE | U7: =Assumptions!U17 -> FALSE | V7: =Assumptions!V17 -> TRUE | W7: =Assumptions!W17 -> TRUE | X7: =Assumptions!X17 -> TRUE | Y7: =Assumptions!Y17 -> TRUE | Z7: =Assumptions!Z17 -> TRUE
B8: =Assumptions!B18 -> Forecast period | G8: =Assumptions!G18 -> FALSE | H8: =Assumptions!H18 -> FALSE | I8: =Assumptions!I18 -> FALSE | J8: =Assumptions!J18 -> FALSE | K8: =Assumptions!K18 -> FALSE | L8: =Assumptions!L18 -> FALSE | M8: =Assumptions!M18 -> FALSE | N8: =Assumptions!N18 -> FALSE | O8: =Assumptions!O18 -> FALSE | P8: =Assumptions!P18 -> FALSE | Q8: =Assumptions!Q18 -> FALSE | R8: =Assumptions!R18 -> FALSE | S8: =Assumptions!S18 -> FALSE | T8: =Assumptions!T18 -> FALSE | U8: =Assumptions!U18 -> TRUE | V8: =Assumptions!V18 -> TRUE | W8: =Assumptions!W18 -> TRUE | X8: =Assumptions!X18 -> TRUE | Y8: =Assumptions!Y18 -> TRUE | Z8: =Assumptions!Z18 -> TRUE
B9: =Assumptions!B19 -> Fin year end | G9: =Assumptions!G19 -> 2012 | H9: =Assumptions!H19 -> 2013 | I9: =Assumptions!I19 -> 2014 | J9: =Assumptions!J19 -> 2015 | K9: =Assumptions!K19 -> 2016 | L9: =Assumptions!L19 -> 2017 | M9: =Assumptions!M19 -> 2018 | N9: =Assumptions!N19 -> 2019 | O9: =Assumptions!O19 -> 2020 | P9: =Assumptions!P19 -> 2021 | Q9: =Assumptions!Q19 -> 2022 | R9: =Assumptions!R19 -> 2023 | S9: =Assumptions!S19 -> 2024 | T9: =Assumptions!T19 -> 2025 | U9: =Assumptions!U19 -> 2026 | V9: =Assumptions!V19 -> 2027 | W9: =Assumptions!W19 -> 2028 | X9: =Assumptions!X19 -> 2029 | Y9: =Assumptions!Y19 -> 2030 | Z9: =Assumptions!Z19 -> 2031
B10: =Assumptions!B20 -> Basis | G10: =Assumptions!G20 -> Actual | H10: =Assumptions!H20 -> Actual | I10: =Assumptions!I20 -> Actual | J10: =Assumptions!J20 -> Actual | K10: =Assumptions!K20 -> Actual | L10: =Assumptions!L20 -> Actual | M10: =Assumptions!M20 -> Actual | N10: =Assumptions!N20 -> Actual | O10: =Assumptions!O20 -> Actual | P10: =Assumptions!P20 -> Actual | Q10: =Assumptions!Q20 -> Actual | R10: =Assumptions!R20 -> Actual | S10: =Assumptions!S20 -> Actual | T10: =Assumptions!T20 -> Actual | U10: =Assumptions!U20 -> Forecast | V10: =Assumptions!V20 -> Forecast | W10: =Assumptions!W20 -> Forecast | X10: =Assumptions!X20 -> Forecast | Y10: =Assumptions!Y20 -> Forecast | Z10: =Assumptions!Z20 -> Forecast
B13: =Hist_vol!B$13 -> Category | C13: Type | D13: =Hist_vol!D$13 -> RIN category | E13: =Hist_vol!E$13 -> Description | G13: =Assumptions!G$24 -> 2011/12 | H13: =Assumptions!H$24 -> 2012/13 | I13: =Assumptions!I$24 -> 2013/14 | J13: =Assumptions!J$24 -> 2014/15 | K13: =Assumptions!K$24 -> 2015/16 | L13: =Assumptions!L$24 -> 2016/17 | M13: =Assumptions!M$24 -> 2017/18 | N13: =Assumptions!N$24 -> 2018/19 | O13: =Assumptions!O$24 -> 2019/20 | P13: =Assumptions!P$24 -> 2020/21 | Q13: =Assumptions!Q$24 -> 2021/22 | R13: =Assumptions!R$24 -> 2022/23 | S13: =Assumptions!S$24 -> 2023/24 | T13: =Assumptions!T$24 -> 2024/25 | U13: =Assumptions!U$24 -> 2025/26 | V13: =Assumptions!V$24 -> 2026/27 | W13: =Assumptions!W$24 -> 2027/28 | X13: =Assumptions!X$24 -> 2028/29 | Y13: =Assumptions!Y$24 -> 2029/30 | Z13: =Assumptions!Z$24 -> 2030/31
B14: Contributions ($ nominal)
B15: =Hist_expenditure!B15 -> Connections | C15: =Hist_expenditure!C15 -> R1 | D15: =Hist_expenditure!D15 -> Residential | E15: =Hist_expenditure!E15 -> Simple connection LV | G15: 778507.6326 | H15: 708177.8234 | I15: 97636.34016 | J15: 0 | K15: 2471402.245 | L15: 6241910.62 | M15: 10078658.91 | N15: 11438228.38 | O15: 10587595.34 | P15: 11977127 | Q15: 8201664 | R15: 17724636 | S15: 19408830 | T15: 25118053
B16: =Hist_expenditure!B16 -> Connections | C16: =Hist_expenditure!C16 -> R2 | D16: =Hist_expenditure!D16 -> Residential | E16: =Hist_expenditure!E16 -> Complex connection LV | G16: 0 | H16: 0 | I16: 0 | J16: 0 | K16: 0 | L16: 0 | M16: 0 | N16: 0 | O16: 0 | P16: 0 | Q16: 0 | R16: 0 | S16: 0 | T16: 0
B17: =Hist_expenditure!B17 -> Connections | C17: =Hist_expenditure!C17 -> R3 | D17: =Hist_expenditure!D17 -> Residential | E17: =Hist_expenditure!E17 -> Complex connection HV | G17: 0 | H17: 0 | I17: 0 | J17: 0 | K17: 0 | L17: 0 | M17: 0 | N17: 0 | O17: 0 | P17: 0 | Q17: 0 | R17: 0 | S17: 0 | T17: 0
B18: =Hist_expenditure!B18 -> Connections | C18: =Hist_expenditure!C18 -> CI1 | D18: =Hist_expenditure!D18 -> Commercial/Industrial | E18: =Hist_expenditure!E18 -> Simple connection LV | G18: 919573.0235 | H18: 850044.3644 | I18: 669600.5709 | J18: 1221955.422 | K18: 1685528.725 | L18: 2521368.114 | M18: 2964197.828 | N18: 2959471.919 | O18: 3189458.93 | P18: 3160262 | Q18: 4262385 | R18: 3616342 | S18: 7783504 | T18: 4359388
B19: =Hist_expenditure!B19 -> Connections | C19: =Hist_expenditure!C19 -> CI2 | D19: =Hist_expenditure!D19 -> Commercial/Industrial | E19: =Hist_expenditure!E19 -> Complex connection HV (customer connected at LV, minor HV works) | G19: 4224182.347 | H19: 3716478.268 | I19: 3290974.464 | J19: 6531030.042 | K19: 10403033.95 | L19: 13091554.09 | M19: 10367761.13 | N19: 8206509.409 | O19: 8219272.092 | P19: 7945799 | Q19: 9816971 | R19: 11291630 | S19: 19245152 | T19: 34959745
B20: =Hist_expenditure!B20 -> Connections | C20: =Hist_expenditure!C20 -> CI3 | D20: =Hist_expenditure!D20 -> Commercial/Industrial | E20: =Hist_expenditure!E20 -> Complex connection HV (customer connected at LV, upstream asset works) | G20: 468221.8207 | H20: 321173.657 | I20: 279769.5119 | J20: 1696800.997 | K20: 2646904.75 | L20: 1660729.218 | M20: 790559.4513 | N20: 759613.3578 | O20: 595246.7414 | P20: 0 | Q20: 1435410 | R20: 294533 | S20: 6105194 | T20: 1724986
B21: =Hist_expenditure!B21 -> Connections | C21: =Hist_expenditure!C21 -> CI4 | D21: =Hist_expenditure!D21 -> Commercial/Industrial | E21: =Hist_expenditure!E21 -> Complex connection HV (customer connected at HV) | G21: 125688.9716 | H21: 91466.1726 | I21: 215751.4522 | J21: 2046530.089 | K21: 5917373.289 | L21: 9819909.584 | M21: 8766191.822 | N21: 6971915.864 | O21: 9678907.786 | P21: 12137340 | Q21: 7868449 | R21: 8725513 | S21: 44369131 | T21: 22308799
B22: =Hist_expenditure!B22 -> Connections | C22: =Hist_expenditure!C22 -> CI5 | D22: =Hist_expenditure!D22 -> Commercial/Industrial | E22: =Hist_expenditure!E22 -> Complex connection sub-transmission | G22: 0 | H22: 0 | I22: 0 | J22: 0 | K22: 0 | L22: 0 | M22: 0 | N22: 0 | O22: 0 | P22: 0 | Q22: 5383 | R22: 25286 | S22: 436089 | T22: 0
B23: =Hist_expenditure!B23 -> Connections | C23: =Hist_expenditure!C23 -> S1 | D23: =Hist_expenditure!D23 -> Subdivision | E23: =Hist_expenditure!E23 -> Complex connection LV | G23: 2335114.071 | H23: 2024518.59 | I23: 2081670.166 | J23: 4225559.802 | K23: 3863297.11 | L23: 2797936.492 | M23: 1529874.132 | N23: 1234802.882 | O23: 1570079.021 | P23: 1132275 | Q23: 552670 | R23: 560877 | S23: 710618 | T23: 532363
B24: =Hist_expenditure!B24 -> Connections | C24: =Hist_expenditure!C24 -> S2 | D24: =Hist_expenditure!D24 -> Subdivision | E24: =Hist_expenditure!E24 -> Complex connection HV (no upstream asset works) | G24: 359552.2199 | H24: 315411.1339 | I24: 455114.332 | J24: 733871.5191 | K24: 1086490.534 | L24: 1855620.351 | M24: 1358787.761 | N24: 1054427.892 | O24: 1396725.855 | P24: 1106119 | Q24: 555541 | R24: 696854 | S24: 751854 | T24: 332204
B25: =Hist_expenditure!B25 -> Connections | C25: =Hist_expenditure!C25 -> S3 | D25: =Hist_expenditure!D25 -> Subdivision | E25: =Hist_expenditure!E25 -> Complex connection HV (with upstream asset works) | G25: 0 | H25: 0 | I25: 0 | J25: 0 | K25: 0 | L25: 136276.6415 | M25: 299762.743 | N25: 339125.8713 | O25: 175639.7697 | P25: 0 | Q25: 0 | R25: 0 | S25: 0 | T25: 0
B26: =Hist_expenditure!B26 -> Connections | C26: =Hist_expenditure!C26 -> EG1 | D26: =Hist_expenditure!D26 -> Embedded generation | E26: =Hist_expenditure!E26 -> Simple connection LV | G26: 143887.0835 | H26: 143887.0835 | I26: 0 | J26: 0 | K26: 0 | L26: 0 | M26: 0 | N26: 0 | O26: 0 | P26: 0 | Q26: 0 | R26: 0 | S26: 0 | T26: 0
B27: =Hist_expenditure!B27 -> Connections | C27: =Hist_expenditure!C27 -> EG2 | D27: =Hist_expenditure!D27 -> Embedded generation | E27: =Hist_expenditure!E27 -> Complex connection HV (small capacity) | G27: 34078.51977 | H27: 34078.51977 | I27: 0 | J27: 0 | K27: 0 | L27: 0 | M27: 0 | N27: 0 | O27: 0 | P27: 8012 | Q27: 33559 | R27: 600448 | S27: 7648749 | T27: 0
B28: =Hist_expenditure!B28 -> Connections | C28: =Hist_expenditure!C28 -> EG3 | D28: =Hist_expenditure!D28 -> Embedded generation | E28: =Hist_expenditure!E28 -> Complex connection HV (large capacity) | G28: 0 | H28: 4078.437473 | I28: 4078.437473 | J28: 0 | K28: 0 | L28: 0 | M28: 0 | N28: 0 | O28: 0 | P28: 0 | Q28: 0 | R28: 0 | S28: 0 | T28: 563831
C29: Total | G29: =SUM(G15:G28) -> 9388805.69 | H29: =SUM(H15:H28) -> 8209314.05 | I29: 7094595.275 | J29: 16455747.87 | K29: 28074030.6 | L29: 38125305.11 | M29: 36155793.78 | N29: 32964095.58 | O29: 35412925.54 | P29: 37466934 | Q29: 32732032 | R29: 43536119 | S29: 106459121 | T29: 89899369

Sheet Unit_rates
A1: =Assumptions!$A$1 -> United Energy
A2: =Assumptions!$A$2 -> Connections
A3: Unit rates
B7: =Assumptions!B17 -> 2025/6 - 2030/31 reg period | G7: =Assumptions!G17 -> FALSE | H7: =Assumptions!H17 -> FALSE | I7: =Assumptions!I17 -> FALSE | J7: =Assumptions!J17 -> FALSE | K7: =Assumptions!K17 -> FALSE | L7: =Assumptions!L17 -> FALSE | M7: =Assumptions!M17 -> FALSE | N7: =Assumptions!N17 -> FALSE | O7: =Assumptions!O17 -> FALSE | P7: =Assumptions!P17 -> FALSE | Q7: =Assumptions!Q17 -> FALSE | R7: =Assumptions!R17 -> FALSE | S7: =Assumptions!S17 -> FALSE | T7: =Assumptions!T17 -> FALSE
B8: =Assumptions!B18 -> Forecast period | G8: =Assumptions!G18 -> FALSE | H8: =Assumptions!H18 -> FALSE | I8: =Assumptions!I18 -> FALSE | J8: =Assumptions!J18 -> FALSE | K8: =Assumptions!K18 -> FALSE | L8: =Assumptions!L18 -> FALSE | M8: =Assumptions!M18 -> FALSE | N8: =Assumptions!N18 -> FALSE | O8: =Assumptions!O18 -> FALSE | P8: =Assumptions!P18 -> FALSE | Q8: =Assumptions!Q18 -> FALSE | R8: =Assumptions!R18 -> FALSE | S8: =Assumptions!S18 -> FALSE | T8: =Assumptions!T18 -> FALSE
B9: =Assumptions!B19 -> Fin year end | G9: =Assumptions!G19 -> 2012 | H9: =Assumptions!H19 -> 2013 | I9: =Assumptions!I19 -> 2014 | J9: =Assumptions!J19 -> 2015 | K9: =Assumptions!K19 -> 2016 | L9: =Assumptions!L19 -> 2017 | M9: =Assumptions!M19 -> 2018 | N9: =Assumptions!N19 -> 2019 | O9: =Assumptions!O19 -> 2020 | P9: =Assumptions!P19 -> 2021 | Q9: =Assumptions!Q19 -> 2022 | R9: =Assumptions!R19 -> 2023 | S9: =Assumptions!S19 -> 2024 | T9: =Assumptions!T19 -> 2025
B10: =Assumptions!B20 -> Basis | G10: =Assumptions!G20 -> Actual | H10: =Assumptions!H20 -> Actual | I10: =Assumptions!I20 -> Actual | J10: =Assumptions!J20 -> Actual | K10: =Assumptions!K20 -> Actual | L10: =Assumptions!L20 -> Actual | M10: =Assumptions!M20 -> Actual | N10: =Assumptions!N20 -> Actual | O10: =Assumptions!O20 -> Actual | P10: =Assumptions!P20 -> Actual | Q10: =Assumptions!Q20 -> Actual | R10: =Assumptions!R20 -> Actual | S10: =Assumptions!S20 -> Actual | T10: =Assumptions!T20 -> Actual
B13: =Hist_vol!B$13 -> Category | C13: Type | D13: =Hist_vol!D$13 -> RIN category | E13: =Hist_vol!E$13 -> Description | G13: =Assumptions!G$24 -> 2011/12 | H13: =Assumptions!H$24 -> 2012/13 | I13: =Assumptions!I$24 -> 2013/14 | J13: =Assumptions!J$24 -> 2014/15 | K13: =Assumptions!K$24 -> 2015/16 | L13: =Assumptions!L$24 -> 2016/17 | M13: =Assumptions!M$24 -> 2017/18 | N13: =Assumptions!N$24 -> 2018/19 | O13: =Assumptions!O$24 -> 2019/20 | P13: =Assumptions!P$24 -> 2020/21 | Q13: =Assumptions!Q$24 -> 2021/22 | R13: =Assumptions!R$24 -> 2022/23 | S13: =Assumptions!S$24 -> 2023/24 | T13: =Assumptions!T$24 -> 2024/25
B14: Unit rate ($ June 2026)
B15: =Hist_vol!B15 -> Connections | C15: =Hist_vol!C15 -> R1 | D15: =Hist_vol!D15 -> Residential | E15: =Hist_vol!E15 -> Simple connection LV | G15: =IF(Hist_vol!G15=0,0, Hist_expenditure!G15*Assumptions!G$29/Hist_vol!G15) -> 0 | H15: =IF(Hist_vol!H15=0,0, Hist_expenditure!H15*Assumptions!H$29/Hist_vol!H15) -> 0 | I15: =IF(Hist_vol!I15=0,0, Hist_expenditure!I15*Assumptions!I$29/Hist_vol!I15) -> 0 | J15: =IF(Hist_vol!J15=0,0, Hist_expenditure!J15*Assumptions!J$29/Hist_vol!J15) -> 0 | K15: =IF(Hist_vol!K15=0,0, Hist_expenditure!K15*Assumptions!K$29/Hist_vol!K15) -> 620.3770781 | L15: =IF(Hist_vol!L15=0,0, Hist_expenditure!L15*Assumptions!L$29/Hist_vol!L15) -> 1379.066063 | M15: =IF(Hist_vol!M15=0,0, Hist_expenditure!M15*Assumptions!M$29/Hist_vol!M15) -> 1794.584878 | N15: =IF(Hist_vol!N15=0,0, Hist_expenditure!N15*Assumptions!N$29/Hist_vol!N15) -> 2005.437262 | O15: =IF(Hist_vol!O15=0,0, Hist_expenditure!O15*Assumptions!O$29/Hist_vol!O15) -> 1968.53706 | P15: =IF(Hist_vol!P15=0,0, Hist_expenditure!P15*Assumptions!P$29/Hist_vol!P15) -> 2652.511429 | Q15: =IF(Hist_vol!Q15=0,0, Hist_expenditure!Q15*Assumptions!Q$29/Hist_vol!Q15) -> 2849.004765 | R15: =IF(Hist_vol!R15=0,0, Hist_expenditure!R15*Assumptions!R$29/Hist_vol!R15) -> 3565.039747 | S15: =IF(Hist_vol!S15=0,0, Hist_expenditure!S15*Assumptions!S$29/Hist_vol!S15) -> 3213.277487 | T15: =IF(Hist_vol!T15=0,0, Hist_expenditure!T15*Assumptions!T$29/Hist_vol!T15) -> 8535.403457
B16: =Hist_vol!B16 -> Connections | C16: =Hist_vol!C16 -> R2 | D16: =Hist_vol!D16 -> Residential | E16: =Hist_vol!E16 -> Complex connection LV | G16: =IF(Hist_vol!G16=0,0, Hist_expenditure!G16*Assumptions!G$29/Hist_vol!G16) -> 0 | H16: =IF(Hist_vol!H16=0,0, Hist_expenditure!H16*Assumptions!H$29/Hist_vol!H16) -> 0 | I16: =IF(Hist_vol!I16=0,0, Hist_expenditure!I16*Assumptions!I$29/Hist_vol!I16) -> 0 | J16: =IF(Hist_vol!J16=0,0, Hist_expenditure!J16*Assumptions!J$29/Hist_vol!J16) -> 0 | K16: =IF(Hist_vol!K16=0,0, Hist_expenditure!K16*Assumptions!K$29/Hist_vol!K16) -> 0 | L16: =IF(Hist_vol!L16=0,0, Hist_expenditure!L16*Assumptions!L$29/Hist_vol!L16) -> 0 | M16: =IF(Hist_vol!M16=0,0, Hist_expenditure!M16*Assumptions!M$29/Hist_vol!M16) -> 0 | N16: =IF(Hist_vol!N16=0,0, Hist_expenditure!N16*Assumptions!N$29/Hist_vol!N16) -> 0 | O16: =IF(Hist_vol!O16=0,0, Hist_expenditure!O16*Assumptions!O$29/Hist_vol!O16) -> 0 | P16: =IF(Hist_vol!P16=0,0, Hist_expenditure!P16*Assumptions!P$29/Hist_vol!P16) -> 0 | Q16: =IF(Hist_vol!Q16=0,0, Hist_expenditure!Q16*Assumptions!Q$29/Hist_vol!Q16) -> 0 | R16: =IF(Hist_vol!R16=0,0, Hist_expenditure!R16*Assumptions!R$29/Hist_vol!R16) -> 0 | S16: =IF(Hist_vol!S16=0,0, Hist_expenditure!S16*Assumptions!S$29/Hist_vol!S16) -> 0 | T16: =IF(Hist_vol!T16=0,0, Hist_expenditure!T16*Assumptions!T$29/Hist_vol!T16) -> 0
B17: =Hist_vol!B17 -> Connections | C17: =Hist_vol!C17 -> R3 | D17: =Hist_vol!D17 -> Residential | E17: =Hist_vol!E17 -> Complex connection HV | G17: =IF(Hist_vol!G17=0,0, Hist_expenditure!G17*Assumptions!G$29/Hist_vol!G17) -> 0 | H17: =IF(Hist_vol!H17=0,0, Hist_expenditure!H17*Assumptions!H$29/Hist_vol!H17) -> 0 | I17: =IF(Hist_vol!I17=0,0, Hist_expenditure!I17*Assumptions!I$29/Hist_vol!I17) -> 0 | J17: =IF(Hist_vol!J17=0,0, Hist_expenditure!J17*Assumptions!J$29/Hist_vol!J17) -> 0 | K17: =IF(Hist_vol!K17=0,0, Hist_expenditure!K17*Assumptions!K$29/Hist_vol!K17) -> 0 | L17: =IF(Hist_vol!L17=0,0, Hist_expenditure!L17*Assumptions!L$29/Hist_vol!L17) -> 0 | M17: =IF(Hist_vol!M17=0,0, Hist_expenditure!M17*Assumptions!M$29/Hist_vol!M17) -> 0 | N17: =IF(Hist_vol!N17=0,0, Hist_expenditure!N17*Assumptions!N$29/Hist_vol!N17) -> 0 | O17: =IF(Hist_vol!O17=0,0, Hist_expenditure!O17*Assumptions!O$29/Hist_vol!O17) -> 0 | P17: =IF(Hist_vol!P17=0,0, Hist_expenditure!P17*Assumptions!P$29/Hist_vol!P17) -> 0 | Q17: =IF(Hist_vol!Q17=0,0, Hist_expenditure!Q17*Assumptions!Q$29/Hist_vol!Q17) -> 0 | R17: =IF(Hist_vol!R17=0,0, Hist_expenditure!R17*Assumptions!R$29/Hist_vol!R17) -> 0 | S17: =IF(Hist_vol!S17=0,0, Hist_expenditure!S17*Assumptions!S$29/Hist_vol!S17) -> 0 | T17: =IF(Hist_vol!T17=0,0, Hist_expenditure!T17*Assumptions!T$29/Hist_vol!T17) -> 0
B18: =Hist_vol!B18 -> Connections | C18: =Hist_vol!C18 -> CI1 | D18: =Hist_vol!D18 -> Commercial/Industrial | E18: =Hist_vol!E18 -> Simple connection LV | G18: =IF(Hist_vol!G18=0,0, Hist_expenditure!G18*Assumptions!G$29/Hist_vol!G18) -> 1962.245886 | H18: =IF(Hist_vol!H18=0,0, Hist_expenditure!H18*Assumptions!H$29/Hist_vol!H18) -> 1687.802646 | I18: =IF(Hist_vol!I18=0,0, Hist_expenditure!I18*Assumptions!I$29/Hist_vol!I18) -> 2225.447839 | J18: =IF(Hist_vol!J18=0,0, Hist_expenditure!J18*Assumptions!J$29/Hist_vol!J18) -> 6630.863666 | K18: =IF(Hist_vol!K18=0,0, Hist_expenditure!K18*Assumptions!K$29/Hist_vol!K18) -> 3772.768892 | L18: =IF(Hist_vol!L18=0,0, Hist_expenditure!L18*Assumptions!L$29/Hist_vol!L18) -> 3009.352942 | M18: =IF(Hist_vol!M18=0,0, Hist_expenditure!M18*Assumptions!M$29/Hist_vol!M18) -> 3683.075741 | N18: =IF(Hist_vol!N18=0,0, Hist_expenditure!N18*Assumptions!N$29/Hist_vol!N18) -> 4778.664461 | O18: =IF(Hist_vol!O18=0,0, Hist_expenditure!O18*Assumptions!O$29/Hist_vol!O18) -> 5958.713003 | P18: =IF(Hist_vol!P18=0,0, Hist_expenditure!P18*Assumptions!P$29/Hist_vol!P18) -> 9838.100465 | Q18: =IF(Hist_vol!Q18=0,0, Hist_expenditure!Q18*Assumptions!Q$29/Hist_vol!Q18) -> 9672.488723 | R18: =IF(Hist_vol!R18=0,0, Hist_expenditure!R18*Assumptions!R$29/Hist_vol!R18) -> 9522.842448 | S18: =IF(Hist_vol!S18=0,0, Hist_expenditure!S18*Assumptions!S$29/Hist_vol!S18) -> 13091.64108 | T18: =IF(Hist_vol!T18=0,0, Hist_expenditure!T18*Assumptions!T$29/Hist_vol!T18) -> 21872.13466
B19: =Hist_vol!B19 -> Connections | C19: =Hist_vol!C19 -> CI2 | D19: =Hist_vol!D19 -> Commercial/Industrial | E19: =Hist_vol!E19 -> Complex connection HV (customer connected at LV, minor HV works) | G19: =IF(Hist_vol!G19=0,0, Hist_expenditure!G19*Assumptions!G$29/Hist_vol!G19) -> 82493.94124 | H19: =IF(Hist_vol!H19=0,0, Hist_expenditure!H19*Assumptions!H$29/Hist_vol!H19) -> 52659.30525 | I19: =IF(Hist_vol!I19=0,0, Hist_expenditure!I19*Assumptions!I$29/Hist_vol!I19) -> 21480.70892 | J19: =IF(Hist_vol!J19=0,0, Hist_expenditure!J19*Assumptions!J$29/Hist_vol!J19) -> 17783.15009 | K19: =IF(Hist_vol!K19=0,0, Hist_expenditure!K19*Assumptions!K$29/Hist_vol!K19) -> 21366.35311 | L19: =IF(Hist_vol!L19=0,0, Hist_expenditure!L19*Assumptions!L$29/Hist_vol!L19) -> 18379.08214 | M19: =IF(Hist_vol!M19=0,0, Hist_expenditure!M19*Assumptions!M$29/Hist_vol!M19) -> 12611.74911 | N19: =IF(Hist_vol!N19=0,0, Hist_expenditure!N19*Assumptions!N$29/Hist_vol!N19) -> 11665.27795 | O19: =IF(Hist_vol!O19=0,0, Hist_expenditure!O19*Assumptions!O$29/Hist_vol!O19) -> 14369.00889 | P19: =IF(Hist_vol!P19=0,0, Hist_expenditure!P19*Assumptions!P$29/Hist_vol!P19) -> 22602.50792 | Q19: =IF(Hist_vol!Q19=0,0, Hist_expenditure!Q19*Assumptions!Q$29/Hist_vol!Q19) -> 17078.38817 | R19: =IF(Hist_vol!R19=0,0, Hist_expenditure!R19*Assumptions!R$29/Hist_vol!R19) -> 22327.22597 | S19: =IF(Hist_vol!S19=0,0, Hist_expenditure!S19*Assumptions!S$29/Hist_vol!S19) -> 26232.95251 | T19: =IF(Hist_vol!T19=0,0, Hist_expenditure!T19*Assumptions!T$29/Hist_vol!T19) -> 53678.30094
B20: =Hist_vol!B20 -> Connections | C20: =Hist_vol!C20 -> CI3 | D20: =Hist_vol!D20 -> Commercial/Industrial | E20: =Hist_vol!E20 -> Complex connection HV (customer connected at LV, upstream asset works) | G20: =IF(Hist_vol!G20=0,0, Hist_expenditure!G20*Assumptions!G$29/Hist_vol!G20) -> 945556.1128 | H20: =IF(Hist_vol!H20=0,0, Hist_expenditure!H20*Assumptions!H$29/Hist_vol!H20) -> 837183.6411 | I20: =IF(Hist_vol!I20=0,0, Hist_expenditure!I20*Assumptions!I$29/Hist_vol!I20) -> 252198.9838 | J20: =IF(Hist_vol!J20=0,0, Hist_expenditure!J20*Assumptions!J$29/Hist_vol!J20) -> 373141.8566 | K20: =IF(Hist_vol!K20=0,0, Hist_expenditure!K20*Assumptions!K$29/Hist_vol!K20) -> 337229.4642 | L20: =IF(Hist_vol!L20=0,0, Hist_expenditure!L20*Assumptions!L$29/Hist_vol!L20) -> 198603.304 | M20: =IF(Hist_vol!M20=0,0, Hist_expenditure!M20*Assumptions!M$29/Hist_vol!M20) -> 144722.7476 | N20: =IF(Hist_vol!N20=0,0, Hist_expenditure!N20*Assumptions!N$29/Hist_vol!N20) -> 302807.4216 | O20: =IF(Hist_vol!O20=0,0, Hist_expenditure!O20*Assumptions!O$29/Hist_vol!O20) -> 509137.0946 | P20: =IF(Hist_vol!P20=0,0, Hist_expenditure!P20*Assumptions!P$29/Hist_vol!P20) -> 0 | Q20: =IF(Hist_vol!Q20=0,0, Hist_expenditure!Q20*Assumptions!Q$29/Hist_vol!Q20) -> 413029.2913 | R20: =IF(Hist_vol!R20=0,0, Hist_expenditure!R20*Assumptions!R$29/Hist_vol!R20) -> 243146.7774 | S20: =IF(Hist_vol!S20=0,0, Hist_expenditure!S20*Assumptions!S$29/Hist_vol!S20) -> 346285.7285 | T20: =IF(Hist_vol!T20=0,0, Hist_expenditure!T20*Assumptions!T$29/Hist_vol!T20) -> 234767.9546
B21: =Hist_vol!B21 -> Connections | C21: =Hist_vol!C21 -> CI4 | D21: =Hist_vol!D21 -> Commercial/Industrial | E21: =Hist_vol!E21 -> Complex connection HV (customer connected at HV) | G21: =IF(Hist_vol!G21=0,0, Hist_expenditure!G21*Assumptions!G$29/Hist_vol!G21) -> 146694.5536 | H21: =IF(Hist_vol!H21=0,0, Hist_expenditure!H21*Assumptions!H$29/Hist_vol!H21) -> 110362.3479 | I21: =IF(Hist_vol!I21=0,0, Hist_expenditure!I21*Assumptions!I$29/Hist_vol!I21) -> 70013.9291 | J21: =IF(Hist_vol!J21=0,0, Hist_expenditure!J21*Assumptions!J$29/Hist_vol!J21) -> 14904.55819 | K21: =IF(Hist_vol!K21=0,0, Hist_expenditure!K21*Assumptions!K$29/Hist_vol!K21) -> 12182.46226 | L21: =IF(Hist_vol!L21=0,0, Hist_expenditure!L21*Assumptions!L$29/Hist_vol!L21) -> 12442.42824 | M21: =IF(Hist_vol!M21=0,0, Hist_expenditure!M21*Assumptions!M$29/Hist_vol!M21) -> 10275.65172 | N21: =IF(Hist_vol!N21=0,0, Hist_expenditure!N21*Assumptions!N$29/Hist_vol!N21) -> 8998.168461 | O21: =IF(Hist_vol!O21=0,0, Hist_expenditure!O21*Assumptions!O$29/Hist_vol!O21) -> 14452.36253 | P21: =IF(Hist_vol!P21=0,0, Hist_expenditure!P21*Assumptions!P$29/Hist_vol!P21) -> 28193.05168 | Q21: =IF(Hist_vol!Q21=0,0, Hist_expenditure!Q21*Assumptions!Q$29/Hist_vol!Q21) -> 14203.83619 | R21: =IF(Hist_vol!R21=0,0, Hist_expenditure!R21*Assumptions!R$29/Hist_vol!R21) -> 16751.63164 | S21: =IF(Hist_vol!S21=0,0, Hist_expenditure!S21*Assumptions!S$29/Hist_vol!S21) -> 66226.60082 | T21: =IF(Hist_vol!T21=0,0, Hist_expenditure!T21*Assumptions!T$29/Hist_vol!T21) -> 765994.9999
B22: =Hist_vol!B22 -> Connections | C22: =Hist_vol!C22 -> CI5 | D22: =Hist_vol!D22 -> Commercial/Industrial | E22: =Hist_vol!E22 -> Complex connection sub-transmission | G22: =IF(Hist_vol!G22=0,0, Hist_expenditure!G22*Assumptions!G$29/Hist_vol!G22) -> 0 | H22: =IF(Hist_vol!H22=0,0, Hist_expenditure!H22*Assumptions!H$29/Hist_vol!H22) -> 0 | I22: =IF(Hist_vol!I22=0,0, Hist_expenditure!I22*Assumptions!I$29/Hist_vol!I22) -> 0 | J22: =IF(Hist_vol!J22=0,0, Hist_expenditure!J22*Assumptions!J$29/Hist_vol!J22) -> 0 | K22: =IF(Hist_vol!K22=0,0, Hist_expenditure!K22*Assumptions!K$29/Hist_vol!K22) -> 0 | L22: =IF(Hist_vol!L22=0,0, Hist_expenditure!L22*Assumptions!L$29/Hist_vol!L22) -> 0 | M22: =IF(Hist_vol!M22=0,0, Hist_expenditure!M22*Assumptions!M$29/Hist_vol!M22) -> 0 | N22: =IF(Hist_vol!N22=0,0, Hist_expenditure!N22*Assumptions!N$29/Hist_vol!N22) -> 0 | O22: =IF(Hist_vol!O22=0,0, Hist_expenditure!O22*Assumptions!O$29/Hist_vol!O22) -> 0 | P22: =IF(Hist_vol!P22=0,0, Hist_expenditure!P22*Assumptions!P$29/Hist_vol!P22) -> 0 | Q22: =IF(Hist_vol!Q22=0,0, Hist_expenditure!Q22*Assumptions!Q$29/Hist_vol!Q22) -> 860.4069264 | R22: =IF(Hist_vol!R22=0,0, Hist_expenditure!R22*Assumptions!R$29/Hist_vol!R22) -> 1546.271787 | S22: =IF(Hist_vol!S22=0,0, Hist_expenditure!S22*Assumptions!S$29/Hist_vol!S22) -> 9472.938964 | T22: =IF(Hist_vol!T22=0,0, Hist_expenditure!T22*Assumptions!T$29/Hist_vol!T22) -> 92909.06141
B23: =Hist_vol!B23 -> Connections | C23: =Hist_vol!C23 -> S1 | D23: =Hist_vol!D23 -> Subdivision | E23: =Hist_vol!E23 -> Complex connection LV | G23: =IF(Hist_vol!G23=0,0, Hist_expenditure!G23*Assumptions!G$29/Hist_vol!G23) -> 142226.4666 | H23: =IF(Hist_vol!H23=0,0, Hist_expenditure!H23*Assumptions!H$29/Hist_vol!H23) -> 81988.6254 | I23: =IF(Hist_vol!I23=0,0, Hist_expenditure!I23*Assumptions!I$29/Hist_vol!I23) -> 61549.27824 | J23: =IF(Hist_vol!J23=0,0, Hist_expenditure!J23*Assumptions!J$29/Hist_vol!J23) -> 58993.06626 | K23: =IF(Hist_vol!K23=0,0, Hist_expenditure!K23*Assumptions!K$29/Hist_vol!K23) -> 12739.10682 | L23: =IF(Hist_vol!L23=0,0, Hist_expenditure!L23*Assumptions!L$29/Hist_vol!L23) -> 3380.564633 | M23: =IF(Hist_vol!M23=0,0, Hist_expenditure!M23*Assumptions!M$29/Hist_vol!M23) -> 2847.455219 | N23: =IF(Hist_vol!N23=0,0, Hist_expenditure!N23*Assumptions!N$29/Hist_vol!N23) -> 2668.6733 | O23: =IF(Hist_vol!O23=0,0, Hist_expenditure!O23*Assumptions!O$29/Hist_vol!O23) -> 2639.424062 | P23: =IF(Hist_vol!P23=0,0, Hist_expenditure!P23*Assumptions!P$29/Hist_vol!P23) -> 3260.735329 | Q23: =IF(Hist_vol!Q23=0,0, Hist_expenditure!Q23*Assumptions!Q$29/Hist_vol!Q23) -> 2847.363973 | R23: =IF(Hist_vol!R23=0,0, Hist_expenditure!R23*Assumptions!R$29/Hist_vol!R23) -> 2543.995041 | S23: =IF(Hist_vol!S23=0,0, Hist_expenditure!S23*Assumptions!S$29/Hist_vol!S23) -> 9256.852054 | T23: =IF(Hist_vol!T23=0,0, Hist_expenditure!T23*Assumptions!T$29/Hist_vol!T23) -> 18323.79893
B24: =Hist_vol!B24 -> Connections | C24: =Hist_vol!C24 -> S2 | D24: =Hist_vol!D24 -> Subdivision | E24: =Hist_vol!E24 -> Complex connection HV (no upstream asset works) | G24: =IF(Hist_vol!G24=0,0, Hist_expenditure!G24*Assumptions!G$29/Hist_vol!G24) -> 72240.56889 | H24: =IF(Hist_vol!H24=0,0, Hist_expenditure!H24*Assumptions!H$29/Hist_vol!H24) -> 55356.57005 | I24: =IF(Hist_vol!I24=0,0, Hist_expenditure!I24*Assumptions!I$29/Hist_vol!I24) -> 52443.39795 | J24: =IF(Hist_vol!J24=0,0, Hist_expenditure!J24*Assumptions!J$29/Hist_vol!J24) -> 44947.00693 | K24: =IF(Hist_vol!K24=0,0, Hist_expenditure!K24*Assumptions!K$29/Hist_vol!K24) -> 17835.3079 | L24: =IF(Hist_vol!L24=0,0, Hist_expenditure!L24*Assumptions!L$29/Hist_vol!L24) -> 22962.36913 | M24: =IF(Hist_vol!M24=0,0, Hist_expenditure!M24*Assumptions!M$29/Hist_vol!M24) -> 6923.015777 | N24: =IF(Hist_vol!N24=0,0, Hist_expenditure!N24*Assumptions!N$29/Hist_vol!N24) -> 3804.727099 | O24: =IF(Hist_vol!O24=0,0, Hist_expenditure!O24*Assumptions!O$29/Hist_vol!O24) -> 2793.939908 | P24: =IF(Hist_vol!P24=0,0, Hist_expenditure!P24*Assumptions!P$29/Hist_vol!P24) -> 2059.786516 | Q24: =IF(Hist_vol!Q24=0,0, Hist_expenditure!Q24*Assumptions!Q$29/Hist_vol!Q24) -> 2958.357543 | R24: =IF(Hist_vol!R24=0,0, Hist_expenditure!R24*Assumptions!R$29/Hist_vol!R24) -> 3435.599993 | S24: =IF(Hist_vol!S24=0,0, Hist_expenditure!S24*Assumptions!S$29/Hist_vol!S24) -> 40120.04764 | T24: =IF(Hist_vol!T24=0,0, Hist_expenditure!T24*Assumptions!T$29/Hist_vol!T24) -> 24386.43409
B25: =Hist_vol!B25 -> Connections | C25: =Hist_vol!C25 -> S3 | D25: =Hist_vol!D25 -> Subdivision | E25: =Hist_vol!E25 -> Complex connection HV (with upstream asset works) | G25: =IF(Hist_vol!G25=0,0, Hist_expenditure!G25*Assumptions!G$29/Hist_vol!G25) -> 0 | H25: =IF(Hist_vol!H25=0,0, Hist_expenditure!H25*Assumptions!H$29/Hist_vol!H25) -> 0 | I25: =IF(Hist_vol!I25=0,0, Hist_expenditure!I25*Assumptions!I$29/Hist_vol!I25) -> 0 | J25: =IF(Hist_vol!J25=0,0, Hist_expenditure!J25*Assumptions!J$29/Hist_vol!J25) -> 0 | K25: =IF(Hist_vol!K25=0,0, Hist_expenditure!K25*Assumptions!K$29/Hist_vol!K25) -> 0 | L25: =IF(Hist_vol!L25=0,0, Hist_expenditure!L25*Assumptions!L$29/Hist_vol!L25) -> 529769.0003 | M25: =IF(Hist_vol!M25=0,0, Hist_expenditure!M25*Assumptions!M$29/Hist_vol!M25) -> 48963.14783 | N25: =IF(Hist_vol!N25=0,0, Hist_expenditure!N25*Assumptions!N$29/Hist_vol!N25) -> 54751.24114 | O25: =IF(Hist_vol!O25=0,0, Hist_expenditure!O25*Assumptions!O$29/Hist_vol!O25) -> 0 | P25: =IF(Hist_vol!P25=0,0, Hist_expenditure!P25*Assumptions!P$29/Hist_vol!P25) -> 0 | Q25: =IF(Hist_vol!Q25=0,0, Hist_expenditure!Q25*Assumptions!Q$29/Hist_vol!Q25) -> 0 | R25: =IF(Hist_vol!R25=0,0, Hist_expenditure!R25*Assumptions!R$29/Hist_vol!R25) -> 0 | S25: =IF(Hist_vol!S25=0,0, Hist_expenditure!S25*Assumptions!S$29/Hist_vol!S25) -> 0 | T25: =IF(Hist_vol!T25=0,0, Hist_expenditure!T25*Assumptions!T$29/Hist_vol!T25) -> 0
B26: =Hist_vol!B26 -> Connections | C26: =Hist_vol!C26 -> EG1 | D26: =Hist_vol!D26 -> Embedded generation | E26: =Hist_vol!E26 -> Simple connection LV | G26: =IF(Hist_vol!G26=0,0, Hist_expenditure!G26*Assumptions!G$29/Hist_vol!G26) -> 47.06553122 | H26: =IF(Hist_vol!H26=0,0, Hist_expenditure!H26*Assumptions!H$29/Hist_vol!H26) -> 72.0637392 | I26: =IF(Hist_vol!I26=0,0, Hist_expenditure!I26*Assumptions!I$29/Hist_vol!I26) -> 0 | J26: =IF(Hist_vol!J26=0,0, Hist_expenditure!J26*Assumptions!J$29/Hist_vol!J26) -> 0 | K26: =IF(Hist_vol!K26=0,0, Hist_expenditure!K26*Assumptions!K$29/Hist_vol!K26) -> 0 | L26: =IF(Hist_vol!L26=0,0, Hist_expenditure!L26*Assumptions!L$29/Hist_vol!L26) -> 0 | M26: =IF(Hist_vol!M26=0,0, Hist_expenditure!M26*Assumptions!M$29/Hist_vol!M26) -> 0 | N26: =IF(Hist_vol!N26=0,0, Hist_expenditure!N26*Assumptions!N$29/Hist_vol!N26) -> 0 | O26: =IF(Hist_vol!O26=0,0, Hist_expenditure!O26*Assumptions!O$29/Hist_vol!O26) -> 0 | P26: =IF(Hist_vol!P26=0,0, Hist_expenditure!P26*Assumptions!P$29/Hist_vol!P26) -> 0 | Q26: =IF(Hist_vol!Q26=0,0, Hist_expenditure!Q26*Assumptions!Q$29/Hist_vol!Q26) -> 0 | R26: =IF(Hist_vol!R26=0,0, Hist_expenditure!R26*Assumptions!R$29/Hist_vol!R26) -> 0 | S26: =IF(Hist_vol!S26=0,0, Hist_expenditure!S26*Assumptions!S$29/Hist_vol!S26) -> 0 | T26: =IF(Hist_vol!T26=0,0, Hist_expenditure!T26*Assumptions!T$29/Hist_vol!T26) -> 4155.11849
B27: =Hist_vol!B27 -> Connections | C27: =Hist_vol!C27 -> EG2 | D27: =Hist_vol!D27 -> Embedded generation | E27: =Hist_vol!E27 -> Complex connection HV (small capacity) | G27: =IF(Hist_vol!G27=0,0, Hist_expenditure!G27*Assumptions!G$29/Hist_vol!G27) -> 0 | H27: =IF(Hist_vol!H27=0,0, Hist_expenditure!H27*Assumptions!H$29/Hist_vol!H27) -> 0 | I27: =IF(Hist_vol!I27=0,0, Hist_expenditure!I27*Assumptions!I$29/Hist_vol!I27) -> 0 | J27: =IF(Hist_vol!J27=0,0, Hist_expenditure!J27*Assumptions!J$29/Hist_vol!J27) -> 0 | K27: =IF(Hist_vol!K27=0,0, Hist_expenditure!K27*Assumptions!K$29/Hist_vol!K27) -> 0 | L27: =IF(Hist_vol!L27=0,0, Hist_expenditure!L27*Assumptions!L$29/Hist_vol!L27) -> 0 | M27: =IF(Hist_vol!M27=0,0, Hist_expenditure!M27*Assumptions!M$29/Hist_vol!M27) -> 0 | N27: =IF(Hist_vol!N27=0,0, Hist_expenditure!N27*Assumptions!N$29/Hist_vol!N27) -> 0 | O27: =IF(Hist_vol!O27=0,0, Hist_expenditure!O27*Assumptions!O$29/Hist_vol!O27) -> 0 | P27: =IF(Hist_vol!P27=0,0, Hist_expenditure!P27*Assumptions!P$29/Hist_vol!P27) -> 0 | Q27: =IF(Hist_vol!Q27=0,0, Hist_expenditure!Q27*Assumptions!Q$29/Hist_vol!Q27) -> 0 | R27: =IF(Hist_vol!R27=0,0, Hist_expenditure!R27*Assumptions!R$29/Hist_vol!R27) -> 0 | S27: =IF(Hist_vol!S27=0,0, Hist_expenditure!S27*Assumptions!S$29/Hist_vol!S27) -> 0 | T27: =IF(Hist_vol!T27=0,0, Hist_expenditure!T27*Assumptions!T$29/Hist_vol!T27) -> 0
B28: =Hist_vol!B28 -> Connections | C28: =Hist_vol!C28 -> EG3 | D28: =Hist_vol!D28 -> Embedded generation | E28: =Hist_vol!E28 -> Complex connection HV (large capacity) | G28: =IF(Hist_vol!G28=0,0, Hist_expenditure!G28*Assumptions!G$29/Hist_vol!G28) -> 0 | H28: =IF(Hist_vol!H28=0,0, Hist_expenditure!H28*Assumptions!H$29/Hist_vol!H28) -> 112571.1463 | I28: =IF(Hist_vol!I28=0,0, Hist_expenditure!I28*Assumptions!I$29/Hist_vol!I28) -> 110274.6503 | J28: =IF(Hist_vol!J28=0,0, Hist_expenditure!J28*Assumptions!J$29/Hist_vol!J28) -> 0 | K28: =IF(Hist_vol!K28=0,0, Hist_expenditure!K28*Assumptions!K$29/Hist_vol!K28) -> 0 | L28: =IF(Hist_vol!L28=0,0, Hist_expenditure!L28*Assumptions!L$29/Hist_vol!L28) -> 0 | M28: =IF(Hist_vol!M28=0,0, Hist_expenditure!M28*Assumptions!M$29/Hist_vol!M28) -> 0 | N28: =IF(Hist_vol!N28=0,0, Hist_expenditure!N28*Assumptions!N$29/Hist_vol!N28) -> 0 | O28: =IF(Hist_vol!O28=0,0, Hist_expenditure!O28*Assumptions!O$29/Hist_vol!O28) -> 0 | P28: =IF(Hist_vol!P28=0,0, Hist_expenditure!P28*Assumptions!P$29/Hist_vol!P28) -> 0 | Q28: =IF(Hist_vol!Q28=0,0, Hist_expenditure!Q28*Assumptions!Q$29/Hist_vol!Q28) -> 0 | R28: =IF(Hist_vol!R28=0,0, Hist_expenditure!R28*Assumptions!R$29/Hist_vol!R28) -> 0 | S28: =IF(Hist_vol!S28=0,0, Hist_expenditure!S28*Assumptions!S$29/Hist_vol!S28) -> 0 | T28: =IF(Hist_vol!T28=0,0, Hist_expenditure!T28*Assumptions!T$29/Hist_vol!T28) -> 27676.03486

Sheet CC_ratio
A1: =Assumptions!$A$1 -> United Energy
A2: =Assumptions!$A$2 -> Connections
A3: Customer contribution ratio
B7: =Assumptions!B17 -> 2025/6 - 2030/31 reg period | G7: =Assumptions!G17 -> FALSE | H7: =Assumptions!H17 -> FALSE | I7: =Assumptions!I17 -> FALSE | J7: =Assumptions!J17 -> FALSE | K7: =Assumptions!K17 -> FALSE | L7: =Assumptions!L17 -> FALSE | M7: =Assumptions!M17 -> FALSE | N7: =Assumptions!N17 -> FALSE | O7: =Assumptions!O17 -> FALSE | P7: =Assumptions!P17 -> FALSE | Q7: =Assumptions!Q17 -> FALSE | R7: =Assumptions!R17 -> FALSE | S7: =Assumptions!S17 -> FALSE | T7: =Assumptions!T17 -> FALSE | U7: =Assumptions!U17 -> FALSE | V7: =Assumptions!V17 -> TRUE | W7: =Assumptions!W17 -> TRUE | X7: =Assumptions!X17 -> TRUE | Y7: =Assumptions!Y17 -> TRUE | Z7: =Assumptions!Z17 -> TRUE
B8: =Assumptions!B18 -> Forecast period | G8: =Assumptions!G18 -> FALSE | H8: =Assumptions!H18 -> FALSE | I8: =Assumptions!I18 -> FALSE | J8: =Assumptions!J18 -> FALSE | K8: =Assumptions!K18 -> FALSE | L8: =Assumptions!L18 -> FALSE | M8: =Assumptions!M18 -> FALSE | N8: =Assumptions!N18 -> FALSE | O8: =Assumptions!O18 -> FALSE | P8: =Assumptions!P18 -> FALSE | Q8: =Assumptions!Q18 -> FALSE | R8: =Assumptions!R18 -> FALSE | S8: =Assumptions!S18 -> FALSE | T8: =Assumptions!T18 -> FALSE | U8: =Assumptions!U18 -> TRUE | V8: =Assumptions!V18 -> TRUE | W8: =Assumptions!W18 -> TRUE | X8: =Assumptions!X18 -> TRUE | Y8: =Assumptions!Y18 -> TRUE | Z8: =Assumptions!Z18 -> TRUE
B9: =Assumptions!B19 -> Fin year end | G9: =Assumptions!G19 -> 2012 | H9: =Assumptions!H19 -> 2013 | I9: =Assumptions!I19 -> 2014 | J9: =Assumptions!J19 -> 2015 | K9: =Assumptions!K19 -> 2016 | L9: =Assumptions!L19 -> 2017 | M9: =Assumptions!M19 -> 2018 | N9: =Assumptions!N19 -> 2019 | O9: =Assumptions!O19 -> 2020 | P9: =Assumptions!P19 -> 2021 | Q9: =Assumptions!Q19 -> 2022 | R9: =Assumptions!R19 -> 2023 | S9: =Assumptions!S19 -> 2024 | T9: =Assumptions!T19 -> 2025 | U9: =Assumptions!U19 -> 2026 | V9: =Assumptions!V19 -> 2027 | W9: =Assumptions!W19 -> 2028 | X9: =Assumptions!X19 -> 2029 | Y9: =Assumptions!Y19 -> 2030 | Z9: =Assumptions!Z19 -> 2031
B10: =Assumptions!B20 -> Basis | G10: =Assumptions!G20 -> Actual | H10: =Assumptions!H20 -> Actual | I10: =Assumptions!I20 -> Actual | J10: =Assumptions!J20 -> Actual | K10: =Assumptions!K20 -> Actual | L10: =Assumptions!L20 -> Actual | M10: =Assumptions!M20 -> Actual | N10: =Assumptions!N20 -> Actual | O10: =Assumptions!O20 -> Actual | P10: =Assumptions!P20 -> Actual | Q10: =Assumptions!Q20 -> Actual | R10: =Assumptions!R20 -> Actual | S10: =Assumptions!S20 -> Actual | T10: =Assumptions!T20 -> Actual | U10: =Assumptions!U20 -> Forecast | V10: =Assumptions!V20 -> Forecast | W10: =Assumptions!W20 -> Forecast | X10: =Assumptions!X20 -> Forecast | Y10: =Assumptions!Y20 -> Forecast | Z10: =Assumptions!Z20 -> Forecast
B13: =Hist_vol!B$13 -> Category | C13: Type | D13: =Hist_vol!D$13 -> RIN category | E13: =Hist_vol!E$13 -> Description | G13: =Assumptions!G$24 -> 2011/12 | H13: =Assumptions!H$24 -> 2012/13 | I13: =Assumptions!I$24 -> 2013/14 | J13: =Assumptions!J$24 -> 2014/15 | K13: =Assumptions!K$24 -> 2015/16 | L13: =Assumptions!L$24 -> 2016/17 | M13: =Assumptions!M$24 -> 2017/18 | N13: =Assumptions!N$24 -> 2018/19 | O13: =Assumptions!O$24 -> 2019/20 | P13: =Assumptions!P$24 -> 2020/21 | Q13: =Assumptions!Q$24 -> 2021/22 | R13: =Assumptions!R$24 -> 2022/23 | S13: =Assumptions!S$24 -> 2023/24 | T13: =Assumptions!T$24 -> 2024/25 | U13: =Assumptions!U$24 -> 2025/26 | V13: =Assumptions!V$24 -> 2026/27 | W13: =Assumptions!W$24 -> 2027/28 | X13: =Assumptions!X$24 -> 2028/29 | Y13: =Assumptions!Y$24 -> 2029/30 | Z13: =Assumptions!Z$24 -> 2030/31
B14: Contribution as % of spend
B15: =Hist_vol!B15 -> Connections | C15: =Hist_vol!C15 -> R1 | D15: =Hist_vol!D15 -> Residential | E15: =Hist_vol!E15 -> Simple connection LV | G15: =IF(Hist_expenditure!G15=0,0, Hist_contributions!G15/Hist_expenditure!G15) -> 0 | H15: =IF(Hist_expenditure!H15=0,0, Hist_contributions!H15/Hist_expenditure!H15) -> 0 | I15: =IF(Hist_expenditure!I15=0,0, Hist_contributions!I15/Hist_expenditure!I15) -> 0 | J15: =IF(Hist_expenditure!J15=0,0, Hist_contributions!J15/Hist_expenditure!J15) -> 0 | K15: =IF(Hist_expenditure!K15=0,0, Hist_contributions!K15/Hist_expenditure!K15) -> 0.5374855042 | L15: =IF(Hist_expenditure!L15=0,0, Hist_contributions!L15/Hist_expenditure!L15) -> 0.6114979334 | M15: =IF(Hist_expenditure!M15=0,0, Hist_contributions!M15/Hist_expenditure!M15) -> 0.7063304204 | N15: =IF(Hist_expenditure!N15=0,0, Hist_contributions!N15/Hist_expenditure!N15) -> 0.7693206838 | O15: =IF(Hist_expenditure!O15=0,0, Hist_contributions!O15/Hist_expenditure!O15) -> 0.895805409 | P15: =IF(Hist_expenditure!P15=0,0, Hist_contributions!P15/Hist_expenditure!P15) -> 0.9851914391 | Q15: =IF(Hist_expenditure!Q15=0,0, Hist_contributions!Q15/Hist_expenditure!Q15) -> 0.6113297869 | R15: =IF(Hist_expenditure!R15=0,0, Hist_contributions!R15/Hist_expenditure!R15) -> 0.9104732411 | S15: =IF(Hist_expenditure!S15=0,0, Hist_contributions!S15/Hist_expenditure!S15) -> 0.9947954862 | T15: =IF(Hist_expenditure!T15=0,0, Hist_contributions!T15/Hist_expenditure!T15) -> 0.9836772117 | U15: 0.9104732411 | V15: =$U15 -> 0.9104732411 | W15: =$U15 -> 0.9104732411 | X15: 0.9104732411 | Y15: 0.9104732411 | Z15: 0.9104732411
B16: =Hist_vol!B16 -> Connections | C16: =Hist_vol!C16 -> R2 | D16: =Hist_vol!D16 -> Residential | E16: =Hist_vol!E16 -> Complex connection LV | G16: =IF(Hist_expenditure!G16=0,0, Hist_contributions!G16/Hist_expenditure!G16) -> 0 | H16: =IF(Hist_expenditure!H16=0,0, Hist_contributions!H16/Hist_expenditure!H16) -> 0 | I16: =IF(Hist_expenditure!I16=0,0, Hist_contributions!I16/Hist_expenditure!I16) -> 0 | J16: =IF(Hist_expenditure!J16=0,0, Hist_contributions!J16/Hist_expenditure!J16) -> 0 | K16: =IF(Hist_expenditure!K16=0,0, Hist_contributions!K16/Hist_expenditure!K16) -> 0 | L16: =IF(Hist_expenditure!L16=0,0, Hist_contributions!L16/Hist_expenditure!L16) -> 0 | M16: =IF(Hist_expenditure!M16=0,0, Hist_contributions!M16/Hist_expenditure!M16) -> 0 | N16: =IF(Hist_expenditure!N16=0,0, Hist_contributions!N16/Hist_expenditure!N16) -> 0 | O16: =IF(Hist_expenditure!O16=0,0, Hist_contributions!O16/Hist_expenditure!O16) -> 0 | P16: =IF(Hist_expenditure!P16=0,0, Hist_contributions!P16/Hist_expenditure!P16) -> 0 | Q16: =IF(Hist_expenditure!Q16=0,0, Hist_contributions!Q16/Hist_expenditure!Q16) -> 0 | R16: =IF(Hist_expenditure!R16=0,0, Hist_contributions!R16/Hist_expenditure!R16) -> 0 | S16: =IF(Hist_expenditure!S16=0,0, Hist_contributions!S16/Hist_expenditure!S16) -> 0 | T16: =IF(Hist_expenditure!T16=0,0, Hist_contributions!T16/Hist_expenditure!T16) -> 0 | U16: 0 | V16: =$U16 -> 0 | W16: 0 | X16: 0 | Y16: 0 | Z16: 0
B17: =Hist_vol!B17 -> Connections | C17: =Hist_vol!C17 -> R3 | D17: =Hist_vol!D17 -> Residential | E17: =Hist_vol!E17 -> Complex connection HV | G17: =IF(Hist_expenditure!G17=0,0, Hist_contributions!G17/Hist_expenditure!G17) -> 0 | H17: =IF(Hist_expenditure!H17=0,0, Hist_contributions!H17/Hist_expenditure!H17) -> 0 | I17: =IF(Hist_expenditure!I17=0,0, Hist_contributions!I17/Hist_expenditure!I17) -> 0 | J17: =IF(Hist_expenditure!J17=0,0, Hist_contributions!J17/Hist_expenditure!J17) -> 0 | K17: =IF(Hist_expenditure!K17=0,0, Hist_contributions!K17/Hist_expenditure!K17) -> 0 | L17: =IF(Hist_expenditure!L17=0,0, Hist_contributions!L17/Hist_expenditure!L17) -> 0 | M17: =IF(Hist_expenditure!M17=0,0, Hist_contributions!M17/Hist_expenditure!M17) -> 0 | N17: =IF(Hist_expenditure!N17=0,0, Hist_contributions!N17/Hist_expenditure!N17) -> 0 | O17: =IF(Hist_expenditure!O17=0,0, Hist_contributions!O17/Hist_expenditure!O17) -> 0 | P17: =IF(Hist_expenditure!P17=0,0, Hist_contributions!P17/Hist_expenditure!P17) -> 0 | Q17: =IF(Hist_expenditure!Q17=0,0, Hist_contributions!Q17/Hist_expenditure!Q17) -> 0 | R17: =IF(Hist_expenditure!R17=0,0, Hist_contributions!R17/Hist_expenditure!R17) -> 0 | S17: =IF(Hist_expenditure!S17=0,0, Hist_contributions!S17/Hist_expenditure!S17) -> 0 | T17: =IF(Hist_expenditure!T17=0,0, Hist_contributions!T17/Hist_expenditure!T17) -> 0 | U17: 0 | V17: 0 | W17: 0 | X17: 0 | Y17: 0 | Z17: 0
B18: =Hist_vol!B18 -> Connections | C18: =Hist_vol!C18 -> CI1 | D18: =Hist_vol!D18 -> Commercial/Industrial | E18: =Hist_vol!E18 -> Simple connection LV | G18: =IF(Hist_expenditure!G18=0,0, Hist_contributions!G18/Hist_expenditure!G18) -> 0.2603252444 | H18: =IF(Hist_expenditure!H18=0,0, Hist_contributions!H18/Hist_expenditure!H18) -> 0.2279116206 | I18: =IF(Hist_expenditure!I18=0,0, Hist_contributions!I18/Hist_expenditure!I18) -> 0.1804788124 | J18: =IF(Hist_expenditure!J18=0,0, Hist_contributions!J18/Hist_expenditure!J18) -> 0.3185043244 | K18: =IF(Hist_expenditure!K18=0,0, Hist_contributions!K18/Hist_expenditure!K18) -> 0.8249080813 | L18: =IF(Hist_expenditure!L18=0,0, Hist_contributions!L18/Hist_expenditure!L18) -> 1.231352838 | M18: =IF(Hist_expenditure!M18=0,0, Hist_contributions!M18/Hist_expenditure!M18) -> 1.055718424 | N18: =IF(Hist_expenditure!N18=0,0, Hist_contributions!N18/Hist_expenditure!N18) -> 0.8441395738 | O18: =IF(Hist_expenditure!O18=0,0, Hist_contributions!O18/Hist_expenditure!O18) -> 0.8070736265 | P18: =IF(Hist_expenditure!P18=0,0, Hist_contributions!P18/Hist_expenditure!P18) -> 0.5631227414 | Q18: =IF(Hist_expenditure!Q18=0,0, Hist_contributions!Q18/Hist_expenditure!Q18) -> 0.8371979696 | R18: =IF(Hist_expenditure!R18=0,0, Hist_contributions!R18/Hist_expenditure!R18) -> 0.7048637038 | S18: =IF(Hist_expenditure!S18=0,0, Hist_contributions!S18/Hist_expenditure!S18) -> 1.057097926 | T18: =IF(Hist_expenditure!T18=0,0, Hist_contributions!T18/Hist_expenditure!T18) -> 0.5369651397 | U18: 0.8791891058 | V18: 0.8791891058 | W18: 0.8791891058 | X18: 0.8791891058 | Y18: 0.8791891058 | Z18: 0.8791891058
B19: =Hist_vol!B19 -> Connections | C19: =Hist_vol!C19 -> CI2 | D19: =Hist_vol!D19 -> Commercial/Industrial | E19: =Hist_vol!E19 -> Complex connection HV (customer connected at LV, minor HV works) | G19: =IF(Hist_expenditure!G19=0,0, Hist_contributions!G19/Hist_expenditure!G19) -> 0.2346815233 | H19: =IF(Hist_expenditure!H19=0,0, Hist_contributions!H19/Hist_expenditure!H19) -> 0.2097362944 | I19: =IF(Hist_expenditure!I19=0,0, Hist_contributions!I19/Hist_expenditure!I19) -> 0.174922805 | J19: =IF(Hist_expenditure!J19=0,0, Hist_contributions!J19/Hist_expenditure!J19) -> 0.3209521327 | K19: =IF(Hist_expenditure!K19=0,0, Hist_contributions!K19/Hist_expenditure!K19) -> 0.4864509621 | L19: =IF(Hist_expenditure!L19=0,0, Hist_contributions!L19/Hist_expenditure!L19) -> 0.6585273377 | M19: =IF(Hist_expenditure!M19=0,0, Hist_contributions!M19/Hist_expenditure!M19) -> 0.7485177795 | N19: =IF(Hist_expenditure!N19=0,0, Hist_contributions!N19/Hist_expenditure!N19) -> 0.7483645365 | O19: =IF(Hist_expenditure!O19=0,0, Hist_contributions!O19/Hist_expenditure!O19) -> 0.75062843 | P19: =IF(Hist_expenditure!P19=0,0, Hist_contributions!P19/Hist_expenditure!P19) -> 0.539237676 | Q19: =IF(Hist_expenditure!Q19=0,0, Hist_contributions!Q19/Hist_expenditure!Q19) -> 0.837197841 | R19: =IF(Hist_expenditure!R19=0,0, Hist_contributions!R19/Hist_expenditure!R19) -> 0.7048637693 | S19: =IF(Hist_expenditure!S19=0,0, Hist_contributions!S19/Hist_expenditure!S19) -> 1.057097885 | T19: =IF(Hist_expenditure!T19=0,0, Hist_contributions!T19/Hist_expenditure!T19) -> 0.8198129073 | U19: 0.6254710423 | V19: 0.6254710423 | W19: 0.6254710423 | X19: 0.6254710423 | Y19: 0.6254710423 | Z19: 0.6254710423
B20: =Hist_vol!B20 -> Connections | C20: =Hist_vol!C20 -> CI3 | D20: =Hist_vol!D20 -> Commercial/Industrial | E20: =Hist_vol!E20 -> Complex connection HV (customer connected at LV, upstream asset works) | G20: =IF(Hist_expenditure!G20=0,0, Hist_contributions!G20/Hist_expenditure!G20) -> 0.2045756578 | H20: =IF(Hist_expenditure!H20=0,0, Hist_contributions!H20/Hist_expenditure!H20) -> 0.3598860607 | I20: =IF(Hist_expenditure!I20=0,0, Hist_contributions!I20/Hist_expenditure!I20) -> 0.2795857569 | J20: =IF(Hist_expenditure!J20=0,0, Hist_contributions!J20/Hist_expenditure!J20) -> 0.3368683545 | K20: =IF(Hist_expenditure!K20=0,0, Hist_contributions!K20/Hist_expenditure!K20) -> 0.4154754892 | L20: =IF(Hist_expenditure!L20=0,0, Hist_contributions!L20/Hist_expenditure!L20) -> 0.5671456617 | M20: =IF(Hist_expenditure!M20=0,0, Hist_contributions!M20/Hist_expenditure!M20) -> 0.6698079643 | N20: =IF(Hist_expenditure!N20=0,0, Hist_contributions!N20/Hist_expenditure!N20) -> 0.7036085777 | O20: =IF(Hist_expenditure!O20=0,0, Hist_contributions!O20/Hist_expenditure!O20) -> 0.7245239038 | P20: =IF(Hist_expenditure!P20=0,0, Hist_contributions!P20/Hist_expenditure!P20) -> 0 | Q20: =IF(Hist_expenditure!Q20=0,0, Hist_contributions!Q20/Hist_expenditure!Q20) -> 0.8371978273 | R20: =IF(Hist_expenditure!R20=0,0, Hist_contributions!R20/Hist_expenditure!R20) -> 0.7048638533 | S20: =IF(Hist_expenditure!S20=0,0, Hist_contributions!S20/Hist_expenditure!S20) -> 1.057097923 | T20: =IF(Hist_expenditure!T20=0,0, Hist_contributions!T20/Hist_expenditure!T20) -> 0.9526409354 | U20: 0.7048638533 | V20: 0.7048638533 | W20: 0.7048638533 | X20: 0.7048638533 | Y20: 0.7048638533 | Z20: 0.7048638533
B21: =Hist_vol!B21 -> Connections | C21: =Hist_vol!C21 -> CI4 | D21: =Hist_vol!D21 -> Commercial/Industrial | E21: =Hist_vol!E21 -> Complex connection HV (customer connected at HV) | G21: =IF(Hist_expenditure!G21=0,0, Hist_contributions!G21/Hist_expenditure!G21) -> 0.1457544808 | H21: =IF(Hist_expenditure!H21=0,0, Hist_contributions!H21/Hist_expenditure!H21) -> 0.09718414771 | I21: =IF(Hist_expenditure!I21=0,0, Hist_contributions!I21/Hist_expenditure!I21) -> 0.1534062479 | J21: =IF(Hist_expenditure!J21=0,0, Hist_contributions!J21/Hist_expenditure!J21) -> 0.3417822821 | K21: =IF(Hist_expenditure!K21=0,0, Hist_contributions!K21/Hist_expenditure!K21) -> 0.5911911211 | L21: =IF(Hist_expenditure!L21=0,0, Hist_contributions!L21/Hist_expenditure!L21) -> 0.8308522283 | M21: =IF(Hist_expenditure!M21=0,0, Hist_contributions!M21/Hist_expenditure!M21) -> 0.809997679 | N21: =IF(Hist_expenditure!N21=0,0, Hist_contributions!N21/Hist_expenditure!N21) -> 0.793466601 | O21: =IF(Hist_expenditure!O21=0,0, Hist_contributions!O21/Hist_expenditure!O21) -> 0.8109985647 | P21: =IF(Hist_expenditure!P21=0,0, Hist_contributions!P21/Hist_expenditure!P21) -> 0.609563014 | Q21: =IF(Hist_expenditure!Q21=0,0, Hist_contributions!Q21/Hist_expenditure!Q21) -> 0.8371979176 | R21: =IF(Hist_expenditure!R21=0,0, Hist_contributions!R21/Hist_expenditure!R21) -> 0.7048637831 | S21: =IF(Hist_expenditure!S21=0,0, Hist_contributions!S21/Hist_expenditure!S21) -> 1.057097889 | T21: =IF(Hist_expenditure!T21=0,0, Hist_contributions!T21/Hist_expenditure!T21) -> 1.373093284 | U21: 0.5990480127 | V21: 0.5990480127 | W21: 0.5990480127 | X21: 0.5990480127 | Y21: 0.5990480127 | Z21: 0.5990480127
B22: =Hist_vol!B22 -> Connections | C22: =Hist_vol!C22 -> CI5 | D22: =Hist_vol!D22 -> Commercial/Industrial | E22: =Hist_vol!E22 -> Complex connection sub-transmission | G22: =IF(Hist_expenditure!G22=0,0, Hist_contributions!G22/Hist_expenditure!G22) -> 0 | H22: =IF(Hist_expenditure!H22=0,0, Hist_contributions!H22/Hist_expenditure!H22) -> 0 | I22: =IF(Hist_expenditure!I22=0,0, Hist_contributions!I22/Hist_expenditure!I22) -> 0 | J22: =IF(Hist_expenditure!J22=0,0, Hist_contributions!J22/Hist_expenditure!J22) -> 0 | K22: =IF(Hist_expenditure!K22=0,0, Hist_contributions!K22/Hist_expenditure!K22) -> 0 | L22: =IF(Hist_expenditure!L22=0,0, Hist_contributions!L22/Hist_expenditure!L22) -> 0 | M22: =IF(Hist_expenditure!M22=0,0, Hist_contributions!M22/Hist_expenditure!M22) -> 0 | N22: =IF(Hist_expenditure!N22=0,0, Hist_contributions!N22/Hist_expenditure!N22) -> 0 | O22: =IF(Hist_expenditure!O22=0,0, Hist_contributions!O22/Hist_expenditure!O22) -> 0 | P22: =IF(Hist_expenditure!P22=0,0, Hist_contributions!P22/Hist_expenditure!P22) -> 0 | Q22: =IF(Hist_expenditure!Q22=0,0, Hist_contributions!Q22/Hist_expenditure!Q22) -> 0.8372997356 | R22: =IF(Hist_expenditure!R22=0,0, Hist_contributions!R22/Hist_expenditure!R22) -> 0.7048558845 | S22: =IF(Hist_expenditure!S22=0,0, Hist_contributions!S22/Hist_expenditure!S22) -> 1.057098324 | T22: =IF(Hist_expenditure!T22=0,0, Hist_contributions!T22/Hist_expenditure!T22) -> 0 | U22: 0.7048558845 | V22: 0.7048558845 | W22: 0.7048558845 | X22: 0.7048558845 | Y22: 0.7048558845 | Z22: 0.7048558845
B23: =Hist_vol!B23 -> Connections | C23: =Hist_vol!C23 -> S1 | D23: =Hist_vol!D23 -> Subdivision | E23: =Hist_vol!E23 -> Complex connection LV | G23: =IF(Hist_expenditure!G23=0,0, Hist_contributions!G23/Hist_expenditure!G23) -> 0.2316122217 | H23: =IF(Hist_expenditure!H23=0,0, Hist_contributions!H23/Hist_expenditure!H23) -> 0.2125139816 | I23: =IF(Hist_expenditure!I23=0,0, Hist_contributions!I23/Hist_expenditure!I23) -> 0.1872299447 | J23: =IF(Hist_expenditure!J23=0,0, Hist_contributions!J23/Hist_expenditure!J23) -> 0.3208526011 | K23: =IF(Hist_expenditure!K23=0,0, Hist_contributions!K23/Hist_expenditure!K23) -> 0.4468082405 | L23: =IF(Hist_expenditure!L23=0,0, Hist_contributions!L23/Hist_expenditure!L23) -> 0.8497717055 | M23: =IF(Hist_expenditure!M23=0,0, Hist_contributions!M23/Hist_expenditure!M23) -> 1.189572592 | N23: =IF(Hist_expenditure!N23=0,0, Hist_contributions!N23/Hist_expenditure!N23) -> 0.966902863 | O23: =IF(Hist_expenditure!O23=0,0, Hist_contributions!O23/Hist_expenditure!O23) -> 0.9669252881 | P23: =IF(Hist_expenditure!P23=0,0, Hist_contributions!P23/Hist_expenditure!P23) -> 0.61584336 | Q23: =IF(Hist_expenditure!Q23=0,0, Hist_contributions!Q23/Hist_expenditure!Q23) -> 0.4751828784 | R23: =IF(Hist_expenditure!R23=0,0, Hist_contributions!R23/Hist_expenditure!R23) -> 0.366541475 | S23: =IF(Hist_expenditure!S23=0,0, Hist_contributions!S23/Hist_expenditure!S23) -> 0.243678276 | T23: =IF(Hist_expenditure!T23=0,0, Hist_contributions!T23/Hist_expenditure!T23) -> 0.1907250456 | U23: 0.8885915835 | V23: 0.8885915835 | W23: 0.8885915835 | X23: 0.8885915835 | Y23: 0.8885915835 | Z23: 0.8885915835
B24: =Hist_vol!B24 -> Connections | C24: =Hist_vol!C24 -> S2 | D24: =Hist_vol!D24 -> Subdivision | E24: =Hist_vol!E24 -> Complex connection HV (no upstream asset works) | G24: =IF(Hist_expenditure!G24=0,0, Hist_contributions!G24/Hist_expenditure!G24) -> 0.2214395111 | H24: =IF(Hist_expenditure!H24=0,0, Hist_contributions!H24/Hist_expenditure!H24) -> 0.1843128825 | I24: =IF(Hist_expenditure!I24=0,0, Hist_contributions!I24/Hist_expenditure!I24) -> 0.1898780845 | J24: =IF(Hist_expenditure!J24=0,0, Hist_contributions!J24/Hist_expenditure!J24) -> 0.3144922835 | K24: =IF(Hist_expenditure!K24=0,0, Hist_contributions!K24/Hist_expenditure!K24) -> 0.7360538649 | L24: =IF(Hist_expenditure!L24=0,0, Hist_contributions!L24/Hist_expenditure!L24) -> 1.13527463 | M24: =IF(Hist_expenditure!M24=0,0, Hist_contributions!M24/Hist_expenditure!M24) -> 1.244807331 | N24: =IF(Hist_expenditure!N24=0,0, Hist_contributions!N24/Hist_expenditure!N24) -> 0.9965608421 | O24: =IF(Hist_expenditure!O24=0,0, Hist_contributions!O24/Hist_expenditure!O24) -> 0.9796118024 | P24: =IF(Hist_expenditure!P24=0,0, Hist_contributions!P24/Hist_expenditure!P24) -> 0.5882643913 | Q24: =IF(Hist_expenditure!Q24=0,0, Hist_contributions!Q24/Hist_expenditure!Q24) -> 0.4751836443 | R24: =IF(Hist_expenditure!R24=0,0, Hist_contributions!R24/Hist_expenditure!R24) -> 0.3665414799 | S24: =IF(Hist_expenditure!S24=0,0, Hist_contributions!S24/Hist_expenditure!S24) -> 0.2436782861 | T24: =IF(Hist_expenditure!T24=0,0, Hist_contributions!T24/Hist_expenditure!T24) -> 0.172311861 | U24: 0.6732592451 | V24: 0.6732592451 | W24: 0.6732592451 | X24: 0.6732592451 | Y24: 0.6732592451 | Z24: 0.6732592451
B25: =Hist_vol!B25 -> Connections | C25: =Hist_vol!C25 -> S3 | D25: =Hist_vol!D25 -> Subdivision | E25: =Hist_vol!E25 -> Complex connection HV (with upstream asset works) | G25: =IF(Hist_expenditure!G25=0,0, Hist_contributions!G25/Hist_expenditure!G25) -> 0 | H25: =IF(Hist_expenditure!H25=0,0, Hist_contributions!H25/Hist_expenditure!H25) -> 0 | I25: =IF(Hist_expenditure!I25=0,0, Hist_contributions!I25/Hist_expenditure!I25) -> 0 | J25: =IF(Hist_expenditure!J25=0,0, Hist_contributions!J25/Hist_expenditure!J25) -> 0 | K25: =IF(Hist_expenditure!K25=0,0, Hist_contributions!K25/Hist_expenditure!K25) -> 0 | L25: =IF(Hist_expenditure!L25=0,0, Hist_contributions!L25/Hist_expenditure!L25) -> 0.6721656646 | M25: =IF(Hist_expenditure!M25=0,0, Hist_contributions!M25/Hist_expenditure!M25) -> 0.4777121085 | N25: =IF(Hist_expenditure!N25=0,0, Hist_contributions!N25/Hist_expenditure!N25) -> 0.4886124541 | O25: =IF(Hist_expenditure!O25=0,0, Hist_contributions!O25/Hist_expenditure!O25) -> 0.6521964677 | P25: =IF(Hist_expenditure!P25=0,0, Hist_contributions!P25/Hist_expenditure!P25) -> 0 | Q25: =IF(Hist_expenditure!Q25=0,0, Hist_contributions!Q25/Hist_expenditure!Q25) -> 0 | R25: =IF(Hist_expenditure!R25=0,0, Hist_contributions!R25/Hist_expenditure!R25) -> 0 | S25: =IF(Hist_expenditure!S25=0,0, Hist_contributions!S25/Hist_expenditure!S25) -> 0 | T25: =IF(Hist_expenditure!T25=0,0, Hist_contributions!T25/Hist_expenditure!T25) -> 0 | U25: 0 | V25: 0 | W25: 0 | X25: 0 | Y25: 0 | Z25: 0
B26: =Hist_vol!B26 -> Connections | C26: =Hist_vol!C26 -> EG1 | D26: =Hist_vol!D26 -> Embedded generation | E26: =Hist_vol!E26 -> Simple connection LV | G26: =IF(Hist_expenditure!G26=0,0, Hist_contributions!G26/Hist_expenditure!G26) -> 0.3786502196 | H26: =IF(Hist_expenditure!H26=0,0, Hist_contributions!H26/Hist_expenditure!H26) -> 0.3786502196 | I26: =IF(Hist_expenditure!I26=0,0, Hist_contributions!I26/Hist_expenditure!I26) -> 0 | J26: =IF(Hist_expenditure!J26=0,0, Hist_contributions!J26/Hist_expenditure!J26) -> 0 | K26: =IF(Hist_expenditure!K26=0,0, Hist_contributions!K26/Hist_expenditure!K26) -> 0 | L26: =IF(Hist_expenditure!L26=0,0, Hist_contributions!L26/Hist_expenditure!L26) -> 0 | M26: =IF(Hist_expenditure!M26=0,0, Hist_contributions!M26/Hist_expenditure!M26) -> 0 | N26: =IF(Hist_expenditure!N26=0,0, Hist_contributions!N26/Hist_expenditure!N26) -> 0 | O26: =IF(Hist_expenditure!O26=0,0, Hist_contributions!O26/Hist_expenditure!O26) -> 0 | P26: =IF(Hist_expenditure!P26=0,0, Hist_contributions!P26/Hist_expenditure!P26) -> 0 | Q26: =IF(Hist_expenditure!Q26=0,0, Hist_contributions!Q26/Hist_expenditure!Q26) -> 0 | R26: =IF(Hist_expenditure!R26=0,0, Hist_contributions!R26/Hist_expenditure!R26) -> 0 | S26: =IF(Hist_expenditure!S26=0,0, Hist_contributions!S26/Hist_expenditure!S26) -> 0 | T26: =IF(Hist_expenditure!T26=0,0, Hist_contributions!T26/Hist_expenditure!T26) -> 0 | U26: 1 | V26: 1 | W26: 1 | X26: 1 | Y26: 1 | Z26: 1
B27: =Hist_vol!B27 -> Connections | C27: =Hist_vol!C27 -> EG2 | D27: =Hist_vol!D27 -> Embedded generation | E27: =Hist_vol!E27 -> Complex connection HV (small capacity) | G27: =IF(Hist_expenditure!G27=0,0, Hist_contributions!G27/Hist_expenditure!G27) -> 0.3786502196 | H27: =IF(Hist_expenditure!H27=0,0, Hist_contributions!H27/Hist_expenditure!H27) -> 0.3786502196 | I27: =IF(Hist_expenditure!I27=0,0, Hist_contributions!I27/Hist_expenditure!I27) -> 0 | J27: =IF(Hist_expenditure!J27=0,0, Hist_contributions!J27/Hist_expenditure!J27) -> 0 | K27: =IF(Hist_expenditure!K27=0,0, Hist_contributions!K27/Hist_expenditure!K27) -> 0 | L27: =IF(Hist_expenditure!L27=0,0, Hist_contributions!L27/Hist_expenditure!L27) -> 0 | M27: =IF(Hist_expenditure!M27=0,0, Hist_contributions!M27/Hist_expenditure!M27) -> 0 | N27: =IF(Hist_expenditure!N27=0,0, Hist_contributions!N27/Hist_expenditure!N27) -> 0 | O27: =IF(Hist_expenditure!O27=0,0, Hist_contributions!O27/Hist_expenditure!O27) -> 0 | P27: =IF(Hist_expenditure!P27=0,0, Hist_contributions!P27/Hist_expenditure!P27) -> 0.5897247166 | Q27: =IF(Hist_expenditure!Q27=0,0, Hist_contributions!Q27/Hist_expenditure!Q27) -> 0.1827653062 | R27: =IF(Hist_expenditure!R27=0,0, Hist_contributions!R27/Hist_expenditure!R27) -> 0.1428801226 | S27: =IF(Hist_expenditure!S27=0,0, Hist_contributions!S27/Hist_expenditure!S27) -> 3.907067585 | T27: =IF(Hist_expenditure!T27=0,0, Hist_contributions!T27/Hist_expenditure!T27) -> 0 | U27: 1 | V27: 1 | W27: 1 | X27: 1 | Y27: 1 | Z27: 1
B28: =Hist_vol!B28 -> Connections | C28: =Hist_vol!C28 -> EG3 | D28: =Hist_vol!D28 -> Embedded generation | E28: =Hist_vol!E28 -> Complex connection HV (large capacity) | G28: =IF(Hist_expenditure!G28=0,0, Hist_contributions!G28/Hist_expenditure!G28) -> 0 | H28: =IF(Hist_expenditure!H28=0,0, Hist_contributions!H28/Hist_expenditure!H28) -> 0.05098046841 | I28: =IF(Hist_expenditure!I28=0,0, Hist_contributions!I28/Hist_expenditure!I28) -> 0.05098046841 | J28: =IF(Hist_expenditure!J28=0,0, Hist_contributions!J28/Hist_expenditure!J28) -> 0 | K28: =IF(Hist_expenditure!K28=0,0, Hist_contributions!K28/Hist_expenditure!K28) -> 0 | L28: =IF(Hist_expenditure!L28=0,0, Hist_contributions!L28/Hist_expenditure!L28) -> 0 | M28: =IF(Hist_expenditure!M28=0,0, Hist_contributions!M28/Hist_expenditure!M28) -> 0 | N28: =IF(Hist_expenditure!N28=0,0, Hist_contributions!N28/Hist_expenditure!N28) -> 0 | O28: =IF(Hist_expenditure!O28=0,0, Hist_contributions!O28/Hist_expenditure!O28) -> 0 | P28: =IF(Hist_expenditure!P28=0,0, Hist_contributions!P28/Hist_expenditure!P28) -> 0 | Q28: =IF(Hist_expenditure!Q28=0,0, Hist_contributions!Q28/Hist_expenditure!Q28) -> 0 | R28: =IF(Hist_expenditure!R28=0,0, Hist_contributions!R28/Hist_expenditure!R28) -> 0 | S28: =IF(Hist_expenditure!S28=0,0, Hist_contributions!S28/Hist_expenditure!S28) -> 0 | T28: =IF(Hist_expenditure!T28=0,0, Hist_contributions!T28/Hist_expenditure!T28) -> 4.226175664 | U28: 1 | V28: 1 | W28: 1 | X28: 1 | Y28: 1 | Z28: 1

Sheet Macromonitor
A1: =Assumptions!$A$1 -> United Energy
A2: =Assumptions!$A$2 -> Connections
A3: Macromonitor Forecast
B7: Category | C7: Type | D7: =Hist_vol!D$13 -> RIN category | E7: =Hist_vol!E$13 -> Description | H7: 2023/24 | I7: 2024/25 | J7: 2025/26 | K7: 2026/27 | L7: 2027/28 | M7: 2028/29 | N7: 2029/30 | O7: 2030/31
J8: forecast | K8: forecast | L8: forecast | M8: forecast | N8: forecast | O8: forecast
B9: Connections | C9: R1 | D9: Residential | E9: Simple connection LV | J9: =TRANSPOSE($M$39:$M$44) -> 0.2435324712 | K9: 0.1462126595 | L9: -0.02609163101 | M9: -0.02868815314 | N9: 0.01125430784 | O9: 0.03516064036
B10: Connections | C10: R2 | D10: Residential | E10: Complex connection LV | J10: =TRANSPOSE($M$39:$M$44) -> 0.2435324712 | K10: 0.1462126595 | L10: -0.02609163101 | M10: -0.02868815314 | N10: 0.01125430784 | O10: 0.03516064036
B11: Connections | C11: R3 | D11: Residential | E11: Complex connection HV | J11: =TRANSPOSE($M$39:$M$44) -> 0.2435324712 | K11: 0.1462126595 | L11: -0.02609163101 | M11: -0.02868815314 | N11: 0.01125430784 | O11: 0.03516064036
B12: Connections | C12: CI1 | D12: Commercial/Industrial | E12: Simple connection LV | J12: =TRANSPOSE($M$64:$M$69) -> 0.007483246568 | K12: 0.1132990832 | L12: 0.0566840426 | M12: 0.05081418127 | N12: 0.04269320048 | O12: -0.01316929795
B13: Connections | C13: CI2 | D13: Commercial/Industrial | E13: Complex connection HV (customer connected at LV, minor HV works) | J13: =TRANSPOSE($M$64:$M$69) -> 0.007483246568 | K13: 0.1132990832 | L13: 0.0566840426 | M13: 0.05081418127 | N13: 0.04269320048 | O13: -0.01316929795
B14: Connections | C14: CI3 | D14: Commercial/Industrial | E14: Complex connection HV (customer connected at LV, upstream asset works) | J14: =TRANSPOSE($M$64:$M$69) -> 0.007483246568 | K14: 0.1132990832 | L14: 0.0566840426 | M14: 0.05081418127 | N14: 0.04269320048 | O14: -0.01316929795
B15: Connections | C15: CI4 | D15: Commercial/Industrial | E15: Complex connection HV (customer connected at HV) | J15: =TRANSPOSE($M$64:$M$69) -> 0.007483246568 | K15: 0.1132990832 | L15: 0.0566840426 | M15: 0.05081418127 | N15: 0.04269320048 | O15: -0.01316929795
B16: Connections | C16: CI5 | D16: Commercial/Industrial | E16: Complex connection sub-transmission | J16: =TRANSPOSE($M$64:$M$69) -> 0.007483246568 | K16: 0.1132990832 | L16: 0.0566840426 | M16: 0.05081418127 | N16: 0.04269320048 | O16: -0.01316929795
B17: Connections | C17: S1 | D17: Subdivision | E17: Complex connection LV | J17: =TRANSPOSE($M$39:$M$44) -> 0.2435324712 | K17: 0.1462126595 | L17: -0.02609163101 | M17: -0.02868815314 | N17: 0.01125430784 | O17: 0.03516064036
B18: Connections | C18: S2 | D18: Subdivision | E18: Complex connection HV (no upstream asset works) | J18: =TRANSPOSE($M$39:$M$44) -> 0.2435324712 | K18: 0.1462126595 | L18: -0.02609163101 | M18: -0.02868815314 | N18: 0.01125430784 | O18: 0.03516064036
B19: Connections | C19: S3 | D19: Subdivision | E19: Complex connection HV (with upstream asset works) | J19: =TRANSPOSE($M$39:$M$44) -> 0.2435324712 | K19: 0.1462126595 | L19: -0.02609163101 | M19: -0.02868815314 | N19: 0.01125430784 | O19: 0.03516064036
B20: Connections | C20: EG1 | D20: Embedded generation | E20: Simple connection LV | J20: =TRANSPOSE(L93:L98) -> -9.833780712e-05 | K20: -9.713384851e-05 | L20: 1.999991355 | M20: 1.499938826 | N20: 2.000088803 | O20: 6.287047274e-05
B21: Connections | C21: EG2 | D21: Embedded generation | E21: Complex connection HV (small capacity) | J21: =TRANSPOSE(L94:L99) -> -9.713384851e-05 | K21: 1.999991355 | L21: 1.499938826 | M21: 2.000088803 | N21: 6.287047274e-05 | O21: 0
B22: Connections | C22: EG3 | D22: Embedded generation | E22: Complex connection HV (large capacity) | J22: =TRANSPOSE(L95:L100) -> 1.999991355 | K22: 1.499938826 | L22: 2.000088803 | M22: 6.287047274e-05 | N22: 0 | O22: 0
B25: Residential
B26: Estimated Number of Dwellings Commenced
B27: Numbers
B28: Year Ended June | C28: CitiPower | E28: United Energy | G28: Powercor | I28: Other Regions | K28: Victoria
C31: Annual | D31: A%Ch | E31: Annual | F31: A%Ch | G31: Annual | H31: A%Ch | I31: Annual | J31: A%Ch | K31: Annual | L31: A%Ch
B32: 2020-06-01 | C32: 9151.604912 | E32: 10331.94036 | G32: 19144.34476 | I32: 20095.10997 | K32: 58723
B33: 2021-06-01 | C33: 5240.671963 | D33: -42.73494089 | E33: 11281.15188 | F33: 9.18715637 | G33: 26755.96783 | H33: 39.75912033 | I33: 24131.20833 | J33: 20.08497774 | K33: 67409 | L33: 14.79147864
B34: 2022-06-01 | C34: 7090.523652 | D34: 35.29798664 | E34: 12323.86181 | F34: 9.24293854 | G34: 23931.56157 | H34: -10.55617303 | I34: 23865.05297 | J34: -1.102950838 | K34: 67211 | L34: -0.293729324
B35: 2023-06-01 | C35: 6564.692022 | D35: -7.415977379 | E35: 9223.38275 | F35: -25.15834006 | G35: 20899.88943 | H35: -12.66809158 | I35: 18476.0358 | J35: -22.58120767 | K35: 55164 | L35: -17.92414932
B36: 2024-06-01 | C36: 5943.02839 | D36: -9.469806493 | E36: 8649.644579 | F36: -6.220474485 | G36: 18044.96977 | H36: -13.65997496 | I36: 20398.35726 | J36: 10.40440431 | K36: 53036 | L36: -3.857588282
B37: Forecasts | M37: Growth rate - UE
B38: 2025-06-01 | C38: 8863.484 | D38: 49.14086588 | E38: 8501.058169 | F38: -1.717832546 | G38: 17745.81353 | H38: -1.657837289 | I38: 19816.52185 | J38: -2.852364059 | K38: 54926.87755 | L38: 3.5652718
B39: 2026-06-01 | C39: 10491.93124 | D39: 18.37254106 | E39: 10571.34187 | F39: 24.35324712 | G39: 18750.54878 | H39: 5.661815646 | I39: 21307.89481 | J39: 7.525906767 | K39: 61121.7167 | L39: 11.27833844 | M39: =F39/100 -> 0.2435324712
B40: 2027-06-01 | C40: 11403.24739 | D40: 8.685876143 | E40: 12117.00588 | F40: 14.62126595 | G40: 21129.02665 | H40: 12.68484408 | I40: 22961.82638 | J40: 7.762059929 | K40: 67611.1063 | L40: 10.6171586 | M40: 0.1462126595
B41: 2028-06-01 | C41: 11144.45504 | D41: -2.269461889 | E41: 11800.85344 | F41: -2.609163101 | G41: 21084.11651 | H41: -0.2125518722 | I41: 22244.28561 | J41: -3.124928957 | K41: 66273.7106 | L41: -1.978071025 | M41: -0.02609163101
B42: 2029-06-01 | C42: 10000.52539 | D42: -10.26456331 | E42: 11462.30875 | F42: -2.868815314 | G42: 20317.79962 | H42: -3.634569619 | I42: 21519.10737 | J42: -3.260065317 | K42: 63299.74113 | L42: -4.487404493 | M42: -0.02868815314
B43: 2030-06-01 | C43: 10081.29337 | D43: 0.8076372951 | E43: 11591.3091 | F43: 1.125430784 | G43: 20461.25515 | H43: 0.7060584072 | I43: 21810.92304 | J43: 1.356077011 | K43: 63944.78066 | L43: 1.019023953 | M43: 0.01125430784
B44: 2031-06-01 | C44: 10565.42572 | D44: 4.802284177 | E44: 11998.86695 | F44: 3.516064036 | G44: 20945.31351 | H44: 2.365731504 | I44: 22480.6001 | J44: 3.070374684 | K44: 65990.20628 | L44: 3.198737417 | M44: 0.03516064036
L45: Source: ABS & Macromonitor
B47: Non Residential
B48: Estimated Value of Non-Residential Building Work Done
B49: Chain Volume Measures - 2022/23 Prices
B51: Year Ended June | C51: CitiPower | E51: United Energy | G51: Powercor | I51: Other Regions | K51: Victoria
C54: $M | D54: A%Ch | E54: $M | F54: A%Ch | G54: $M | H54: A%Ch | I54: $M | J54: A%Ch | K54: $M | L54: A%Ch
B55: 2018-06-01 | C55: 4945.264389 | E55: 3312.220066 | G55: 3301.06064 | I55: 2948.765408 | K55: 14507.31029
B56: 2019-06-01 | C56: 5802.338404 | D56: 17.33120713 | E56: 2934.400861 | F56: -11.40682676 | G56: 3292.063845 | H56: -0.2725425393 | I56: 3447.612301 | J56: 16.91714408 | K56: 15476.41527 | L56: 6.680114797
B57: 2020-06-01 | C57: 6195.999335 | D57: 6.784522101 | E57: 2872.084051 | F57: -2.123663852 | G57: 3722.264793 | H57: 13.0678191 | I57: 3982.255484 | J57: 15.5076365 | K57: 16772.60366 | L57: 8.375249507
B58: 2021-06-01 | C58: 4953.845414 | D58: -20.0476768 | E58: 2543.781285 | F58: -11.43082026 | G58: 4220.869815 | H58: 13.39520561 | I58: 3898.614306 | J58: -2.100346863 | K58: 15617.11082 | L58: -6.889167989
B59: 2022-06-01 | C59: 4936.27418 | D59: -0.3546988849 | E59: 2919.817519 | F59: 14.78256939 | G59: 4479.324618 | H59: 6.123259292 | I59: 4329.960865 | J59: 11.06409932 | K59: 16665.37718 | L59: 6.7122938
B60: 2023-06-01 | C60: 5017.618167 | D60: 1.64788227 | E60: 3393.538972 | F60: 16.22435138 | G60: 5017.336502 | H60: 12.01100454 | I60: 5110.544305 | J60: 18.02749409 | K60: 18539.03795 | L60: 11.24283443
B61: 2024-06-01 | C61: 4436.570968 | D61: -11.58013981 | E61: 3110.120127 | F61: -8.351719188 | G61: 5734.830491 | H61: 14.30029638 | I61: 5673.929482 | J61: 11.02397599 | K61: 18955.45107 | L61: 2.246142026
B62: Forecasts | M62: Growth rate - UE
B63: 2025-06-01 | C63: 4225.006531 | D63: -4.768647645 | E63: 2314.044828 | F63: -25.5962878 | G63: 5614.272963 | H63: -2.10219864 | I63: 5361.863534 | J63: -5.499996941 | K63: 17515.18786 | L63: -7.598147925
B64: 2026-06-01 | C64: 4368.16406 | D64: 3.38833865 | E64: 2331.361396 | F64: 0.7483246568 | G64: 5383.371045 | H64: -4.112766147 | I64: 5743.569989 | J64: 7.118914035 | K64: 17826.46649 | L64: 1.777192672 | M64: =F64/100 -> 0.007483246568
B65: 2027-06-01 | C65: 4504.866438 | D65: 3.129515652 | E65: 2595.502505 | F65: 11.32990832 | G65: 4943.892415 | H65: -8.163632534 | I65: 5292.597853 | J65: -7.85177402 | K65: 17336.85921 | L65: -2.746518946 | M65: =F65/100 -> 0.1132990832
B66: 2028-06-01 | C66: 4589.708666 | D66: 1.883346142 | E66: 2742.62608 | F66: 5.66840426 | G66: 4715.575202 | H66: -4.618167111 | I66: 4907.335076 | J66: -7.279275472 | K66: 16955.24502 | L66: -2.201172562 | M66: 0.0566840426
B67: 2029-06-01 | C67: 4745.017503 | D67: 3.383849572 | E67: 2881.990379 | F67: 5.081418127 | G67: 4707.875754 | H67: -0.1632769459 | I67: 4862.118573 | J67: -0.9214064637 | K67: 17197.00221 | L67: 1.425854865 | M67: 0.05081418127
B68: 2030-06-01 | C68: 4984.675962 | D68: 5.050739198 | E68: 3005.031772 | F68: 4.269320048 | G68: 4778.332872 | H68: 1.496579802 | I68: 4941.647043 | J68: 1.635675233 | K68: 17709.68765 | L68: 2.981248899 | M68: 0.04269320048
B69: 2031-06-01 | C69: 4971.063954 | D69: -0.2730770883 | E69: 2965.457613 | F69: -1.316929795 | G69: 4527.386438 | H69: -5.25175706 | I69: 4678.789226 | J69: -5.319234952 | K69: 17142.69723 | L69: -3.201583386 | M69: -0.01316929795
L70: Source: ABS & Macromonitor
B74: Renewable
B75: Estimated Value of Renewable Energy Construction - less than 200 MW capacity - United Energy
B76: $ Million - Constant 2022/23 Prices
B77: Year Ended June | C77: United Energy
C78: Wind | E78: Solar | G78: Battery & Other | I78: Total renewables
C79: Annual | D79: A%Ch | E79: Annual | F79: A%Ch | G79: Annual | H79: A%Ch | I79: Annual | J79: A%Ch
B80: 2014-06-01 | C80: 0.7857087041 | D80: - | E80: 0 | F80: - | G80: 0 | H80: - | I80: 0.7857087041 | J80: -
B81: 2015-06-01 | C81: 0.2871699562 | D81: - | E81: 0 | F81: - | G81: 0 | H81: - | I81: 0.2871699562 | J81: -
B82: 2016-06-01 | C82: 0.4861209543 | D82: - | E82: 0 | F82: - | G82: 0 | H82: - | I82: 0.4861209543 | J82: -
B83: 2017-06-01 | C83: 0.004926701366 | D83: - | E83: 0.004926701366 | F83: - | G83: 0 | H83: - | I83: 0.009853402732 | J83: -
B84: 2018-06-01 | C84: 0.006753804533 | D84: 37.08573001 | E84: 0.006753804533 | F84: 37.08573001 | G84: 0 | H84: - | I84: 0.01350760907 | J84: 37.08573001
B85: 2019-06-01 | C85: 0.00731662737 | D85: 8.333419102 | E85: 0.00731662737 | F85: 8.333419102 | G85: 0 | H85: - | I85: 0.01463325474 | J85: 8.333419102
B86: 2020-06-01 | C86: 0.1228675541 | D86: 1579.292219 | E86: 0.1228675541 | F86: 1579.292219 | G86: 0 | H86: - | I86: 0.2457351082 | J86: 1579.292219
B87: 2021-06-01 | C87: 0.1083427788 | D87: -11.82148977 | E87: 0.1083427788 | F87: -11.82148977 | G87: 0 | H87: - | I87: 0.2166855575 | J87: -11.82148977
B88: 2022-06-01 | C88: 0.2879225472 | D88: 165.7514885 | E88: 0.2879225472 | F88: 165.7514885 | G88: 0 | H88: - | I88: 0.5758450944 | J88: 165.7514885
B89: 2023-06-01 | C89: 0.01678104568 | D89: -94.1716806 | E89: 0.01678104568 | F89: -94.1716806 | G89: 0 | H89: - | I89: 0.03356209137 | J89: -94.1716806
B90: 2024-06-01 | C90: 0.01212708076 | D90: -27.73346199 | E90: 0.01212708076 | F90: -27.73346199 | G90: 0 | H90: - | I90: 0.02425416152 | J90: -27.73346199 | L90: Excl batteries
B91: Forecasts | L91: Growth rate - UE
B92: 2024-06-01 | C92: 0.02887302785 | D92: 138.0872069 | E92: 0.02887302785 | F92: 138.0872069 | G92: 0.01443651393 | H92: - | I92: 0.07218256963 | J92: 197.6090086 | K92: =SUM(C92,E92) -> 0.0577460557
B93: 2026-06-01 | C93: 0.02887018854 | D93: -0.009833780712 | E93: 0.02887018854 | F93: -0.009833780712 | G93: 0.01443509427 | H93: -0.009833780712 | I93: 0.07217547135 | J93: -0.009833780712 | K93: 0.05774037708 | L93: =K93/K92-1 -> -9.833780712e-05
B94: 2027-06-01 | C94: 0.02886738427 | D94: -0.009713384851 | E94: 0.02886738427 | F94: -0.009713384851 | G94: 0.01443369213 | H94: -0.009713384851 | I94: 0.07216846067 | J94: -0.009713384851 | K94: 0.05773476854 | L94: =K94/K93-1 -> -9.713384851e-05
B95: 2028-06-01 | C95: 0.02886730108 | D95: -0.0002881709147 | E95: 0.1443365054 | F95: 399.9985591 | G95: 0.01443365054 | H95: -0.0002881709147 | I95: 0.187637457 | J95: 159.9992508 | K95: 0.1732038065 | L95: 1.999991355
B96: 2029-06-01 | C96: 0.1443329736 | D96: 399.9877652 | E96: 0.2886659471 | F96: 99.99510609 | G96: 0.02886659471 | H96: 99.99510609 | I96: 0.4618655154 | J96: 146.1478229 | K96: 0.4329989207 | L96: 1.499938826
B97: 2030-06-01 | C97: 0.1443372459 | D97: 0.002960088788 | E97: 1.154697968 | F97: 300.0118404 | G97: 0.2165058689 | H97: 650.0222007 | I97: 1.515541082 | J97: 228.1347128 | K97: 1.299035213 | L97: 2.000088803
B98: 2031-06-01 | C98: 0.1443463205 | D98: 0.006287047274 | E98: 1.154770564 | F98: 0.006287047274 | G98: 0.3608658012 | H98: 66.67714508 | I98: 1.659982686 | J98: 9.530695337 | K98: 1.299116884 | L98: 6.287047274e-05
J99: Source: ABS & Macromonitor

Sheet Growth_rates
A1: =Assumptions!$A$1 -> United Energy
A2: =Assumptions!$A$2 -> Connections
A3: Growth rates
B7: =Assumptions!B17 -> 2025/6 - 2030/31 reg period | H7: =Assumptions!G17 -> FALSE | I7: =Assumptions!H17 -> FALSE | J7: =Assumptions!I17 -> FALSE | K7: =Assumptions!J17 -> FALSE | L7: =Assumptions!K17 -> FALSE | M7: =Assumptions!L17 -> FALSE | N7: =Assumptions!M17 -> FALSE | O7: =Assumptions!N17 -> FALSE | P7: =Assumptions!O17 -> FALSE | Q7: =Assumptions!P17 -> FALSE | R7: =Assumptions!Q17 -> FALSE | S7: =Assumptions!R17 -> FALSE | T7: =Assumptions!S17 -> FALSE | U7: =Assumptions!T17 -> FALSE | V7: =Assumptions!U17 -> FALSE | W7: =Assumptions!V17 -> TRUE | X7: =Assumptions!W17 -> TRUE | Y7: =Assumptions!X17 -> TRUE | Z7: =Assumptions!Y17 -> TRUE | AA7: =Assumptions!Z17 -> TRUE
B8: =Assumptions!B18 -> Forecast period | H8: =Assumptions!G18 -> FALSE | I8: =Assumptions!H18 -> FALSE | J8: =Assumptions!I18 -> FALSE | K8: =Assumptions!J18 -> FALSE | L8: =Assumptions!K18 -> FALSE | M8: =Assumptions!L18 -> FALSE | N8: =Assumptions!M18 -> FALSE | O8: =Assumptions!N18 -> FALSE | P8: =Assumptions!O18 -> FALSE | Q8: =Assumptions!P18 -> FALSE | R8: =Assumptions!Q18 -> FALSE | S8: =Assumptions!R18 -> FALSE | T8: =Assumptions!S18 -> FALSE | U8: =Assumptions!T18 -> FALSE | V8: =Assumptions!U18 -> TRUE | W8: =Assumptions!V18 -> TRUE | X8: =Assumptions!W18 -> TRUE | Y8: =Assumptions!X18 -> TRUE | Z8: =Assumptions!Y18 -> TRUE | AA8: =Assumptions!Z18 -> TRUE
B9: =Assumptions!B19 -> Fin year end | H9: =Assumptions!G19 -> 2012 | I9: =Assumptions!H19 -> 2013 | J9: =Assumptions!I19 -> 2014 | K9: =Assumptions!J19 -> 2015 | L9: =Assumptions!K19 -> 2016 | M9: =Assumptions!L19 -> 2017 | N9: =Assumptions!M19 -> 2018 | O9: =Assumptions!N19 -> 2019 | P9: =Assumptions!O19 -> 2020 | Q9: =Assumptions!P19 -> 2021 | R9: =Assumptions!Q19 -> 2022 | S9: =Assumptions!R19 -> 2023 | T9: =Assumptions!S19 -> 2024 | U9: =Assumptions!T19 -> 2025 | V9: =Assumptions!U19 -> 2026 | W9: =Assumptions!V19 -> 2027 | X9: =Assumptions!W19 -> 2028 | Y9: =Assumptions!X19 -> 2029 | Z9: =Assumptions!Y19 -> 2030 | AA9: =Assumptions!Z19 -> 2031
B10: =Assumptions!B20 -> Basis | H10: =Assumptions!G20 -> Actual | I10: =Assumptions!H20 -> Actual | J10: =Assumptions!I20 -> Actual | K10: =Assumptions!J20 -> Actual | L10: =Assumptions!K20 -> Actual | M10: =Assumptions!L20 -> Actual | N10: =Assumptions!M20 -> Actual | O10: =Assumptions!N20 -> Actual | P10: =Assumptions!O20 -> Actual | Q10: =Assumptions!P20 -> Actual | R10: =Assumptions!Q20 -> Actual | S10: =Assumptions!R20 -> Actual | T10: =Assumptions!S20 -> Actual | U10: =Assumptions!T20 -> Actual | V10: =Assumptions!U20 -> Forecast | W10: =Assumptions!V20 -> Forecast | X10: =Assumptions!W20 -> Forecast | Y10: =Assumptions!X20 -> Forecast | Z10: =Assumptions!Y20 -> Forecast | AA10: =Assumptions!Z20 -> Forecast
B13: =Hist_vol!B$13 -> Category | C13: Type | D13: =Hist_vol!D$13 -> RIN category | E13: =Hist_vol!E$13 -> Description | H13: =Assumptions!G$24 -> 2011/12 | I13: =Assumptions!H$24 -> 2012/13 | J13: =Assumptions!I$24 -> 2013/14 | K13: =Assumptions!J$24 -> 2014/15 | L13: =Assumptions!K$24 -> 2015/16 | M13: =Assumptions!L$24 -> 2016/17 | N13: =Assumptions!M$24 -> 2017/18 | O13: =Assumptions!N$24 -> 2018/19 | P13: =Assumptions!O$24 -> 2019/20 | Q13: =Assumptions!P$24 -> 2020/21 | R13: =Assumptions!Q$24 -> 2021/22 | S13: =Assumptions!R$24 -> 2022/23 | T13: =Assumptions!S$24 -> 2023/24 | U13: =Assumptions!T$24 -> 2024/25 | V13: =Assumptions!U$24 -> 2025/26 | W13: =Assumptions!V$24 -> 2026/27 | X13: =Assumptions!W$24 -> 2027/28 | Y13: =Assumptions!X$24 -> 2028/29 | Z13: =Assumptions!Y$24 -> 2029/30 | AA13: =Assumptions!Z$24 -> 2030/31
B14: Compound growth | U14: Base year
B16: Connections | C16: Macromonitor | D16: =Hist_vol!D15 -> Residential | E16: =Hist_vol!E15 -> Simple connection LV | F16: =C16&D16&E16 -> MacromonitorResidentialSimple connection LV | U16: 1 | V16: =(1+Macromonitor!J9)*Growth_rates!U16 -> 1.243532471 | W16: =(1+Macromonitor!K9)*Growth_rates!V16 -> 1.425352661 | X16: =(1+Macromonitor!L9)*Growth_rates!W16 -> 1.388162885 | Y16: =(1+Macromonitor!M9)*Growth_rates!X16 -> 1.348339056 | Z16: =(1+Macromonitor!N9)*Growth_rates!Y16 -> 1.363513679 | AA16: =(1+Macromonitor!O9)*Growth_rates!Z16 -> 1.411455693
B17: Connections | C17: Macromonitor | D17: =Hist_vol!D16 -> Residential | E17: =Hist_vol!E16 -> Complex connection LV | F17: MacromonitorResidentialComplex connection LV | U17: 1 | V17: =(1+Macromonitor!J10)*Growth_rates!U17 -> 1.243532471 | W17: =(1+Macromonitor!K10)*Growth_rates!V17 -> 1.425352661 | X17: =(1+Macromonitor!L10)*Growth_rates!W17 -> 1.388162885 | Y17: =(1+Macromonitor!M10)*Growth_rates!X17 -> 1.348339056 | Z17: =(1+Macromonitor!N10)*Growth_rates!Y17 -> 1.363513679 | AA17: =(1+Macromonitor!O10)*Growth_rates!Z17 -> 1.411455693
B18: Connections | C18: Macromonitor | D18: =Hist_vol!D17 -> Residential | E18: =Hist_vol!E17 -> Complex connection HV | F18: MacromonitorResidentialComplex connection HV | U18: 1 | V18: =(1+Macromonitor!J11)*Growth_rates!U18 -> 1.243532471 | W18: =(1+Macromonitor!K11)*Growth_rates!V18 -> 1.425352661 | X18: =(1+Macromonitor!L11)*Growth_rates!W18 -> 1.388162885 | Y18: =(1+Macromonitor!M11)*Growth_rates!X18 -> 1.348339056 | Z18: =(1+Macromonitor!N11)*Growth_rates!Y18 -> 1.363513679 | AA18: =(1+Macromonitor!O11)*Growth_rates!Z18 -> 1.411455693
B19: Connections | C19: Macromonitor | D19: =Hist_vol!D18 -> Commercial/Industrial | E19: =Hist_vol!E18 -> Simple connection LV | F19: MacromonitorCommercial/IndustrialSimple connection LV | U19: 1 | V19: =(1+Macromonitor!J12)*Growth_rates!U19 -> 1.007483247 | W19: =(1+Macromonitor!K12)*Growth_rates!V19 -> 1.121630175 | X19: =(1+Macromonitor!L12)*Growth_rates!W19 -> 1.185208707 | Y19: =(1+Macromonitor!M12)*Growth_rates!X19 -> 1.245434117 | Z19: =(1+Macromonitor!N12)*Growth_rates!Y19 -> 1.298605686 | AA19: =(1+Macromonitor!O12)*Growth_rates!Z19 -> 1.281503961
B20: Connections | C20: Macromonitor | D20: =Hist_vol!D19 -> Commercial/Industrial | E20: =Hist_vol!E19 -> Complex connection HV (customer connected at LV, minor HV works) | F20: MacromonitorCommercial/IndustrialComplex connection HV (customer connected at LV, minor HV works) | U20: 1 | V20: =(1+Macromonitor!J13)*Growth_rates!U20 -> 1.007483247 | W20: =(1+Macromonitor!K13)*Growth_rates!V20 -> 1.121630175 | X20: =(1+Macromonitor!L13)*Growth_rates!W20 -> 1.185208707 | Y20: =(1+Macromonitor!M13)*Growth_rates!X20 -> 1.245434117 | Z20: =(1+Macromonitor!N13)*Growth_rates!Y20 -> 1.298605686 | AA20: =(1+Macromonitor!O13)*Growth_rates!Z20 -> 1.281503961
B21: Connections | C21: Macromonitor | D21: =Hist_vol!D20 -> Commercial/Industrial | E21: =Hist_vol!E20 -> Complex connection HV (customer connected at LV, upstream asset works) | F21: MacromonitorCommercial/IndustrialComplex connection HV (customer connected at LV, upstream asset works) | U21: 1 | V21: =(1+Macromonitor!J14)*Growth_rates!U21 -> 1.007483247 | W21: =(1+Macromonitor!K14)*Growth_rates!V21 -> 1.121630175 | X21: =(1+Macromonitor!L14)*Growth_rates!W21 -> 1.185208707 | Y21: =(1+Macromonitor!M14)*Growth_rates!X21 -> 1.245434117 | Z21: =(1+Macromonitor!N14)*Growth_rates!Y21 -> 1.298605686 | AA21: =(1+Macromonitor!O14)*Growth_rates!Z21 -> 1.281503961
B22: Connections | C22: Macromonitor | D22: =Hist_vol!D21 -> Commercial/Industrial | E22: =Hist_vol!E21 -> Complex connection HV (customer connected at HV) | F22: MacromonitorCommercial/IndustrialComplex connection HV (customer connected at HV) | U22: 1 | V22: =(1+Macromonitor!J15)*Growth_rates!U22 -> 1.007483247 | W22: =(1+Macromonitor!K15)*Growth_rates!V22 -> 1.121630175 | X22: =(1+Macromonitor!L15)*Growth_rates!W22 -> 1.185208707 | Y22: =(1+Macromonitor!M15)*Growth_rates!X22 -> 1.245434117 | Z22: =(1+Macromonitor!N15)*Growth_rates!Y22 -> 1.298605686 | AA22: =(1+Macromonitor!O15)*Growth_rates!Z22 -> 1.281503961
B23: Connections | C23: Macromonitor | D23: =Hist_vol!D22 -> Commercial/Industrial | E23: =Hist_vol!E22 -> Complex connection sub-transmission | F23: MacromonitorCommercial/IndustrialComplex connection sub-transmission | U23: 1 | V23: =(1+Macromonitor!J16)*Growth_rates!U23 -> 1.007483247 | W23: =(1+Macromonitor!K16)*Growth_rates!V23 -> 1.121630175 | X23: =(1+Macromonitor!L16)*Growth_rates!W23 -> 1.185208707 | Y23: =(1+Macromonitor!M16)*Growth_rates!X23 -> 1.245434117 | Z23: =(1+Macromonitor!N16)*Growth_rates!Y23 -> 1.298605686 | AA23: =(1+Macromonitor!O16)*Growth_rates!Z23 -> 1.281503961
B24: Connections | C24: Macromonitor | D24: =Hist_vol!D23 -> Subdivision | E24: =Hist_vol!E23 -> Complex connection LV | F24: MacromonitorSubdivisionComplex connection LV | U24: 1 | V24: =(1+Macromonitor!J17)*Growth_rates!U24 -> 1.243532471 | W24: =(1+Macromonitor!K17)*Growth_rates!V24 -> 1.425352661 | X24: =(1+Macromonitor!L17)*Growth_rates!W24 -> 1.388162885 | Y24: =(1+Macromonitor!M17)*Growth_rates!X24 -> 1.348339056 | Z24: =(1+Macromonitor!N17)*Growth_rates!Y24 -> 1.363513679 | AA24: =(1+Macromonitor!O17)*Growth_rates!Z24 -> 1.411455693
B25: Connections | C25: Macromonitor | D25: =Hist_vol!D24 -> Subdivision | E25: =Hist_vol!E24 -> Complex connection HV (no upstream asset works) | F25: MacromonitorSubdivisionComplex connection HV (no upstream asset works) | U25: 1 | V25: =(1+Macromonitor!J18)*Growth_rates!U25 -> 1.243532471 | W25: =(1+Macromonitor!K18)*Growth_rates!V25 -> 1.425352661 | X25: =(1+Macromonitor!L18)*Growth_rates!W25 -> 1.388162885 | Y25: =(1+Macromonitor!M18)*Growth_rates!X25 -> 1.348339056 | Z25: =(1+Macromonitor!N18)*Growth_rates!Y25 -> 1.363513679 | AA25: =(1+Macromonitor!O18)*Growth_rates!Z25 -> 1.411455693
B26: Connections | C26: Macromonitor | D26: =Hist_vol!D25 -> Subdivision | E26: =Hist_vol!E25 -> Complex connection HV (with upstream asset works) | F26: MacromonitorSubdivisionComplex connection HV (with upstream asset works) | U26: 1 | V26: =(1+Macromonitor!J19)*Growth_rates!U26 -> 1.243532471 | W26: =(1+Macromonitor!K19)*Growth_rates!V26 -> 1.425352661 | X26: =(1+Macromonitor!L19)*Growth_rates!W26 -> 1.388162885 | Y26: =(1+Macromonitor!M19)*Growth_rates!X26 -> 1.348339056 | Z26: =(1+Macromonitor!N19)*Growth_rates!Y26 -> 1.363513679 | AA26: =(1+Macromonitor!O19)*Growth_rates!Z26 -> 1.411455693
B27: Connections | C27: Macromonitor | D27: =Hist_vol!D26 -> Embedded generation | E27: =Hist_vol!E26 -> Simple connection LV | F27: MacromonitorEmbedded generationSimple connection LV | U27: 1 | V27: =(1+Macromonitor!J20)*Growth_rates!U27 -> 0.9999016622 | W27: =(1+Macromonitor!K20)*Growth_rates!V27 -> 0.9998045379 | X27: =(1+Macromonitor!L20)*Growth_rates!W27 -> 2.99940497 | Y27: =(1+Macromonitor!M20)*Growth_rates!X27 -> 7.49832894 | Z27: =(1+Macromonitor!N20)*Growth_rates!Y27 -> 22.49565269 | AA27: =(1+Macromonitor!O20)*Growth_rates!Z27 -> 22.49706701
B28: Connections | C28: Macromonitor | D28: =Hist_vol!D27 -> Embedded generation | E28: =Hist_vol!E27 -> Complex connection HV (small capacity) | F28: MacromonitorEmbedded generationComplex connection HV (small capacity) | U28: 1 | V28: =(1+Macromonitor!J21)*Growth_rates!U28 -> 0.9999028662 | W28: =(1+Macromonitor!K21)*Growth_rates!V28 -> 2.999699954 | X28: =(1+Macromonitor!L21)*Growth_rates!W28 -> 7.499066382 | Y28: =(1+Macromonitor!M21)*Growth_rates!X28 -> 22.49786508 | Z28: =(1+Macromonitor!N21)*Growth_rates!Y28 -> 22.49927954 | AA28: =(1+Macromonitor!O21)*Growth_rates!Z28 -> 22.49927954
B29: Connections | C29: Macromonitor | D29: =Hist_vol!D28 -> Embedded generation | E29: =Hist_vol!E28 -> Complex connection HV (large capacity) | F29: MacromonitorEmbedded generationComplex connection HV (large capacity) | U29: 1 | V29: =(1+Macromonitor!J22)*Growth_rates!U29 -> 2.999991355 | W29: =(1+Macromonitor!K22)*Growth_rates!V29 -> 7.499794866 | X29: =(1+Macromonitor!L22)*Growth_rates!W29 -> 22.5000506 | Y29: =(1+Macromonitor!M22)*Growth_rates!X29 -> 22.50146519 | Z29: =(1+Macromonitor!N22)*Growth_rates!Y29 -> 22.50146519 | AA29: =(1+Macromonitor!O22)*Growth_rates!Z29 -> 22.50146519

Sheet Grid connected batteries
A1: =Assumptions!$A$1 -> United Energy
A2: =Assumptions!$A$2 -> Connections
A3: Grid connected batteries
B7: =Assumptions!B17 -> 2025/6 - 2030/31 reg period | E7: =Assumptions!V17 -> TRUE | F7: =Assumptions!W17 -> TRUE | G7: =Assumptions!X17 -> TRUE | H7: =Assumptions!Y17 -> TRUE | I7: =Assumptions!Z17 -> TRUE
B8: =Assumptions!B18 -> Forecast period | E8: =Assumptions!V18 -> TRUE | F8: =Assumptions!W18 -> TRUE | G8: =Assumptions!X18 -> TRUE | H8: =Assumptions!Y18 -> TRUE | I8: =Assumptions!Z18 -> TRUE
B9: =Assumptions!B19 -> Fin year end | E9: =Assumptions!V19 -> 2027 | F9: =Assumptions!W19 -> 2028 | G9: =Assumptions!X19 -> 2029 | H9: =Assumptions!Y19 -> 2030 | I9: =Assumptions!Z19 -> 2031
B10: =Assumptions!B20 -> Basis | E10: =Assumptions!V20 -> Forecast | F10: =Assumptions!W20 -> Forecast | G10: =Assumptions!X20 -> Forecast | H10: =Assumptions!Y20 -> Forecast | I10: =Assumptions!Z20 -> Forecast
B13: =Hist_vol!B$13 -> Category | C13: Type | D13: =Hist_vol!E$13 -> Description | E13: =Assumptions!V$24 -> 2026/27 | F13: =Assumptions!W$24 -> 2027/28 | G13: =Assumptions!X$24 -> 2028/29 | H13: =Assumptions!Y$24 -> 2029/30 | I13: =Assumptions!Z$24 -> 2030/31 | K13: Total
B15: =Hist_expenditure!B15 -> Connections | C15: Grid connected Battery | D15: Connected capacity (MW) | E15: 51.4442082 | F15: 50.5600161 | G15: 61.1490957 | H15: 70.303464 | I15: 64.6864515 | K15: =SUM(E15:I15) -> 298.1432355
B16: =Hist_expenditure!B16 -> Connections | C16: Grid connected Battery | D16: Gross capex | E16: =E15*$E$20 -> 5296592.788 | F16: =F15*$E$20 -> 5205558.138 | G16: =G15*$E$20 -> 6295788.595 | H16: =H15*$E$20 -> 7238304.047 | I16: =I15*$E$20 -> 6659987.674 | K16: =SUM(E16:I16) -> 30696231.24
B17: =Hist_expenditure!B17 -> Connections | C17: Grid connected Battery | D17: Incremental revenue | E17: =E15*$E$21 -> 1260228.768 | F17: =F15*$E$21 -> 1238568.714 | G17: =G15*$E$21 -> 1497969.397 | H17: =H15*$E$21 -> 1722223.958 | I17: =I15*$E$21 -> 1584624.002 | K17: 7303614.84
B18: =Hist_expenditure!B18 -> Connections | C18: Grid connected Battery | D18: Customer contribution | E18: =E16-E17 -> 4036364.02 | F18: =F16-F17 -> 3966989.423 | G18: 4797819.198 | H18: 5516080.089 | I18: 5075363.671 | K18: 23392616.4
B20: Connections | C20: Grid connected Battery | D20: Gross capex unit rate | E20: 102958 | F20: per MW
B21: Connections | C21: Grid connected Battery | D21: Incremental revenue unit rate | E21: 24497 | F21: per MW

Sheet Data Centres
A1: =Assumptions!$A$1 -> United Energy
A2: =Assumptions!$A$2 -> Connections
A3: Data Centres
B7: =Assumptions!B17 -> 2025/6 - 2030/31 reg period | E7: =Assumptions!V17 -> TRUE | F7: =Assumptions!W17 -> TRUE | G7: =Assumptions!X17 -> TRUE | H7: =Assumptions!Y17 -> TRUE | I7: =Assumptions!Z17 -> TRUE
B8: =Assumptions!B18 -> Forecast period | E8: =Assumptions!V18 -> TRUE | F8: =Assumptions!W18 -> TRUE | G8: =Assumptions!X18 -> TRUE | H8: =Assumptions!Y18 -> TRUE | I8: =Assumptions!Z18 -> TRUE
B9: =Assumptions!B19 -> Fin year end | E9: =Assumptions!V19 -> 2027 | F9: =Assumptions!W19 -> 2028 | G9: =Assumptions!X19 -> 2029 | H9: =Assumptions!Y19 -> 2030 | I9: =Assumptions!Z19 -> 2031
B10: =Assumptions!B20 -> Basis | E10: =Assumptions!V20 -> Forecast | F10: =Assumptions!W20 -> Forecast | G10: =Assumptions!X20 -> Forecast | H10: =Assumptions!Y20 -> Forecast | I10: =Assumptions!Z20 -> Forecast
B13: =Hist_vol!B$13 -> Category | C13: =Hist_vol!C$13 -> Type | D13: =Hist_vol!D$13 -> RIN category | E13: =Assumptions!V$24 -> 2026/27 | F13: =Assumptions!W$24 -> 2027/28 | G13: =Assumptions!X$24 -> 2028/29 | H13: =Assumptions!Y$24 -> 2029/30 | I13: =Assumptions!Z$24 -> 2030/31 | K13: 2026-31 Total
B14: (Jun 2026 $)
B15: Connections | C15: Data Centres | D15: Incremental connecting capacity (MW) | E15: 9.68 | F15: 176.34 | G15: 240.44 | H15: 385 | I15: 447 | K15: =I15 -> 447
B16: Connections | C16: Data Centres | D16: Gross capex | E16: =E23*$C$20 -> 10994844.89 | F16: =F23*$C$20 -> 26187595.01 | G16: 35277124.86 | H16: 17898181.23 | I16: 25557100.81 | K16: =SUM(E16:I16) -> 115914846.8
B17: Connections | C17: Data Centres | D17: Customer contribution | E17: =E16*$E$19 -> 9345618.152 | F17: =F16*$E$19 -> 22259455.76 | G17: =G16*$E$19 -> 29985556.13 | H17: =H16*$E$19 -> 15213454.05 | I17: =I16*$E$19 -> 21723535.69 | K17: =SUM(E17:I17) -> 98527619.78
B19: Connections | C19: Data Centres | D19: Customer contribution rate | E19: 0.85
B20: $ Jun-25 to $ Jun-26 | C20: 1.024246877
B22: (Jun 2025 $)
B23: Connections | C23: Data Centres | D23: Gross capex | E23: 10734565.2 | F23: 25567659.11 | G23: 34442013.58 | H23: 17474479.67 | I23: 24952090.53

Sheet Forecast_vol
A1: =Assumptions!$A$1 -> United Energy
A2: =Assumptions!$A$2 -> Connections
A3: Forecast volumes
B7: =Assumptions!B17 -> 2025/6 - 2030/31 reg period | H7: =Assumptions!G17 -> FALSE | I7: =Assumptions!H17 -> FALSE | J7: =Assumptions!I17 -> FALSE | K7: =Assumptions!J17 -> FALSE | L7: =Assumptions!K17 -> FALSE | M7: =Assumptions!L17 -> FALSE | N7: =Assumptions!M17 -> FALSE | O7: =Assumptions!N17 -> FALSE | P7: =Assumptions!O17 -> FALSE | Q7: =Assumptions!P17 -> FALSE | R7: =Assumptions!Q17 -> FALSE | S7: =Assumptions!R17 -> FALSE | T7: =Assumptions!S17 -> FALSE | U7: =Assumptions!T17 -> FALSE | V7: =Assumptions!U17 -> FALSE | W7: =Assumptions!V17 -> TRUE | X7: =Assumptions!W17 -> TRUE | Y7: =Assumptions!X17 -> TRUE | Z7: =Assumptions!Y17 -> TRUE | AA7: =Assumptions!Z17 -> TRUE
B8: =Assumptions!B18 -> Forecast period | H8: =Assumptions!G18 -> FALSE | I8: =Assumptions!H18 -> FALSE | J8: =Assumptions!I18 -> FALSE | K8: =Assumptions!J18 -> FALSE | L8: =Assumptions!K18 -> FALSE | M8: =Assumptions!L18 -> FALSE | N8: =Assumptions!M18 -> FALSE | O8: =Assumptions!N18 -> FALSE | P8: =Assumptions!O18 -> FALSE | Q8: =Assumptions!P18 -> FALSE | R8: =Assumptions!Q18 -> FALSE | S8: =Assumptions!R18 -> FALSE | T8: =Assumptions!S18 -> FALSE | U8: =Assumptions!T18 -> FALSE | V8: =Assumptions!U18 -> TRUE | W8: =Assumptions!V18 -> TRUE | X8: =Assumptions!W18 -> TRUE | Y8: =Assumptions!X18 -> TRUE | Z8: =Assumptions!Y18 -> TRUE | AA8: =Assumptions!Z18 -> TRUE
B9: =Assumptions!B19 -> Fin year end | H9: =Assumptions!G19 -> 2012 | I9: =Assumptions!H19 -> 2013 | J9: =Assumptions!I19 -> 2014 | K9: =Assumptions!J19 -> 2015 | L9: =Assumptions!K19 -> 2016 | M9: =Assumptions!L19 -> 2017 | N9: =Assumptions!M19 -> 2018 | O9: =Assumptions!N19 -> 2019 | P9: =Assumptions!O19 -> 2020 | Q9: =Assumptions!P19 -> 2021 | R9: =Assumptions!Q19 -> 2022 | S9: =Assumptions!R19 -> 2023 | T9: =Assumptions!S19 -> 2024 | U9: =Assumptions!T19 -> 2025 | V9: =Assumptions!U19 -> 2026 | W9: =Assumptions!V19 -> 2027 | X9: =Assumptions!W19 -> 2028 | Y9: =Assumptions!X19 -> 2029 | Z9: =Assumptions!Y19 -> 2030 | AA9: =Assumptions!Z19 -> 2031
B10: =Assumptions!B20 -> Basis | H10: =Assumptions!G20 -> Actual | I10: =Assumptions!H20 -> Actual | J10: =Assumptions!I20 -> Actual | K10: =Assumptions!J20 -> Actual | L10: =Assumptions!K20 -> Actual | M10: =Assumptions!L20 -> Actual | N10: =Assumptions!M20 -> Actual | O10: =Assumptions!N20 -> Actual | P10: =Assumptions!O20 -> Actual | Q10: =Assumptions!P20 -> Actual | R10: =Assumptions!Q20 -> Actual | S10: =Assumptions!R20 -> Actual | T10: =Assumptions!S20 -> Actual | U10: =Assumptions!T20 -> Actual | V10: =Assumptions!U20 -> Forecast | W10: =Assumptions!V20 -> Forecast | X10: =Assumptions!W20 -> Forecast | Y10: =Assumptions!X20 -> Forecast | Z10: =Assumptions!Y20 -> Forecast | AA10: =Assumptions!Z20 -> Forecast
B13: =Hist_vol!B$13 -> Category | C13: Type | D13: =Hist_vol!D$13 -> RIN category | E13: =Hist_vol!E$13 -> Description | H13: =Assumptions!G$24 -> 2011/12 | I13: =Assumptions!H$24 -> 2012/13 | J13: =Assumptions!I$24 -> 2013/14 | K13: =Assumptions!J$24 -> 2014/15 | L13: =Assumptions!K$24 -> 2015/16 | M13: =Assumptions!L$24 -> 2016/17 | N13: =Assumptions!M$24 -> 2017/18 | O13: =Assumptions!N$24 -> 2018/19 | P13: =Assumptions!O$24 -> 2019/20 | Q13: =Assumptions!P$24 -> 2020/21 | R13: =Assumptions!Q$24 -> 2021/22 | S13: =Assumptions!R$24 -> 2022/23 | T13: =Assumptions!S$24 -> 2023/24 | U13: =Assumptions!T$24 -> 2024/25 | V13: =Assumptions!U$24 -> 2025/26 | W13: =Assumptions!V$24 -> 2026/27 | X13: =Assumptions!W$24 -> 2027/28 | Y13: =Assumptions!X$24 -> 2028/29 | Z13: =Assumptions!Y$24 -> 2029/30 | AA13: =Assumptions!Z$24 -> 2030/31
B15: Forecast volumes | U15: Base year
B16: =Hist_vol!B15 -> Connections | C16: =Hist_vol!C15 -> R1 | D16: =Hist_vol!D15 -> Residential | E16: =Hist_vol!E15 -> Simple connection LV | H16: =IF(H$8, Hist_vol!$R15*Growth_rates!H16, Hist_vol!G15) -> 9659 | I16: =IF(I$8, Hist_vol!$R15*Growth_rates!I16, Hist_vol!H15) -> 9682.5 | J16: =IF(J$8, Hist_vol!$R15*Growth_rates!J16, Hist_vol!I15) -> 8873.5 | K16: =IF(K$8, Hist_vol!$R15*Growth_rates!K16, Hist_vol!J15) -> 9240.167766 | L16: =IF(L$8, Hist_vol!$R15*Growth_rates!L16, Hist_vol!K15) -> 9806.167766 | M16: =IF(M$8, Hist_vol!$R15*Growth_rates!M16, Hist_vol!L15) -> 9670.5 | N16: =IF(N$8, Hist_vol!$R15*Growth_rates!N16, Hist_vol!M15) -> 10237 | O16: =IF(O$8, Hist_vol!$R15*Growth_rates!O16, Hist_vol!N15) -> 9357.5 | P16: =IF(P$8, Hist_vol!$R15*Growth_rates!P16, Hist_vol!O15) -> 7441.5 | Q16: =IF(Q$8, Hist_vol!$R15*Growth_rates!Q16, Hist_vol!P15) -> 5568 | R16: =IF(R$8, Hist_vol!$R15*Growth_rates!R16, Hist_vol!Q15) -> 5672 | S16: =IF(S$8, Hist_vol!$R15*Growth_rates!S16, Hist_vol!R15) -> 6355 | T16: =IF(T$8, Hist_vol!$R15*Growth_rates!T16, Hist_vol!S15) -> 6553 | U16: =IF(U$8, Hist_vol!$R15*Growth_rates!U16, Hist_vol!T15) -> 3103 | V16: =IF(V$8, Hist_vol!$T15*Growth_rates!V16, Hist_vol!U15) -> 3858.681258 | W16: =IF(W$8, Hist_vol!$T15*Growth_rates!W16, Hist_vol!V15) -> 4422.869307 | X16: =IF(X$8, Hist_vol!$T15*Growth_rates!X16, Hist_vol!W15) -> 4307.469433 | Y16: =IF(Y$8, Hist_vol!$T15*Growth_rates!Y16, Hist_vol!X15) -> 4183.89609 | Z16: =IF(Z$8, Hist_vol!$T15*Growth_rates!Z16, Hist_vol!Y15) -> 4230.982945 | AA16: =IF(AA$8, Hist_vol!$T15*Growth_rates!AA16, Hist_vol!Z15) -> 4379.747015
B17: =Hist_vol!B16 -> Connections | C17: =Hist_vol!C16 -> R2 | D17: =Hist_vol!D16 -> Residential | E17: =Hist_vol!E16 -> Complex connection LV | H17: =IF(H$8, Hist_vol!$R16*Growth_rates!H17, Hist_vol!G16) -> 0 | I17: =IF(I$8, Hist_vol!$R16*Growth_rates!I17, Hist_vol!H16) -> 0 | J17: =IF(J$8, Hist_vol!$R16*Growth_rates!J17, Hist_vol!I16) -> 0 | K17: =IF(K$8, Hist_vol!$R16*Growth_rates!K17, Hist_vol!J16) -> 0 | L17: =IF(L$8, Hist_vol!$R16*Growth_rates!L17, Hist_vol!K16) -> 0 | M17: =IF(M$8, Hist_vol!$R16*Growth_rates!M17, Hist_vol!L16) -> 0 | N17: =IF(N$8, Hist_vol!$R16*Growth_rates!N17, Hist_vol!M16) -> 0 | O17: =IF(O$8, Hist_vol!$R16*Growth_rates!O17, Hist_vol!N16) -> 0 | P17: =IF(P$8, Hist_vol!$R16*Growth_rates!P17, Hist_vol!O16) -> 0 | Q17: =IF(Q$8, Hist_vol!$R16*Growth_rates!Q17, Hist_vol!P16) -> 0 | R17: =IF(R$8, Hist_vol!$R16*Growth_rates!R17, Hist_vol!Q16) -> 0 | S17: =IF(S$8, Hist_vol!$R16*Growth_rates!S17, Hist_vol!R16) -> 0 | T17: =IF(T$8, Hist_vol!$R16*Growth_rates!T17, Hist_vol!S16) -> 0 | U17: =IF(U$8, Hist_vol!$R16*Growth_rates!U17, Hist_vol!T16) -> 0 | V17: =IF(V$8, Hist_vol!$T16*Growth_rates!V17, Hist_vol!U16) -> 0 | W17: =IF(W$8, Hist_vol!$T16*Growth_rates!W17, Hist_vol!V16) -> 0 | X17: =IF(X$8, Hist_vol!$T16*Growth_rates!X17, Hist_vol!W16) -> 0 | Y17: =IF(Y$8, Hist_vol!$T16*Growth_rates!Y17, Hist_vol!X16) -> 0 | Z17: =IF(Z$8, Hist_vol!$T16*Growth_rates!Z17, Hist_vol!Y16) -> 0 | AA17: =IF(AA$8, Hist_vol!$T16*Growth_rates!AA17, Hist_vol!Z16) -> 0
B18: =Hist_vol!B17 -> Connections | C18: =Hist_vol!C17 -> R3 | D18: =Hist_vol!D17 -> Residential | E18: =Hist_vol!E17 -> Complex connection HV | H18: =IF(H$8, Hist_vol!$R17*Growth_rates!H18, Hist_vol!G17) -> 0 | I18: =IF(I$8, Hist_vol!$R17*Growth_rates!I18, Hist_vol!H17) -> 0 | J18: =IF(J$8, Hist_vol!$R17*Growth_rates!J18, Hist_vol!I17) -> 0 | K18: =IF(K$8, Hist_vol!$R17*Growth_rates!K18, Hist_vol!J17) -> 0 | L18: =IF(L$8, Hist_vol!$R17*Growth_rates!L18, Hist_vol!K17) -> 0 | M18: =IF(M$8, Hist_vol!$R17*Growth_rates!M18, Hist_vol!L17) -> 0 | N18: =IF(N$8, Hist_vol!$R17*Growth_rates!N18, Hist_vol!M17) -> 0 | O18: =IF(O$8, Hist_vol!$R17*Growth_rates!O18, Hist_vol!N17) -> 0 | P18: =IF(P$8, Hist_vol!$R17*Growth_rates!P18, Hist_vol!O17) -> 0 | Q18: =IF(Q$8, Hist_vol!$R17*Growth_rates!Q18, Hist_vol!P17) -> 0 | R18: =IF(R$8, Hist_vol!$R17*Growth_rates!R18, Hist_vol!Q17) -> 0 | S18: =IF(S$8, Hist_vol!$R17*Growth_rates!S18, Hist_vol!R17) -> 0 | T18: =IF(T$8, Hist_vol!$R17*Growth_rates!T18, Hist_vol!S17) -> 0 | U18: =IF(U$8, Hist_vol!$R17*Growth_rates!U18, Hist_vol!T17) -> 0 | V18: =IF(V$8, Hist_vol!$T17*Growth_rates!V18, Hist_vol!U17) -> 0 | W18: =IF(W$8, Hist_vol!$T17*Growth_rates!W18, Hist_vol!V17) -> 0 | X18: =IF(X$8, Hist_vol!$T17*Growth_rates!X18, Hist_vol!W17) -> 0 | Y18: =IF(Y$8, Hist_vol!$T17*Growth_rates!Y18, Hist_vol!X17) -> 0 | Z18: =IF(Z$8, Hist_vol!$T17*Growth_rates!Z18, Hist_vol!Y17) -> 0 | AA18: =IF(AA$8, Hist_vol!$T17*Growth_rates!AA18, Hist_vol!Z17) -> 0
B19: =Hist_vol!B18 -> Connections | C19: =Hist_vol!C18 -> CI1 | D19: =Hist_vol!D18 -> Commercial/Industrial | E19: =Hist_vol!E18 -> Simple connection LV | H19: =IF(H$8, Hist_vol!$R18*Growth_rates!H19, Hist_vol!G18) -> 2603 | I19: =IF(I$8, Hist_vol!$R18*Growth_rates!I19, Hist_vol!H18) -> 3109.5 | J19: =IF(J$8, Hist_vol!$R18*Growth_rates!J19, Hist_vol!I18) -> 2298.041534 | K19: =IF(K$8, Hist_vol!$R18*Growth_rates!K19, Hist_vol!J18) -> 780.115143 | L19: =IF(L$8, Hist_vol!$R18*Growth_rates!L19, Hist_vol!K18) -> 716.553759 | M19: =IF(M$8, Hist_vol!$R18*Growth_rates!M19, Hist_vol!L18) -> 888.9801496 | N19: =IF(N$8, Hist_vol!$R18*Growth_rates!N19, Hist_vol!M18) -> 981.5 | O19: =IF(O$8, Hist_vol!$R18*Growth_rates!O19, Hist_vol!N18) -> 926 | P19: =IF(P$8, Hist_vol!$R18*Growth_rates!P19, Hist_vol!O18) -> 822 | Q19: =IF(Q$8, Hist_vol!$R18*Growth_rates!Q19, Hist_vol!P18) -> 693 | R19: =IF(R$8, Hist_vol!$R18*Growth_rates!R19, Hist_vol!Q18) -> 634 | S19: =IF(S$8, Hist_vol!$R18*Growth_rates!S19, Hist_vol!R18) -> 627 | T19: =IF(T$8, Hist_vol!$R18*Growth_rates!T19, Hist_vol!S18) -> 607 | U19: =IF(U$8, Hist_vol!$R18*Growth_rates!U19, Hist_vol!T18) -> 385 | V19: =IF(V$8, Hist_vol!$T18*Growth_rates!V19, Hist_vol!U18) -> 387.8810499 | W19: =IF(W$8, Hist_vol!$T18*Growth_rates!W19, Hist_vol!V18) -> 431.8276173 | X19: =IF(X$8, Hist_vol!$T18*Growth_rates!X19, Hist_vol!W18) -> 456.3053523 | Y19: =IF(Y$8, Hist_vol!$T18*Growth_rates!Y19, Hist_vol!X18) -> 479.4921352 | Z19: =IF(Z$8, Hist_vol!$T18*Growth_rates!Z19, Hist_vol!Y18) -> 499.9631891 | AA19: =IF(AA$8, Hist_vol!$T18*Growth_rates!AA19, Hist_vol!Z18) -> 493.3790249
B20: =Hist_vol!B19 -> Connections | C20: =Hist_vol!C19 -> CI2 | D20: =Hist_vol!D19 -> Commercial/Industrial | E20: =Hist_vol!E19 -> Complex connection HV (customer connected at LV, minor HV works) | H20: =IF(H$8, Hist_vol!$R19*Growth_rates!H20, Hist_vol!G19) -> 315.5 | I20: =IF(I$8, Hist_vol!$R19*Growth_rates!I20, Hist_vol!H19) -> 473.5 | J20: =IF(J$8, Hist_vol!$R19*Growth_rates!J20, Hist_vol!I19) -> 1207.29992 | K20: =IF(K$8, Hist_vol!$R19*Growth_rates!K20, Hist_vol!J19) -> 1542.842164 | L20: =IF(L$8, Hist_vol!$R19*Growth_rates!L20, Hist_vol!K19) -> 1324.246789 | M20: =IF(M$8, Hist_vol!$R19*Growth_rates!M20, Hist_vol!L19) -> 1413.204545 | N20: =IF(N$8, Hist_vol!$R19*Growth_rates!N20, Hist_vol!M19) -> 1414 | O20: =IF(O$8, Hist_vol!$R19*Growth_rates!O20, Hist_vol!N19) -> 1186.5 | P20: =IF(P$8, Hist_vol!$R19*Growth_rates!P20, Hist_vol!O19) -> 944.5 | Q20: =IF(Q$8, Hist_vol!$R19*Growth_rates!Q20, Hist_vol!P19) -> 792 | R20: =IF(R$8, Hist_vol!$R19*Growth_rates!R20, Hist_vol!Q19) -> 827 | S20: =IF(S$8, Hist_vol!$R19*Growth_rates!S20, Hist_vol!R19) -> 835 | T20: =IF(T$8, Hist_vol!$R19*Growth_rates!T20, Hist_vol!S19) -> 749 | U20: =IF(U$8, Hist_vol!$R19*Growth_rates!U20, Hist_vol!T19) -> 824 | V20: =IF(V$8, Hist_vol!$T19*Growth_rates!V20, Hist_vol!U19) -> 830.1661952 | W20: =IF(W$8, Hist_vol!$T19*Growth_rates!W20, Hist_vol!V19) -> 924.223264 | X20: =IF(X$8, Hist_vol!$T19*Growth_rates!X20, Hist_vol!W19) -> 976.6119749 | Y20: =IF(Y$8, Hist_vol!$T19*Growth_rates!Y20, Hist_vol!X19) -> 1026.237713 | Z20: =IF(Z$8, Hist_vol!$T19*Growth_rates!Z20, Hist_vol!Y19) -> 1070.051085 | AA20: =IF(AA$8, Hist_vol!$T19*Growth_rates!AA20, Hist_vol!Z19) -> 1055.959264
B21: =Hist_vol!B20 -> Connections | C21: =Hist_vol!C20 -> CI3 | D21: =Hist_vol!D20 -> Commercial/Industrial | E21: =Hist_vol!E20 -> Complex connection HV (customer connected at LV, upstream asset works) | H21: =IF(H$8, Hist_vol!$R20*Growth_rates!H21, Hist_vol!G20) -> 3.5 | I21: =IF(I$8, Hist_vol!$R20*Growth_rates!I21, Hist_vol!H20) -> 1.5 | J21: =IF(J$8, Hist_vol!$R20*Growth_rates!J21, Hist_vol!I20) -> 5.469249201 | K21: =IF(K$8, Hist_vol!$R20*Growth_rates!K21, Hist_vol!J20) -> 18.20059161 | L21: =IF(L$8, Hist_vol!$R20*Growth_rates!L21, Hist_vol!K20) -> 24.99457601 | M21: =IF(M$8, Hist_vol!$R20*Growth_rates!M21, Hist_vol!L20) -> 19.2632336 | N21: =IF(N$8, Hist_vol!$R20*Growth_rates!N21, Hist_vol!M20) -> 10.5 | O21: =IF(O$8, Hist_vol!$R20*Growth_rates!O21, Hist_vol!N20) -> 4.5 | P21: =IF(P$8, Hist_vol!$R20*Growth_rates!P21, Hist_vol!O20) -> 2 | Q21: =IF(Q$8, Hist_vol!$R20*Growth_rates!Q21, Hist_vol!P20) -> 0 | R21: =IF(R$8, Hist_vol!$R20*Growth_rates!R21, Hist_vol!Q20) -> 5 | S21: =IF(S$8, Hist_vol!$R20*Growth_rates!S21, Hist_vol!R20) -> 2 | T21: =IF(T$8, Hist_vol!$R20*Growth_rates!T21, Hist_vol!S20) -> 18 | U21: =IF(U$8, Hist_vol!$R20*Growth_rates!U21, Hist_vol!T20) -> 8 | V21: =IF(V$8, Hist_vol!$T20*Growth_rates!V21, Hist_vol!U20) -> 8.059865973 | W21: =IF(W$8, Hist_vol!$T20*Growth_rates!W21, Hist_vol!V20) -> 8.973041398 | X21: =IF(X$8, Hist_vol!$T20*Growth_rates!X21, Hist_vol!W20) -> 9.481669659 | Y21: =IF(Y$8, Hist_vol!$T20*Growth_rates!Y21, Hist_vol!X20) -> 9.96347294 | Z21: =IF(Z$8, Hist_vol!$T20*Growth_rates!Z21, Hist_vol!Y20) -> 10.38884549 | AA21: =IF(AA$8, Hist_vol!$T20*Growth_rates!AA21, Hist_vol!Z20) -> 10.25203169
B22: =Hist_vol!B21 -> Connections | C22: =Hist_vol!C21 -> CI4 | D22: =Hist_vol!D21 -> Commercial/Industrial | E22: =Hist_vol!E21 -> Complex connection HV (customer connected at HV) | H22: =IF(H$8, Hist_vol!$R21*Growth_rates!H22, Hist_vol!G21) -> 8.5 | I22: =IF(I$8, Hist_vol!$R21*Growth_rates!I22, Hist_vol!H21) -> 12 | J22: =IF(J$8, Hist_vol!$R21*Growth_rates!J22, Hist_vol!I21) -> 27.68929712 | K22: =IF(K$8, Hist_vol!$R21*Growth_rates!K22, Hist_vol!J21) -> 541.6743357 | L22: =IF(L$8, Hist_vol!$R21*Growth_rates!L22, Hist_vol!K21) -> 1087.03711 | M22: =IF(M$8, Hist_vol!$R21*Growth_rates!M22, Hist_vol!L21) -> 1241.052071 | N22: =IF(N$8, Hist_vol!$R21*Growth_rates!N22, Hist_vol!M21) -> 1356 | O22: =IF(O$8, Hist_vol!$R21*Growth_rates!O22, Hist_vol!N21) -> 1232.5 | P22: =IF(P$8, Hist_vol!$R21*Growth_rates!P22, Hist_vol!O21) -> 1023.5 | Q22: =IF(Q$8, Hist_vol!$R21*Growth_rates!Q22, Hist_vol!P21) -> 858 | R22: =IF(R$8, Hist_vol!$R21*Growth_rates!R22, Hist_vol!Q21) -> 797 | S22: =IF(S$8, Hist_vol!$R21*Growth_rates!S22, Hist_vol!R21) -> 860 | T22: =IF(T$8, Hist_vol!$R21*Growth_rates!T22, Hist_vol!S21) -> 684 | U22: =IF(U$8, Hist_vol!$R21*Growth_rates!U22, Hist_vol!T21) -> 22 | V22: =IF(V$8, Hist_vol!$T21*Growth_rates!V22, Hist_vol!U21) -> 22.16463142 | W22: =IF(W$8, Hist_vol!$T21*Growth_rates!W22, Hist_vol!V21) -> 24.67586384 | X22: =IF(X$8, Hist_vol!$T21*Growth_rates!X22, Hist_vol!W21) -> 26.07459156 | Y22: =IF(Y$8, Hist_vol!$T21*Growth_rates!Y22, Hist_vol!X21) -> 27.39955058 | Z22: =IF(Z$8, Hist_vol!$T21*Growth_rates!Z22, Hist_vol!Y21) -> 28.56932509 | AA22: =IF(AA$8, Hist_vol!$T21*Growth_rates!AA22, Hist_vol!Z21) -> 28.19308714
B23: =Hist_vol!B22 -> Connections | C23: =Hist_vol!C22 -> CI5 | D23: =Hist_vol!D22 -> Commercial/Industrial | E23: =Hist_vol!E22 -> Complex connection sub-transmission | H23: =IF(H$8, Hist_vol!$R22*Growth_rates!H23, Hist_vol!G22) -> 0 | I23: =IF(I$8, Hist_vol!$R22*Growth_rates!I23, Hist_vol!H22) -> 0 | J23: =IF(J$8, Hist_vol!$R22*Growth_rates!J23, Hist_vol!I22) -> 0 | K23: =IF(K$8, Hist_vol!$R22*Growth_rates!K23, Hist_vol!J22) -> 0 | L23: =IF(L$8, Hist_vol!$R22*Growth_rates!L23, Hist_vol!K22) -> 0 | M23: =IF(M$8, Hist_vol!$R22*Growth_rates!M23, Hist_vol!L22) -> 0 | N23: =IF(N$8, Hist_vol!$R22*Growth_rates!N23, Hist_vol!M22) -> 0 | O23: =IF(O$8, Hist_vol!$R22*Growth_rates!O23, Hist_vol!N22) -> 0 | P23: =IF(P$8, Hist_vol!$R22*Growth_rates!P23, Hist_vol!O22) -> 0 | Q23: =IF(Q$8, Hist_vol!$R22*Growth_rates!Q23, Hist_vol!P22) -> 0 | R23: =IF(R$8, Hist_vol!$R22*Growth_rates!R23, Hist_vol!Q22) -> 9 | S23: =IF(S$8, Hist_vol!$R22*Growth_rates!S23, Hist_vol!R22) -> 27 | T23: =IF(T$8, Hist_vol!$R22*Growth_rates!T23, Hist_vol!S22) -> 47 | U23: =IF(U$8, Hist_vol!$R22*Growth_rates!U23, Hist_vol!T22) -> 4 | V23: =IF(V$8, Hist_vol!$T22*Growth_rates!V23, Hist_vol!U22) -> 4.029932986 | W23: =IF(W$8, Hist_vol!$T22*Growth_rates!W23, Hist_vol!V22) -> 4.486520699 | X23: =IF(X$8, Hist_vol!$T22*Growth_rates!X23, Hist_vol!W22) -> 4.740834829 | Y23: =IF(Y$8, Hist_vol!$T22*Growth_rates!Y23, Hist_vol!X22) -> 4.98173647 | Z23: =IF(Z$8, Hist_vol!$T22*Growth_rates!Z23, Hist_vol!Y22) -> 5.194422744 | AA23: =IF(AA$8, Hist_vol!$T22*Growth_rates!AA23, Hist_vol!Z22) -> 5.126015843
B24: =Hist_vol!B23 -> Connections | C24: =Hist_vol!C23 -> S1 | D24: =Hist_vol!D23 -> Subdivision | E24: =Hist_vol!E23 -> Complex connection LV | H24: =IF(H$8, Hist_vol!$R23*Growth_rates!H24, Hist_vol!G23) -> 102.5 | I24: =IF(I$8, Hist_vol!$R23*Growth_rates!I24, Hist_vol!H23) -> 163.5 | J24: =IF(J$8, Hist_vol!$R23*Growth_rates!J24, Hist_vol!I23) -> 249 | K24: =IF(K$8, Hist_vol!$R23*Growth_rates!K24, Hist_vol!J23) -> 301 | L24: =IF(L$8, Hist_vol!$R23*Growth_rates!L24, Hist_vol!K23) -> 898 | M24: =IF(M$8, Hist_vol!$R23*Growth_rates!M24, Hist_vol!L23) -> 1272.5 | N24: =IF(N$8, Hist_vol!$R23*Growth_rates!N24, Hist_vol!M23) -> 581.5 | O24: =IF(O$8, Hist_vol!$R23*Growth_rates!O24, Hist_vol!N23) -> 604 | P24: =IF(P$8, Hist_vol!$R23*Growth_rates!P24, Hist_vol!O23) -> 762.5 | Q24: =IF(Q$8, Hist_vol!$R23*Growth_rates!Q24, Hist_vol!P23) -> 685 | R24: =IF(R$8, Hist_vol!$R23*Growth_rates!R24, Hist_vol!Q23) -> 492 | S24: =IF(S$8, Hist_vol!$R23*Growth_rates!S24, Hist_vol!R23) -> 700 | T24: =IF(T$8, Hist_vol!$R23*Growth_rates!T24, Hist_vol!S23) -> 340 | U24: =IF(U$8, Hist_vol!$R23*Growth_rates!U24, Hist_vol!T23) -> 158 | V24: =IF(V$8, Hist_vol!$T23*Growth_rates!V24, Hist_vol!U23) -> 196.4781304 | W24: =IF(W$8, Hist_vol!$T23*Growth_rates!W24, Hist_vol!V23) -> 225.2057204 | X24: =IF(X$8, Hist_vol!$T23*Growth_rates!X24, Hist_vol!W23) -> 219.3297359 | Y24: =IF(Y$8, Hist_vol!$T23*Growth_rates!Y24, Hist_vol!X23) -> 213.0375708 | Z24: =IF(Z$8, Hist_vol!$T23*Growth_rates!Z24, Hist_vol!Y23) -> 215.4351612 | AA24: =IF(AA$8, Hist_vol!$T23*Growth_rates!AA24, Hist_vol!Z23) -> 223.0099994
B25: =Hist_vol!B24 -> Connections | C25: =Hist_vol!C24 -> S2 | D25: =Hist_vol!D24 -> Subdivision | E25: =Hist_vol!E24 -> Complex connection HV (no upstream asset works) | H25: =IF(H$8, Hist_vol!$R24*Growth_rates!H25, Hist_vol!G24) -> 32.5 | I25: =IF(I$8, Hist_vol!$R24*Growth_rates!I25, Hist_vol!H24) -> 43.5 | J25: =IF(J$8, Hist_vol!$R24*Growth_rates!J25, Hist_vol!I24) -> 63 | K25: =IF(K$8, Hist_vol!$R24*Growth_rates!K25, Hist_vol!J24) -> 70 | L25: =IF(L$8, Hist_vol!$R24*Growth_rates!L25, Hist_vol!K24) -> 109.5 | M25: =IF(M$8, Hist_vol!$R24*Growth_rates!M25, Hist_vol!L24) -> 93 | N25: =IF(N$8, Hist_vol!$R24*Growth_rates!N25, Hist_vol!M24) -> 203 | O25: =IF(O$8, Hist_vol!$R24*Growth_rates!O25, Hist_vol!N24) -> 351 | P25: =IF(P$8, Hist_vol!$R24*Growth_rates!P25, Hist_vol!O24) -> 632.5 | Q25: =IF(Q$8, Hist_vol!$R24*Growth_rates!Q25, Hist_vol!P24) -> 1109 | R25: =IF(R$8, Hist_vol!$R24*Growth_rates!R25, Hist_vol!Q24) -> 476 | S25: =IF(S$8, Hist_vol!$R24*Growth_rates!S25, Hist_vol!R24) -> 644 | T25: =IF(T$8, Hist_vol!$R24*Growth_rates!T25, Hist_vol!S24) -> 83 | U25: =IF(U$8, Hist_vol!$R24*Growth_rates!U25, Hist_vol!T24) -> 82 | V25: =IF(V$8, Hist_vol!$T24*Growth_rates!V25, Hist_vol!U24) -> 101.9696626 | W25: =IF(W$8, Hist_vol!$T24*Growth_rates!W25, Hist_vol!V24) -> 116.8789182 | X25: =IF(X$8, Hist_vol!$T24*Growth_rates!X25, Hist_vol!W24) -> 113.8293566 | Y25: =IF(Y$8, Hist_vol!$T24*Growth_rates!Y25, Hist_vol!X24) -> 110.5638026 | Z25: =IF(Z$8, Hist_vol!$T24*Growth_rates!Z25, Hist_vol!Y24) -> 111.8081216 | AA25: =IF(AA$8, Hist_vol!$T24*Growth_rates!AA25, Hist_vol!Z24) -> 115.7393668
B26: =Hist_vol!B25 -> Connections | C26: =Hist_vol!C25 -> S3 | D26: =Hist_vol!D25 -> Subdivision | E26: =Hist_vol!E25 -> Complex connection HV (with upstream asset works) | H26: =IF(H$8, Hist_vol!$R25*Growth_rates!H26, Hist_vol!G25) -> 0 | I26: =IF(I$8, Hist_vol!$R25*Growth_rates!I26, Hist_vol!H25) -> 0 | J26: =IF(J$8, Hist_vol!$R25*Growth_rates!J26, Hist_vol!I25) -> 0 | K26: =IF(K$8, Hist_vol!$R25*Growth_rates!K26, Hist_vol!J25) -> 0 | L26: =IF(L$8, Hist_vol!$R25*Growth_rates!L26, Hist_vol!K25) -> 0 | M26: =IF(M$8, Hist_vol!$R25*Growth_rates!M26, Hist_vol!L25) -> 0.5 | N26: =IF(N$8, Hist_vol!$R25*Growth_rates!N26, Hist_vol!M25) -> 16.5 | O26: =IF(O$8, Hist_vol!$R25*Growth_rates!O26, Hist_vol!N25) -> 16 | P26: =IF(P$8, Hist_vol!$R25*Growth_rates!P26, Hist_vol!O25) -> 0 | Q26: =IF(Q$8, Hist_vol!$R25*Growth_rates!Q26, Hist_vol!P25) -> 0 | R26: =IF(R$8, Hist_vol!$R25*Growth_rates!R26, Hist_vol!Q25) -> 0 | S26: =IF(S$8, Hist_vol!$R25*Growth_rates!S26, Hist_vol!R25) -> 0 | T26: =IF(T$8, Hist_vol!$R25*Growth_rates!T26, Hist_vol!S25) -> 0 | U26: =IF(U$8, Hist_vol!$R25*Growth_rates!U26, Hist_vol!T25) -> 0 | V26: =IF(V$8, Hist_vol!$T25*Growth_rates!V26, Hist_vol!U25) -> 0 | W26: =IF(W$8, Hist_vol!$T25*Growth_rates!W26, Hist_vol!V25) -> 0 | X26: =IF(X$8, Hist_vol!$T25*Growth_rates!X26, Hist_vol!W25) -> 0 | Y26: =IF(Y$8, Hist_vol!$T25*Growth_rates!Y26, Hist_vol!X25) -> 0 | Z26: =IF(Z$8, Hist_vol!$T25*Growth_rates!Z26, Hist_vol!Y25) -> 0 | AA26: =IF(AA$8, Hist_vol!$T25*Growth_rates!AA26, Hist_vol!Z25) -> 0
B27: =Hist_vol!B26 -> Connections | C27: =Hist_vol!C26 -> EG1 | D27: =Hist_vol!D26 -> Embedded generation | E27: =Hist_vol!E26 -> Simple connection LV | H27: =IF(H$8, Hist_vol!$R26*Growth_rates!H27, Hist_vol!G26) -> 11674.5 | I27: =IF(I$8, Hist_vol!$R26*Growth_rates!I27, Hist_vol!H26) -> 7420 | J27: =IF(J$8, Hist_vol!$R26*Growth_rates!J27, Hist_vol!I26) -> 3143.5 | K27: =IF(K$8, Hist_vol!$R26*Growth_rates!K27, Hist_vol!J26) -> 5632 | L27: =IF(L$8, Hist_vol!$R26*Growth_rates!L27, Hist_vol!K26) -> 6484.5 | M27: =IF(M$8, Hist_vol!$R26*Growth_rates!M27, Hist_vol!L26) -> 4168 | N27: =IF(N$8, Hist_vol!$R26*Growth_rates!N27, Hist_vol!M26) -> 5570.5 | O27: =IF(O$8, Hist_vol!$R26*Growth_rates!O27, Hist_vol!N26) -> 3383.5 | P27: =IF(P$8, Hist_vol!$R26*Growth_rates!P27, Hist_vol!O26) -> 0 | Q27: =IF(Q$8, Hist_vol!$R26*Growth_rates!Q27, Hist_vol!P26) -> 0 | R27: =IF(R$8, Hist_vol!$R26*Growth_rates!R27, Hist_vol!Q26) -> 10157 | S27: =IF(S$8, Hist_vol!$R26*Growth_rates!S27, Hist_vol!R26) -> 12070 | T27: =IF(T$8, Hist_vol!$R26*Growth_rates!T27, Hist_vol!S26) -> 0 | U27: =IF(U$8, Hist_vol!$R26*Growth_rates!U27, Hist_vol!T26) -> 1 | V27: =IF(V$8, Hist_vol!$T26*Growth_rates!V27, Hist_vol!U26) -> 0.9999016622 | W27: =IF(W$8, Hist_vol!$T26*Growth_rates!W27, Hist_vol!V26) -> 0.9998045379 | X27: =IF(X$8, Hist_vol!$T26*Growth_rates!X27, Hist_vol!W26) -> 2.99940497 | Y27: =IF(Y$8, Hist_vol!$T26*Growth_rates!Y27, Hist_vol!X26) -> 7.49832894 | Z27: =IF(Z$8, Hist_vol!$T26*Growth_rates!Z27, Hist_vol!Y26) -> 22.49565269 | AA27: =IF(AA$8, Hist_vol!$T26*Growth_rates!AA27, Hist_vol!Z26) -> 22.49706701
B28: =Hist_vol!B27 -> Connections | C28: =Hist_vol!C27 -> EG2 | D28: =Hist_vol!D27 -> Embedded generation | E28: =Hist_vol!E27 -> Complex connection HV (small capacity) | H28: =IF(H$8, Hist_vol!$R27*Growth_rates!H28, Hist_vol!G27) -> 0 | I28: =IF(I$8, Hist_vol!$R27*Growth_rates!I28, Hist_vol!H27) -> 0 | J28: =IF(J$8, Hist_vol!$R27*Growth_rates!J28, Hist_vol!I27) -> 0 | K28: =IF(K$8, Hist_vol!$R27*Growth_rates!K28, Hist_vol!J27) -> 0 | L28: =IF(L$8, Hist_vol!$R27*Growth_rates!L28, Hist_vol!K27) -> 0 | M28: =IF(M$8, Hist_vol!$R27*Growth_rates!M28, Hist_vol!L27) -> 0 | N28: =IF(N$8, Hist_vol!$R27*Growth_rates!N28, Hist_vol!M27) -> 0 | O28: =IF(O$8, Hist_vol!$R27*Growth_rates!O28, Hist_vol!N27) -> 0 | P28: =IF(P$8, Hist_vol!$R27*Growth_rates!P28, Hist_vol!O27) -> 0 | Q28: =IF(Q$8, Hist_vol!$R27*Growth_rates!Q28, Hist_vol!P27) -> 0 | R28: =IF(R$8, Hist_vol!$R27*Growth_rates!R28, Hist_vol!Q27) -> 0 | S28: =IF(S$8, Hist_vol!$R27*Growth_rates!S28, Hist_vol!R27) -> 0 | T28: =IF(T$8, Hist_vol!$R27*Growth_rates!T28, Hist_vol!S27) -> 0 | U28: =IF(U$8, Hist_vol!$R27*Growth_rates!U28, Hist_vol!T27) -> 0 | V28: =IF(V$8, Hist_vol!$T27*Growth_rates!V28, Hist_vol!U27) -> 0 | W28: =IF(W$8, Hist_vol!$T27*Growth_rates!W28, Hist_vol!V27) -> 0 | X28: =IF(X$8, Hist_vol!$T27*Growth_rates!X28, Hist_vol!W27) -> 0 | Y28: =IF(Y$8, Hist_vol!$T27*Growth_rates!Y28, Hist_vol!X27) -> 0 | Z28: =IF(Z$8, Hist_vol!$T27*Growth_rates!Z28, Hist_vol!Y27) -> 0 | AA28: =IF(AA$8, Hist_vol!$T27*Growth_rates!AA28, Hist_vol!Z27) -> 0
B29: =Hist_vol!B28 -> Connections | C29: =Hist_vol!C28 -> EG3 | D29: =Hist_vol!D28 -> Embedded generation | E29: =Hist_vol!E28 -> Complex connection HV (large capacity) | H29: =IF(H$8, Hist_vol!$R28*Growth_rates!H29, Hist_vol!G28) -> 0 | I29: =IF(I$8, Hist_vol!$R28*Growth_rates!I29, Hist_vol!H28) -> 1 | J29: =IF(J$8, Hist_vol!$R28*Growth_rates!J29, Hist_vol!I28) -> 1 | K29: =IF(K$8, Hist_vol!$R28*Growth_rates!K29, Hist_vol!J28) -> 0 | L29: =IF(L$8, Hist_vol!$R28*Growth_rates!L29, Hist_vol!K28) -> 0 | M29: =IF(M$8, Hist_vol!$R28*Growth_rates!M29, Hist_vol!L28) -> 0 | N29: =IF(N$8, Hist_vol!$R28*Growth_rates!N29, Hist_vol!M28) -> 0 | O29: =IF(O$8, Hist_vol!$R28*Growth_rates!O29, Hist_vol!N28) -> 0 | P29: =IF(P$8, Hist_vol!$R28*Growth_rates!P29, Hist_vol!O28) -> 0 | Q29: =IF(Q$8, Hist_vol!$R28*Growth_rates!Q29, Hist_vol!P28) -> 0 | R29: =IF(R$8, Hist_vol!$R28*Growth_rates!R29, Hist_vol!Q28) -> 0 | S29: =IF(S$8, Hist_vol!$R28*Growth_rates!S29, Hist_vol!R28) -> 0 | T29: =IF(T$8, Hist_vol!$R28*Growth_rates!T29, Hist_vol!S28) -> 0 | U29: =IF(U$8, Hist_vol!$R28*Growth_rates!U29, Hist_vol!T28) -> 5 | V29: =IF(V$8, Hist_vol!$T28*Growth_rates!V29, Hist_vol!U28) -> 14.99995677 | W29: =IF(W$8, Hist_vol!$T28*Growth_rates!W29, Hist_vol!V28) -> 37.49897433 | X29: =IF(X$8, Hist_vol!$T28*Growth_rates!X29, Hist_vol!W28) -> 112.500253 | Y29: =IF(Y$8, Hist_vol!$T28*Growth_rates!Y29, Hist_vol!X28) -> 112.5073259 | Z29: =IF(Z$8, Hist_vol!$T28*Growth_rates!Z29, Hist_vol!Y28) -> 112.5073259 | AA29: =IF(AA$8, Hist_vol!$T28*Growth_rates!AA29, Hist_vol!Z28) -> 112.5073259

Sheet Forecast_spend
A1: =Assumptions!$A$1 -> United Energy
A2: =Assumptions!$A$2 -> Connections
A3: Forecast gross capex
B7: =Assumptions!B17 -> 2025/6 - 2030/31 reg period | H7: =Assumptions!G17 -> FALSE | I7: =Assumptions!H17 -> FALSE | J7: =Assumptions!I17 -> FALSE | K7: =Assumptions!J17 -> FALSE | L7: =Assumptions!K17 -> FALSE | M7: =Assumptions!L17 -> FALSE | N7: =Assumptions!M17 -> FALSE | O7: =Assumptions!N17 -> FALSE | P7: =Assumptions!O17 -> FALSE | Q7: =Assumptions!P17 -> FALSE | R7: =Assumptions!Q17 -> FALSE | S7: =Assumptions!R17 -> FALSE | T7: =Assumptions!S17 -> FALSE | U7: =Assumptions!T17 -> FALSE | V7: =Assumptions!U17 -> FALSE | W7: =Assumptions!V17 -> TRUE | X7: =Assumptions!W17 -> TRUE | Y7: =Assumptions!X17 -> TRUE | Z7: =Assumptions!Y17 -> TRUE | AA7: =Assumptions!Z17 -> TRUE
B8: =Assumptions!B18 -> Forecast period | H8: =Assumptions!G18 -> FALSE | I8: =Assumptions!H18 -> FALSE | J8: =Assumptions!I18 -> FALSE | K8: =Assumptions!J18 -> FALSE | L8: =Assumptions!K18 -> FALSE | M8: =Assumptions!L18 -> FALSE | N8: =Assumptions!M18 -> FALSE | O8: =Assumptions!N18 -> FALSE | P8: =Assumptions!O18 -> FALSE | Q8: =Assumptions!P18 -> FALSE | R8: =Assumptions!Q18 -> FALSE | S8: =Assumptions!R18 -> FALSE | T8: =Assumptions!S18 -> FALSE | U8: =Assumptions!T18 -> FALSE | V8: =Assumptions!U18 -> TRUE | W8: =Assumptions!V18 -> TRUE | X8: =Assumptions!W18 -> TRUE | Y8: =Assumptions!X18 -> TRUE | Z8: =Assumptions!Y18 -> TRUE | AA8: =Assumptions!Z18 -> TRUE
B9: =Assumptions!B19 -> Fin year end | H9: =Assumptions!G19 -> 2012 | I9: =Assumptions!H19 -> 2013 | J9: =Assumptions!I19 -> 2014 | K9: =Assumptions!J19 -> 2015 | L9: =Assumptions!K19 -> 2016 | M9: =Assumptions!L19 -> 2017 | N9: =Assumptions!M19 -> 2018 | O9: =Assumptions!N19 -> 2019 | P9: =Assumptions!O19 -> 2020 | Q9: =Assumptions!P19 -> 2021 | R9: =Assumptions!Q19 -> 2022 | S9: =Assumptions!R19 -> 2023 | T9: =Assumptions!S19 -> 2024 | U9: =Assumptions!T19 -> 2025 | V9: =Assumptions!U19 -> 2026 | W9: =Assumptions!V19 -> 2027 | X9: =Assumptions!W19 -> 2028 | Y9: =Assumptions!X19 -> 2029 | Z9: =Assumptions!Y19 -> 2030 | AA9: =Assumptions!Z19 -> 2031
B10: =Assumptions!B20 -> Basis | H10: =Assumptions!G20 -> Actual | I10: =Assumptions!H20 -> Actual | J10: =Assumptions!I20 -> Actual | K10: =Assumptions!J20 -> Actual | L10: =Assumptions!K20 -> Actual | M10: =Assumptions!L20 -> Actual | N10: =Assumptions!M20 -> Actual | O10: =Assumptions!N20 -> Actual | P10: =Assumptions!O20 -> Actual | Q10: =Assumptions!P20 -> Actual | R10: =Assumptions!Q20 -> Actual | S10: =Assumptions!R20 -> Actual | T10: =Assumptions!S20 -> Actual | U10: =Assumptions!T20 -> Actual | V10: =Assumptions!U20 -> Forecast | W10: =Assumptions!V20 -> Forecast | X10: =Assumptions!W20 -> Forecast | Y10: =Assumptions!X20 -> Forecast | Z10: =Assumptions!Y20 -> Forecast | AA10: =Assumptions!Z20 -> Forecast
B13: =Hist_vol!B$13 -> Category | C13: Type | D13: =Hist_vol!D$13 -> RIN category | E13: =Hist_vol!E$13 -> Description | H13: =Assumptions!G$24 -> 2011/12 | I13: =Assumptions!H$24 -> 2012/13 | J13: =Assumptions!I$24 -> 2013/14 | K13: =Assumptions!J$24 -> 2014/15 | L13: =Assumptions!K$24 -> 2015/16 | M13: =Assumptions!L$24 -> 2016/17 | N13: =Assumptions!M$24 -> 2017/18 | O13: =Assumptions!N$24 -> 2018/19 | P13: =Assumptions!O$24 -> 2019/20 | Q13: =Assumptions!P$24 -> 2020/21 | R13: =Assumptions!Q$24 -> 2021/22 | S13: =Assumptions!R$24 -> 2022/23 | T13: =Assumptions!S$24 -> 2023/24 | U13: =Assumptions!T$24 -> 2024/25 | V13: =Assumptions!U$24 -> 2025/26 | W13: =Assumptions!V$24 -> 2026/27 | X13: =Assumptions!W$24 -> 2027/28 | Y13: =Assumptions!X$24 -> 2028/29 | Z13: =Assumptions!Y$24 -> 2029/30 | AA13: =Assumptions!Z$24 -> 2030/31 | AC13: 2026-31 Total
B15: Forecast total spend (June 2026 $)
B16: =Hist_vol!B15 -> Connections | C16: =Hist_vol!C15 -> R1 | D16: =Hist_vol!D15 -> Residential | E16: =Hist_vol!E15 -> Simple connection LV | F16: =D16&" "&E16 -> Residential Simple connection LV | H16: =SUMPRODUCT(($F$38:$F$53=$F16)*(H$38:H$53)) -> 0 | I16: =SUMPRODUCT(($F$38:$F$53=$F16)*(I$38:I$53)) -> 0 | J16: =SUMPRODUCT(($F$38:$F$53=$F16)*(J$38:J$53)) -> 0 | K16: =SUMPRODUCT(($F$38:$F$53=$F16)*(K$38:K$53)) -> 0 | L16: =SUMPRODUCT(($F$38:$F$53=$F16)*(L$38:L$53)) -> 6083521.706 | M16: =SUMPRODUCT(($F$38:$F$53=$F16)*(M$38:M$53)) -> 13336258.36 | N16: =SUMPRODUCT(($F$38:$F$53=$F16)*(N$38:N$53)) -> 18371165.39 | O16: =SUMPRODUCT(($F$38:$F$53=$F16)*(O$38:O$53)) -> 18765879.18 | P16: =SUMPRODUCT(($F$38:$F$53=$F16)*(P$38:P$53)) -> 14648868.53 | Q16: =SUMPRODUCT(($F$38:$F$53=$F16)*(Q$38:Q$53)) -> 14769183.64 | R16: =SUMPRODUCT(($F$38:$F$53=$F16)*(R$38:R$53)) -> 16159555.03 | S16: =SUMPRODUCT(($F$38:$F$53=$F16)*(S$38:S$53)) -> 22655827.59 | T16: =SUMPRODUCT(($F$38:$F$53=$F16)*(T$38:T$53)) -> 21056607.38 | U16: =SUMPRODUCT(($F$38:$F$53=$F16)*(U$38:U$53)) -> 26485356.93 | V16: =SUMPRODUCT(($F$38:$F$53=$F16)*(V$38:V$53)) -> 17521042.08 | W16: =SUMPRODUCT(($F$38:$F$53=$F16)*(W$38:W$53)) -> 20082840.24 | X16: =SUMPRODUCT(($F$38:$F$53=$F16)*(X$38:X$53)) -> 19558846.18 | Y16: =SUMPRODUCT(($F$38:$F$53=$F16)*(Y$38:Y$53)) -> 18997739.01 | Z16: =SUMPRODUCT(($F$38:$F$53=$F16)*(Z$38:Z$53)) -> 19211545.41 | AA16: =SUMPRODUCT(($F$38:$F$53=$F16)*(AA$38:AA$53)) -> 19887035.65 | AC16: =SUMPRODUCT($H$7:$AA$7*$H16:$AA16) -> 97738006.48
B17: =Hist_vol!B16 -> Connections | C17: =Hist_vol!C16 -> R2 | D17: =Hist_vol!D16 -> Residential | E17: =Hist_vol!E16 -> Complex connection LV | F17: =D17&" "&E17 -> Residential Complex connection LV | H17: =SUMPRODUCT(($F$38:$F$53=$F17)*(H$38:H$53)) -> 0 | I17: =SUMPRODUCT(($F$38:$F$53=$F17)*(I$38:I$53)) -> 0 | J17: =SUMPRODUCT(($F$38:$F$53=$F17)*(J$38:J$53)) -> 0 | K17: =SUMPRODUCT(($F$38:$F$53=$F17)*(K$38:K$53)) -> 0 | L17: =SUMPRODUCT(($F$38:$F$53=$F17)*(L$38:L$53)) -> 0 | M17: =SUMPRODUCT(($F$38:$F$53=$F17)*(M$38:M$53)) -> 0 | N17: =SUMPRODUCT(($F$38:$F$53=$F17)*(N$38:N$53)) -> 0 | O17: =SUMPRODUCT(($F$38:$F$53=$F17)*(O$38:O$53)) -> 0 | P17: =SUMPRODUCT(($F$38:$F$53=$F17)*(P$38:P$53)) -> 0 | Q17: =SUMPRODUCT(($F$38:$F$53=$F17)*(Q$38:Q$53)) -> 0 | R17: =SUMPRODUCT(($F$38:$F$53=$F17)*(R$38:R$53)) -> 0 | S17: =SUMPRODUCT(($F$38:$F$53=$F17)*(S$38:S$53)) -> 0 | T17: =SUMPRODUCT(($F$38:$F$53=$F17)*(T$38:T$53)) -> 0 | U17: =SUMPRODUCT(($F$38:$F$53=$F17)*(U$38:U$53)) -> 0 | V17: =SUMPRODUCT(($F$38:$F$53=$F17)*(V$38:V$53)) -> 0 | W17: =SUMPRODUCT(($F$38:$F$53=$F17)*(W$38:W$53)) -> 0 | X17: =SUMPRODUCT(($F$38:$F$53=$F17)*(X$38:X$53)) -> 0 | Y17: =SUMPRODUCT(($F$38:$F$53=$F17)*(Y$38:Y$53)) -> 0 | Z17: =SUMPRODUCT(($F$38:$F$53=$F17)*(Z$38:Z$53)) -> 0 | AA17: =SUMPRODUCT(($F$38:$F$53=$F17)*(AA$38:AA$53)) -> 0 | AC17: =SUMPRODUCT($H$7:$AA$7*$H17:$AA17) -> 0
B18: =Hist_vol!B17 -> Connections | C18: =Hist_vol!C17 -> R3 | D18: =Hist_vol!D17 -> Residential | E18: =Hist_vol!E17 -> Complex connection HV | F18: Residential Complex connection HV | H18: =SUMPRODUCT(($F$38:$F$53=$F18)*(H$38:H$53)) -> 0 | I18: =SUMPRODUCT(($F$38:$F$53=$F18)*(I$38:I$53)) -> 0 | J18: =SUMPRODUCT(($F$38:$F$53=$F18)*(J$38:J$53)) -> 0 | K18: =SUMPRODUCT(($F$38:$F$53=$F18)*(K$38:K$53)) -> 0 | L18: =SUMPRODUCT(($F$38:$F$53=$F18)*(L$38:L$53)) -> 0 | M18: =SUMPRODUCT(($F$38:$F$53=$F18)*(M$38:M$53)) -> 0 | N18: =SUMPRODUCT(($F$38:$F$53=$F18)*(N$38:N$53)) -> 0 | O18: =SUMPRODUCT(($F$38:$F$53=$F18)*(O$38:O$53)) -> 0 | P18: =SUMPRODUCT(($F$38:$F$53=$F18)*(P$38:P$53)) -> 0 | Q18: =SUMPRODUCT(($F$38:$F$53=$F18)*(Q$38:Q$53)) -> 0 | R18: =SUMPRODUCT(($F$38:$F$53=$F18)*(R$38:R$53)) -> 0 | S18: =SUMPRODUCT(($F$38:$F$53=$F18)*(S$38:S$53)) -> 0 | T18: =SUMPRODUCT(($F$38:$F$53=$F18)*(T$38:T$53)) -> 0 | U18: =SUMPRODUCT(($F$38:$F$53=$F18)*(U$38:U$53)) -> 0 | V18: =SUMPRODUCT(($F$38:$F$53=$F18)*(V$38:V$53)) -> 0 | W18: =SUMPRODUCT(($F$38:$F$53=$F18)*(W$38:W$53)) -> 0 | X18: =SUMPRODUCT(($F$38:$F$53=$F18)*(X$38:X$53)) -> 0 | Y18: =SUMPRODUCT(($F$38:$F$53=$F18)*(Y$38:Y$53)) -> 0 | Z18: =SUMPRODUCT(($F$38:$F$53=$F18)*(Z$38:Z$53)) -> 0 | AA18: =SUMPRODUCT(($F$38:$F$53=$F18)*(AA$38:AA$53)) -> 0 | AC18: =SUMPRODUCT($H$7:$AA$7*$H18:$AA18) -> 0
B19: =Hist_vol!B18 -> Connections | C19: =Hist_vol!C18 -> CI1 | D19: =Hist_vol!D18 -> Commercial/Industrial | E19: =Hist_vol!E18 -> Simple connection LV | F19: Commercial/Industrial Simple connection LV | H19: =SUMPRODUCT(($F$38:$F$53=$F19)*(H$38:H$53)) -> 5107726.041 | I19: =SUMPRODUCT(($F$38:$F$53=$F19)*(I$38:I$53)) -> 5248222.328 | J19: =SUMPRODUCT(($F$38:$F$53=$F19)*(J$38:J$53)) -> 5114171.565 | K19: =SUMPRODUCT(($F$38:$F$53=$F19)*(K$38:K$53)) -> 5172837.157 | L19: =SUMPRODUCT(($F$38:$F$53=$F19)*(L$38:L$53)) -> 2703391.731 | M19: =SUMPRODUCT(($F$38:$F$53=$F19)*(M$38:M$53)) -> 2675255.028 | N19: =SUMPRODUCT(($F$38:$F$53=$F19)*(N$38:N$53)) -> 3614938.839 | O19: =SUMPRODUCT(($F$38:$F$53=$F19)*(O$38:O$53)) -> 4425043.291 | P19: =SUMPRODUCT(($F$38:$F$53=$F19)*(P$38:P$53)) -> 4898062.088 | Q19: =SUMPRODUCT(($F$38:$F$53=$F19)*(Q$38:Q$53)) -> 6817803.622 | R19: =SUMPRODUCT(($F$38:$F$53=$F19)*(R$38:R$53)) -> 6132357.85 | S19: =SUMPRODUCT(($F$38:$F$53=$F19)*(S$38:S$53)) -> 5970822.215 | T19: =SUMPRODUCT(($F$38:$F$53=$F19)*(T$38:T$53)) -> 7946626.135 | U19: =SUMPRODUCT(($F$38:$F$53=$F19)*(U$38:U$53)) -> 8420771.845 | V19: =SUMPRODUCT(($F$38:$F$53=$F19)*(V$38:V$53)) -> 5251822.813 | W19: =SUMPRODUCT(($F$38:$F$53=$F19)*(W$38:W$53)) -> 5846849.523 | X19: =SUMPRODUCT(($F$38:$F$53=$F19)*(X$38:X$53)) -> 6178272.59 | Y19: =SUMPRODUCT(($F$38:$F$53=$F19)*(Y$38:Y$53)) -> 6492216.454 | Z19: =SUMPRODUCT(($F$38:$F$53=$F19)*(Z$38:Z$53)) -> 6769389.952 | AA19: =SUMPRODUCT(($F$38:$F$53=$F19)*(AA$38:AA$53)) -> 6680241.839 | AC19: =SUMPRODUCT($H$7:$AA$7*$H19:$AA19) -> 31966970.36
B20: =Hist_vol!B19 -> Connections | C20: =Hist_vol!C19 -> CI2 | D20: =Hist_vol!D19 -> Commercial/Industrial | E20: =Hist_vol!E19 -> Complex connection HV (customer connected at LV, minor HV works) | F20: Commercial/Industrial Complex connection HV (customer connected at LV, minor HV works) | H20: =SUMPRODUCT(($F$38:$F$53=$F20)*(H$38:H$53)) -> 26026838.46 | I20: =SUMPRODUCT(($F$38:$F$53=$F20)*(I$38:I$53)) -> 24934181.04 | J20: =SUMPRODUCT(($F$38:$F$53=$F20)*(J$38:J$53)) -> 25933658.16 | K20: =SUMPRODUCT(($F$38:$F$53=$F20)*(K$38:K$53)) -> 27436593.77 | L20: =SUMPRODUCT(($F$38:$F$53=$F20)*(L$38:L$53)) -> 28294324.5 | M20: =SUMPRODUCT(($F$38:$F$53=$F20)*(M$38:M$53)) -> 25973402.42 | N20: =SUMPRODUCT(($F$38:$F$53=$F20)*(N$38:N$53)) -> 17833013.25 | O20: =SUMPRODUCT(($F$38:$F$53=$F20)*(O$38:O$53)) -> 13840852.29 | P20: =SUMPRODUCT(($F$38:$F$53=$F20)*(P$38:P$53)) -> 13571528.9 | Q20: =SUMPRODUCT(($F$38:$F$53=$F20)*(Q$38:Q$53)) -> 17901186.27 | R20: =SUMPRODUCT(($F$38:$F$53=$F20)*(R$38:R$53)) -> 14123827.02 | S20: =SUMPRODUCT(($F$38:$F$53=$F20)*(S$38:S$53)) -> 18643233.68 | T20: =SUMPRODUCT(($F$38:$F$53=$F20)*(T$38:T$53)) -> 19648481.43 | U20: =SUMPRODUCT(($F$38:$F$53=$F20)*(U$38:U$53)) -> 44230919.98 | V20: =SUMPRODUCT(($F$38:$F$53=$F20)*(V$38:V$53)) -> 24763207.5 | W20: =SUMPRODUCT(($F$38:$F$53=$F20)*(W$38:W$53)) -> 27568856.2 | X20: =SUMPRODUCT(($F$38:$F$53=$F20)*(X$38:X$53)) -> 29131570.42 | Y20: =SUMPRODUCT(($F$38:$F$53=$F20)*(Y$38:Y$53)) -> 30611867.32 | Z20: =SUMPRODUCT(($F$38:$F$53=$F20)*(Z$38:Z$53)) -> 31918785.91 | AA20: =SUMPRODUCT(($F$38:$F$53=$F20)*(AA$38:AA$53)) -> 31498437.91 | AC20: =SUMPRODUCT($H$7:$AA$7*$H20:$AA20) -> 150729517.8
B21: =Hist_vol!B20 -> Connections | C21: =Hist_vol!C20 -> CI3 | D21: =Hist_vol!D20 -> Commercial/Industrial | E21: =Hist_vol!E20 -> Complex connection HV (customer connected at LV, upstream asset works) | F21: Commercial/Industrial Complex connection HV (customer connected at LV, upstream asset works) | H21: =SUMPRODUCT(($F$38:$F$53=$F21)*(H$38:H$53)) -> 3309446.395 | I21: =SUMPRODUCT(($F$38:$F$53=$F21)*(I$38:I$53)) -> 1255775.462 | J21: =SUMPRODUCT(($F$38:$F$53=$F21)*(J$38:J$53)) -> 1379339.091 | K21: =SUMPRODUCT(($F$38:$F$53=$F21)*(K$38:K$53)) -> 6791402.544 | L21: =SUMPRODUCT(($F$38:$F$53=$F21)*(L$38:L$53)) -> 8428907.474 | M21: =SUMPRODUCT(($F$38:$F$53=$F21)*(M$38:M$53)) -> 3825741.839 | N21: =SUMPRODUCT(($F$38:$F$53=$F21)*(N$38:N$53)) -> 1519588.849 | O21: =SUMPRODUCT(($F$38:$F$53=$F21)*(O$38:O$53)) -> 1362633.397 | P21: =SUMPRODUCT(($F$38:$F$53=$F21)*(P$38:P$53)) -> 1018274.189 | Q21: =SUMPRODUCT(($F$38:$F$53=$F21)*(Q$38:Q$53)) -> 0 | R21: =SUMPRODUCT(($F$38:$F$53=$F21)*(R$38:R$53)) -> 2065146.456 | S21: =SUMPRODUCT(($F$38:$F$53=$F21)*(S$38:S$53)) -> 486293.5548 | T21: =SUMPRODUCT(($F$38:$F$53=$F21)*(T$38:T$53)) -> 6233143.114 | U21: =SUMPRODUCT(($F$38:$F$53=$F21)*(U$38:U$53)) -> 1878143.637 | V21: =SUMPRODUCT(($F$38:$F$53=$F21)*(V$38:V$53)) -> 2492976.494 | W21: =SUMPRODUCT(($F$38:$F$53=$F21)*(W$38:W$53)) -> 2775428.446 | X21: =SUMPRODUCT(($F$38:$F$53=$F21)*(X$38:X$53)) -> 2932750.95 | Y21: =SUMPRODUCT(($F$38:$F$53=$F21)*(Y$38:Y$53)) -> 3081776.288 | Z21: =SUMPRODUCT(($F$38:$F$53=$F21)*(Z$38:Z$53)) -> 3213347.181 | AA21: =SUMPRODUCT(($F$38:$F$53=$F21)*(AA$38:AA$53)) -> 3171029.655 | AC21: =SUMPRODUCT($H$7:$AA$7*$H21:$AA21) -> 15174332.52
B22: =Hist_vol!B21 -> Connections | C22: =Hist_vol!C21 -> CI4 | D22: =Hist_vol!D21 -> Commercial/Industrial | E22: =Hist_vol!E21 -> Complex connection HV (customer connected at HV) | F22: Commercial/Industrial Complex connection HV (customer connected at HV) | H22: =SUMPRODUCT(($F$38:$F$53=$F22)*(H$38:H$53)) -> 1246903.706 | I22: =SUMPRODUCT(($F$38:$F$53=$F22)*(I$38:I$53)) -> 1324348.175 | J22: =SUMPRODUCT(($F$38:$F$53=$F22)*(J$38:J$53)) -> 1938636.486 | K22: =SUMPRODUCT(($F$38:$F$53=$F22)*(K$38:K$53)) -> 8073416.657 | L22: =SUMPRODUCT(($F$38:$F$53=$F22)*(L$38:L$53)) -> 13242788.56 | M22: =SUMPRODUCT(($F$38:$F$53=$F22)*(M$38:M$53)) -> 15441701.34 | N22: =SUMPRODUCT(($F$38:$F$53=$F22)*(N$38:N$53)) -> 13933783.73 | O22: =SUMPRODUCT(($F$38:$F$53=$F22)*(O$38:O$53)) -> 11090242.63 | P22: =SUMPRODUCT(($F$38:$F$53=$F22)*(P$38:P$53)) -> 14791993.05 | Q22: =SUMPRODUCT(($F$38:$F$53=$F22)*(Q$38:Q$53)) -> 24189638.34 | R22: =SUMPRODUCT(($F$38:$F$53=$F22)*(R$38:R$53)) -> 11320457.44 | S22: =SUMPRODUCT(($F$38:$F$53=$F22)*(S$38:S$53)) -> 14406403.21 | T22: =SUMPRODUCT(($F$38:$F$53=$F22)*(T$38:T$53)) -> 45298994.96 | U22: =SUMPRODUCT(($F$38:$F$53=$F22)*(U$38:U$53)) -> 16851890 | V22: =SUMPRODUCT(($F$38:$F$53=$F22)*(V$38:V$53)) -> 4783000.395 | W22: =SUMPRODUCT(($F$38:$F$53=$F22)*(W$38:W$53)) -> 5324909.954 | X22: =SUMPRODUCT(($F$38:$F$53=$F22)*(X$38:X$53)) -> 5626747.377 | Y22: =SUMPRODUCT(($F$38:$F$53=$F22)*(Y$38:Y$53)) -> 5912665.938 | Z22: =SUMPRODUCT(($F$38:$F$53=$F22)*(Z$38:Z$53)) -> 6165096.57 | AA22: =SUMPRODUCT(($F$38:$F$53=$F22)*(AA$38:AA$53)) -> 6083906.577 | AC22: =SUMPRODUCT($H$7:$AA$7*$H22:$AA22) -> 29113326.42
B23: =Hist_vol!B22 -> Connections | C23: =Hist_vol!C22 -> CI5 | D23: =Hist_vol!D22 -> Commercial/Industrial | E23: =Hist_vol!E22 -> Complex connection sub-transmission | F23: Commercial/Industrial Complex connection sub-transmission | H23: =SUMPRODUCT(($F$38:$F$53=$F23)*(H$38:H$53)) -> 0 | I23: =SUMPRODUCT(($F$38:$F$53=$F23)*(I$38:I$53)) -> 0 | J23: =SUMPRODUCT(($F$38:$F$53=$F23)*(J$38:J$53)) -> 0 | K23: =SUMPRODUCT(($F$38:$F$53=$F23)*(K$38:K$53)) -> 0 | L23: =SUMPRODUCT(($F$38:$F$53=$F23)*(L$38:L$53)) -> 0 | M23: =SUMPRODUCT(($F$38:$F$53=$F23)*(M$38:M$53)) -> 0 | N23: =SUMPRODUCT(($F$38:$F$53=$F23)*(N$38:N$53)) -> 0 | O23: =SUMPRODUCT(($F$38:$F$53=$F23)*(O$38:O$53)) -> 0 | P23: =SUMPRODUCT(($F$38:$F$53=$F23)*(P$38:P$53)) -> 0 | Q23: =SUMPRODUCT(($F$38:$F$53=$F23)*(Q$38:Q$53)) -> 0 | R23: =SUMPRODUCT(($F$38:$F$53=$F23)*(R$38:R$53)) -> 7743.662337 | S23: =SUMPRODUCT(($F$38:$F$53=$F23)*(S$38:S$53)) -> 41749.33826 | T23: =SUMPRODUCT(($F$38:$F$53=$F23)*(T$38:T$53)) -> 445228.1313 | U23: =SUMPRODUCT(($F$38:$F$53=$F23)*(U$38:U$53)) -> 371636.2456 | V23: =SUMPRODUCT(($F$38:$F$53=$F23)*(V$38:V$53)) -> 105572.8386 | W23: =SUMPRODUCT(($F$38:$F$53=$F23)*(W$38:W$53)) -> 117534.1444 | X23: =SUMPRODUCT(($F$38:$F$53=$F23)*(X$38:X$53)) -> 124196.4549 | Y23: =SUMPRODUCT(($F$38:$F$53=$F23)*(Y$38:Y$53)) -> 130507.3961 | Z23: =SUMPRODUCT(($F$38:$F$53=$F23)*(Z$38:Z$53)) -> 136079.1745 | AA23: =SUMPRODUCT(($F$38:$F$53=$F23)*(AA$38:AA$53)) -> 134287.1073 | AC23: =SUMPRODUCT($H$7:$AA$7*$H23:$AA23) -> 642604.2771
B24: =Hist_vol!B23 -> Connections | C24: =Hist_vol!C23 -> S1 | D24: =Hist_vol!D23 -> Subdivision | E24: =Hist_vol!E23 -> Complex connection LV | F24: Subdivision Complex connection LV | H24: =SUMPRODUCT(($F$38:$F$53=$F24)*(H$38:H$53)) -> 14578212.83 | I24: =SUMPRODUCT(($F$38:$F$53=$F24)*(I$38:I$53)) -> 13405140.25 | J24: =SUMPRODUCT(($F$38:$F$53=$F24)*(J$38:J$53)) -> 15325770.28 | K24: =SUMPRODUCT(($F$38:$F$53=$F24)*(K$38:K$53)) -> 17756912.94 | L24: =SUMPRODUCT(($F$38:$F$53=$F24)*(L$38:L$53)) -> 11439717.93 | M24: =SUMPRODUCT(($F$38:$F$53=$F24)*(M$38:M$53)) -> 4301768.496 | N24: =SUMPRODUCT(($F$38:$F$53=$F24)*(N$38:N$53)) -> 1655795.21 | O24: =SUMPRODUCT(($F$38:$F$53=$F24)*(O$38:O$53)) -> 1611878.673 | P24: =SUMPRODUCT(($F$38:$F$53=$F24)*(P$38:P$53)) -> 2012560.847 | Q24: =SUMPRODUCT(($F$38:$F$53=$F24)*(Q$38:Q$53)) -> 2233603.7 | R24: =SUMPRODUCT(($F$38:$F$53=$F24)*(R$38:R$53)) -> 1400903.075 | S24: =SUMPRODUCT(($F$38:$F$53=$F24)*(S$38:S$53)) -> 1780796.528 | T24: =SUMPRODUCT(($F$38:$F$53=$F24)*(T$38:T$53)) -> 3147329.698 | U24: =SUMPRODUCT(($F$38:$F$53=$F24)*(U$38:U$53)) -> 2895160.23 | V24: =SUMPRODUCT(($F$38:$F$53=$F24)*(V$38:V$53)) -> 1619569.72 | W24: =SUMPRODUCT(($F$38:$F$53=$F24)*(W$38:W$53)) -> 1856371.316 | X24: =SUMPRODUCT(($F$38:$F$53=$F24)*(X$38:X$53)) -> 1807935.561 | Y24: =SUMPRODUCT(($F$38:$F$53=$F24)*(Y$38:Y$53)) -> 1756069.229 | Z24: =SUMPRODUCT(($F$38:$F$53=$F24)*(Z$38:Z$53)) -> 1775832.572 | AA24: =SUMPRODUCT(($F$38:$F$53=$F24)*(AA$38:AA$53)) -> 1838271.983 | AC24: =SUMPRODUCT($H$7:$AA$7*$H24:$AA24) -> 9034480.66
B25: =Hist_vol!B24 -> Connections | C25: =Hist_vol!C24 -> S2 | D25: =Hist_vol!D24 -> Subdivision | E25: =Hist_vol!E24 -> Complex connection HV (no upstream asset works) | F25: Subdivision Complex connection HV (no upstream asset works) | H25: =SUMPRODUCT(($F$38:$F$53=$F25)*(H$38:H$53)) -> 2347818.489 | I25: =SUMPRODUCT(($F$38:$F$53=$F25)*(I$38:I$53)) -> 2408010.797 | J25: =SUMPRODUCT(($F$38:$F$53=$F25)*(J$38:J$53)) -> 3303934.071 | K25: =SUMPRODUCT(($F$38:$F$53=$F25)*(K$38:K$53)) -> 3146290.485 | L25: =SUMPRODUCT(($F$38:$F$53=$F25)*(L$38:L$53)) -> 1952966.215 | M25: =SUMPRODUCT(($F$38:$F$53=$F25)*(M$38:M$53)) -> 2135500.329 | N25: =SUMPRODUCT(($F$38:$F$53=$F25)*(N$38:N$53)) -> 1405372.203 | O25: =SUMPRODUCT(($F$38:$F$53=$F25)*(O$38:O$53)) -> 1335459.212 | P25: =SUMPRODUCT(($F$38:$F$53=$F25)*(P$38:P$53)) -> 1767166.992 | Q25: =SUMPRODUCT(($F$38:$F$53=$F25)*(Q$38:Q$53)) -> 2284303.246 | R25: =SUMPRODUCT(($F$38:$F$53=$F25)*(R$38:R$53)) -> 1408178.191 | S25: =SUMPRODUCT(($F$38:$F$53=$F25)*(S$38:S$53)) -> 2212526.396 | T25: =SUMPRODUCT(($F$38:$F$53=$F25)*(T$38:T$53)) -> 3329963.954 | U25: =SUMPRODUCT(($F$38:$F$53=$F25)*(U$38:U$53)) -> 1999687.595 | V25: =SUMPRODUCT(($F$38:$F$53=$F25)*(V$38:V$53)) -> 1807423.468 | W25: =SUMPRODUCT(($F$38:$F$53=$F25)*(W$38:W$53)) -> 2071691.66 | X25: =SUMPRODUCT(($F$38:$F$53=$F25)*(X$38:X$53)) -> 2017637.846 | Y25: =SUMPRODUCT(($F$38:$F$53=$F25)*(Y$38:Y$53)) -> 1959755.542 | Z25: =SUMPRODUCT(($F$38:$F$53=$F25)*(Z$38:Z$53)) -> 1981811.234 | AA25: =SUMPRODUCT(($F$38:$F$53=$F25)*(AA$38:AA$53)) -> 2051492.987 | AC25: =SUMPRODUCT($H$7:$AA$7*$H25:$AA25) -> 10082389.27
B26: =Hist_vol!B25 -> Connections | C26: =Hist_vol!C25 -> S3 | D26: =Hist_vol!D25 -> Subdivision | E26: =Hist_vol!E25 -> Complex connection HV (with upstream asset works) | F26: Subdivision Complex connection HV (with upstream asset works) | H26: =SUMPRODUCT(($F$38:$F$53=$F26)*(H$38:H$53)) -> 0 | I26: =SUMPRODUCT(($F$38:$F$53=$F26)*(I$38:I$53)) -> 0 | J26: =SUMPRODUCT(($F$38:$F$53=$F26)*(J$38:J$53)) -> 0 | K26: =SUMPRODUCT(($F$38:$F$53=$F26)*(K$38:K$53)) -> 0 | L26: =SUMPRODUCT(($F$38:$F$53=$F26)*(L$38:L$53)) -> 0 | M26: =SUMPRODUCT(($F$38:$F$53=$F26)*(M$38:M$53)) -> 264884.5002 | N26: =SUMPRODUCT(($F$38:$F$53=$F26)*(N$38:N$53)) -> 807891.9392 | O26: =SUMPRODUCT(($F$38:$F$53=$F26)*(O$38:O$53)) -> 876019.8583 | P26: =SUMPRODUCT(($F$38:$F$53=$F26)*(P$38:P$53)) -> 333783.4845 | Q26: =SUMPRODUCT(($F$38:$F$53=$F26)*(Q$38:Q$53)) -> 0 | R26: =SUMPRODUCT(($F$38:$F$53=$F26)*(R$38:R$53)) -> 0 | S26: =SUMPRODUCT(($F$38:$F$53=$F26)*(S$38:S$53)) -> 0 | T26: =SUMPRODUCT(($F$38:$F$53=$F26)*(T$38:T$53)) -> 0 | U26: =SUMPRODUCT(($F$38:$F$53=$F26)*(U$38:U$53)) -> 0 | V26: =SUMPRODUCT(($F$38:$F$53=$F26)*(V$38:V$53)) -> 0 | W26: =SUMPRODUCT(($F$38:$F$53=$F26)*(W$38:W$53)) -> 0 | X26: =SUMPRODUCT(($F$38:$F$53=$F26)*(X$38:X$53)) -> 0 | Y26: =SUMPRODUCT(($F$38:$F$53=$F26)*(Y$38:Y$53)) -> 0 | Z26: =SUMPRODUCT(($F$38:$F$53=$F26)*(Z$38:Z$53)) -> 0 | AA26: =SUMPRODUCT(($F$38:$F$53=$F26)*(AA$38:AA$53)) -> 0 | AC26: =SUMPRODUCT($H$7:$AA$7*$H26:$AA26) -> 0
B27: =Hist_vol!B26 -> Connections | C27: =Hist_vol!C26 -> EG1 | D27: =Hist_vol!D26 -> Embedded generation | E27: =Hist_vol!E26 -> Simple connection LV | F27: Embedded generation Simple connection LV | H27: =SUMPRODUCT(($F$38:$F$53=$F27)*(H$38:H$53)) -> 549466.5443 | I27: =SUMPRODUCT(($F$38:$F$53=$F27)*(I$38:I$53)) -> 534712.9448 | J27: =SUMPRODUCT(($F$38:$F$53=$F27)*(J$38:J$53)) -> 0 | K27: =SUMPRODUCT(($F$38:$F$53=$F27)*(K$38:K$53)) -> 0 | L27: =SUMPRODUCT(($F$38:$F$53=$F27)*(L$38:L$53)) -> 0 | M27: =SUMPRODUCT(($F$38:$F$53=$F27)*(M$38:M$53)) -> 0 | N27: =SUMPRODUCT(($F$38:$F$53=$F27)*(N$38:N$53)) -> 0 | O27: =SUMPRODUCT(($F$38:$F$53=$F27)*(O$38:O$53)) -> 0 | P27: =SUMPRODUCT(($F$38:$F$53=$F27)*(P$38:P$53)) -> 0 | Q27: =SUMPRODUCT(($F$38:$F$53=$F27)*(Q$38:Q$53)) -> 0 | R27: =SUMPRODUCT(($F$38:$F$53=$F27)*(R$38:R$53)) -> 0 | S27: =SUMPRODUCT(($F$38:$F$53=$F27)*(S$38:S$53)) -> 0 | T27: =SUMPRODUCT(($F$38:$F$53=$F27)*(T$38:T$53)) -> 0 | U27: =SUMPRODUCT(($F$38:$F$53=$F27)*(U$38:U$53)) -> 0 | V27: =SUMPRODUCT(($F$38:$F$53=$F27)*(V$38:V$53)) -> 1038.677471 | W27: =SUMPRODUCT(($F$38:$F$53=$F27)*(W$38:W$53)) -> 1038.576581 | X27: =SUMPRODUCT(($F$38:$F$53=$F27)*(X$38:X$53)) -> 3115.720763 | Y27: =SUMPRODUCT(($F$38:$F$53=$F27)*(Y$38:Y$53)) -> 7789.111307 | Z27: =SUMPRODUCT(($F$38:$F$53=$F27)*(Z$38:Z$53)) -> 23368.02561 | AA27: =SUMPRODUCT(($F$38:$F$53=$F27)*(AA$38:AA$53)) -> 23369.49477 | AC27: =SUMPRODUCT($H$7:$AA$7*$H27:$AA27) -> 58680.92904
B28: =Hist_vol!B27 -> Connections | C28: =Hist_vol!C27 -> EG2 | D28: =Hist_vol!D27 -> Embedded generation | E28: =Hist_vol!E27 -> Complex connection HV (small capacity) | F28: Embedded generation Complex connection HV (small capacity) | H28: =SUMPRODUCT(($F$38:$F$53=$F28)*(H$38:H$53)) -> 130136.8131 | I28: =SUMPRODUCT(($F$38:$F$53=$F28)*(I$38:I$53)) -> 126642.5396 | J28: =SUMPRODUCT(($F$38:$F$53=$F28)*(J$38:J$53)) -> 0 | K28: =SUMPRODUCT(($F$38:$F$53=$F28)*(K$38:K$53)) -> 0 | L28: =SUMPRODUCT(($F$38:$F$53=$F28)*(L$38:L$53)) -> 0 | M28: =SUMPRODUCT(($F$38:$F$53=$F28)*(M$38:M$53)) -> 0 | N28: =SUMPRODUCT(($F$38:$F$53=$F28)*(N$38:N$53)) -> 0 | O28: =SUMPRODUCT(($F$38:$F$53=$F28)*(O$38:O$53)) -> 0 | P28: =SUMPRODUCT(($F$38:$F$53=$F28)*(P$38:P$53)) -> 3670.558621 | Q28: =SUMPRODUCT(($F$38:$F$53=$F28)*(Q$38:Q$53)) -> 16505.02078 | R28: =SUMPRODUCT(($F$38:$F$53=$F28)*(R$38:R$53)) -> 221165.9342 | S28: =SUMPRODUCT(($F$38:$F$53=$F28)*(S$38:S$53)) -> 4890726.544 | T28: =SUMPRODUCT(($F$38:$F$53=$F28)*(T$38:T$53)) -> 2112819.2 | U28: =SUMPRODUCT(($F$38:$F$53=$F28)*(U$38:U$53)) -> 0 | V28: =SUMPRODUCT(($F$38:$F$53=$F28)*(V$38:V$53)) -> 0 | W28: =SUMPRODUCT(($F$38:$F$53=$F28)*(W$38:W$53)) -> 0 | X28: =SUMPRODUCT(($F$38:$F$53=$F28)*(X$38:X$53)) -> 0 | Y28: =SUMPRODUCT(($F$38:$F$53=$F28)*(Y$38:Y$53)) -> 0 | Z28: =SUMPRODUCT(($F$38:$F$53=$F28)*(Z$38:Z$53)) -> 0 | AA28: =SUMPRODUCT(($F$38:$F$53=$F28)*(AA$38:AA$53)) -> 0 | AC28: =SUMPRODUCT($H$7:$AA$7*$H28:$AA28) -> 0
B29: =Hist_vol!B28 -> Connections | C29: =Hist_vol!C28 -> EG3 | D29: =Hist_vol!D28 -> Embedded generation | E29: =Hist_vol!E28 -> Complex connection HV (large capacity) | F29: Embedded generation Complex connection HV (large capacity) | H29: =SUMPRODUCT(($F$38:$F$53=$F29)*(H$38:H$53)) -> 0 | I29: =SUMPRODUCT(($F$38:$F$53=$F29)*(I$38:I$53)) -> 112571.1463 | J29: =SUMPRODUCT(($F$38:$F$53=$F29)*(J$38:J$53)) -> 110274.6503 | K29: =SUMPRODUCT(($F$38:$F$53=$F29)*(K$38:K$53)) -> 0 | L29: =SUMPRODUCT(($F$38:$F$53=$F29)*(L$38:L$53)) -> 0 | M29: =SUMPRODUCT(($F$38:$F$53=$F29)*(M$38:M$53)) -> 0 | N29: =SUMPRODUCT(($F$38:$F$53=$F29)*(N$38:N$53)) -> 0 | O29: =SUMPRODUCT(($F$38:$F$53=$F29)*(O$38:O$53)) -> 0 | P29: =SUMPRODUCT(($F$38:$F$53=$F29)*(P$38:P$53)) -> 0 | Q29: =SUMPRODUCT(($F$38:$F$53=$F29)*(Q$38:Q$53)) -> 0 | R29: =SUMPRODUCT(($F$38:$F$53=$F29)*(R$38:R$53)) -> 0 | S29: =SUMPRODUCT(($F$38:$F$53=$F29)*(S$38:S$53)) -> 0 | T29: =SUMPRODUCT(($F$38:$F$53=$F29)*(T$38:T$53)) -> 0 | U29: =SUMPRODUCT(($F$38:$F$53=$F29)*(U$38:U$53)) -> 0 | V29: =SUMPRODUCT(($F$38:$F$53=$F29)*(V$38:V$53)) -> 103784.8317 | W29: =SUMPRODUCT(($F$38:$F$53=$F29)*(W$38:W$53)) -> 259455.7302 | X29: =SUMPRODUCT(($F$38:$F$53=$F29)*(X$38:X$53)) -> 778390.231 | Y29: =SUMPRODUCT(($F$38:$F$53=$F29)*(Y$38:Y$53)) -> 778439.1688 | Z29: =SUMPRODUCT(($F$38:$F$53=$F29)*(Z$38:Z$53)) -> 778439.1688 | AA29: =SUMPRODUCT(($F$38:$F$53=$F29)*(AA$38:AA$53)) -> 778439.1688 | AC29: =SUMPRODUCT($H$7:$AA$7*$H29:$AA29) -> 3373163.468
B30: ='Grid connected batteries'!B16 -> Connections | C30: Grid connected Batteries | D30: Grid connected Batteries | F30: =D30 -> Grid connected Batteries | H30: 0 | I30: 0 | J30: 0 | K30: 0 | L30: 0 | M30: 0 | N30: 0 | O30: 0 | P30: 0 | Q30: 0 | R30: 0 | S30: 0 | T30: 0 | U30: 0 | V30: 0 | W30: ='Grid connected batteries'!E16 -> 5296592.788 | X30: ='Grid connected batteries'!F16 -> 5205558.138 | Y30: ='Grid connected batteries'!G16 -> 6295788.595 | Z30: ='Grid connected batteries'!H16 -> 7238304.047 | AA30: ='Grid connected batteries'!I16 -> 6659987.674 | AC30: =SUMPRODUCT($H$7:$AA$7*$H30:$AA30) -> 30696231.24
B31: Connections | C31: Data Centres | D31: Data Centres | F31: =D31 -> Data Centres | H31: 0 | I31: 0 | J31: 0 | K31: 0 | L31: 0 | M31: 0 | N31: 0 | O31: 0 | P31: 0 | Q31: 0 | R31: 0 | S31: 0 | T31: 0 | U31: 0 | V31: 0 | W31: ='Data Centres'!E16 -> 10994844.89 | X31: ='Data Centres'!F16 -> 26187595.01 | Y31: ='Data Centres'!G16 -> 35277124.86 | Z31: ='Data Centres'!H16 -> 17898181.23 | AA31: ='Data Centres'!I16 -> 25557100.81 | AC31: =SUMPRODUCT($H$7:$AA$7*$H31:$AA31) -> 115914846.8
B32: Total | H32: =SUM(H16:H31) -> 53296549.28 | I32: 49349604.68 | J32: 53105784.31 | K32: 68377453.55 | L32: 72145618.11 | M32: 67954512.31 | N32: 59141549.41 | O32: 53308008.53 | P32: 53045908.64 | Q32: 68212223.84 | R32: 52839334.65 | S32: 71088379.06 | T32: 109219194 | U32: 103133566.5 | V32: 58449438.81 | W32: 82196413.47 | X32: 99552616.48 | Y32: 111301738.9 | Z32: 97110180.48 | AA32: 104363600.9 | AC32: =SUM(AC16:AC31) -> 494524550.2
B35: =Hist_vol!B$13 -> Category | C35: =Hist_vol!C$13 -> Type | D35: =Hist_vol!D$13 -> RIN category | E35: =Hist_vol!E$13 -> Description | G35: Unit rate | H35: =Assumptions!G$24 -> 2011/12 | I35: =Assumptions!H$24 -> 2012/13 | J35: =Assumptions!I$24 -> 2013/14 | K35: =Assumptions!J$24 -> 2014/15 | L35: =Assumptions!K$24 -> 2015/16 | M35: =Assumptions!L$24 -> 2016/17 | N35: =Assumptions!M$24 -> 2017/18 | O35: =Assumptions!N$24 -> 2018/19 | P35: =Assumptions!O$24 -> 2019/20 | Q35: =Assumptions!P$24 -> 2020/21 | R35: =Assumptions!Q$24 -> 2021/22 | S35: =Assumptions!R$24 -> 2022/23 | T35: =Assumptions!S$24 -> 2023/24 | U35: =Assumptions!T$24 -> 2024/25 | V35: =Assumptions!U$24 -> 2025/26 | W35: =Assumptions!V$24 -> 2026/27 | X35: =Assumptions!W$24 -> 2027/28 | Y35: =Assumptions!X$24 -> 2028/29 | Z35: =Assumptions!Y$24 -> 2029/30 | AA35: =Assumptions!Z$24 -> 2030/31 | AC35: 2026-31 Total
B37: Forecast spend from trend (June 2026 $)
B38: =Hist_vol!B15 -> Connections | C38: =Hist_vol!C15 -> R1 | D38: =Hist_vol!D15 -> Residential | E38: =Hist_vol!E15 -> Simple connection LV | F38: =D38&" "&E38 -> Residential Simple connection LV | G38: =AVERAGE(Unit_rates!Q15:T15) -> 4540.681364 | H38: =IF(H$8, $G38*Forecast_vol!H16,Hist_expenditure!G15*Assumptions!G$29) -> 0 | I38: =IF(I$8, $G38*Forecast_vol!I16,Hist_expenditure!H15*Assumptions!H$29) -> 0 | J38: =IF(J$8, $G38*Forecast_vol!J16,Hist_expenditure!I15*Assumptions!I$29) -> 0 | K38: =IF(K$8, $G38*Forecast_vol!K16,Hist_expenditure!J15*Assumptions!J$29) -> 0 | L38: =IF(L$8, $G38*Forecast_vol!L16,Hist_expenditure!K15*Assumptions!K$29) -> 6083521.706 | M38: =IF(M$8, $G38*Forecast_vol!M16,Hist_expenditure!L15*Assumptions!L$29) -> 13336258.36 | N38: =IF(N$8, $G38*Forecast_vol!N16,Hist_expenditure!M15*Assumptions!M$29) -> 18371165.39 | O38: =IF(O$8, $G38*Forecast_vol!O16,Hist_expenditure!N15*Assumptions!N$29) -> 18765879.18 | P38: =IF(P$8, $G38*Forecast_vol!P16,Hist_expenditure!O15*Assumptions!O$29) -> 14648868.53 | Q38: =IF(Q$8, $G38*Forecast_vol!Q16,Hist_expenditure!P15*Assumptions!P$29) -> 14769183.64 | R38: =IF(R$8, $G38*Forecast_vol!R16,Hist_expenditure!Q15*Assumptions!Q$29) -> 16159555.03 | S38: =IF(S$8, $G38*Forecast_vol!S16,Hist_expenditure!R15*Assumptions!R$29) -> 22655827.59 | T38: =IF(T$8, $G38*Forecast_vol!T16,Hist_expenditure!S15*Assumptions!S$29) -> 21056607.38 | U38: =IF(U$8, $G38*Forecast_vol!U16,Hist_expenditure!T15*Assumptions!T$29) -> 26485356.93 | V38: =IF(V$8, $G38*Forecast_vol!V16,Hist_expenditure!U15*Assumptions!U$29) -> 17521042.08 | W38: =IF(W$8, $G38*Forecast_vol!W16,Hist_expenditure!V15*Assumptions!V$29) -> 20082840.24 | X38: =IF(X$8, $G38*Forecast_vol!X16,Hist_expenditure!W15*Assumptions!W$29) -> 19558846.18 | Y38: =IF(Y$8, $G38*Forecast_vol!Y16,Hist_expenditure!X15*Assumptions!X$29) -> 18997739.01 | Z38: =IF(Z$8, $G38*Forecast_vol!Z16,Hist_expenditure!Y15*Assumptions!Y$29) -> 19211545.41 | AA38: =IF(AA$8, $G38*Forecast_vol!AA16,Hist_expenditure!Z15*Assumptions!Z$29) -> 19887035.65 | AC38: =SUMPRODUCT($H$7:$AA$7*$H38:$AA38) -> 97738006.48
B39: =Hist_vol!B16 -> Connections | C39: =Hist_vol!C16 -> R2 | D39: =Hist_vol!D16 -> Residential | E39: =Hist_vol!E16 -> Complex connection LV | F39: =D39&" "&E39 -> Residential Complex connection LV | G39: =AVERAGE(Unit_rates!Q16:T16) -> 0 | H39: =IF(H$8, $G39*Forecast_vol!H17,Hist_expenditure!G16*Assumptions!G$29) -> 0 | I39: =IF(I$8, $G39*Forecast_vol!I17,Hist_expenditure!H16*Assumptions!H$29) -> 0 | J39: =IF(J$8, $G39*Forecast_vol!J17,Hist_expenditure!I16*Assumptions!I$29) -> 0 | K39: =IF(K$8, $G39*Forecast_vol!K17,Hist_expenditure!J16*Assumptions!J$29) -> 0 | L39: =IF(L$8, $G39*Forecast_vol!L17,Hist_expenditure!K16*Assumptions!K$29) -> 0 | M39: =IF(M$8, $G39*Forecast_vol!M17,Hist_expenditure!L16*Assumptions!L$29) -> 0 | N39: =IF(N$8, $G39*Forecast_vol!N17,Hist_expenditure!M16*Assumptions!M$29) -> 0 | O39: =IF(O$8, $G39*Forecast_vol!O17,Hist_expenditure!N16*Assumptions!N$29) -> 0 | P39: =IF(P$8, $G39*Forecast_vol!P17,Hist_expenditure!O16*Assumptions!O$29) -> 0 | Q39: =IF(Q$8, $G39*Forecast_vol!Q17,Hist_expenditure!P16*Assumptions!P$29) -> 0 | R39: =IF(R$8, $G39*Forecast_vol!R17,Hist_expenditure!Q16*Assumptions!Q$29) -> 0 | S39: =IF(S$8, $G39*Forecast_vol!S17,Hist_expenditure!R16*Assumptions!R$29) -> 0 | T39: =IF(T$8, $G39*Forecast_vol!T17,Hist_expenditure!S16*Assumptions!S$29) -> 0 | U39: =IF(U$8, $G39*Forecast_vol!U17,Hist_expenditure!T16*Assumptions!T$29) -> 0 | V39: =IF(V$8, $G39*Forecast_vol!V17,Hist_expenditure!U16*Assumptions!U$29) -> 0 | W39: =IF(W$8, $G39*Forecast_vol!W17,Hist_expenditure!V16*Assumptions!V$29) -> 0 | X39: =IF(X$8, $G39*Forecast_vol!X17,Hist_expenditure!W16*Assumptions!W$29) -> 0 | Y39: =IF(Y$8, $G39*Forecast_vol!Y17,Hist_expenditure!X16*Assumptions!X$29) -> 0 | Z39: =IF(Z$8, $G39*Forecast_vol!Z17,Hist_expenditure!Y16*Assumptions!Y$29) -> 0 | AA39: =IF(AA$8, $G39*Forecast_vol!AA17,Hist_expenditure!Z16*Assumptions!Z$29) -> 0 | AC39: =SUMPRODUCT($H$7:$AA$7*$H39:$AA39) -> 0
B40: =Hist_vol!B17 -> Connections | C40: =Hist_vol!C17 -> R3 | D40: =Hist_vol!D17 -> Residential | E40: =Hist_vol!E17 -> Complex connection HV | F40: Residential Complex connection HV | G40: =AVERAGE(Unit_rates!Q17:T17) -> 0 | H40: =IF(H$8, $G40*Forecast_vol!H18,Hist_expenditure!G17*Assumptions!G$29) -> 0 | I40: =IF(I$8, $G40*Forecast_vol!I18,Hist_expenditure!H17*Assumptions!H$29) -> 0 | J40: =IF(J$8, $G40*Forecast_vol!J18,Hist_expenditure!I17*Assumptions!I$29) -> 0 | K40: =IF(K$8, $G40*Forecast_vol!K18,Hist_expenditure!J17*Assumptions!J$29) -> 0 | L40: =IF(L$8, $G40*Forecast_vol!L18,Hist_expenditure!K17*Assumptions!K$29) -> 0 | M40: =IF(M$8, $G40*Forecast_vol!M18,Hist_expenditure!L17*Assumptions!L$29) -> 0 | N40: =IF(N$8, $G40*Forecast_vol!N18,Hist_expenditure!M17*Assumptions!M$29) -> 0 | O40: =IF(O$8, $G40*Forecast_vol!O18,Hist_expenditure!N17*Assumptions!N$29) -> 0 | P40: =IF(P$8, $G40*Forecast_vol!P18,Hist_expenditure!O17*Assumptions!O$29) -> 0 | Q40: =IF(Q$8, $G40*Forecast_vol!Q18,Hist_expenditure!P17*Assumptions!P$29) -> 0 | R40: =IF(R$8, $G40*Forecast_vol!R18,Hist_expenditure!Q17*Assumptions!Q$29) -> 0 | S40: =IF(S$8, $G40*Forecast_vol!S18,Hist_expenditure!R17*Assumptions!R$29) -> 0 | T40: =IF(T$8, $G40*Forecast_vol!T18,Hist_expenditure!S17*Assumptions!S$29) -> 0 | U40: =IF(U$8, $G40*Forecast_vol!U18,Hist_expenditure!T17*Assumptions!T$29) -> 0 | V40: =IF(V$8, $G40*Forecast_vol!V18,Hist_expenditure!U17*Assumptions!U$29) -> 0 | W40: =IF(W$8, $G40*Forecast_vol!W18,Hist_expenditure!V17*Assumptions!V$29) -> 0 | X40: =IF(X$8, $G40*Forecast_vol!X18,Hist_expenditure!W17*Assumptions!W$29) -> 0 | Y40: =IF(Y$8, $G40*Forecast_vol!Y18,Hist_expenditure!X17*Assumptions!X$29) -> 0 | Z40: =IF(Z$8, $G40*Forecast_vol!Z18,Hist_expenditure!Y17*Assumptions!Y$29) -> 0 | AA40: =IF(AA$8, $G40*Forecast_vol!AA18,Hist_expenditure!Z17*Assumptions!Z$29) -> 0 | AC40: =SUMPRODUCT($H$7:$AA$7*$H40:$AA40) -> 0
B41: =Hist_vol!B18 -> Connections | C41: =Hist_vol!C18 -> CI1 | D41: =Hist_vol!D18 -> Commercial/Industrial | E41: =Hist_vol!E18 -> Simple connection LV | F41: Commercial/Industrial Simple connection LV | G41: =AVERAGE(Unit_rates!Q18:T18) -> 13539.77673 | H41: =IF(H$8, $G41*Forecast_vol!H19,Hist_expenditure!G18*Assumptions!G$29) -> 5107726.041 | I41: =IF(I$8, $G41*Forecast_vol!I19,Hist_expenditure!H18*Assumptions!H$29) -> 5248222.328 | J41: =IF(J$8, $G41*Forecast_vol!J19,Hist_expenditure!I18*Assumptions!I$29) -> 5114171.565 | K41: =IF(K$8, $G41*Forecast_vol!K19,Hist_expenditure!J18*Assumptions!J$29) -> 5172837.157 | L41: =IF(L$8, $G41*Forecast_vol!L19,Hist_expenditure!K18*Assumptions!K$29) -> 2703391.731 | M41: =IF(M$8, $G41*Forecast_vol!M19,Hist_expenditure!L18*Assumptions!L$29) -> 2675255.028 | N41: =IF(N$8, $G41*Forecast_vol!N19,Hist_expenditure!M18*Assumptions!M$29) -> 3614938.839 | O41: =IF(O$8, $G41*Forecast_vol!O19,Hist_expenditure!N18*Assumptions!N$29) -> 4425043.291 | P41: =IF(P$8, $G41*Forecast_vol!P19,Hist_expenditure!O18*Assumptions!O$29) -> 4898062.088 | Q41: =IF(Q$8, $G41*Forecast_vol!Q19,Hist_expenditure!P18*Assumptions!P$29) -> 6817803.622 | R41: =IF(R$8, $G41*Forecast_vol!R19,Hist_expenditure!Q18*Assumptions!Q$29) -> 6132357.85 | S41: =IF(S$8, $G41*Forecast_vol!S19,Hist_expenditure!R18*Assumptions!R$29) -> 5970822.215 | T41: =IF(T$8, $G41*Forecast_vol!T19,Hist_expenditure!S18*Assumptions!S$29) -> 7946626.135 | U41: =IF(U$8, $G41*Forecast_vol!U19,Hist_expenditure!T18*Assumptions!T$29) -> 8420771.845 | V41: =IF(V$8, $G41*Forecast_vol!V19,Hist_expenditure!U18*Assumptions!U$29) -> 5251822.813 | W41: =IF(W$8, $G41*Forecast_vol!W19,Hist_expenditure!V18*Assumptions!V$29) -> 5846849.523 | X41: =IF(X$8, $G41*Forecast_vol!X19,Hist_expenditure!W18*Assumptions!W$29) -> 6178272.59 | Y41: =IF(Y$8, $G41*Forecast_vol!Y19,Hist_expenditure!X18*Assumptions!X$29) -> 6492216.454 | Z41: =IF(Z$8, $G41*Forecast_vol!Z19,Hist_expenditure!Y18*Assumptions!Y$29) -> 6769389.952 | AA41: =IF(AA$8, $G41*Forecast_vol!AA19,Hist_expenditure!Z18*Assumptions!Z$29) -> 6680241.839 | AC41: =SUMPRODUCT($H$7:$AA$7*$H41:$AA41) -> 31966970.36
B42: =Hist_vol!B19 -> Connections | C42: =Hist_vol!C19 -> CI2 | D42: =Hist_vol!D19 -> Commercial/Industrial | E42: =Hist_vol!E19 -> Complex connection HV (customer connected at LV, minor HV works) | F42: Commercial/Industrial Complex connection HV (customer connected at LV, minor HV works) | G42: =AVERAGE(Unit_rates!Q19:T19) -> 29829.2169 | H42: =IF(H$8, $G42*Forecast_vol!H20,Hist_expenditure!G19*Assumptions!G$29) -> 26026838.46 | I42: =IF(I$8, $G42*Forecast_vol!I20,Hist_expenditure!H19*Assumptions!H$29) -> 24934181.04 | J42: =IF(J$8, $G42*Forecast_vol!J20,Hist_expenditure!I19*Assumptions!I$29) -> 25933658.16 | K42: =IF(K$8, $G42*Forecast_vol!K20,Hist_expenditure!J19*Assumptions!J$29) -> 27436593.77 | L42: =IF(L$8, $G42*Forecast_vol!L20,Hist_expenditure!K19*Assumptions!K$29) -> 28294324.5 | M42: =IF(M$8, $G42*Forecast_vol!M20,Hist_expenditure!L19*Assumptions!L$29) -> 25973402.42 | N42: =IF(N$8, $G42*Forecast_vol!N20,Hist_expenditure!M19*Assumptions!M$29) -> 17833013.25 | O42: =IF(O$8, $G42*Forecast_vol!O20,Hist_expenditure!N19*Assumptions!N$29) -> 13840852.29 | P42: =IF(P$8, $G42*Forecast_vol!P20,Hist_expenditure!O19*Assumptions!O$29) -> 13571528.9 | Q42: =IF(Q$8, $G42*Forecast_vol!Q20,Hist_expenditure!P19*Assumptions!P$29) -> 17901186.27 | R42: =IF(R$8, $G42*Forecast_vol!R20,Hist_expenditure!Q19*Assumptions!Q$29) -> 14123827.02 | S42: =IF(S$8, $G42*Forecast_vol!S20,Hist_expenditure!R19*Assumptions!R$29) -> 18643233.68 | T42: =IF(T$8, $G42*Forecast_vol!T20,Hist_expenditure!S19*Assumptions!S$29) -> 19648481.43 | U42: =IF(U$8, $G42*Forecast_vol!U20,Hist_expenditure!T19*Assumptions!T$29) -> 44230919.98 | V42: =IF(V$8, $G42*Forecast_vol!V20,Hist_expenditure!U19*Assumptions!U$29) -> 24763207.5 | W42: =IF(W$8, $G42*Forecast_vol!W20,Hist_expenditure!V19*Assumptions!V$29) -> 27568856.2 | X42: =IF(X$8, $G42*Forecast_vol!X20,Hist_expenditure!W19*Assumptions!W$29) -> 29131570.42 | Y42: =IF(Y$8, $G42*Forecast_vol!Y20,Hist_expenditure!X19*Assumptions!X$29) -> 30611867.32 | Z42: =IF(Z$8, $G42*Forecast_vol!Z20,Hist_expenditure!Y19*Assumptions!Y$29) -> 31918785.91 | AA42: =IF(AA$8, $G42*Forecast_vol!AA20,Hist_expenditure!Z19*Assumptions!Z$29) -> 31498437.91 | AC42: =SUMPRODUCT($H$7:$AA$7*$H42:$AA42) -> 150729517.8
B43: =Hist_vol!B20 -> Connections | C43: =Hist_vol!C20 -> CI3 | D43: =Hist_vol!D20 -> Commercial/Industrial | E43: =Hist_vol!E20 -> Complex connection HV (customer connected at LV, upstream asset works) | F43: Commercial/Industrial Complex connection HV (customer connected at LV, upstream asset works) | G43: =AVERAGE(Unit_rates!Q20:T20) -> 309307.438 | H43: =IF(H$8, $G43*Forecast_vol!H21,Hist_expenditure!G20*Assumptions!G$29) -> 3309446.395 | I43: =IF(I$8, $G43*Forecast_vol!I21,Hist_expenditure!H20*Assumptions!H$29) -> 1255775.462 | J43: =IF(J$8, $G43*Forecast_vol!J21,Hist_expenditure!I20*Assumptions!I$29) -> 1379339.091 | K43: =IF(K$8, $G43*Forecast_vol!K21,Hist_expenditure!J20*Assumptions!J$29) -> 6791402.544 | L43: =IF(L$8, $G43*Forecast_vol!L21,Hist_expenditure!K20*Assumptions!K$29) -> 8428907.474 | M43: =IF(M$8, $G43*Forecast_vol!M21,Hist_expenditure!L20*Assumptions!L$29) -> 3825741.839 | N43: =IF(N$8, $G43*Forecast_vol!N21,Hist_expenditure!M20*Assumptions!M$29) -> 1519588.849 | O43: =IF(O$8, $G43*Forecast_vol!O21,Hist_expenditure!N20*Assumptions!N$29) -> 1362633.397 | P43: =IF(P$8, $G43*Forecast_vol!P21,Hist_expenditure!O20*Assumptions!O$29) -> 1018274.189 | Q43: =IF(Q$8, $G43*Forecast_vol!Q21,Hist_expenditure!P20*Assumptions!P$29) -> 0 | R43: =IF(R$8, $G43*Forecast_vol!R21,Hist_expenditure!Q20*Assumptions!Q$29) -> 2065146.456 | S43: =IF(S$8, $G43*Forecast_vol!S21,Hist_expenditure!R20*Assumptions!R$29) -> 486293.5548 | T43: =IF(T$8, $G43*Forecast_vol!T21,Hist_expenditure!S20*Assumptions!S$29) -> 6233143.114 | U43: =IF(U$8, $G43*Forecast_vol!U21,Hist_expenditure!T20*Assumptions!T$29) -> 1878143.637 | V43: =IF(V$8, $G43*Forecast_vol!V21,Hist_expenditure!U20*Assumptions!U$29) -> 2492976.494 | W43: =IF(W$8, $G43*Forecast_vol!W21,Hist_expenditure!V20*Assumptions!V$29) -> 2775428.446 | X43: =IF(X$8, $G43*Forecast_vol!X21,Hist_expenditure!W20*Assumptions!W$29) -> 2932750.95 | Y43: =IF(Y$8, $G43*Forecast_vol!Y21,Hist_expenditure!X20*Assumptions!X$29) -> 3081776.288 | Z43: =IF(Z$8, $G43*Forecast_vol!Z21,Hist_expenditure!Y20*Assumptions!Y$29) -> 3213347.181 | AA43: =IF(AA$8, $G43*Forecast_vol!AA21,Hist_expenditure!Z20*Assumptions!Z$29) -> 3171029.655 | AC43: =SUMPRODUCT($H$7:$AA$7*$H43:$AA43) -> 15174332.52
B44: =Hist_vol!B21 -> Connections | C44: =Hist_vol!C21 -> CI4 | D44: =Hist_vol!D21 -> Commercial/Industrial | E44: =Hist_vol!E21 -> Complex connection HV (customer connected at HV) | F44: Commercial/Industrial Complex connection HV (customer connected at HV) | G44: =AVERAGE(Unit_rates!Q21:T21) -> 215794.2671 | H44: =IF(H$8, $G44*Forecast_vol!H22,Hist_expenditure!G21*Assumptions!G$29) -> 1246903.706 | I44: =IF(I$8, $G44*Forecast_vol!I22,Hist_expenditure!H21*Assumptions!H$29) -> 1324348.175 | J44: =IF(J$8, $G44*Forecast_vol!J22,Hist_expenditure!I21*Assumptions!I$29) -> 1938636.486 | K44: =IF(K$8, $G44*Forecast_vol!K22,Hist_expenditure!J21*Assumptions!J$29) -> 8073416.657 | L44: =IF(L$8, $G44*Forecast_vol!L22,Hist_expenditure!K21*Assumptions!K$29) -> 13242788.56 | M44: =IF(M$8, $G44*Forecast_vol!M22,Hist_expenditure!L21*Assumptions!L$29) -> 15441701.34 | N44: =IF(N$8, $G44*Forecast_vol!N22,Hist_expenditure!M21*Assumptions!M$29) -> 13933783.73 | O44: =IF(O$8, $G44*Forecast_vol!O22,Hist_expenditure!N21*Assumptions!N$29) -> 11090242.63 | P44: =IF(P$8, $G44*Forecast_vol!P22,Hist_expenditure!O21*Assumptions!O$29) -> 14791993.05 | Q44: =IF(Q$8, $G44*Forecast_vol!Q22,Hist_expenditure!P21*Assumptions!P$29) -> 24189638.34 | R44: =IF(R$8, $G44*Forecast_vol!R22,Hist_expenditure!Q21*Assumptions!Q$29) -> 11320457.44 | S44: =IF(S$8, $G44*Forecast_vol!S22,Hist_expenditure!R21*Assumptions!R$29) -> 14406403.21 | T44: =IF(T$8, $G44*Forecast_vol!T22,Hist_expenditure!S21*Assumptions!S$29) -> 45298994.96 | U44: =IF(U$8, $G44*Forecast_vol!U22,Hist_expenditure!T21*Assumptions!T$29) -> 16851890 | V44: =IF(V$8, $G44*Forecast_vol!V22,Hist_expenditure!U21*Assumptions!U$29) -> 4783000.395 | W44: =IF(W$8, $G44*Forecast_vol!W22,Hist_expenditure!V21*Assumptions!V$29) -> 5324909.954 | X44: =IF(X$8, $G44*Forecast_vol!X22,Hist_expenditure!W21*Assumptions!W$29) -> 5626747.377 | Y44: =IF(Y$8, $G44*Forecast_vol!Y22,Hist_expenditure!X21*Assumptions!X$29) -> 5912665.938 | Z44: =IF(Z$8, $G44*Forecast_vol!Z22,Hist_expenditure!Y21*Assumptions!Y$29) -> 6165096.57 | AA44: =IF(AA$8, $G44*Forecast_vol!AA22,Hist_expenditure!Z21*Assumptions!Z$29) -> 6083906.577 | AC44: =SUMPRODUCT($H$7:$AA$7*$H44:$AA44) -> 29113326.42
B45: =Hist_vol!B22 -> Connections | C45: =Hist_vol!C22 -> CI5 | D45: =Hist_vol!D22 -> Commercial/Industrial | E45: =Hist_vol!E22 -> Complex connection sub-transmission | F45: Commercial/Industrial Complex connection sub-transmission | G45: =AVERAGE(Unit_rates!Q22:T22) -> 26197.16977 | H45: =IF(H$8, $G45*Forecast_vol!H23,Hist_expenditure!G22*Assumptions!G$29) -> 0 | I45: =IF(I$8, $G45*Forecast_vol!I23,Hist_expenditure!H22*Assumptions!H$29) -> 0 | J45: =IF(J$8, $G45*Forecast_vol!J23,Hist_expenditure!I22*Assumptions!I$29) -> 0 | K45: =IF(K$8, $G45*Forecast_vol!K23,Hist_expenditure!J22*Assumptions!J$29) -> 0 | L45: =IF(L$8, $G45*Forecast_vol!L23,Hist_expenditure!K22*Assumptions!K$29) -> 0 | M45: =IF(M$8, $G45*Forecast_vol!M23,Hist_expenditure!L22*Assumptions!L$29) -> 0 | N45: =IF(N$8, $G45*Forecast_vol!N23,Hist_expenditure!M22*Assumptions!M$29) -> 0 | O45: =IF(O$8, $G45*Forecast_vol!O23,Hist_expenditure!N22*Assumptions!N$29) -> 0 | P45: =IF(P$8, $G45*Forecast_vol!P23,Hist_expenditure!O22*Assumptions!O$29) -> 0 | Q45: =IF(Q$8, $G45*Forecast_vol!Q23,Hist_expenditure!P22*Assumptions!P$29) -> 0 | R45: =IF(R$8, $G45*Forecast_vol!R23,Hist_expenditure!Q22*Assumptions!Q$29) -> 7743.662337 | S45: =IF(S$8, $G45*Forecast_vol!S23,Hist_expenditure!R22*Assumptions!R$29) -> 41749.33826 | T45: =IF(T$8, $G45*Forecast_vol!T23,Hist_expenditure!S22*Assumptions!S$29) -> 445228.1313 | U45: =IF(U$8, $G45*Forecast_vol!U23,Hist_expenditure!T22*Assumptions!T$29) -> 371636.2456 | V45: =IF(V$8, $G45*Forecast_vol!V23,Hist_expenditure!U22*Assumptions!U$29) -> 105572.8386 | W45: =IF(W$8, $G45*Forecast_vol!W23,Hist_expenditure!V22*Assumptions!V$29) -> 117534.1444 | X45: =IF(X$8, $G45*Forecast_vol!X23,Hist_expenditure!W22*Assumptions!W$29) -> 124196.4549 | Y45: =IF(Y$8, $G45*Forecast_vol!Y23,Hist_expenditure!X22*Assumptions!X$29) -> 130507.3961 | Z45: =IF(Z$8, $G45*Forecast_vol!Z23,Hist_expenditure!Y22*Assumptions!Y$29) -> 136079.1745 | AA45: =IF(AA$8, $G45*Forecast_vol!AA23,Hist_expenditure!Z22*Assumptions!Z$29) -> 134287.1073 | AC45: =SUMPRODUCT($H$7:$AA$7*$H45:$AA45) -> 642604.2771
B46: =Hist_vol!B23 -> Connections | C46: =Hist_vol!C23 -> S1 | D46: =Hist_vol!D23 -> Subdivision | E46: =Hist_vol!E23 -> Complex connection LV | F46: Subdivision Complex connection LV | G46: =AVERAGE(Unit_rates!Q23:T23) -> 8243.002498 | H46: =IF(H$8, $G46*Forecast_vol!H24,Hist_expenditure!G23*Assumptions!G$29) -> 14578212.83 | I46: =IF(I$8, $G46*Forecast_vol!I24,Hist_expenditure!H23*Assumptions!H$29) -> 13405140.25 | J46: =IF(J$8, $G46*Forecast_vol!J24,Hist_expenditure!I23*Assumptions!I$29) -> 15325770.28 | K46: =IF(K$8, $G46*Forecast_vol!K24,Hist_expenditure!J23*Assumptions!J$29) -> 17756912.94 | L46: =IF(L$8, $G46*Forecast_vol!L24,Hist_expenditure!K23*Assumptions!K$29) -> 11439717.93 | M46: =IF(M$8, $G46*Forecast_vol!M24,Hist_expenditure!L23*Assumptions!L$29) -> 4301768.496 | N46: =IF(N$8, $G46*Forecast_vol!N24,Hist_expenditure!M23*Assumptions!M$29) -> 1655795.21 | O46: =IF(O$8, $G46*Forecast_vol!O24,Hist_expenditure!N23*Assumptions!N$29) -> 1611878.673 | P46: =IF(P$8, $G46*Forecast_vol!P24,Hist_expenditure!O23*Assumptions!O$29) -> 2012560.847 | Q46: =IF(Q$8, $G46*Forecast_vol!Q24,Hist_expenditure!P23*Assumptions!P$29) -> 2233603.7 | R46: =IF(R$8, $G46*Forecast_vol!R24,Hist_expenditure!Q23*Assumptions!Q$29) -> 1400903.075 | S46: =IF(S$8, $G46*Forecast_vol!S24,Hist_expenditure!R23*Assumptions!R$29) -> 1780796.528 | T46: =IF(T$8, $G46*Forecast_vol!T24,Hist_expenditure!S23*Assumptions!S$29) -> 3147329.698 | U46: =IF(U$8, $G46*Forecast_vol!U24,Hist_expenditure!T23*Assumptions!T$29) -> 2895160.23 | V46: =IF(V$8, $G46*Forecast_vol!V24,Hist_expenditure!U23*Assumptions!U$29) -> 1619569.72 | W46: =IF(W$8, $G46*Forecast_vol!W24,Hist_expenditure!V23*Assumptions!V$29) -> 1856371.316 | X46: =IF(X$8, $G46*Forecast_vol!X24,Hist_expenditure!W23*Assumptions!W$29) -> 1807935.561 | Y46: =IF(Y$8, $G46*Forecast_vol!Y24,Hist_expenditure!X23*Assumptions!X$29) -> 1756069.229 | Z46: =IF(Z$8, $G46*Forecast_vol!Z24,Hist_expenditure!Y23*Assumptions!Y$29) -> 1775832.572 | AA46: =IF(AA$8, $G46*Forecast_vol!AA24,Hist_expenditure!Z23*Assumptions!Z$29) -> 1838271.983 | AC46: =SUMPRODUCT($H$7:$AA$7*$H46:$AA46) -> 9034480.66
B47: =Hist_vol!B24 -> Connections | C47: =Hist_vol!C24 -> S2 | D47: =Hist_vol!D24 -> Subdivision | E47: =Hist_vol!E24 -> Complex connection HV (no upstream asset works) | F47: Subdivision Complex connection HV (no upstream asset works) | G47: =AVERAGE(Unit_rates!Q24:T24) -> 17725.10982 | H47: =IF(H$8, $G47*Forecast_vol!H25,Hist_expenditure!G24*Assumptions!G$29) -> 2347818.489 | I47: =IF(I$8, $G47*Forecast_vol!I25,Hist_expenditure!H24*Assumptions!H$29) -> 2408010.797 | J47: =IF(J$8, $G47*Forecast_vol!J25,Hist_expenditure!I24*Assumptions!I$29) -> 3303934.071 | K47: =IF(K$8, $G47*Forecast_vol!K25,Hist_expenditure!J24*Assumptions!J$29) -> 3146290.485 | L47: =IF(L$8, $G47*Forecast_vol!L25,Hist_expenditure!K24*Assumptions!K$29) -> 1952966.215 | M47: =IF(M$8, $G47*Forecast_vol!M25,Hist_expenditure!L24*Assumptions!L$29) -> 2135500.329 | N47: =IF(N$8, $G47*Forecast_vol!N25,Hist_expenditure!M24*Assumptions!M$29) -> 1405372.203 | O47: =IF(O$8, $G47*Forecast_vol!O25,Hist_expenditure!N24*Assumptions!N$29) -> 1335459.212 | P47: =IF(P$8, $G47*Forecast_vol!P25,Hist_expenditure!O24*Assumptions!O$29) -> 1767166.992 | Q47: =IF(Q$8, $G47*Forecast_vol!Q25,Hist_expenditure!P24*Assumptions!P$29) -> 2284303.246 | R47: =IF(R$8, $G47*Forecast_vol!R25,Hist_expenditure!Q24*Assumptions!Q$29) -> 1408178.191 | S47: =IF(S$8, $G47*Forecast_vol!S25,Hist_expenditure!R24*Assumptions!R$29) -> 2212526.396 | T47: =IF(T$8, $G47*Forecast_vol!T25,Hist_expenditure!S24*Assumptions!S$29) -> 3329963.954 | U47: =IF(U$8, $G47*Forecast_vol!U25,Hist_expenditure!T24*Assumptions!T$29) -> 1999687.595 | V47: =IF(V$8, $G47*Forecast_vol!V25,Hist_expenditure!U24*Assumptions!U$29) -> 1807423.468 | W47: =IF(W$8, $G47*Forecast_vol!W25,Hist_expenditure!V24*Assumptions!V$29) -> 2071691.66 | X47: =IF(X$8, $G47*Forecast_vol!X25,Hist_expenditure!W24*Assumptions!W$29) -> 2017637.846 | Y47: =IF(Y$8, $G47*Forecast_vol!Y25,Hist_expenditure!X24*Assumptions!X$29) -> 1959755.542 | Z47: =IF(Z$8, $G47*Forecast_vol!Z25,Hist_expenditure!Y24*Assumptions!Y$29) -> 1981811.234 | AA47: =IF(AA$8, $G47*Forecast_vol!AA25,Hist_expenditure!Z24*Assumptions!Z$29) -> 2051492.987 | AC47: =SUMPRODUCT($H$7:$AA$7*$H47:$AA47) -> 10082389.27
B48: =Hist_vol!B25 -> Connections | C48: =Hist_vol!C25 -> S3 | D48: =Hist_vol!D25 -> Subdivision | E48: =Hist_vol!E25 -> Complex connection HV (with upstream asset works) | F48: Subdivision Complex connection HV (with upstream asset works) | G48: =AVERAGE(Unit_rates!Q25:T25) -> 0 | H48: =IF(H$8, $G48*Forecast_vol!H26,Hist_expenditure!G25*Assumptions!G$29) -> 0 | I48: =IF(I$8, $G48*Forecast_vol!I26,Hist_expenditure!H25*Assumptions!H$29) -> 0 | J48: =IF(J$8, $G48*Forecast_vol!J26,Hist_expenditure!I25*Assumptions!I$29) -> 0 | K48: =IF(K$8, $G48*Forecast_vol!K26,Hist_expenditure!J25*Assumptions!J$29) -> 0 | L48: =IF(L$8, $G48*Forecast_vol!L26,Hist_expenditure!K25*Assumptions!K$29) -> 0 | M48: =IF(M$8, $G48*Forecast_vol!M26,Hist_expenditure!L25*Assumptions!L$29) -> 264884.5002 | N48: =IF(N$8, $G48*Forecast_vol!N26,Hist_expenditure!M25*Assumptions!M$29) -> 807891.9392 | O48: =IF(O$8, $G48*Forecast_vol!O26,Hist_expenditure!N25*Assumptions!N$29) -> 876019.8583 | P48: =IF(P$8, $G48*Forecast_vol!P26,Hist_expenditure!O25*Assumptions!O$29) -> 333783.4845 | Q48: =IF(Q$8, $G48*Forecast_vol!Q26,Hist_expenditure!P25*Assumptions!P$29) -> 0 | R48: =IF(R$8, $G48*Forecast_vol!R26,Hist_expenditure!Q25*Assumptions!Q$29) -> 0 | S48: =IF(S$8, $G48*Forecast_vol!S26,Hist_expenditure!R25*Assumptions!R$29) -> 0 | T48: =IF(T$8, $G48*Forecast_vol!T26,Hist_expenditure!S25*Assumptions!S$29) -> 0 | U48: =IF(U$8, $G48*Forecast_vol!U26,Hist_expenditure!T25*Assumptions!T$29) -> 0 | V48: =IF(V$8, $G48*Forecast_vol!V26,Hist_expenditure!U25*Assumptions!U$29) -> 0 | W48: =IF(W$8, $G48*Forecast_vol!W26,Hist_expenditure!V25*Assumptions!V$29) -> 0 | X48: =IF(X$8, $G48*Forecast_vol!X26,Hist_expenditure!W25*Assumptions!W$29) -> 0 | Y48: =IF(Y$8, $G48*Forecast_vol!Y26,Hist_expenditure!X25*Assumptions!X$29) -> 0 | Z48: =IF(Z$8, $G48*Forecast_vol!Z26,Hist_expenditure!Y25*Assumptions!Y$29) -> 0 | AA48: =IF(AA$8, $G48*Forecast_vol!AA26,Hist_expenditure!Z25*Assumptions!Z$29) -> 0 | AC48: =SUMPRODUCT($H$7:$AA$7*$H48:$AA48) -> 0
B49: =Hist_vol!B26 -> Connections | C49: =Hist_vol!C26 -> EG1 | D49: =Hist_vol!D26 -> Embedded generation | E49: =Hist_vol!E26 -> Simple connection LV | F49: Embedded generation Simple connection LV | G49: =AVERAGE(Unit_rates!Q26:T26) -> 1038.779623 | H49: =IF(H$8, $G49*Forecast_vol!H27,Hist_expenditure!G26*Assumptions!G$29) -> 549466.5443 | I49: =IF(I$8, $G49*Forecast_vol!I27,Hist_expenditure!H26*Assumptions!H$29) -> 534712.9448 | J49: =IF(J$8, $G49*Forecast_vol!J27,Hist_expenditure!I26*Assumptions!I$29) -> 0 | K49: =IF(K$8, $G49*Forecast_vol!K27,Hist_expenditure!J26*Assumptions!J$29) -> 0 | L49: =IF(L$8, $G49*Forecast_vol!L27,Hist_expenditure!K26*Assumptions!K$29) -> 0 | M49: =IF(M$8, $G49*Forecast_vol!M27,Hist_expenditure!L26*Assumptions!L$29) -> 0 | N49: =IF(N$8, $G49*Forecast_vol!N27,Hist_expenditure!M26*Assumptions!M$29) -> 0 | O49: =IF(O$8, $G49*Forecast_vol!O27,Hist_expenditure!N26*Assumptions!N$29) -> 0 | P49: =IF(P$8, $G49*Forecast_vol!P27,Hist_expenditure!O26*Assumptions!O$29) -> 0 | Q49: =IF(Q$8, $G49*Forecast_vol!Q27,Hist_expenditure!P26*Assumptions!P$29) -> 0 | R49: =IF(R$8, $G49*Forecast_vol!R27,Hist_expenditure!Q26*Assumptions!Q$29) -> 0 | S49: =IF(S$8, $G49*Forecast_vol!S27,Hist_expenditure!R26*Assumptions!R$29) -> 0 | T49: =IF(T$8, $G49*Forecast_vol!T27,Hist_expenditure!S26*Assumptions!S$29) -> 0 | U49: =IF(U$8, $G49*Forecast_vol!U27,Hist_expenditure!X26*Assumptions!T$29) -> 0 | V49: =IF(V$8, $G49*Forecast_vol!V27,Hist_expenditure!#REF!*Assumptions!U$29) -> 1038.677471 | W49: =IF(W$8, $G49*Forecast_vol!W27,Hist_expenditure!#REF!*Assumptions!V$29) -> 1038.576581 | X49: =IF(X$8, $G49*Forecast_vol!X27,Hist_expenditure!AA26*Assumptions!W$29) -> 3115.720763 | Y49: =IF(Y$8, $G49*Forecast_vol!Y27,Hist_expenditure!#REF!*Assumptions!X$29) -> 7789.111307 | Z49: =IF(Z$8, $G49*Forecast_vol!Z27,Hist_expenditure!#REF!*Assumptions!Y$29) -> 23368.02561 | AA49: =IF(AA$8, $G49*Forecast_vol!AA27,Hist_expenditure!#REF!*Assumptions!Z$29) -> 23369.49477 | AC49: =SUMPRODUCT($H$7:$AA$7*$H49:$AA49) -> 58680.92904
B50: =Hist_vol!B27 -> Connections | C50: =Hist_vol!C27 -> EG2 | D50: =Hist_vol!D27 -> Embedded generation | E50: =Hist_vol!E27 -> Complex connection HV (small capacity) | F50: Embedded generation Complex connection HV (small capacity) | G50: =AVERAGE(Unit_rates!Q27:T27) -> 0 | H50: =IF(H$8, $G50*Forecast_vol!H28,Hist_expenditure!G27*Assumptions!G$29) -> 130136.8131 | I50: =IF(I$8, $G50*Forecast_vol!I28,Hist_expenditure!H27*Assumptions!H$29) -> 126642.5396 | J50: =IF(J$8, $G50*Forecast_vol!J28,Hist_expenditure!I27*Assumptions!I$29) -> 0 | K50: =IF(K$8, $G50*Forecast_vol!K28,Hist_expenditure!J27*Assumptions!J$29) -> 0 | L50: =IF(L$8, $G50*Forecast_vol!L28,Hist_expenditure!K27*Assumptions!K$29) -> 0 | M50: =IF(M$8, $G50*Forecast_vol!M28,Hist_expenditure!L27*Assumptions!L$29) -> 0 | N50: =IF(N$8, $G50*Forecast_vol!N28,Hist_expenditure!M27*Assumptions!M$29) -> 0 | O50: =IF(O$8, $G50*Forecast_vol!O28,Hist_expenditure!N27*Assumptions!N$29) -> 0 | P50: =IF(P$8, $G50*Forecast_vol!P28,Hist_expenditure!O27*Assumptions!O$29) -> 3670.558621 | Q50: =IF(Q$8, $G50*Forecast_vol!Q28,Hist_expenditure!P27*Assumptions!P$29) -> 16505.02078 | R50: =IF(R$8, $G50*Forecast_vol!R28,Hist_expenditure!Q27*Assumptions!Q$29) -> 221165.9342 | S50: =IF(S$8, $G50*Forecast_vol!S28,Hist_expenditure!R27*Assumptions!R$29) -> 4890726.544 | T50: =IF(T$8, $G50*Forecast_vol!T28,Hist_expenditure!S27*Assumptions!S$29) -> 2112819.2 | U50: =IF(U$8, $G50*Forecast_vol!U28,Hist_expenditure!X27*Assumptions!T$29) -> 0 | V50: =IF(V$8, $G50*Forecast_vol!V28,Hist_expenditure!Y27*Assumptions!U$29) -> 0 | W50: =IF(W$8, $G50*Forecast_vol!W28,Hist_expenditure!Z27*Assumptions!V$29) -> 0 | X50: =IF(X$8, $G50*Forecast_vol!X28,Hist_expenditure!AA27*Assumptions!W$29) -> 0 | Y50: =IF(Y$8, $G50*Forecast_vol!Y28,Hist_expenditure!#REF!*Assumptions!X$29) -> 0 | Z50: =IF(Z$8, $G50*Forecast_vol!Z28,Hist_expenditure!#REF!*Assumptions!Y$29) -> 0 | AA50: =IF(AA$8, $G50*Forecast_vol!AA28,Hist_expenditure!#REF!*Assumptions!Z$29) -> 0 | AC50: =SUMPRODUCT($H$7:$AA$7*$H50:$AA50) -> 0
B51: =Hist_vol!B28 -> Connections | C51: =Hist_vol!C28 -> EG3 | D51: =Hist_vol!D28 -> Embedded generation | E51: =Hist_vol!E28 -> Complex connection HV (large capacity) | F51: Embedded generation Complex connection HV (large capacity) | G51: =AVERAGE(Unit_rates!Q28:T28) -> 6919.008716 | H51: =IF(H$8, $G51*Forecast_vol!H29,Hist_expenditure!G28*Assumptions!G$29) -> 0 | I51: =IF(I$8, $G51*Forecast_vol!I29,Hist_expenditure!H28*Assumptions!H$29) -> 112571.1463 | J51: =IF(J$8, $G51*Forecast_vol!J29,Hist_expenditure!I28*Assumptions!I$29) -> 110274.6503 | K51: =IF(K$8, $G51*Forecast_vol!K29,Hist_expenditure!J28*Assumptions!J$29) -> 0 | L51: =IF(L$8, $G51*Forecast_vol!L29,Hist_expenditure!K28*Assumptions!K$29) -> 0 | M51: =IF(M$8, $G51*Forecast_vol!M29,Hist_expenditure!L28*Assumptions!L$29) -> 0 | N51: =IF(N$8, $G51*Forecast_vol!N29,Hist_expenditure!M28*Assumptions!M$29) -> 0 | O51: =IF(O$8, $G51*Forecast_vol!O29,Hist_expenditure!N28*Assumptions!N$29) -> 0 | P51: =IF(P$8, $G51*Forecast_vol!P29,Hist_expenditure!O28*Assumptions!O$29) -> 0 | Q51: =IF(Q$8, $G51*Forecast_vol!Q29,Hist_expenditure!P28*Assumptions!P$29) -> 0 | R51: =IF(R$8, $G51*Forecast_vol!R29,Hist_expenditure!Q28*Assumptions!Q$29) -> 0 | S51: =IF(S$8, $G51*Forecast_vol!S29,Hist_expenditure!R28*Assumptions!R$29) -> 0 | T51: =IF(T$8, $G51*Forecast_vol!T29,Hist_expenditure!S28*Assumptions!S$29) -> 0 | U51: =IF(U$8, $G51*Forecast_vol!U29,Hist_expenditure!X28*Assumptions!T$29) -> 0 | V51: =IF(V$8, $G51*Forecast_vol!V29,Hist_expenditure!Y28*Assumptions!U$29) -> 103784.8317 | W51: =IF(W$8, $G51*Forecast_vol!W29,Hist_expenditure!Z28*Assumptions!V$29) -> 259455.7302 | X51: =IF(X$8, $G51*Forecast_vol!X29,Hist_expenditure!AA28*Assumptions!W$29) -> 778390.231 | Y51: =IF(Y$8, $G51*Forecast_vol!Y29,Hist_expenditure!#REF!*Assumptions!X$29) -> 778439.1688 | Z51: =IF(Z$8, $G51*Forecast_vol!Z29,Hist_expenditure!#REF!*Assumptions!Y$29) -> 778439.1688 | AA51: =IF(AA$8, $G51*Forecast_vol!AA29,Hist_expenditure!#REF!*Assumptions!Z$29) -> 778439.1688 | AC51: =SUMPRODUCT($H$7:$AA$7*$H51:$AA51) -> 3373163.468
B54: Category | C54: Type | D54: RIN category | E54: Description | U54: =Assumptions!T$24 -> 2024/25 | V54: =Assumptions!U$24 -> 2025/26 | W54: =Assumptions!V$24 -> 2026/27 | X54: =Assumptions!W$24 -> 2027/28 | Y54: =Assumptions!X$24 -> 2028/29 | Z54: =Assumptions!Y$24 -> 2029/30 | AA54: =Assumptions!Z$24 -> 2030/31 | AC54: 2026-31 Total
B56: Gifted Assets | G56: GA as % of gross capex (FY23)
B57: Connections | C57: R1 | D57: Residential | E57: Simple connection LV | F57: ResidentialSimple connection LV | G57: 0 | U57: =U16*$G57 -> 0 | V57: 0 | W57: 0 | X57: 0 | Y57: 0 | Z57: 0 | AA57: 0 | AC57: =SUM(W57:AA57) -> 0
B58: Connections | C58: R2 | D58: Residential | E58: Complex connection LV | F58: ResidentialComplex connection LV | G58: 0 | U58: 0 | V58: 0 | W58: 0 | X58: 0 | Y58: 0 | Z58: 0 | AA58: 0 | AC58: =SUM(W58:AA58) -> 0
B59: Connections | C59: R3 | D59: Residential | E59: Complex connection HV | F59: ResidentialComplex connection HV | G59: 0 | U59: 0 | V59: 0 | W59: 0 | X59: 0 | Y59: 0 | Z59: 0 | AA59: 0 | AC59: 0
B60: Connections | C60: CI1 | D60: Commercial/Industrial | E60: Simple connection LV | F60: Commercial/IndustrialSimple connection LV | G60: 0.01255806438 | U60: 105748.595 | V60: 65952.729 | W60: 73425.11273 | X60: 77587.14495 | Y60: 81529.6722 | Z60: 85010.43484 | AA60: 83890.9071 | AC60: 401443.2718
B61: Connections | C61: CI2 | D61: Commercial/Industrial | E61: Complex connection HV (customer connected at LV, minor HV works) | F61: Commercial/IndustrialComplex connection HV (customer connected at LV, minor HV works) | G61: 0.004021940134 | U61: 177894.1122 | V61: 99596.13809 | W61: 110880.2892 | X61: 117165.4323 | Y61: 123119.0978 | Z61: 128375.4461 | AA61: 126684.8316 | AC61: 606225.097
B62: Connections | C62: CI3 | D62: Commercial/Industrial | E62: Complex connection HV (customer connected at LV, upstream asset works) | F62: Commercial/IndustrialComplex connection HV (customer connected at LV, upstream asset works) | G62: 0 | U62: 0 | V62: 0 | W62: 0 | X62: 0 | Y62: 0 | Z62: 0 | AA62: 0 | AC62: 0
B63: Connections | C63: CI4 | D63: Commercial/Industrial | E63: Complex connection HV (customer connected at HV) | F63: Commercial/IndustrialComplex connection HV (customer connected at HV) | G63: 0.03035958945 | U63: 511616.4619 | V63: 145209.9283 | W63: 161662.0801 | X63: 170825.7403 | Y63: 179506.1105 | Z63: 187169.8008 | AA63: 184704.9059 | AC63: 883868.6376
B64: Connections | C64: CI5 | D64: Commercial/Industrial | E64: Complex connection sub-transmission | F64: Commercial/IndustrialComplex connection sub-transmission | G64: 0 | U64: 0 | V64: 0 | W64: 0 | X64: 0 | Y64: 0 | Z64: 0 | AA64: 0 | AC64: 0
B65: Connections | C65: S1 | D65: Subdivision | E65: Complex connection LV | F65: SubdivisionComplex connection LV | G65: 0.1946931617 | U65: 563667.8988 | V65: 315319.1494 | W65: 361422.8008 | X65: 351992.6904 | Y65: 341894.6702 | Z65: 345742.4581 | AA65: 357898.9843 | AC65: 1758951.604
B66: Connections | C66: S2 | D66: Subdivision | E66: Complex connection HV (no upstream asset works) | F66: SubdivisionComplex connection HV (no upstream asset works) | G66: 0.156702721 | U66: 313356.4872 | V66: 283228.1754 | W66: 324639.7202 | X66: 316169.3404 | Y66: 307099.0259 | Z66: 310555.2129 | AA66: 321474.533 | AC66: 1579937.832
B67: Connections | C67: S3 | D67: Subdivision | E67: Complex connection HV (with upstream asset works) | F67: SubdivisionComplex connection HV (with upstream asset works) | G67: 0 | U67: 0 | V67: 0 | W67: 0 | X67: 0 | Y67: 0 | Z67: 0 | AA67: 0 | AC67: 0
B68: Connections | C68: EG1 | D68: Embedded generation | E68: Simple connection LV | F68: Embedded generationSimple connection LV | G68: 0 | U68: 0 | V68: 0 | W68: 0 | X68: 0 | Y68: 0 | Z68: 0 | AA68: 0 | AC68: 0
B69: Connections | C69: EG2 | D69: Embedded generation | E69: Complex connection HV (small capacity) | F69: Embedded generationComplex connection HV (small capacity) | G69: 0 | U69: 0 | V69: 0 | W69: 0 | X69: 0 | Y69: 0 | Z69: 0 | AA69: 0 | AC69: 0
B70: Connections | C70: EG3 | D70: Embedded generation | E70: Complex connection HV (large capacity) | F70: Embedded generationComplex connection HV (large capacity) | G70: 0 | U70: 0 | V70: 0 | W70: 0 | X70: 0 | Y70: 0 | Z70: 0 | AA70: 0 | AC70: 0
U71: =SUM(U55:U70) -> 1672283.555 | V71: 909306.1202 | W71: =SUM(W55:W70) -> 1032030.003 | X71: 1033740.348 | Y71: 1033148.577 | Z71: 1056853.353 | AA71: 1074654.162 | AC71: 5230426.443

Sheet Forecast_contrib
A1: =Assumptions!$A$1 -> United Energy
A2: =Assumptions!$A$2 -> Connections
A3: Forecast contributions
B7: =Assumptions!B17 -> 2025/6 - 2030/31 reg period | H7: =Assumptions!G17 -> FALSE | I7: =Assumptions!H17 -> FALSE | J7: =Assumptions!I17 -> FALSE | K7: =Assumptions!J17 -> FALSE | L7: =Assumptions!K17 -> FALSE | M7: =Assumptions!L17 -> FALSE | N7: =Assumptions!M17 -> FALSE | O7: =Assumptions!N17 -> FALSE | P7: =Assumptions!O17 -> FALSE | Q7: =Assumptions!P17 -> FALSE | R7: =Assumptions!Q17 -> FALSE | S7: =Assumptions!R17 -> FALSE | T7: =Assumptions!S17 -> FALSE | U7: =Assumptions!T17 -> FALSE | V7: =Assumptions!U17 -> FALSE | W7: =Assumptions!V17 -> TRUE | X7: =Assumptions!W17 -> TRUE | Y7: =Assumptions!X17 -> TRUE | Z7: =Assumptions!Y17 -> TRUE | AA7: =Assumptions!Z17 -> TRUE
B8: =Assumptions!B18 -> Forecast period | H8: =Assumptions!G18 -> FALSE | I8: =Assumptions!H18 -> FALSE | J8: =Assumptions!I18 -> FALSE | K8: =Assumptions!J18 -> FALSE | L8: =Assumptions!K18 -> FALSE | M8: =Assumptions!L18 -> FALSE | N8: =Assumptions!M18 -> FALSE | O8: =Assumptions!N18 -> FALSE | P8: =Assumptions!O18 -> FALSE | Q8: =Assumptions!P18 -> FALSE | R8: =Assumptions!Q18 -> FALSE | S8: =Assumptions!R18 -> FALSE | T8: =Assumptions!S18 -> FALSE | U8: =Assumptions!T18 -> FALSE | V8: =Assumptions!U18 -> TRUE | W8: =Assumptions!V18 -> TRUE | X8: =Assumptions!W18 -> TRUE | Y8: =Assumptions!X18 -> TRUE | Z8: =Assumptions!Y18 -> TRUE | AA8: =Assumptions!Z18 -> TRUE
B9: =Assumptions!B19 -> Fin year end | H9: =Assumptions!G19 -> 2012 | I9: =Assumptions!H19 -> 2013 | J9: =Assumptions!I19 -> 2014 | K9: =Assumptions!J19 -> 2015 | L9: =Assumptions!K19 -> 2016 | M9: =Assumptions!L19 -> 2017 | N9: =Assumptions!M19 -> 2018 | O9: =Assumptions!N19 -> 2019 | P9: =Assumptions!O19 -> 2020 | Q9: =Assumptions!P19 -> 2021 | R9: =Assumptions!Q19 -> 2022 | S9: =Assumptions!R19 -> 2023 | T9: =Assumptions!S19 -> 2024 | U9: =Assumptions!T19 -> 2025 | V9: =Assumptions!U19 -> 2026 | W9: =Assumptions!V19 -> 2027 | X9: =Assumptions!W19 -> 2028 | Y9: =Assumptions!X19 -> 2029 | Z9: =Assumptions!Y19 -> 2030 | AA9: =Assumptions!Z19 -> 2031
B10: =Assumptions!B20 -> Basis | H10: =Assumptions!G20 -> Actual | I10: =Assumptions!H20 -> Actual | J10: =Assumptions!I20 -> Actual | K10: =Assumptions!J20 -> Actual | L10: =Assumptions!K20 -> Actual | M10: =Assumptions!L20 -> Actual | N10: =Assumptions!M20 -> Actual | O10: =Assumptions!N20 -> Actual | P10: =Assumptions!O20 -> Actual | Q10: =Assumptions!P20 -> Actual | R10: =Assumptions!Q20 -> Actual | S10: =Assumptions!R20 -> Actual | T10: =Assumptions!S20 -> Actual | U10: =Assumptions!T20 -> Actual | V10: =Assumptions!U20 -> Forecast | W10: =Assumptions!V20 -> Forecast | X10: =Assumptions!W20 -> Forecast | Y10: =Assumptions!X20 -> Forecast | Z10: =Assumptions!Y20 -> Forecast | AA10: =Assumptions!Z20 -> Forecast
B13: =Hist_vol!B$13 -> Category | C13: Type | D13: =Hist_vol!D$13 -> RIN category | E13: =Hist_vol!E$13 -> Description | H13: =Assumptions!G$24 -> 2011/12 | I13: =Assumptions!H$24 -> 2012/13 | J13: =Assumptions!I$24 -> 2013/14 | K13: =Assumptions!J$24 -> 2014/15 | L13: =Assumptions!K$24 -> 2015/16 | M13: =Assumptions!L$24 -> 2016/17 | N13: =Assumptions!M$24 -> 2017/18 | O13: =Assumptions!N$24 -> 2018/19 | P13: =Assumptions!O$24 -> 2019/20 | Q13: =Assumptions!P$24 -> 2020/21 | R13: =Assumptions!Q$24 -> 2021/22 | S13: =Assumptions!R$24 -> 2022/23 | T13: =Assumptions!S$24 -> 2023/24 | U13: =Assumptions!T$24 -> 2024/25 | V13: =Assumptions!U$24 -> 2025/26 | W13: =Assumptions!V$24 -> 2026/27 | X13: =Assumptions!W$24 -> 2027/28 | Y13: =Assumptions!X$24 -> 2028/29 | Z13: =Assumptions!Y$24 -> 2029/30 | AA13: =Assumptions!Z$24 -> 2030/31 | AC13: 2026-31 Total
B15: Forecast type 1 contributions (June 2026 $)
B16: =Hist_vol!B15 -> Connections | C16: =Hist_vol!C15 -> R1 | D16: =Hist_vol!D15 -> Residential | E16: =Hist_vol!E15 -> Simple connection LV | F16: =D16&" "&E16 -> Residential Simple connection LV | H16: =IF(H$8,CC_ratio!G15*Forecast_spend!H16,Hist_contributions!G15*Assumptions!G$29) -> 1125694.47 | I16: =IF(I$8,CC_ratio!H15*Forecast_spend!I16,Hist_contributions!H15*Assumptions!H$29) -> 996504.8668 | J16: =IF(J$8,CC_ratio!I15*Forecast_spend!J16,Hist_contributions!I15*Assumptions!I$29) -> 134585.1659 | K16: =IF(K$8,CC_ratio!J15*Forecast_spend!K16,Hist_contributions!J15*Assumptions!J$29) -> 0 | L16: =IF(L$8,CC_ratio!K15*Forecast_spend!L16,Hist_contributions!K15*Assumptions!K$29) -> 3269804.732 | M16: =IF(M$8,CC_ratio!L15*Forecast_spend!M16,Hist_contributions!L15*Assumptions!L$29) -> 8155094.426 | N16: =IF(N$8,CC_ratio!M15*Forecast_spend!N16,Hist_contributions!M15*Assumptions!M$29) -> 12976112.98 | O16: =IF(O$8,CC_ratio!N15*Forecast_spend!O16,Hist_contributions!N15*Assumptions!N$29) -> 14436979 | P16: =IF(P$8,CC_ratio!O15*Forecast_spend!P16,Hist_contributions!O15*Assumptions!O$29) -> 13122535.66 | Q16: =IF(Q$8,CC_ratio!P15*Forecast_spend!Q16,Hist_contributions!P15*Assumptions!P$29) -> 14550473.28 | R16: =IF(R$8,CC_ratio!Q15*Forecast_spend!R16,Hist_contributions!Q15*Assumptions!Q$29) -> 9878817.331 | S16: =IF(S$8,CC_ratio!R15*Forecast_spend!S16,Hist_contributions!R15*Assumptions!R$29) -> 20627524.78 | T16: =IF(T$8,CC_ratio!S15*Forecast_spend!T16,Hist_contributions!S15*Assumptions!S$29) -> 20947017.97 | U16: =IF(U$8,CC_ratio!T15*Forecast_spend!U16,Hist_contributions!T15*Assumptions!T$29) -> 26053042.05 | V16: =IF(V$8,CC_ratio!U15*Forecast_spend!V16,Hist_contributions!U15*Assumptions!U$29) -> 15952439.97 | W16: =IF(W$8,CC_ratio!V15*Forecast_spend!W16,Hist_contributions!V15*Assumptions!V$29) -> 18284888.64 | X16: =IF(X$8,CC_ratio!W15*Forecast_spend!X16,Hist_contributions!W15*Assumptions!W$29) -> 17807806.07 | Y16: =IF(Y$8,CC_ratio!X15*Forecast_spend!Y16,Hist_contributions!X15*Assumptions!X$29) -> 17296933.01 | Z16: =IF(Z$8,CC_ratio!Y15*Forecast_spend!Z16,Hist_contributions!Y15*Assumptions!Y$29) -> 17491598.02 | AA16: =IF(AA$8,CC_ratio!Z15*Forecast_spend!AA16,Hist_contributions!Z15*Assumptions!Z$29) -> 18106613.8 | AC16: =SUMPRODUCT($H$7:$AA$7*$H16:$AA16) -> 88987839.54
B17: =Hist_vol!B16 -> Connections | C17: =Hist_vol!C16 -> R2 | D17: =Hist_vol!D16 -> Residential | E17: =Hist_vol!E16 -> Complex connection LV | F17: =D17&" "&E17 -> Residential Complex connection LV | H17: =IF(H$8,CC_ratio!G16*Forecast_spend!H17,Hist_contributions!G16*Assumptions!G$29) -> 0 | I17: =IF(I$8,CC_ratio!H16*Forecast_spend!I17,Hist_contributions!H16*Assumptions!H$29) -> 0 | J17: =IF(J$8,CC_ratio!I16*Forecast_spend!J17,Hist_contributions!I16*Assumptions!I$29) -> 0 | K17: =IF(K$8,CC_ratio!J16*Forecast_spend!K17,Hist_contributions!J16*Assumptions!J$29) -> 0 | L17: =IF(L$8,CC_ratio!K16*Forecast_spend!L17,Hist_contributions!K16*Assumptions!K$29) -> 0 | M17: =IF(M$8,CC_ratio!L16*Forecast_spend!M17,Hist_contributions!L16*Assumptions!L$29) -> 0 | N17: =IF(N$8,CC_ratio!M16*Forecast_spend!N17,Hist_contributions!M16*Assumptions!M$29) -> 0 | O17: =IF(O$8,CC_ratio!N16*Forecast_spend!O17,Hist_contributions!N16*Assumptions!N$29) -> 0 | P17: =IF(P$8,CC_ratio!O16*Forecast_spend!P17,Hist_contributions!O16*Assumptions!O$29) -> 0 | Q17: =IF(Q$8,CC_ratio!P16*Forecast_spend!Q17,Hist_contributions!P16*Assumptions!P$29) -> 0 | R17: =IF(R$8,CC_ratio!Q16*Forecast_spend!R17,Hist_contributions!Q16*Assumptions!Q$29) -> 0 | S17: =IF(S$8,CC_ratio!R16*Forecast_spend!S17,Hist_contributions!R16*Assumptions!R$29) -> 0 | T17: =IF(T$8,CC_ratio!S16*Forecast_spend!T17,Hist_contributions!S16*Assumptions!S$29) -> 0 | U17: =IF(U$8,CC_ratio!T16*Forecast_spend!U17,Hist_contributions!T16*Assumptions!T$29) -> 0 | V17: =IF(V$8,CC_ratio!U16*Forecast_spend!V17,Hist_contributions!U16*Assumptions!U$29) -> 0 | W17: =IF(W$8,CC_ratio!V16*Forecast_spend!W17,Hist_contributions!V16*Assumptions!V$29) -> 0 | X17: =IF(X$8,CC_ratio!W16*Forecast_spend!X17,Hist_contributions!W16*Assumptions!W$29) -> 0 | Y17: =IF(Y$8,CC_ratio!X16*Forecast_spend!Y17,Hist_contributions!X16*Assumptions!X$29) -> 0 | Z17: =IF(Z$8,CC_ratio!Y16*Forecast_spend!Z17,Hist_contributions!Y16*Assumptions!Y$29) -> 0 | AA17: =IF(AA$8,CC_ratio!Z16*Forecast_spend!AA17,Hist_contributions!Z16*Assumptions!Z$29) -> 0 | AC17: =SUMPRODUCT($H$7:$AA$7*$H17:$AA17) -> 0
B18: =Hist_vol!B17 -> Connections | C18: =Hist_vol!C17 -> R3 | D18: =Hist_vol!D17 -> Residential | E18: =Hist_vol!E17 -> Complex connection HV | F18: Residential Complex connection HV | H18: =IF(H$8,CC_ratio!G17*Forecast_spend!H18,Hist_contributions!G17*Assumptions!G$29) -> 0 | I18: =IF(I$8,CC_ratio!H17*Forecast_spend!I18,Hist_contributions!H17*Assumptions!H$29) -> 0 | J18: =IF(J$8,CC_ratio!I17*Forecast_spend!J18,Hist_contributions!I17*Assumptions!I$29) -> 0 | K18: =IF(K$8,CC_ratio!J17*Forecast_spend!K18,Hist_contributions!J17*Assumptions!J$29) -> 0 | L18: =IF(L$8,CC_ratio!K17*Forecast_spend!L18,Hist_contributions!K17*Assumptions!K$29) -> 0 | M18: =IF(M$8,CC_ratio!L17*Forecast_spend!M18,Hist_contributions!L17*Assumptions!L$29) -> 0 | N18: =IF(N$8,CC_ratio!M17*Forecast_spend!N18,Hist_contributions!M17*Assumptions!M$29) -> 0 | O18: =IF(O$8,CC_ratio!N17*Forecast_spend!O18,Hist_contributions!N17*Assumptions!N$29) -> 0 | P18: =IF(P$8,CC_ratio!O17*Forecast_spend!P18,Hist_contributions!O17*Assumptions!O$29) -> 0 | Q18: =IF(Q$8,CC_ratio!P17*Forecast_spend!Q18,Hist_contributions!P17*Assumptions!P$29) -> 0 | R18: =IF(R$8,CC_ratio!Q17*Forecast_spend!R18,Hist_contributions!Q17*Assumptions!Q$29) -> 0 | S18: =IF(S$8,CC_ratio!R17*Forecast_spend!S18,Hist_contributions!R17*Assumptions!R$29) -> 0 | T18: =IF(T$8,CC_ratio!S17*Forecast_spend!T18,Hist_contributions!S17*Assumptions!S$29) -> 0 | U18: =IF(U$8,CC_ratio!T17*Forecast_spend!U18,Hist_contributions!T17*Assumptions!T$29) -> 0 | V18: =IF(V$8,CC_ratio!U17*Forecast_spend!V18,Hist_contributions!U17*Assumptions!U$29) -> 0 | W18: =IF(W$8,CC_ratio!V17*Forecast_spend!W18,Hist_contributions!V17*Assumptions!V$29) -> 0 | X18: =IF(X$8,CC_ratio!W17*Forecast_spend!X18,Hist_contributions!W17*Assumptions!W$29) -> 0 | Y18: =IF(Y$8,CC_ratio!X17*Forecast_spend!Y18,Hist_contributions!X17*Assumptions!X$29) -> 0 | Z18: =IF(Z$8,CC_ratio!Y17*Forecast_spend!Z18,Hist_contributions!Y17*Assumptions!Y$29) -> 0 | AA18: =IF(AA$8,CC_ratio!Z17*Forecast_spend!AA18,Hist_contributions!Z17*Assumptions!Z$29) -> 0 | AC18: =SUMPRODUCT($H$7:$AA$7*$H18:$AA18) -> 0
B19: =Hist_vol!B18 -> Connections | C19: =Hist_vol!C18 -> CI1 | D19: =Hist_vol!D18 -> Commercial/Industrial | E19: =Hist_vol!E18 -> Simple connection LV | F19: Commercial/Industrial Simple connection LV | H19: =IF(H$8,CC_ratio!G18*Forecast_spend!H19,Hist_contributions!G18*Assumptions!G$29) -> 1329670.03 | I19: =IF(I$8,CC_ratio!H18*Forecast_spend!I19,Hist_contributions!H18*Assumptions!H$29) -> 1196130.856 | J19: =IF(J$8,CC_ratio!I18*Forecast_spend!J19,Hist_contributions!I18*Assumptions!I$29) -> 922999.6103 | K19: =IF(K$8,CC_ratio!J18*Forecast_spend!K19,Hist_contributions!J18*Assumptions!J$29) -> 1647571.004 | L19: =IF(L$8,CC_ratio!K18*Forecast_spend!L19,Hist_contributions!K18*Assumptions!K$29) -> 2230049.686 | M19: =IF(M$8,CC_ratio!L18*Forecast_spend!M19,Hist_contributions!L18*Assumptions!L$29) -> 3294182.872 | N19: =IF(N$8,CC_ratio!M18*Forecast_spend!N19,Hist_contributions!M18*Assumptions!M$29) -> 3816357.535 | O19: =IF(O$8,CC_ratio!N18*Forecast_spend!O19,Hist_contributions!N18*Assumptions!N$29) -> 3735354.158 | P19: =IF(P$8,CC_ratio!O18*Forecast_spend!P19,Hist_contributions!O18*Assumptions!O$29) -> 3953096.732 | Q19: =IF(Q$8,CC_ratio!P18*Forecast_spend!Q19,Hist_contributions!P18*Assumptions!P$29) -> 3839260.266 | R19: =IF(R$8,CC_ratio!Q18*Forecast_spend!R19,Hist_contributions!Q18*Assumptions!Q$29) -> 5133997.541 | S19: =IF(S$8,CC_ratio!R18*Forecast_spend!S19,Hist_contributions!R18*Assumptions!R$29) -> 4208615.861 | T19: =IF(T$8,CC_ratio!S18*Forecast_spend!T19,Hist_contributions!S18*Assumptions!S$29) -> 8400362.009 | U19: =IF(U$8,CC_ratio!T18*Forecast_spend!U19,Hist_contributions!T18*Assumptions!T$29) -> 4521660.93 | V19: =IF(V$8,CC_ratio!U18*Forecast_spend!V19,Hist_contributions!U18*Assumptions!U$29) -> 4617345.403 | W19: =IF(W$8,CC_ratio!V18*Forecast_spend!W19,Hist_contributions!V18*Assumptions!V$29) -> 5140486.404 | X19: =IF(X$8,CC_ratio!W18*Forecast_spend!X19,Hist_contributions!W18*Assumptions!W$29) -> 5431869.954 | Y19: =IF(Y$8,CC_ratio!X18*Forecast_spend!Y19,Hist_contributions!X18*Assumptions!X$29) -> 5707885.978 | Z19: =IF(Z$8,CC_ratio!Y18*Forecast_spend!Z19,Hist_contributions!Y18*Assumptions!Y$29) -> 5951573.899 | AA19: =IF(AA$8,CC_ratio!Z18*Forecast_spend!AA19,Hist_contributions!Z18*Assumptions!Z$29) -> 5873195.849 | AC19: =SUMPRODUCT($H$7:$AA$7*$H19:$AA19) -> 28105012.08
B20: =Hist_vol!B19 -> Connections | C20: =Hist_vol!C19 -> CI2 | D20: =Hist_vol!D19 -> Commercial/Industrial | E20: =Hist_vol!E19 -> Complex connection HV (customer connected at LV, minor HV works) | F20: Commercial/Industrial Complex connection HV (customer connected at LV, minor HV works) | H20: =IF(H$8,CC_ratio!G19*Forecast_spend!H20,Hist_contributions!G19*Assumptions!G$29) -> 6108018.096 | I20: =IF(I$8,CC_ratio!H19*Forecast_spend!I20,Hist_contributions!H19*Assumptions!H$29) -> 5229602.734 | J20: =IF(J$8,CC_ratio!I19*Forecast_spend!J20,Hist_contributions!I19*Assumptions!I$29) -> 4536388.229 | K20: =IF(K$8,CC_ratio!J19*Forecast_spend!K20,Hist_contributions!J19*Assumptions!J$29) -> 8805833.283 | L20: =IF(L$8,CC_ratio!K19*Forecast_spend!L20,Hist_contributions!K19*Assumptions!K$29) -> 13763801.37 | M20: =IF(M$8,CC_ratio!L19*Forecast_spend!M20,Hist_contributions!L19*Assumptions!L$29) -> 17104195.55 | N20: =IF(N$8,CC_ratio!M19*Forecast_spend!N20,Hist_contributions!M19*Assumptions!M$29) -> 13348327.48 | O20: =IF(O$8,CC_ratio!N19*Forecast_spend!O20,Hist_contributions!N19*Assumptions!N$29) -> 10358003.01 | P20: =IF(P$8,CC_ratio!O19*Forecast_spend!P20,Hist_contributions!O19*Assumptions!O$29) -> 10187175.43 | Q20: =IF(Q$8,CC_ratio!P19*Forecast_spend!Q20,Hist_contributions!P19*Assumptions!P$29) -> 9652994.082 | R20: =IF(R$8,CC_ratio!Q19*Forecast_spend!R20,Hist_contributions!Q19*Assumptions!Q$29) -> 11824437.49 | S20: =IF(S$8,CC_ratio!R19*Forecast_spend!S20,Hist_contributions!R19*Assumptions!R$29) -> 13140939.97 | T20: =IF(T$8,CC_ratio!S19*Forecast_spend!T20,Hist_contributions!S19*Assumptions!S$29) -> 20770368.17 | U20: =IF(U$8,CC_ratio!T19*Forecast_spend!U20,Hist_contributions!T19*Assumptions!T$29) -> 36261079.1 | V20: =IF(V$8,CC_ratio!U19*Forecast_spend!V20,Hist_contributions!U19*Assumptions!U$29) -> 15488669.2 | W20: =IF(W$8,CC_ratio!V19*Forecast_spend!W20,Hist_contributions!V19*Assumptions!V$29) -> 17243521.22 | X20: =IF(X$8,CC_ratio!W19*Forecast_spend!X20,Hist_contributions!W19*Assumptions!W$29) -> 18220953.72 | Y20: =IF(Y$8,CC_ratio!X19*Forecast_spend!Y20,Hist_contributions!X19*Assumptions!X$29) -> 19146836.56 | Z20: =IF(Z$8,CC_ratio!Y19*Forecast_spend!Z20,Hist_contributions!Y19*Assumptions!Y$29) -> 19964276.29 | AA20: =IF(AA$8,CC_ratio!Z19*Forecast_spend!AA20,Hist_contributions!Z19*Assumptions!Z$29) -> 19701360.79 | AC20: =SUMPRODUCT($H$7:$AA$7*$H20:$AA20) -> 94276948.58
B21: =Hist_vol!B20 -> Connections | C21: =Hist_vol!C20 -> CI3 | D21: =Hist_vol!D20 -> Commercial/Industrial | E21: =Hist_vol!E20 -> Complex connection HV (customer connected at LV, upstream asset works) | F21: Commercial/Industrial Complex connection HV (customer connected at LV, upstream asset works) | H21: =IF(H$8,CC_ratio!G20*Forecast_spend!H21,Hist_contributions!G20*Assumptions!G$29) -> 677032.1731 | I21: =IF(I$8,CC_ratio!H20*Forecast_spend!I21,Hist_contributions!H20*Assumptions!H$29) -> 451936.084 | J21: =IF(J$8,CC_ratio!I20*Forecast_spend!J21,Hist_contributions!I20*Assumptions!I$29) -> 385643.5637 | K21: =IF(K$8,CC_ratio!J20*Forecast_spend!K21,Hist_contributions!J20*Assumptions!J$29) -> 2287808.599 | L21: =IF(L$8,CC_ratio!K20*Forecast_spend!L21,Hist_contributions!K20*Assumptions!K$29) -> 3502004.456 | M21: =IF(M$8,CC_ratio!L20*Forecast_spend!M21,Hist_contributions!L20*Assumptions!L$29) -> 2169752.887 | N21: =IF(N$8,CC_ratio!M20*Forecast_spend!N21,Hist_contributions!M20*Assumptions!M$29) -> 1017832.714 | O21: =IF(O$8,CC_ratio!N20*Forecast_spend!O21,Hist_contributions!N20*Assumptions!N$29) -> 958760.5464 | P21: =IF(P$8,CC_ratio!O20*Forecast_spend!P21,Hist_contributions!O20*Assumptions!O$29) -> 737763.9907 | Q21: =IF(Q$8,CC_ratio!P20*Forecast_spend!Q21,Hist_contributions!P20*Assumptions!P$29) -> 0 | R21: =IF(R$8,CC_ratio!Q20*Forecast_spend!R21,Hist_contributions!Q20*Assumptions!Q$29) -> 1728936.126 | S21: =IF(S$8,CC_ratio!R20*Forecast_spend!S21,Hist_contributions!R20*Assumptions!R$29) -> 342770.7489 | T21: =IF(T$8,CC_ratio!S20*Forecast_spend!T21,Hist_contributions!S20*Assumptions!S$29) -> 6589042.639 | U21: =IF(U$8,CC_ratio!T20*Forecast_spend!U21,Hist_contributions!T20*Assumptions!T$29) -> 1789196.511 | V21: =IF(V$8,CC_ratio!U20*Forecast_spend!V21,Hist_contributions!U20*Assumptions!U$29) -> 1757209.018 | W21: =IF(W$8,CC_ratio!V20*Forecast_spend!W21,Hist_contributions!V20*Assumptions!V$29) -> 1956299.189 | X21: =IF(X$8,CC_ratio!W20*Forecast_spend!X21,Hist_contributions!W20*Assumptions!W$29) -> 2067190.135 | Y21: =IF(Y$8,CC_ratio!X20*Forecast_spend!Y21,Hist_contributions!X20*Assumptions!X$29) -> 2172232.709 | Z21: =IF(Z$8,CC_ratio!Y20*Forecast_spend!Z21,Hist_contributions!Y20*Assumptions!Y$29) -> 2264972.276 | AA21: =IF(AA$8,CC_ratio!Z20*Forecast_spend!AA21,Hist_contributions!Z20*Assumptions!Z$29) -> 2235144.181 | AC21: =SUMPRODUCT($H$7:$AA$7*$H21:$AA21) -> 10695838.49
B22: =Hist_vol!B21 -> Connections | C22: =Hist_vol!C21 -> CI4 | D22: =Hist_vol!D21 -> Commercial/Industrial | E22: =Hist_vol!E21 -> Complex connection HV (customer connected at HV) | F22: Commercial/Industrial Complex connection HV (customer connected at HV) | H22: =IF(H$8,CC_ratio!G21*Forecast_spend!H22,Hist_contributions!G21*Assumptions!G$29) -> 181741.8023 | I22: =IF(I$8,CC_ratio!H21*Forecast_spend!I22,Hist_contributions!H21*Assumptions!H$29) -> 128705.6487 | J22: =IF(J$8,CC_ratio!I21*Forecast_spend!J22,Hist_contributions!I21*Assumptions!I$29) -> 297398.9494 | K22: =IF(K$8,CC_ratio!J21*Forecast_spend!K22,Hist_contributions!J21*Assumptions!J$29) -> 2759350.769 | L22: =IF(L$8,CC_ratio!K21*Forecast_spend!L22,Hist_contributions!K21*Assumptions!K$29) -> 7829019.018 | M22: =IF(M$8,CC_ratio!L21*Forecast_spend!M22,Hist_contributions!L21*Assumptions!L$29) -> 12829771.97 | N22: =IF(N$8,CC_ratio!M21*Forecast_spend!N22,Hist_contributions!M21*Assumptions!M$29) -> 11286332.48 | O22: =IF(O$8,CC_ratio!N21*Forecast_spend!O22,Hist_contributions!N21*Assumptions!N$29) -> 8799737.122 | P22: =IF(P$8,CC_ratio!O21*Forecast_spend!P22,Hist_contributions!O21*Assumptions!O$29) -> 11996285.13 | Q22: =IF(Q$8,CC_ratio!P21*Forecast_spend!Q22,Hist_contributions!P21*Assumptions!P$29) -> 14745108.85 | R22: =IF(R$8,CC_ratio!Q21*Forecast_spend!R22,Hist_contributions!Q21*Assumptions!Q$29) -> 9477463.396 | S22: =IF(S$8,CC_ratio!R21*Forecast_spend!S22,Hist_contributions!R21*Assumptions!R$29) -> 10154551.87 | T22: =IF(T$8,CC_ratio!S21*Forecast_spend!T22,Hist_contributions!S21*Assumptions!S$29) -> 47885471.95 | U22: =IF(U$8,CC_ratio!T21*Forecast_spend!U22,Hist_contributions!T21*Assumptions!T$29) -> 23139216.98 | V22: =IF(V$8,CC_ratio!U21*Forecast_spend!V22,Hist_contributions!U21*Assumptions!U$29) -> 2865246.881 | W22: =IF(W$8,CC_ratio!V21*Forecast_spend!W22,Hist_contributions!V21*Assumptions!V$29) -> 3189876.726 | X22: =IF(X$8,CC_ratio!W21*Forecast_spend!X22,Hist_contributions!W21*Assumptions!W$29) -> 3370691.834 | Y22: =IF(Y$8,CC_ratio!X21*Forecast_spend!Y22,Hist_contributions!X21*Assumptions!X$29) -> 3541970.78 | Z22: =IF(Z$8,CC_ratio!Y21*Forecast_spend!Z22,Hist_contributions!Y21*Assumptions!Y$29) -> 3693188.849 | AA22: =IF(AA$8,CC_ratio!Z21*Forecast_spend!AA22,Hist_contributions!Z21*Assumptions!Z$29) -> 3644552.144 | AC22: =SUMPRODUCT($H$7:$AA$7*$H22:$AA22) -> 17440280.33
B23: =Hist_vol!B22 -> Connections | C23: =Hist_vol!C22 -> CI5 | D23: =Hist_vol!D22 -> Commercial/Industrial | E23: =Hist_vol!E22 -> Complex connection sub-transmission | F23: Commercial/Industrial Complex connection sub-transmission | H23: =IF(H$8,CC_ratio!G22*Forecast_spend!H23,Hist_contributions!G22*Assumptions!G$29) -> 0 | I23: =IF(I$8,CC_ratio!H22*Forecast_spend!I23,Hist_contributions!H22*Assumptions!H$29) -> 0 | J23: =IF(J$8,CC_ratio!I22*Forecast_spend!J23,Hist_contributions!I22*Assumptions!I$29) -> 0 | K23: =IF(K$8,CC_ratio!J22*Forecast_spend!K23,Hist_contributions!J22*Assumptions!J$29) -> 0 | L23: =IF(L$8,CC_ratio!K22*Forecast_spend!L23,Hist_contributions!K22*Assumptions!K$29) -> 0 | M23: =IF(M$8,CC_ratio!L22*Forecast_spend!M23,Hist_contributions!L22*Assumptions!L$29) -> 0 | N23: =IF(N$8,CC_ratio!M22*Forecast_spend!N23,Hist_contributions!M22*Assumptions!M$29) -> 0 | O23: =IF(O$8,CC_ratio!N22*Forecast_spend!O23,Hist_contributions!N22*Assumptions!N$29) -> 0 | P23: =IF(P$8,CC_ratio!O22*Forecast_spend!P23,Hist_contributions!O22*Assumptions!O$29) -> 0 | Q23: =IF(Q$8,CC_ratio!P22*Forecast_spend!Q23,Hist_contributions!P22*Assumptions!P$29) -> 0 | R23: =IF(R$8,CC_ratio!Q22*Forecast_spend!R23,Hist_contributions!Q22*Assumptions!Q$29) -> 6483.766427 | S23: =IF(S$8,CC_ratio!R22*Forecast_spend!S23,Hist_contributions!R22*Assumptions!R$29) -> 29427.26674 | T23: =IF(T$8,CC_ratio!S22*Forecast_spend!T23,Hist_contributions!S22*Assumptions!S$29) -> 470649.9114 | U23: =IF(U$8,CC_ratio!T22*Forecast_spend!U23,Hist_contributions!T22*Assumptions!T$29) -> 0 | V23: =IF(V$8,CC_ratio!U22*Forecast_spend!V23,Hist_contributions!U22*Assumptions!U$29) -> 74413.63654 | W23: =IF(W$8,CC_ratio!V22*Forecast_spend!W23,Hist_contributions!V22*Assumptions!V$29) -> 82844.63333 | X23: =IF(X$8,CC_ratio!W22*Forecast_spend!X23,Hist_contributions!W22*Assumptions!W$29) -> 87540.60206 | Y23: =IF(Y$8,CC_ratio!X22*Forecast_spend!Y23,Hist_contributions!X22*Assumptions!X$29) -> 91988.90608 | Z23: =IF(Z$8,CC_ratio!Y22*Forecast_spend!Z23,Hist_contributions!Y22*Assumptions!Y$29) -> 95916.20689 | AA23: =IF(AA$8,CC_ratio!Z22*Forecast_spend!AA23,Hist_contributions!Z22*Assumptions!Z$29) -> 94653.05778 | AC23: =SUMPRODUCT($H$7:$AA$7*$H23:$AA23) -> 452943.4061
B24: =Hist_vol!B23 -> Connections | C24: =Hist_vol!C23 -> S1 | D24: =Hist_vol!D23 -> Subdivision | E24: =Hist_vol!E23 -> Complex connection LV | F24: Subdivision Complex connection LV | H24: =IF(H$8,CC_ratio!G23*Forecast_spend!H24,Hist_contributions!G23*Assumptions!G$29) -> 3376492.261 | I24: =IF(I$8,CC_ratio!H23*Forecast_spend!I24,Hist_contributions!H23*Assumptions!H$29) -> 2848779.73 | J24: =IF(J$8,CC_ratio!I23*Forecast_spend!J24,Hist_contributions!I23*Assumptions!I$29) -> 2869443.122 | K24: =IF(K$8,CC_ratio!J23*Forecast_spend!K24,Hist_contributions!J23*Assumptions!J$29) -> 5697351.705 | L24: =IF(L$8,CC_ratio!K23*Forecast_spend!L24,Hist_contributions!K23*Assumptions!K$29) -> 5111360.239 | M24: =IF(M$8,CC_ratio!L23*Forecast_spend!M24,Hist_contributions!L23*Assumptions!L$29) -> 3655521.151 | N24: =IF(N$8,CC_ratio!M23*Forecast_spend!N24,Hist_contributions!M23*Assumptions!M$29) -> 1969688.6 | O24: =IF(O$8,CC_ratio!N23*Forecast_spend!O24,Hist_contributions!N23*Assumptions!N$29) -> 1558530.104 | P24: =IF(P$8,CC_ratio!O23*Forecast_spend!P24,Hist_contributions!O23*Assumptions!O$29) -> 1945995.977 | Q24: =IF(Q$8,CC_ratio!P23*Forecast_spend!Q24,Hist_contributions!P23*Assumptions!P$29) -> 1375550.008 | R24: =IF(R$8,CC_ratio!Q23*Forecast_spend!R24,Hist_contributions!Q23*Assumptions!Q$29) -> 665685.1554 | S24: =IF(S$8,CC_ratio!R23*Forecast_spend!S24,Hist_contributions!R23*Assumptions!R$29) -> 652735.7862 | T24: =IF(T$8,CC_ratio!S23*Forecast_spend!T24,Hist_contributions!S23*Assumptions!S$29) -> 766935.8749 | U24: =IF(U$8,CC_ratio!T23*Forecast_spend!U24,Hist_contributions!T23*Assumptions!T$29) -> 552179.5669 | V24: =IF(V$8,CC_ratio!U23*Forecast_spend!V24,Hist_contributions!U23*Assumptions!U$29) -> 1439136.022 | W24: =IF(W$8,CC_ratio!V23*Forecast_spend!W24,Hist_contributions!V23*Assumptions!V$29) -> 1649555.927 | X24: =IF(X$8,CC_ratio!W23*Forecast_spend!X24,Hist_contributions!W23*Assumptions!W$29) -> 1606516.323 | Y24: =IF(Y$8,CC_ratio!X23*Forecast_spend!Y24,Hist_contributions!X23*Assumptions!X$29) -> 1560428.337 | Z24: =IF(Z$8,CC_ratio!Y23*Forecast_spend!Z24,Hist_contributions!Y23*Assumptions!Y$29) -> 1577989.877 | AA24: =IF(AA$8,CC_ratio!Z23*Forecast_spend!AA24,Hist_contributions!Z23*Assumptions!Z$29) -> 1633473.012 | AC24: =SUMPRODUCT($H$7:$AA$7*$H24:$AA24) -> 8027963.476
B25: =Hist_vol!B24 -> Connections | C25: =Hist_vol!C24 -> S2 | D25: =Hist_vol!D24 -> Subdivision | E25: =Hist_vol!E24 -> Complex connection HV (no upstream asset works) | F25: Subdivision Complex connection HV (no upstream asset works) | H25: =IF(H$8,CC_ratio!G24*Forecast_spend!H25,Hist_contributions!G24*Assumptions!G$29) -> 519899.7783 | I25: =IF(I$8,CC_ratio!H24*Forecast_spend!I25,Hist_contributions!H24*Assumptions!H$29) -> 443827.4111 | J25: =IF(J$8,CC_ratio!I24*Forecast_spend!J25,Hist_contributions!I24*Assumptions!I$29) -> 627344.6728 | K25: =IF(K$8,CC_ratio!J24*Forecast_spend!K25,Hist_contributions!J24*Assumptions!J$29) -> 989484.0793 | L25: =IF(L$8,CC_ratio!K24*Forecast_spend!L25,Hist_contributions!K24*Assumptions!K$29) -> 1437488.331 | M25: =IF(M$8,CC_ratio!L24*Forecast_spend!M25,Hist_contributions!L24*Assumptions!L$29) -> 2424379.346 | N25: =IF(N$8,CC_ratio!M24*Forecast_spend!N25,Hist_contributions!M24*Assumptions!M$29) -> 1749417.62 | O25: =IF(O$8,CC_ratio!N24*Forecast_spend!O25,Hist_contributions!N24*Assumptions!N$29) -> 1330866.357 | P25: =IF(P$8,CC_ratio!O24*Forecast_spend!P25,Hist_contributions!O24*Assumptions!O$29) -> 1731137.642 | Q25: =IF(Q$8,CC_ratio!P24*Forecast_spend!Q25,Hist_contributions!P24*Assumptions!P$29) -> 1343774.259 | R25: =IF(R$8,CC_ratio!Q24*Forecast_spend!R25,Hist_contributions!Q24*Assumptions!Q$29) -> 669143.2444 | S25: =IF(S$8,CC_ratio!R24*Forecast_spend!S25,Hist_contributions!R24*Assumptions!R$29) -> 810982.6995 | T25: =IF(T$8,CC_ratio!S24*Forecast_spend!T25,Hist_contributions!S24*Assumptions!S$29) -> 811439.9091 | U25: =IF(U$8,CC_ratio!T24*Forecast_spend!U25,Hist_contributions!T24*Assumptions!T$29) -> 344569.8909 | V25: =IF(V$8,CC_ratio!U24*Forecast_spend!V25,Hist_contributions!U24*Assumptions!U$29) -> 1216864.56 | W25: =IF(W$8,CC_ratio!V24*Forecast_spend!W25,Hist_contributions!V24*Assumptions!V$29) -> 1394785.563 | X25: =IF(X$8,CC_ratio!W24*Forecast_spend!X25,Hist_contributions!W24*Assumptions!W$29) -> 1358393.333 | Y25: =IF(Y$8,CC_ratio!X24*Forecast_spend!Y25,Hist_contributions!X24*Assumptions!X$29) -> 1319423.537 | Z25: =IF(Z$8,CC_ratio!Y24*Forecast_spend!Z25,Hist_contributions!Y24*Assumptions!Y$29) -> 1334272.736 | AA25: =IF(AA$8,CC_ratio!Z24*Forecast_spend!AA25,Hist_contributions!Z24*Assumptions!Z$29) -> 1381186.619 | AC25: =SUMPRODUCT($H$7:$AA$7*$H25:$AA25) -> 6788061.788
B26: =Hist_vol!B25 -> Connections | C26: =Hist_vol!C25 -> S3 | D26: =Hist_vol!D25 -> Subdivision | E26: =Hist_vol!E25 -> Complex connection HV (with upstream asset works) | F26: Subdivision Complex connection HV (with upstream asset works) | H26: =IF(H$8,CC_ratio!G25*Forecast_spend!H26,Hist_contributions!G25*Assumptions!G$29) -> 0 | I26: =IF(I$8,CC_ratio!H25*Forecast_spend!I26,Hist_contributions!H25*Assumptions!H$29) -> 0 | J26: =IF(J$8,CC_ratio!I25*Forecast_spend!J26,Hist_contributions!I25*Assumptions!I$29) -> 0 | K26: =IF(K$8,CC_ratio!J25*Forecast_spend!K26,Hist_contributions!J25*Assumptions!J$29) -> 0 | L26: =IF(L$8,CC_ratio!K25*Forecast_spend!L26,Hist_contributions!K25*Assumptions!K$29) -> 0 | M26: =IF(M$8,CC_ratio!L25*Forecast_spend!M26,Hist_contributions!L25*Assumptions!L$29) -> 178046.2661 | N26: =IF(N$8,CC_ratio!M25*Forecast_spend!N26,Hist_contributions!M25*Assumptions!M$29) -> 385939.7617 | O26: =IF(O$8,CC_ratio!N25*Forecast_spend!O26,Hist_contributions!N25*Assumptions!N$29) -> 428034.2128 | P26: =IF(P$8,CC_ratio!O25*Forecast_spend!P26,Hist_contributions!O25*Assumptions!O$29) -> 217692.4096 | Q26: =IF(Q$8,CC_ratio!P25*Forecast_spend!Q26,Hist_contributions!P25*Assumptions!P$29) -> 0 | R26: =IF(R$8,CC_ratio!Q25*Forecast_spend!R26,Hist_contributions!Q25*Assumptions!Q$29) -> 0 | S26: =IF(S$8,CC_ratio!R25*Forecast_spend!S26,Hist_contributions!R25*Assumptions!R$29) -> 0 | T26: =IF(T$8,CC_ratio!S25*Forecast_spend!T26,Hist_contributions!S25*Assumptions!S$29) -> 0 | U26: =IF(U$8,CC_ratio!T25*Forecast_spend!U26,Hist_contributions!T25*Assumptions!T$29) -> 0 | V26: =IF(V$8,CC_ratio!U25*Forecast_spend!V26,Hist_contributions!U25*Assumptions!U$29) -> 0 | W26: =IF(W$8,CC_ratio!V25*Forecast_spend!W26,Hist_contributions!V25*Assumptions!V$29) -> 0 | X26: =IF(X$8,CC_ratio!W25*Forecast_spend!X26,Hist_contributions!W25*Assumptions!W$29) -> 0 | Y26: =IF(Y$8,CC_ratio!X25*Forecast_spend!Y26,Hist_contributions!X25*Assumptions!X$29) -> 0 | Z26: =IF(Z$8,CC_ratio!Y25*Forecast_spend!Z26,Hist_contributions!Y25*Assumptions!Y$29) -> 0 | AA26: =IF(AA$8,CC_ratio!Z25*Forecast_spend!AA26,Hist_contributions!Z25*Assumptions!Z$29) -> 0 | AC26: =SUMPRODUCT($H$7:$AA$7*$H26:$AA26) -> 0
B27: =Hist_vol!B26 -> Connections | C27: =Hist_vol!C26 -> EG1 | D27: =Hist_vol!D26 -> Embedded generation | E27: =Hist_vol!E26 -> Simple connection LV | F27: Embedded generation Simple connection LV | H27: =IF(H$8,CC_ratio!G26*Forecast_spend!H27,Hist_contributions!G26*Assumptions!G$29) -> 208055.6277 | I27: =IF(I$8,CC_ratio!H26*Forecast_spend!I27,Hist_contributions!H26*Assumptions!H$29) -> 202469.174 | J27: =IF(J$8,CC_ratio!I26*Forecast_spend!J27,Hist_contributions!I26*Assumptions!I$29) -> 0 | K27: =IF(K$8,CC_ratio!J26*Forecast_spend!K27,Hist_contributions!J26*Assumptions!J$29) -> 0 | L27: =IF(L$8,CC_ratio!K26*Forecast_spend!L27,Hist_contributions!K26*Assumptions!K$29) -> 0 | M27: =IF(M$8,CC_ratio!L26*Forecast_spend!M27,Hist_contributions!L26*Assumptions!L$29) -> 0 | N27: =IF(N$8,CC_ratio!M26*Forecast_spend!N27,Hist_contributions!M26*Assumptions!M$29) -> 0 | O27: =IF(O$8,CC_ratio!N26*Forecast_spend!O27,Hist_contributions!N26*Assumptions!N$29) -> 0 | P27: =IF(P$8,CC_ratio!O26*Forecast_spend!P27,Hist_contributions!O26*Assumptions!O$29) -> 0 | Q27: =IF(Q$8,CC_ratio!P26*Forecast_spend!Q27,Hist_contributions!P26*Assumptions!P$29) -> 0 | R27: =IF(R$8,CC_ratio!Q26*Forecast_spend!R27,Hist_contributions!Q26*Assumptions!Q$29) -> 0 | S27: =IF(S$8,CC_ratio!R26*Forecast_spend!S27,Hist_contributions!R26*Assumptions!R$29) -> 0 | T27: =IF(T$8,CC_ratio!S26*Forecast_spend!T27,Hist_contributions!S26*Assumptions!S$29) -> 0 | U27: =IF(U$8,CC_ratio!T26*Forecast_spend!U27,Hist_contributions!T26*Assumptions!T$29) -> 0 | V27: =IF(V$8,CC_ratio!U26*Forecast_spend!V27,Hist_contributions!U26*Assumptions!U$29) -> 1038.677471 | W27: =IF(W$8,CC_ratio!V26*Forecast_spend!W27,Hist_contributions!V26*Assumptions!V$29) -> 1038.576581 | X27: =IF(X$8,CC_ratio!W26*Forecast_spend!X27,Hist_contributions!W26*Assumptions!W$29) -> 3115.720763 | Y27: =IF(Y$8,CC_ratio!X26*Forecast_spend!Y27,Hist_contributions!X26*Assumptions!X$29) -> 7789.111307 | Z27: =IF(Z$8,CC_ratio!Y26*Forecast_spend!Z27,Hist_contributions!Y26*Assumptions!Y$29) -> 23368.02561 | AA27: =IF(AA$8,CC_ratio!Z26*Forecast_spend!AA27,Hist_contributions!Z26*Assumptions!Z$29) -> 23369.49477 | AC27: =SUMPRODUCT($H$7:$AA$7*$H27:$AA27) -> 58680.92904
B28: =Hist_vol!B27 -> Connections | C28: =Hist_vol!C27 -> EG2 | D28: =Hist_vol!D27 -> Embedded generation | E28: =Hist_vol!E27 -> Complex connection HV (small capacity) | F28: Embedded generation Complex connection HV (small capacity) | H28: =IF(H$8,CC_ratio!G27*Forecast_spend!H28,Hist_contributions!G27*Assumptions!G$29) -> 49276.33287 | I28: =IF(I$8,CC_ratio!H27*Forecast_spend!I28,Hist_contributions!H27*Assumptions!H$29) -> 47953.22542 | J28: =IF(J$8,CC_ratio!I27*Forecast_spend!J28,Hist_contributions!I27*Assumptions!I$29) -> 0 | K28: =IF(K$8,CC_ratio!J27*Forecast_spend!K28,Hist_contributions!J27*Assumptions!J$29) -> 0 | L28: =IF(L$8,CC_ratio!K27*Forecast_spend!L28,Hist_contributions!K27*Assumptions!K$29) -> 0 | M28: =IF(M$8,CC_ratio!L27*Forecast_spend!M28,Hist_contributions!L27*Assumptions!L$29) -> 0 | N28: =IF(N$8,CC_ratio!M27*Forecast_spend!N28,Hist_contributions!M27*Assumptions!M$29) -> 0 | O28: =IF(O$8,CC_ratio!N27*Forecast_spend!O28,Hist_contributions!N27*Assumptions!N$29) -> 0 | P28: =IF(P$8,CC_ratio!O27*Forecast_spend!P28,Hist_contributions!O27*Assumptions!O$29) -> 0 | Q28: =IF(Q$8,CC_ratio!P27*Forecast_spend!Q28,Hist_contributions!P27*Assumptions!P$29) -> 9733.418701 | R28: =IF(R$8,CC_ratio!Q27*Forecast_spend!R28,Hist_contributions!Q27*Assumptions!Q$29) -> 40421.4597 | S28: =IF(S$8,CC_ratio!R27*Forecast_spend!S28,Hist_contributions!R27*Assumptions!R$29) -> 698787.6082 | T28: =IF(T$8,CC_ratio!S27*Forecast_spend!T28,Hist_contributions!S27*Assumptions!S$29) -> 8254927.41 | U28: =IF(U$8,CC_ratio!T27*Forecast_spend!U28,Hist_contributions!T27*Assumptions!T$29) -> 0 | V28: =IF(V$8,CC_ratio!U27*Forecast_spend!V28,Hist_contributions!U27*Assumptions!U$29) -> 0 | W28: =IF(W$8,CC_ratio!V27*Forecast_spend!W28,Hist_contributions!V27*Assumptions!V$29) -> 0 | X28: =IF(X$8,CC_ratio!W27*Forecast_spend!X28,Hist_contributions!W27*Assumptions!W$29) -> 0 | Y28: =IF(Y$8,CC_ratio!X27*Forecast_spend!Y28,Hist_contributions!X27*Assumptions!X$29) -> 0 | Z28: =IF(Z$8,CC_ratio!Y27*Forecast_spend!Z28,Hist_contributions!Y27*Assumptions!Y$29) -> 0 | AA28: =IF(AA$8,CC_ratio!Z27*Forecast_spend!AA28,Hist_contributions!Z27*Assumptions!Z$29) -> 0 | AC28: =SUMPRODUCT($H$7:$AA$7*$H28:$AA28) -> 0
B29: =Hist_vol!B28 -> Connections | C29: =Hist_vol!C28 -> EG3 | D29: =Hist_vol!D28 -> Embedded generation | E29: =Hist_vol!E28 -> Complex connection HV (large capacity) | F29: Embedded generation Complex connection HV (large capacity) | H29: =IF(H$8,CC_ratio!G28*Forecast_spend!H29,Hist_contributions!G28*Assumptions!G$29) -> 0 | I29: =IF(I$8,CC_ratio!H28*Forecast_spend!I29,Hist_contributions!H28*Assumptions!H$29) -> 5738.929767 | J29: =IF(J$8,CC_ratio!I28*Forecast_spend!J29,Hist_contributions!I28*Assumptions!I$29) -> 5621.853328 | K29: =IF(K$8,CC_ratio!J28*Forecast_spend!K29,Hist_contributions!J28*Assumptions!J$29) -> 0 | L29: =IF(L$8,CC_ratio!K28*Forecast_spend!L29,Hist_contributions!K28*Assumptions!K$29) -> 0 | M29: =IF(M$8,CC_ratio!L28*Forecast_spend!M29,Hist_contributions!L28*Assumptions!L$29) -> 0 | N29: =IF(N$8,CC_ratio!M28*Forecast_spend!N29,Hist_contributions!M28*Assumptions!M$29) -> 0 | O29: =IF(O$8,CC_ratio!N28*Forecast_spend!O29,Hist_contributions!N28*Assumptions!N$29) -> 0 | P29: =IF(P$8,CC_ratio!O28*Forecast_spend!P29,Hist_contributions!O28*Assumptions!O$29) -> 0 | Q29: =IF(Q$8,CC_ratio!P28*Forecast_spend!Q29,Hist_contributions!P28*Assumptions!P$29) -> 0 | R29: =IF(R$8,CC_ratio!Q28*Forecast_spend!R29,Hist_contributions!Q28*Assumptions!Q$29) -> 0 | S29: =IF(S$8,CC_ratio!R28*Forecast_spend!S29,Hist_contributions!R28*Assumptions!R$29) -> 0 | T29: =IF(T$8,CC_ratio!S28*Forecast_spend!T29,Hist_contributions!S28*Assumptions!S$29) -> 0 | U29: =IF(U$8,CC_ratio!T28*Forecast_spend!U29,Hist_contributions!T28*Assumptions!T$29) -> 584818.925 | V29: =IF(V$8,CC_ratio!U28*Forecast_spend!V29,Hist_contributions!U28*Assumptions!U$29) -> 103784.8317 | W29: =IF(W$8,CC_ratio!V28*Forecast_spend!W29,Hist_contributions!V28*Assumptions!V$29) -> 259455.7302 | X29: =IF(X$8,CC_ratio!W28*Forecast_spend!X29,Hist_contributions!W28*Assumptions!W$29) -> 778390.231 | Y29: =IF(Y$8,CC_ratio!X28*Forecast_spend!Y29,Hist_contributions!X28*Assumptions!X$29) -> 778439.1688 | Z29: =IF(Z$8,CC_ratio!Y28*Forecast_spend!Z29,Hist_contributions!Y28*Assumptions!Y$29) -> 778439.1688 | AA29: =IF(AA$8,CC_ratio!Z28*Forecast_spend!AA29,Hist_contributions!Z28*Assumptions!Z$29) -> 778439.1688 | AC29: =SUMPRODUCT($H$7:$AA$7*$H29:$AA29) -> 3373163.468
B30: ='Grid connected batteries'!B18 -> Connections | C30: Grid connected Batteries | D30: Grid connected Batteries | F30: =D30 -> Grid connected Batteries | H30: 0 | I30: 0 | J30: 0 | K30: 0 | L30: 0 | M30: 0 | N30: 0 | O30: 0 | P30: 0 | Q30: 0 | R30: 0 | S30: 0 | T30: 0 | U30: 0 | V30: 0 | W30: ='Grid connected batteries'!E18 -> 4036364.02 | X30: ='Grid connected batteries'!F18 -> 3966989.423 | Y30: ='Grid connected batteries'!G18 -> 4797819.198 | Z30: ='Grid connected batteries'!H18 -> 5516080.089 | AA30: ='Grid connected batteries'!I18 -> 5075363.671 | AC30: =SUMPRODUCT($H$7:$AA$7*$H30:$AA30) -> 23392616.4
B31: Connections | C31: Data Centres | D31: Data Centres | F31: =D31 -> Data Centres | H31: 0 | I31: 0 | J31: 0 | K31: 0 | L31: 0 | M31: 0 | N31: 0 | O31: 0 | P31: 0 | Q31: 0 | R31: 0 | S31: 0 | T31: 0 | U31: 0 | V31: 0 | W31: ='Data Centres'!E17 -> 9345618.152 | X31: ='Data Centres'!F17 -> 22259455.76 | Y31: ='Data Centres'!G17 -> 29985556.13 | Z31: ='Data Centres'!H17 -> 15213454.05 | AA31: ='Data Centres'!I17 -> 21723535.69 | AC31: =SUMPRODUCT($H$7:$AA$7*$H31:$AA31) -> 98527619.78
D32: Total | H32: =SUM(H16:H31) -> 13575880.57 | I32: 11551648.66 | J32: 9779425.166 | K32: 22187399.44 | L32: 37143527.83 | M32: 49810944.46 | N32: 46550009.16 | O32: 41606264.51 | P32: 43891682.98 | Q32: 45516894.17 | R32: 39425385.51 | S32: 50666336.58 | T32: 114896215.8 | U32: 93245763.96 | V32: 43516148.2 | W32: 62584734.79 | X32: 76958913.1 | Y32: 86407303.43 | Z32: 73905129.48 | AA32: 80270887.48 | AC32: =SUM(AC16:AC31) -> 380126968.3

Sheet Forecast_netcapex
A1: =Assumptions!$A$1 -> United Energy
A2: =Assumptions!$A$2 -> Connections
A3: Forecast net capex
B7: =Assumptions!B17 -> 2025/6 - 2030/31 reg period | H7: =Assumptions!G17 -> FALSE | I7: =Assumptions!H17 -> FALSE | J7: =Assumptions!I17 -> FALSE | K7: =Assumptions!J17 -> FALSE | L7: =Assumptions!K17 -> FALSE | M7: =Assumptions!L17 -> FALSE | N7: =Assumptions!M17 -> FALSE | O7: =Assumptions!N17 -> FALSE | P7: =Assumptions!O17 -> FALSE | Q7: =Assumptions!P17 -> FALSE | R7: =Assumptions!Q17 -> FALSE | S7: =Assumptions!R17 -> FALSE | T7: =Assumptions!S17 -> FALSE | U7: =Assumptions!T17 -> FALSE | V7: =Assumptions!U17 -> FALSE | W7: =Assumptions!V17 -> TRUE | X7: =Assumptions!W17 -> TRUE | Y7: =Assumptions!X17 -> TRUE | Z7: =Assumptions!Y17 -> TRUE | AA7: =Assumptions!Z17 -> TRUE
B8: =Assumptions!B18 -> Forecast period | H8: =Assumptions!G18 -> FALSE | I8: =Assumptions!H18 -> FALSE | J8: =Assumptions!I18 -> FALSE | K8: =Assumptions!J18 -> FALSE | L8: =Assumptions!K18 -> FALSE | M8: =Assumptions!L18 -> FALSE | N8: =Assumptions!M18 -> FALSE | O8: =Assumptions!N18 -> FALSE | P8: =Assumptions!O18 -> FALSE | Q8: =Assumptions!P18 -> FALSE | R8: =Assumptions!Q18 -> FALSE | S8: =Assumptions!R18 -> FALSE | T8: =Assumptions!S18 -> FALSE | U8: =Assumptions!T18 -> FALSE | V8: =Assumptions!U18 -> TRUE | W8: =Assumptions!V18 -> TRUE | X8: =Assumptions!W18 -> TRUE | Y8: =Assumptions!X18 -> TRUE | Z8: =Assumptions!Y18 -> TRUE | AA8: =Assumptions!Z18 -> TRUE
B9: =Assumptions!B19 -> Fin year end | H9: =Assumptions!G19 -> 2012 | I9: =Assumptions!H19 -> 2013 | J9: =Assumptions!I19 -> 2014 | K9: =Assumptions!J19 -> 2015 | L9: =Assumptions!K19 -> 2016 | M9: =Assumptions!L19 -> 2017 | N9: =Assumptions!M19 -> 2018 | O9: =Assumptions!N19 -> 2019 | P9: =Assumptions!O19 -> 2020 | Q9: =Assumptions!P19 -> 2021 | R9: =Assumptions!Q19 -> 2022 | S9: =Assumptions!R19 -> 2023 | T9: =Assumptions!S19 -> 2024 | U9: =Assumptions!T19 -> 2025 | V9: =Assumptions!U19 -> 2026 | W9: =Assumptions!V19 -> 2027 | X9: =Assumptions!W19 -> 2028 | Y9: =Assumptions!X19 -> 2029 | Z9: =Assumptions!Y19 -> 2030 | AA9: =Assumptions!Z19 -> 2031
B10: =Assumptions!B20 -> Basis | H10: =Assumptions!G20 -> Actual | I10: =Assumptions!H20 -> Actual | J10: =Assumptions!I20 -> Actual | K10: =Assumptions!J20 -> Actual | L10: =Assumptions!K20 -> Actual | M10: =Assumptions!L20 -> Actual | N10: =Assumptions!M20 -> Actual | O10: =Assumptions!N20 -> Actual | P10: =Assumptions!O20 -> Actual | Q10: =Assumptions!P20 -> Actual | R10: =Assumptions!Q20 -> Actual | S10: =Assumptions!R20 -> Actual | T10: =Assumptions!S20 -> Actual | U10: =Assumptions!T20 -> Actual | V10: =Assumptions!U20 -> Forecast | W10: =Assumptions!V20 -> Forecast | X10: =Assumptions!W20 -> Forecast | Y10: =Assumptions!X20 -> Forecast | Z10: =Assumptions!Y20 -> Forecast | AA10: =Assumptions!Z20 -> Forecast
B13: =Hist_vol!B$13 -> Category | C13: Type | D13: =Hist_vol!D$13 -> RIN category | E13: =Hist_vol!E$13 -> Description | H13: =Assumptions!G$24 -> 2011/12 | I13: =Assumptions!H$24 -> 2012/13 | J13: =Assumptions!I$24 -> 2013/14 | K13: =Assumptions!J$24 -> 2014/15 | L13: =Assumptions!K$24 -> 2015/16 | M13: =Assumptions!L$24 -> 2016/17 | N13: =Assumptions!M$24 -> 2017/18 | O13: =Assumptions!N$24 -> 2018/19 | P13: =Assumptions!O$24 -> 2019/20 | Q13: =Assumptions!P$24 -> 2020/21 | R13: =Assumptions!Q$24 -> 2021/22 | S13: =Assumptions!R$24 -> 2022/23 | T13: =Assumptions!S$24 -> 2023/24 | U13: =Assumptions!T$24 -> 2024/25 | V13: =Assumptions!U$24 -> 2025/26 | W13: =Assumptions!V$24 -> 2026/27 | X13: =Assumptions!W$24 -> 2027/28 | Y13: =Assumptions!X$24 -> 2028/29 | Z13: =Assumptions!Y$24 -> 2029/30 | AA13: =Assumptions!Z$24 -> 2030/31 | AC13: 2026-31 Total
B15: Forecast type 1 contributions (June 2026 $)
B16: =Hist_vol!B15 -> Connections | C16: =Hist_vol!C15 -> R1 | D16: =Hist_vol!D15 -> Residential | E16: =Hist_vol!E15 -> Simple connection LV | F16: =D16&" "&E16 -> Residential Simple connection LV | H16: =Forecast_spend!H16-Forecast_contrib!H16 -> -1125694.47 | I16: =Forecast_spend!I16-Forecast_contrib!I16 -> -996504.8668 | J16: =Forecast_spend!J16-Forecast_contrib!J16 -> -134585.1659 | K16: =Forecast_spend!K16-Forecast_contrib!K16 -> 0 | L16: =Forecast_spend!L16-Forecast_contrib!L16 -> 2813716.974 | M16: =Forecast_spend!M16-Forecast_contrib!M16 -> 5181163.933 | N16: =Forecast_spend!N16-Forecast_contrib!N16 -> 5395052.417 | O16: =Forecast_spend!O16-Forecast_contrib!O16 -> 4328900.176 | P16: =Forecast_spend!P16-Forecast_contrib!P16 -> 1526332.866 | Q16: =Forecast_spend!Q16-Forecast_contrib!Q16 -> 218710.3556 | R16: =Forecast_spend!R16-Forecast_contrib!R16 -> 6280737.695 | S16: =Forecast_spend!S16-Forecast_contrib!S16 -> 2028302.815 | T16: =Forecast_spend!T16-Forecast_contrib!T16 -> 109589.4033 | U16: =Forecast_spend!U16-Forecast_contrib!U16 -> 432314.8744 | V16: =Forecast_spend!V16-Forecast_contrib!V16 -> 1568602.11 | W16: =Forecast_spend!W16-Forecast_contrib!W16 -> 1797951.596 | X16: =Forecast_spend!X16-Forecast_contrib!X16 -> 1751040.107 | Y16: =Forecast_spend!Y16-Forecast_contrib!Y16 -> 1700806 | Z16: =Forecast_spend!Z16-Forecast_contrib!Z16 -> 1719947.394 | AA16: =Forecast_spend!AA16-Forecast_contrib!AA16 -> 1780421.846 | AC16: =SUMPRODUCT($H$7:$AA$7*$H16:$AA16) -> 8750166.943
B17: =Hist_vol!B16 -> Connections | C17: =Hist_vol!C16 -> R2 | D17: =Hist_vol!D16 -> Residential | E17: =Hist_vol!E16 -> Complex connection LV | F17: =D17&" "&E17 -> Residential Complex connection LV | H17: =Forecast_spend!H17-Forecast_contrib!H17 -> 0 | I17: =Forecast_spend!I17-Forecast_contrib!I17 -> 0 | J17: =Forecast_spend!J17-Forecast_contrib!J17 -> 0 | K17: =Forecast_spend!K17-Forecast_contrib!K17 -> 0 | L17: =Forecast_spend!L17-Forecast_contrib!L17 -> 0 | M17: =Forecast_spend!M17-Forecast_contrib!M17 -> 0 | N17: =Forecast_spend!N17-Forecast_contrib!N17 -> 0 | O17: =Forecast_spend!O17-Forecast_contrib!O17 -> 0 | P17: =Forecast_spend!P17-Forecast_contrib!P17 -> 0 | Q17: =Forecast_spend!Q17-Forecast_contrib!Q17 -> 0 | R17: =Forecast_spend!R17-Forecast_contrib!R17 -> 0 | S17: =Forecast_spend!S17-Forecast_contrib!S17 -> 0 | T17: =Forecast_spend!T17-Forecast_contrib!T17 -> 0 | U17: =Forecast_spend!U17-Forecast_contrib!U17 -> 0 | V17: =Forecast_spend!V17-Forecast_contrib!V17 -> 0 | W17: =Forecast_spend!W17-Forecast_contrib!W17 -> 0 | X17: =Forecast_spend!X17-Forecast_contrib!X17 -> 0 | Y17: =Forecast_spend!Y17-Forecast_contrib!Y17 -> 0 | Z17: =Forecast_spend!Z17-Forecast_contrib!Z17 -> 0 | AA17: =Forecast_spend!AA17-Forecast_contrib!AA17 -> 0 | AC17: =SUMPRODUCT($H$7:$AA$7*$H17:$AA17) -> 0
B18: =Hist_vol!B17 -> Connections | C18: =Hist_vol!C17 -> R3 | D18: =Hist_vol!D17 -> Residential | E18: =Hist_vol!E17 -> Complex connection HV | F18: Residential Complex connection HV | H18: =Forecast_spend!H18-Forecast_contrib!H18 -> 0 | I18: =Forecast_spend!I18-Forecast_contrib!I18 -> 0 | J18: =Forecast_spend!J18-Forecast_contrib!J18 -> 0 | K18: =Forecast_spend!K18-Forecast_contrib!K18 -> 0 | L18: =Forecast_spend!L18-Forecast_contrib!L18 -> 0 | M18: =Forecast_spend!M18-Forecast_contrib!M18 -> 0 | N18: =Forecast_spend!N18-Forecast_contrib!N18 -> 0 | O18: =Forecast_spend!O18-Forecast_contrib!O18 -> 0 | P18: =Forecast_spend!P18-Forecast_contrib!P18 -> 0 | Q18: =Forecast_spend!Q18-Forecast_contrib!Q18 -> 0 | R18: =Forecast_spend!R18-Forecast_contrib!R18 -> 0 | S18: =Forecast_spend!S18-Forecast_contrib!S18 -> 0 | T18: =Forecast_spend!T18-Forecast_contrib!T18 -> 0 | U18: =Forecast_spend!U18-Forecast_contrib!U18 -> 0 | V18: =Forecast_spend!V18-Forecast_contrib!V18 -> 0 | W18: =Forecast_spend!W18-Forecast_contrib!W18 -> 0 | X18: =Forecast_spend!X18-Forecast_contrib!X18 -> 0 | Y18: =Forecast_spend!Y18-Forecast_contrib!Y18 -> 0 | Z18: =Forecast_spend!Z18-Forecast_contrib!Z18 -> 0 | AA18: =Forecast_spend!AA18-Forecast_contrib!AA18 -> 0 | AC18: =SUMPRODUCT($H$7:$AA$7*$H18:$AA18) -> 0
B19: =Hist_vol!B18 -> Connections | C19: =Hist_vol!C18 -> CI1 | D19: =Hist_vol!D18 -> Commercial/Industrial | E19: =Hist_vol!E18 -> Simple connection LV | F19: Commercial/Industrial Simple connection LV | H19: =Forecast_spend!H19-Forecast_contrib!H19 -> 3778056.011 | I19: =Forecast_spend!I19-Forecast_contrib!I19 -> 4052091.472 | J19: =Forecast_spend!J19-Forecast_contrib!J19 -> 4191171.954 | K19: =Forecast_spend!K19-Forecast_contrib!K19 -> 3525266.153 | L19: =Forecast_spend!L19-Forecast_contrib!L19 -> 473342.0452 | M19: =Forecast_spend!M19-Forecast_contrib!M19 -> -618927.8436 | N19: =Forecast_spend!N19-Forecast_contrib!N19 -> -201418.6961 | O19: =Forecast_spend!O19-Forecast_contrib!O19 -> 689689.1333 | P19: =Forecast_spend!P19-Forecast_contrib!P19 -> 944965.3559 | Q19: =Forecast_spend!Q19-Forecast_contrib!Q19 -> 2978543.356 | R19: =Forecast_spend!R19-Forecast_contrib!R19 -> 998360.3091 | S19: =Forecast_spend!S19-Forecast_contrib!S19 -> 1762206.354 | T19: =Forecast_spend!T19-Forecast_contrib!T19 -> -453735.8746 | U19: =Forecast_spend!U19-Forecast_contrib!U19 -> 3899110.915 | V19: =Forecast_spend!V19-Forecast_contrib!V19 -> 634477.4104 | W19: =Forecast_spend!W19-Forecast_contrib!W19 -> 706363.1193 | X19: =Forecast_spend!X19-Forecast_contrib!X19 -> 746402.6365 | Y19: =Forecast_spend!Y19-Forecast_contrib!Y19 -> 784330.4754 | Z19: =Forecast_spend!Z19-Forecast_contrib!Z19 -> 817816.0536 | AA19: =Forecast_spend!AA19-Forecast_contrib!AA19 -> 807045.9903 | AC19: =SUMPRODUCT($H$7:$AA$7*$H19:$AA19) -> 3861958.275
B20: =Hist_vol!B19 -> Connections | C20: =Hist_vol!C19 -> CI2 | D20: =Hist_vol!D19 -> Commercial/Industrial | E20: =Hist_vol!E19 -> Complex connection HV (customer connected at LV, minor HV works) | F20: Commercial/Industrial Complex connection HV (customer connected at LV, minor HV works) | H20: =Forecast_spend!H20-Forecast_contrib!H20 -> 19918820.36 | I20: =Forecast_spend!I20-Forecast_contrib!I20 -> 19704578.3 | J20: =Forecast_spend!J20-Forecast_contrib!J20 -> 21397269.93 | K20: =Forecast_spend!K20-Forecast_contrib!K20 -> 18630760.48 | L20: =Forecast_spend!L20-Forecast_contrib!L20 -> 14530523.12 | M20: =Forecast_spend!M20-Forecast_contrib!M20 -> 8869206.873 | N20: =Forecast_spend!N20-Forecast_contrib!N20 -> 4484685.769 | O20: =Forecast_spend!O20-Forecast_contrib!O20 -> 3482849.281 | P20: =Forecast_spend!P20-Forecast_contrib!P20 -> 3384353.468 | Q20: =Forecast_spend!Q20-Forecast_contrib!Q20 -> 8248192.187 | R20: =Forecast_spend!R20-Forecast_contrib!R20 -> 2299389.532 | S20: =Forecast_spend!S20-Forecast_contrib!S20 -> 5502293.717 | T20: =Forecast_spend!T20-Forecast_contrib!T20 -> -1121886.738 | U20: =Forecast_spend!U20-Forecast_contrib!U20 -> 7969840.879 | V20: =Forecast_spend!V20-Forecast_contrib!V20 -> 9274538.294 | W20: =Forecast_spend!W20-Forecast_contrib!W20 -> 10325334.98 | X20: =Forecast_spend!X20-Forecast_contrib!X20 -> 10910616.71 | Y20: =Forecast_spend!Y20-Forecast_contrib!Y20 -> 11465030.76 | Z20: =Forecast_spend!Z20-Forecast_contrib!Z20 -> 11954509.62 | AA20: =Forecast_spend!AA20-Forecast_contrib!AA20 -> 11797077.12 | AC20: =SUMPRODUCT($H$7:$AA$7*$H20:$AA20) -> 56452569.19
B21: =Hist_vol!B20 -> Connections | C21: =Hist_vol!C20 -> CI3 | D21: =Hist_vol!D20 -> Commercial/Industrial | E21: =Hist_vol!E20 -> Complex connection HV (customer connected at LV, upstream asset works) | F21: Commercial/Industrial Complex connection HV (customer connected at LV, upstream asset works) | H21: =Forecast_spend!H21-Forecast_contrib!H21 -> 2632414.222 | I21: =Forecast_spend!I21-Forecast_contrib!I21 -> 803839.3776 | J21: =Forecast_spend!J21-Forecast_contrib!J21 -> 993695.527 | K21: =Forecast_spend!K21-Forecast_contrib!K21 -> 4503593.944 | L21: =Forecast_spend!L21-Forecast_contrib!L21 -> 4926903.018 | M21: =Forecast_spend!M21-Forecast_contrib!M21 -> 1655988.952 | N21: =Forecast_spend!N21-Forecast_contrib!N21 -> 501756.1356 | O21: =Forecast_spend!O21-Forecast_contrib!O21 -> 403872.8507 | P21: =Forecast_spend!P21-Forecast_contrib!P21 -> 280510.1984 | Q21: =Forecast_spend!Q21-Forecast_contrib!Q21 -> 0 | R21: =Forecast_spend!R21-Forecast_contrib!R21 -> 336210.33 | S21: =Forecast_spend!S21-Forecast_contrib!S21 -> 143522.8059 | T21: =Forecast_spend!T21-Forecast_contrib!T21 -> -355899.5252 | U21: =Forecast_spend!U21-Forecast_contrib!U21 -> 88947.12585 | V21: =Forecast_spend!V21-Forecast_contrib!V21 -> 735767.4764 | W21: =Forecast_spend!W21-Forecast_contrib!W21 -> 819129.2569 | X21: =Forecast_spend!X21-Forecast_contrib!X21 -> 865560.8146 | Y21: =Forecast_spend!Y21-Forecast_contrib!Y21 -> 909543.5788 | Z21: =Forecast_spend!Z21-Forecast_contrib!Z21 -> 948374.9051 | AA21: =Forecast_spend!AA21-Forecast_contrib!AA21 -> 935885.4734 | AC21: =SUMPRODUCT($H$7:$AA$7*$H21:$AA21) -> 4478494.029
B22: =Hist_vol!B21 -> Connections | C22: =Hist_vol!C21 -> CI4 | D22: =Hist_vol!D21 -> Commercial/Industrial | E22: =Hist_vol!E21 -> Complex connection HV (customer connected at HV) | F22: Commercial/Industrial Complex connection HV (customer connected at HV) | H22: =Forecast_spend!H22-Forecast_contrib!H22 -> 1065161.904 | I22: =Forecast_spend!I22-Forecast_contrib!I22 -> 1195642.527 | J22: =Forecast_spend!J22-Forecast_contrib!J22 -> 1641237.536 | K22: =Forecast_spend!K22-Forecast_contrib!K22 -> 5314065.887 | L22: =Forecast_spend!L22-Forecast_contrib!L22 -> 5413769.546 | M22: =Forecast_spend!M22-Forecast_contrib!M22 -> 2611929.373 | N22: =Forecast_spend!N22-Forecast_contrib!N22 -> 2647451.249 | O22: =Forecast_spend!O22-Forecast_contrib!O22 -> 2290505.506 | P22: =Forecast_spend!P22-Forecast_contrib!P22 -> 2795707.918 | Q22: =Forecast_spend!Q22-Forecast_contrib!Q22 -> 9444529.486 | R22: =Forecast_spend!R22-Forecast_contrib!R22 -> 1842994.045 | S22: =Forecast_spend!S22-Forecast_contrib!S22 -> 4251851.343 | T22: =Forecast_spend!T22-Forecast_contrib!T22 -> -2586476.987 | U22: =Forecast_spend!U22-Forecast_contrib!U22 -> -6287326.983 | V22: =Forecast_spend!V22-Forecast_contrib!V22 -> 1917753.513 | W22: =Forecast_spend!W22-Forecast_contrib!W22 -> 2135033.228 | X22: =Forecast_spend!X22-Forecast_contrib!X22 -> 2256055.543 | Y22: =Forecast_spend!Y22-Forecast_contrib!Y22 -> 2370695.158 | Z22: =Forecast_spend!Z22-Forecast_contrib!Z22 -> 2471907.722 | AA22: =Forecast_spend!AA22-Forecast_contrib!AA22 -> 2439354.432 | AC22: =SUMPRODUCT($H$7:$AA$7*$H22:$AA22) -> 11673046.08
B23: =Hist_vol!B22 -> Connections | C23: =Hist_vol!C22 -> CI5 | D23: =Hist_vol!D22 -> Commercial/Industrial | E23: =Hist_vol!E22 -> Complex connection sub-transmission | F23: Commercial/Industrial Complex connection sub-transmission | H23: =Forecast_spend!H23-Forecast_contrib!H23 -> 0 | I23: =Forecast_spend!I23-Forecast_contrib!I23 -> 0 | J23: =Forecast_spend!J23-Forecast_contrib!J23 -> 0 | K23: =Forecast_spend!K23-Forecast_contrib!K23 -> 0 | L23: =Forecast_spend!L23-Forecast_contrib!L23 -> 0 | M23: =Forecast_spend!M23-Forecast_contrib!M23 -> 0 | N23: =Forecast_spend!N23-Forecast_contrib!N23 -> 0 | O23: =Forecast_spend!O23-Forecast_contrib!O23 -> 0 | P23: =Forecast_spend!P23-Forecast_contrib!P23 -> 0 | Q23: =Forecast_spend!Q23-Forecast_contrib!Q23 -> 0 | R23: =Forecast_spend!R23-Forecast_contrib!R23 -> 1259.89591 | S23: =Forecast_spend!S23-Forecast_contrib!S23 -> 12322.07151 | T23: =Forecast_spend!T23-Forecast_contrib!T23 -> -25421.7801 | U23: =Forecast_spend!U23-Forecast_contrib!U23 -> 371636.2456 | V23: =Forecast_spend!V23-Forecast_contrib!V23 -> 31159.20207 | W23: =Forecast_spend!W23-Forecast_contrib!W23 -> 34689.5111 | X23: =Forecast_spend!X23-Forecast_contrib!X23 -> 36655.85283 | Y23: =Forecast_spend!Y23-Forecast_contrib!Y23 -> 38518.48998 | Z23: =Forecast_spend!Z23-Forecast_contrib!Z23 -> 40162.96759 | AA23: =Forecast_spend!AA23-Forecast_contrib!AA23 -> 39634.04951 | AC23: =SUMPRODUCT($H$7:$AA$7*$H23:$AA23) -> 189660.871
B24: =Hist_vol!B23 -> Connections | C24: =Hist_vol!C23 -> S1 | D24: =Hist_vol!D23 -> Subdivision | E24: =Hist_vol!E23 -> Complex connection LV | F24: Subdivision Complex connection LV | H24: =Forecast_spend!H24-Forecast_contrib!H24 -> 11201720.57 | I24: =Forecast_spend!I24-Forecast_contrib!I24 -> 10556360.52 | J24: =Forecast_spend!J24-Forecast_contrib!J24 -> 12456327.16 | K24: =Forecast_spend!K24-Forecast_contrib!K24 -> 12059561.24 | L24: =Forecast_spend!L24-Forecast_contrib!L24 -> 6328357.689 | M24: =Forecast_spend!M24-Forecast_contrib!M24 -> 646247.3444 | N24: =Forecast_spend!N24-Forecast_contrib!N24 -> -313893.3905 | O24: =Forecast_spend!O24-Forecast_contrib!O24 -> 53348.5692 | P24: =Forecast_spend!P24-Forecast_contrib!P24 -> 66564.87025 | Q24: =Forecast_spend!Q24-Forecast_contrib!Q24 -> 858053.6926 | R24: =Forecast_spend!R24-Forecast_contrib!R24 -> 735217.9193 | S24: =Forecast_spend!S24-Forecast_contrib!S24 -> 1128060.742 | T24: =Forecast_spend!T24-Forecast_contrib!T24 -> 2380393.823 | U24: =Forecast_spend!U24-Forecast_contrib!U24 -> 2342980.663 | V24: =Forecast_spend!V24-Forecast_contrib!V24 -> 180433.6979 | W24: =Forecast_spend!W24-Forecast_contrib!W24 -> 206815.3888 | X24: =Forecast_spend!X24-Forecast_contrib!X24 -> 201419.2379 | Y24: =Forecast_spend!Y24-Forecast_contrib!Y24 -> 195640.892 | Z24: =Forecast_spend!Z24-Forecast_contrib!Z24 -> 197842.6948 | AA24: =Forecast_spend!AA24-Forecast_contrib!AA24 -> 204798.9707 | AC24: =SUMPRODUCT($H$7:$AA$7*$H24:$AA24) -> 1006517.184
B25: =Hist_vol!B24 -> Connections | C25: =Hist_vol!C24 -> S2 | D25: =Hist_vol!D24 -> Subdivision | E25: =Hist_vol!E24 -> Complex connection HV (no upstream asset works) | F25: Subdivision Complex connection HV (no upstream asset works) | H25: =Forecast_spend!H25-Forecast_contrib!H25 -> 1827918.711 | I25: =Forecast_spend!I25-Forecast_contrib!I25 -> 1964183.386 | J25: =Forecast_spend!J25-Forecast_contrib!J25 -> 2676589.398 | K25: =Forecast_spend!K25-Forecast_contrib!K25 -> 2156806.406 | L25: =Forecast_spend!L25-Forecast_contrib!L25 -> 515477.8845 | M25: =Forecast_spend!M25-Forecast_contrib!M25 -> -288879.0167 | N25: =Forecast_spend!N25-Forecast_contrib!N25 -> -344045.4174 | O25: =Forecast_spend!O25-Forecast_contrib!O25 -> 4592.855127 | P25: =Forecast_spend!P25-Forecast_contrib!P25 -> 36029.3499 | Q25: =Forecast_spend!Q25-Forecast_contrib!Q25 -> 940528.9874 | R25: =Forecast_spend!R25-Forecast_contrib!R25 -> 739034.9462 | S25: =Forecast_spend!S25-Forecast_contrib!S25 -> 1401543.696 | T25: =Forecast_spend!T25-Forecast_contrib!T25 -> 2518524.045 | U25: =Forecast_spend!U25-Forecast_contrib!U25 -> 1655117.704 | V25: =Forecast_spend!V25-Forecast_contrib!V25 -> 590558.9085 | W25: =Forecast_spend!W25-Forecast_contrib!W25 -> 676906.0971 | X25: =Forecast_spend!X25-Forecast_contrib!X25 -> 659244.513 | Y25: =Forecast_spend!Y25-Forecast_contrib!Y25 -> 640332.0054 | Z25: =Forecast_spend!Z25-Forecast_contrib!Z25 -> 647538.4989 | AA25: =Forecast_spend!AA25-Forecast_contrib!AA25 -> 670306.3672 | AC25: =SUMPRODUCT($H$7:$AA$7*$H25:$AA25) -> 3294327.482
B26: =Hist_vol!B25 -> Connections | C26: =Hist_vol!C25 -> S3 | D26: =Hist_vol!D25 -> Subdivision | E26: =Hist_vol!E25 -> Complex connection HV (with upstream asset works) | F26: Subdivision Complex connection HV (with upstream asset works) | H26: =Forecast_spend!H26-Forecast_contrib!H26 -> 0 | I26: =Forecast_spend!I26-Forecast_contrib!I26 -> 0 | J26: =Forecast_spend!J26-Forecast_contrib!J26 -> 0 | K26: =Forecast_spend!K26-Forecast_contrib!K26 -> 0 | L26: =Forecast_spend!L26-Forecast_contrib!L26 -> 0 | M26: =Forecast_spend!M26-Forecast_contrib!M26 -> 86838.23407 | N26: =Forecast_spend!N26-Forecast_contrib!N26 -> 421952.1775 | O26: =Forecast_spend!O26-Forecast_contrib!O26 -> 447985.6455 | P26: =Forecast_spend!P26-Forecast_contrib!P26 -> 116091.075 | Q26: =Forecast_spend!Q26-Forecast_contrib!Q26 -> 0 | R26: =Forecast_spend!R26-Forecast_contrib!R26 -> 0 | S26: =Forecast_spend!S26-Forecast_contrib!S26 -> 0 | T26: =Forecast_spend!T26-Forecast_contrib!T26 -> 0 | U26: =Forecast_spend!U26-Forecast_contrib!U26 -> 0 | V26: =Forecast_spend!V26-Forecast_contrib!V26 -> 0 | W26: =Forecast_spend!W26-Forecast_contrib!W26 -> 0 | X26: =Forecast_spend!X26-Forecast_contrib!X26 -> 0 | Y26: =Forecast_spend!Y26-Forecast_contrib!Y26 -> 0 | Z26: =Forecast_spend!Z26-Forecast_contrib!Z26 -> 0 | AA26: =Forecast_spend!AA26-Forecast_contrib!AA26 -> 0 | AC26: =SUMPRODUCT($H$7:$AA$7*$H26:$AA26) -> 0
B27: =Hist_vol!B26 -> Connections | C27: =Hist_vol!C26 -> EG1 | D27: =Hist_vol!D26 -> Embedded generation | E27: =Hist_vol!E26 -> Simple connection LV | F27: Embedded generation Simple connection LV | H27: =Forecast_spend!H27-Forecast_contrib!H27 -> 341410.9166 | I27: =Forecast_spend!I27-Forecast_contrib!I27 -> 332243.7708 | J27: =Forecast_spend!J27-Forecast_contrib!J27 -> 0 | K27: =Forecast_spend!K27-Forecast_contrib!K27 -> 0 | L27: =Forecast_spend!L27-Forecast_contrib!L27 -> 0 | M27: =Forecast_spend!M27-Forecast_contrib!M27 -> 0 | N27: =Forecast_spend!N27-Forecast_contrib!N27 -> 0 | O27: =Forecast_spend!O27-Forecast_contrib!O27 -> 0 | P27: =Forecast_spend!P27-Forecast_contrib!P27 -> 0 | Q27: =Forecast_spend!Q27-Forecast_contrib!Q27 -> 0 | R27: =Forecast_spend!R27-Forecast_contrib!R27 -> 0 | S27: =Forecast_spend!S27-Forecast_contrib!S27 -> 0 | T27: =Forecast_spend!T27-Forecast_contrib!T27 -> 0 | U27: =Forecast_spend!U27-Forecast_contrib!U27 -> 0 | V27: =Forecast_spend!V27-Forecast_contrib!V27 -> 0 | W27: =Forecast_spend!W27-Forecast_contrib!W27 -> 0 | X27: =Forecast_spend!X27-Forecast_contrib!X27 -> 0 | Y27: =Forecast_spend!Y27-Forecast_contrib!Y27 -> 0 | Z27: =Forecast_spend!Z27-Forecast_contrib!Z27 -> 0 | AA27: =Forecast_spend!AA27-Forecast_contrib!AA27 -> 0 | AC27: =SUMPRODUCT($H$7:$AA$7*$H27:$AA27) -> 0
B28: =Hist_vol!B27 -> Connections | C28: =Hist_vol!C27 -> EG2 | D28: =Hist_vol!D27 -> Embedded generation | E28: =Hist_vol!E27 -> Complex connection HV (small capacity) | F28: Embedded generation Complex connection HV (small capacity) | H28: =Forecast_spend!H28-Forecast_contrib!H28 -> 80860.48025 | I28: =Forecast_spend!I28-Forecast_contrib!I28 -> 78689.31415 | J28: =Forecast_spend!J28-Forecast_contrib!J28 -> 0 | K28: =Forecast_spend!K28-Forecast_contrib!K28 -> 0 | L28: =Forecast_spend!L28-Forecast_contrib!L28 -> 0 | M28: =Forecast_spend!M28-Forecast_contrib!M28 -> 0 | N28: =Forecast_spend!N28-Forecast_contrib!N28 -> 0 | O28: =Forecast_spend!O28-Forecast_contrib!O28 -> 0 | P28: =Forecast_spend!P28-Forecast_contrib!P28 -> 3670.558621 | Q28: =Forecast_spend!Q28-Forecast_contrib!Q28 -> 6771.602077 | R28: =Forecast_spend!R28-Forecast_contrib!R28 -> 180744.4745 | S28: =Forecast_spend!S28-Forecast_contrib!S28 -> 4191938.936 | T28: =Forecast_spend!T28-Forecast_contrib!T28 -> -6142108.21 | U28: =Forecast_spend!U28-Forecast_contrib!U28 -> 0 | V28: =Forecast_spend!V28-Forecast_contrib!V28 -> 0 | W28: =Forecast_spend!W28-Forecast_contrib!W28 -> 0 | X28: =Forecast_spend!X28-Forecast_contrib!X28 -> 0 | Y28: =Forecast_spend!Y28-Forecast_contrib!Y28 -> 0 | Z28: =Forecast_spend!Z28-Forecast_contrib!Z28 -> 0 | AA28: =Forecast_spend!AA28-Forecast_contrib!AA28 -> 0 | AC28: =SUMPRODUCT($H$7:$AA$7*$H28:$AA28) -> 0
B29: =Hist_vol!B28 -> Connections | C29: =Hist_vol!C28 -> EG3 | D29: =Hist_vol!D28 -> Embedded generation | E29: =Hist_vol!E28 -> Complex connection HV (large capacity) | F29: Embedded generation Complex connection HV (large capacity) | H29: =Forecast_spend!H29-Forecast_contrib!H29 -> 0 | I29: =Forecast_spend!I29-Forecast_contrib!I29 -> 106832.2165 | J29: =Forecast_spend!J29-Forecast_contrib!J29 -> 104652.797 | K29: =Forecast_spend!K29-Forecast_contrib!K29 -> 0 | L29: =Forecast_spend!L29-Forecast_contrib!L29 -> 0 | M29: =Forecast_spend!M29-Forecast_contrib!M29 -> 0 | N29: =Forecast_spend!N29-Forecast_contrib!N29 -> 0 | O29: =Forecast_spend!O29-Forecast_contrib!O29 -> 0 | P29: =Forecast_spend!P29-Forecast_contrib!P29 -> 0 | Q29: =Forecast_spend!Q29-Forecast_contrib!Q29 -> 0 | R29: =Forecast_spend!R29-Forecast_contrib!R29 -> 0 | S29: =Forecast_spend!S29-Forecast_contrib!S29 -> 0 | T29: =Forecast_spend!T29-Forecast_contrib!T29 -> 0 | U29: =Forecast_spend!U29-Forecast_contrib!U29 -> -584818.925 | V29: =Forecast_spend!V29-Forecast_contrib!V29 -> 0 | W29: =Forecast_spend!W29-Forecast_contrib!W29 -> 0 | X29: =Forecast_spend!X29-Forecast_contrib!X29 -> 0 | Y29: =Forecast_spend!Y29-Forecast_contrib!Y29 -> 0 | Z29: =Forecast_spend!Z29-Forecast_contrib!Z29 -> 0 | AA29: =Forecast_spend!AA29-Forecast_contrib!AA29 -> 0 | AC29: =SUMPRODUCT($H$7:$AA$7*$H29:$AA29) -> 0
B30: ='Grid connected batteries'!B17 -> Connections | C30: Grid connected Batteries | D30: ='Grid connected batteries'!C17 -> Grid connected Battery | E30: Net capex | F30: =D30 -> Grid connected Battery | H30: =Forecast_spend!H30-Forecast_contrib!H30 -> 0 | I30: =Forecast_spend!I30-Forecast_contrib!I30 -> 0 | J30: =Forecast_spend!J30-Forecast_contrib!J30 -> 0 | K30: =Forecast_spend!K30-Forecast_contrib!K30 -> 0 | L30: =Forecast_spend!L30-Forecast_contrib!L30 -> 0 | M30: =Forecast_spend!M30-Forecast_contrib!M30 -> 0 | N30: =Forecast_spend!N30-Forecast_contrib!N30 -> 0 | O30: =Forecast_spend!O30-Forecast_contrib!O30 -> 0 | P30: =Forecast_spend!P30-Forecast_contrib!P30 -> 0 | Q30: =Forecast_spend!Q30-Forecast_contrib!Q30 -> 0 | R30: =Forecast_spend!R30-Forecast_contrib!R30 -> 0 | S30: =Forecast_spend!S30-Forecast_contrib!S30 -> 0 | T30: =Forecast_spend!T30-Forecast_contrib!T30 -> 0 | U30: =Forecast_spend!U30-Forecast_contrib!U30 -> 0 | V30: =Forecast_spend!V30-Forecast_contrib!V30 -> 0 | W30: =Forecast_spend!W30-Forecast_contrib!W30 -> 1260228.768 | X30: =Forecast_spend!X30-Forecast_contrib!X30 -> 1238568.714 | Y30: =Forecast_spend!Y30-Forecast_contrib!Y30 -> 1497969.397 | Z30: =Forecast_spend!Z30-Forecast_contrib!Z30 -> 1722223.958 | AA30: =Forecast_spend!AA30-Forecast_contrib!AA30 -> 1584624.002 | AC30: =SUMPRODUCT($H$7:$AA$7*$H30:$AA30) -> 7303614.84
B31: Connections | C31: Data Centres | D31: Data Centres | F31: =D31 -> Data Centres | H31: =Forecast_spend!H31-Forecast_contrib!H31 -> 0 | I31: =Forecast_spend!I31-Forecast_contrib!I31 -> 0 | J31: =Forecast_spend!J31-Forecast_contrib!J31 -> 0 | K31: =Forecast_spend!K31-Forecast_contrib!K31 -> 0 | L31: =Forecast_spend!L31-Forecast_contrib!L31 -> 0 | M31: =Forecast_spend!M31-Forecast_contrib!M31 -> 0 | N31: =Forecast_spend!N31-Forecast_contrib!N31 -> 0 | O31: =Forecast_spend!O31-Forecast_contrib!O31 -> 0 | P31: =Forecast_spend!P31-Forecast_contrib!P31 -> 0 | Q31: =Forecast_spend!Q31-Forecast_contrib!Q31 -> 0 | R31: =Forecast_spend!R31-Forecast_contrib!R31 -> 0 | S31: =Forecast_spend!S31-Forecast_contrib!S31 -> 0 | T31: =Forecast_spend!T31-Forecast_contrib!T31 -> 0 | U31: =Forecast_spend!U31-Forecast_contrib!U31 -> 0 | V31: =Forecast_spend!V31-Forecast_contrib!V31 -> 0 | W31: =Forecast_spend!W31-Forecast_contrib!W31 -> 1649226.733 | X31: =Forecast_spend!X31-Forecast_contrib!X31 -> 3928139.251 | Y31: =Forecast_spend!Y31-Forecast_contrib!Y31 -> 5291568.729 | Z31: =Forecast_spend!Z31-Forecast_contrib!Z31 -> 2684727.185 | AA31: =Forecast_spend!AA31-Forecast_contrib!AA31 -> 3833565.121 | AC31: =SUMPRODUCT($H$7:$AA$7*$H31:$AA31) -> 17387227.02
D32: Total | H32: =SUM(H16:H31) -> 39720668.71 | I32: 37797956.02 | J32: 43326359.14 | K32: 46190054.11 | L32: 35002090.28 | M32: 18143567.85 | N32: 12591540.24 | O32: 11701744.02 | P32: 9154225.66 | Q32: 22695329.67 | R32: 13413949.15 | S32: 20422042.48 | T32: -5677021.843 | U32: 9887802.5 | V32: 14933290.61 | W32: 19611678.68 | X32: 22593703.38 | Y32: 24894435.49 | Z32: 23205051 | AA32: 24092713.37 | AC32: =SUM(AC16:AC31) -> 114397581.9

Sheet Lists
A1: =Assumptions!$A$1 -> United Energy
A2: =Assumptions!$A$2 -> Connections
A3: Assumptions
B6: Business | D6: RIN categories | F6: Business categories | G6: AER categories | I6: PTRM asset category | K6: RIN category | N6: Forecast basis | P6: Growth rates | S6: Code | T6: Segment | U6: Type
B7: United | D7: Replacement | F7: Replacement | G7: Replacement | I7: Subtransmission | K7: Residential | L7: Res | N7: History | P7: Historical | S7: R1 | T7: Residential | U7: Simple connection LV
B8: CitiPower | D8: Augmentation | F8: DER Augmentation | G8: Augmentation | I8: Distribution system assets | K8: Commercial/Industrial | L8: C&I | N8: Business case | P8: Growth1 | S8: R2 | T8: Residential | U8: Complex connection LV
B9: United Energy | D9: Connections | F9: Other augmentation | G9: DER capex | I9: Public lighting | K9: Subdivision | L9: Subd | N9: Other | P9: Growth2 | S9: R3 | T9: Residential | U9: Complex connection HV
F10: Connections | G10: Connections | I10: SCADA/Network control | K10: Embedded generation | L10: EmbG | P10: Growth3 | S10: CI1 | T10: Commercial/Industrial | U10: Simple connection LV
F11: SCADA | G11: Augmentation | I11: Non-network general assets - IT | K11: Other connections | L11: Other | P11: Flat | S11: CI2 | T11: Commercial/Industrial | U11: Complex connection HV (customer connected at LV, minor HV works)
F12: VBRC | G12: Replacement | I12: Non-network general assets - Other | P12: ACIF | S12: CI3 | T12: Commercial/Industrial | U12: Complex connection HV (customer connected at LV, upstream asset works)
F13: REFCL | G13: Augmentation | I13: VBRC | P13: GSP | S13: CI4 | T13: Commercial/Industrial | U13: Complex connection HV (customer connected at HV)
F14: Recurring IT | G14: ICT capex | I14: Land | P14: HIA | S14: CI5 | T14: Commercial/Industrial | U14: Complex connection sub-transmission
F15: Non-recurring IT | G15: ICT capex | I15: Accelerated depreciation assets | P15: ACIF FTI | S15: S1 | T15: Subdivision | U15: Complex connection LV
F16: Recurring DER IT | G16: DER capex | P16: Macromonitor | S16: S2 | T16: Subdivision | U16: Complex connection HV (no upstream asset works)
F17: Non-recurring DER IT | G17: DER capex | S17: S3 | T17: Subdivision | U17: Complex connection HV (with upstream asset works)
F18: Property | G18: Property capex | S18: EG1 | T18: Embedded generation | U18: Simple connection LV
F19: Fleet | G19: Fleet capex | S19: EG2 | T19: Embedded generation | U19: Complex connection HV (small capacity)
F20: Other | G20: Other non-network capex | S20: EG3 | T20: Embedded generation | U20: Complex connection HV (large capacity)
F21: Land | G21: Other non-network capex
W60: RHU | X60: Fuse/Junction Box Replacement | AB60: =W60&X60 -> RHUFuse/Junction Box Replacement
W61: RLG | X61: Sustainable Lantern Replacemen | AB61: RLGSustainable Lantern Replacemen
W62: RLJ | X62: Single Main Roads P/L replacem | AB62: RLJSingle Main Roads P/L replacem
W63: RLM | X63: Single Minor Roads P/L replace | AB63: RLMSingle Minor Roads P/L replace
W64: RMF | X64: Premise faults service replace | AB64: RMFPremise faults service replace
W65: RMJ | X65: Replace Service (alter termina | AB65: RMJReplace Service (alter termina
W66: RMK | X66: Replace Service (& customer ma | AB66: RMKReplace Service (& customer ma
W67: RML | X67: Install Disconnect Device | AB67: RMLInstall Disconnect Device
W68: RMP | X68: Service replacement (Planned) | AB68: RMPService replacement (Planned)
W69: RMU | X69: O/h services replaced with U/G | AB69: RMUO/h services replaced with U/G
W70: ROA | X70: O/H Line Repl-HV ABC | AB70: ROAO/H Line Repl-HV ABC
W71: ROF | X71: Fargo Sleeve replacement (3) | AB71: ROFFargo Sleeve replacement (3)
W72: ROH | X72: Open wire replacement | AB72: ROHOpen wire replacement
W73: ROL | X73: O/H Line Repl-LV ABC | AB73: ROLO/H Line Repl-LV ABC
W74: ROP | AB74: ROP
W75: RPA | X75: Pole Replace P/L - Main Roads | AB75: RPAPole Replace P/L - Main Roads
W76: RPB | X76: Pole Replace P/L - Minor Roads | AB76: RPBPole Replace P/L - Minor Roads
W77: RPH | X77: Pole Replacement- High Voltage | AB77: RPHPole Replacement- High Voltage
W78: RPL | X78: Pole Replacement- Low Voltage | AB78: RPLPole Replacement- Low Voltage
W79: RPS | X79: Pole Replacement- SubT | AB79: RPSPole Replacement- SubT
W80: RRH | X80: Pole Reinforcement- HV | AB80: RRHPole Reinforcement- HV
W81: RRL | X81: Pole Reinforcement- LV | AB81: RRLPole Reinforcement- LV
W82: RRS | X82: Pole Reinforcement- ST | AB82: RRSPole Reinforcement- ST
W83: RSA | X83: Subtrans Install Replacement | AB83: RSASubtrans Install Replacement
W84: RUA | X84: Dist. U/G Cable Replacement | AB84: RUADist. U/G Cable Replacement
W85: RUC | X85: Underground Cable Replacement | AB85: RUCUnderground Cable Replacement
W86: RUD | X86: Pillar to Pit | AB86: RUDPillar to Pit
W87: RUE | X87: Pillar to Pit Cust Service Alt | AB87: RUEPillar to Pit Cust Service Alt
W88: RUF | X88: Pillar to UEL STD Pillar Repla | AB88: RUFPillar to UEL STD Pillar Repla
W89: RUG | X89: Dist. U/G Cable Repl-non cabus | AB89: RUGDist. U/G Cable Repl-non cabus
W90: RUH | X90: Dist. U/G Cable Repl-HV | AB90: RUHDist. U/G Cable Repl-HV
W91: RUL | X91: Dist. U/G Cable Repl-LV | AB91: RULDist. U/G Cable Repl-LV
W92: RUP | X92: Dist. U/G Cable Replacement - | AB92: RUPDist. U/G Cable Replacement -
W93: RUS | X93: Dist. U/G Cable Repl-SubT | AB93: =W93&X93 -> RUSDist. U/G Cable Repl-SubT
W94: RXD | X94: Surge Diverter repl (set of 3) | AB94: RXDSurge Diverter repl (set of 3)
W95: RXE | X95: Surge Diverter repl - (single) | AB95: RXESurge Diverter repl - (single)
W96: RXF | X96: Fuse Unit repl (set of 3) | AB96: RXFFuse Unit repl (set of 3)
W97: RXG | X97: Sub T Insulator repl(set of 3) | AB97: RXGSub T Insulator repl(set of 3)
W98: RXH | X98: HV Xarms replacement | AB98: RXHHV Xarms replacement
W99: RXI | X99: HV Insulator repl (set of 3) | AB99: RXIHV Insulator repl (set of 3)
W100: RXJ | X100: Fuse Unit repl (single) | AB100: RXJFuse Unit repl (single)
W101: RXK | X101: Sub T Insulator repl (single) | AB101: RXKSub T Insulator repl (single)
W102: RXL | X102: LV Xarms replacement | AB102: RXLLV Xarms replacement
W103: RXM | X103: HV Insulator repl (single) | AB103: RXMHV Insulator repl (single)
W104: RXP | X104: Pole Top Rot life extension | AB104: RXPPole Top Rot life extension
W105: RXS | X105: ST Xarms replacement | AB105: RXSST Xarms replacement

Sheet Output
A1: United Energy
C2: SME Output sheet for input into AER Capex Forecast Model | I2: Key: | J2: Input | K2: Do not edit
C3: Input| Projects
I5: Total annual direct costs excl. type 2 capcons, unescalated (note: please include type 1 capital contributions and rebates where applicable) | Q5: Total annual type 1 capital contributions, direct costs, unescalated | AF5: 0 | AG5: 0
I6: =SUM(I10:I1009) -> 103133.5665 | J6: 58449.43881 | K6: 82196.41347 | L6: 99552.61648 | M6: 111301.7389 | N6: 97110.18048 | O6: 104363.6009 | Q6: =SUM(Q10:Q1009) -> 93245.76396 | R6: 43516.1482 | S6: 62584.73479 | T6: 76958.9131 | U6: 86407.30343 | V6: 73905.12948 | W6: 80270.88748 | AF6: NOTE: fill in table only if you select 'DNSP defined' overhead allocation | AR6: 1 | AS6: 2 | AT6: 3 | AU6: 4 | AV6: 5 | AW6: 6 | AX6: 7 | AY6: 8 | AZ6: 9 | BA6: 10 | BB6: 11 | BC6: 12 | BD6: 13 | BE6: 14 | BF6: 15 | BG6: 16 | BH6: 17 | BI6: 18 | BJ6: 19 | BK6: 20 | BL6: 21 | BM6: 22 | BN6: 23 | BO6: 24 | BP6: 25 | BQ6: 26 | BR6: 27 | BS6: 28 | BT6: 29 | BU6: 30 | BV6: 31 | BW6: 32 | BX6: 33 | BY6: 34 | BZ6: 35 | CA6: 36 | CB6: 37 | CC6: 38 | CD6: 39 | CE6: 40 | CF6: 41 | CG6: 42 | CH6: 43 | CI6: 44 | CJ6: 45 | CK6: 46 | CL6: 47 | CM6: 48 | CN6: 49 | CO6: 50
C7: 13. Project Details | F7: 14. RIN and optional DNSP mapping categories | I7: 15. Unescalated direct costs (excluding type 2 capital contributions) ($'000s 2025-26 June) | Q7: 16. Type 1 capital contributions included in table 15 ($'000s 2025-26 June) | Y7: 17. Cost components as % of direct costs | AC7: 18. Capitalised overheads allocation | AF7: 19. Allocation of capitalised overheads - DNSP defined | AI7: 20. AER categories as % of direct costs (i.e. total costs reported in table 15, excluding capitalised overheads) | AR7: 21. PTRM asset classes as % of direct costs (i.e. total costs reported in table 15, excluding capitalised overheads)
AB8: 0 | AF8: % of total capitalised overheads allocated to project: | AQ8: 0 | AR8: Dx | AS8: Dx | AT8: Dx | AU8: Dx | AV8: Dx | AW8: Dx | AX8: Dx | AY8: Dx | AZ8: Dx | BA8: Dx | CP8: 0
C9: Project/Program Inputs | D9: Unique ID | F9: RIN categories | G9: DNSP category (free-fill) | I9: 2024-25 | J9: 2025-26 | K9: 2026-27 | L9: 2027-28 | M9: 2028-29 | N9: 2029-30 | O9: 2030-31 | Q9: 2024-25 | R9: 2025-26 | S9: 2026-27 | T9: 2027-28 | U9: 2028-29 | V9: 2029-30 | W9: 2030-31 | Y9: Internal labour | Z9: Contract labour | AA9: Non-labour | AC9: Network Overheads Applies | AD9: Corporate Overheads Applies | AF9: % of total network overheads | AG9: % of total corporate overheads | AI9: Replacement | AJ9: DER capex | AK9: Augmentation | AL9: Connections | AM9: ICT capex | AN9: Property capex | AO9: Fleet capex | AP9: Other non-network capex | AR9: Subtransmission | AS9: Distribution system assets | AT9: SCADA (10-year asset) | AU9: Non-network general assets - IT | AV9: Non-network general assets - Other | AW9: VBRC | AX9: Land | AY9: Accelerated depreciation assets | AZ9: in-house software | BA9: Equity raising costs
B10: 1 | C10: LV pole replacement | D10: 1 | F10: Replacement | G10: Replacement | I10: =SUMPRODUCT((Forecast_spend!U$16:U$31)*(Forecast_spend!$F$16:$F$31=$C10))/1000 -> 0 | J10: =SUMPRODUCT((Forecast_spend!V$16:V$31)*(Forecast_spend!$F$16:$F$31=$C10))/1000 -> 0 | K10: =SUMPRODUCT((Forecast_spend!W$16:W$31)*(Forecast_spend!$F$16:$F$31=$C10))/1000 -> 0 | L10: =SUMPRODUCT((Forecast_spend!X$16:X$31)*(Forecast_spend!$F$16:$F$31=$C10))/1000 -> 0 | M10: =SUMPRODUCT((Forecast_spend!Y$16:Y$31)*(Forecast_spend!$F$16:$F$31=$C10))/1000 -> 0 | N10: =SUMPRODUCT((Forecast_spend!Z$16:Z$31)*(Forecast_spend!$F$16:$F$31=$C10))/1000 -> 0 | O10: =SUMPRODUCT((Forecast_spend!AA$16:AA$31)*(Forecast_spend!$F$16:$F$31=$C10))/1000 -> 0 | Q10: =SUMPRODUCT((Forecast_contrib!U$16:U$31)*(Forecast_contrib!$F$16:$F$31=$C10))/1000 -> 0 | R10: =SUMPRODUCT((Forecast_contrib!V$16:V$31)*(Forecast_contrib!$F$16:$F$31=$C10))/1000 -> 0 | S10: =SUMPRODUCT((Forecast_contrib!W$16:W$31)*(Forecast_contrib!$F$16:$F$31=$C10))/1000 -> 0 | T10: =SUMPRODUCT((Forecast_contrib!X$16:X$31)*(Forecast_contrib!$F$16:$F$31=$C10))/1000 -> 0 | U10: =SUMPRODUCT((Forecast_contrib!Y$16:Y$31)*(Forecast_contrib!$F$16:$F$31=$C10))/1000 -> 0 | V10: =SUMPRODUCT((Forecast_contrib!Z$16:Z$31)*(Forecast_contrib!$F$16:$F$31=$C10))/1000 -> 0 | W10: =SUMPRODUCT((Forecast_contrib!AA$16:AA$31)*(Forecast_contrib!$F$16:$F$31=$C10))/1000 -> 0 | AB10: =IF(SUM(Y10:AA10,I10:O10)=0,"",IF(SUM(Y10:AA10)=1,"",1)) ->  | AI10: 0 | AJ10: 0 | AK10: 0 | AL10: 0 | AM10: 0 | AN10: 0 | AO10: 0 | AP10: 0 | CP10: =IF(COUNT(AI10:AP10)=0,"",IF(SUM(AI10:AP10)=1,"",1)) -> 1
B11: 2 | C11: HV pole replacement | D11: 2 | F11: Replacement | G11: Replacement | I11: =SUMPRODUCT((Forecast_spend!U$16:U$31)*(Forecast_spend!$F$16:$F$31=$C11))/1000 -> 0 | J11: =SUMPRODUCT((Forecast_spend!V$16:V$31)*(Forecast_spend!$F$16:$F$31=$C11))/1000 -> 0 | K11: =SUMPRODUCT((Forecast_spend!W$16:W$31)*(Forecast_spend!$F$16:$F$31=$C11))/1000 -> 0 | L11: =SUMPRODUCT((Forecast_spend!X$16:X$31)*(Forecast_spend!$F$16:$F$31=$C11))/1000 -> 0 | M11: =SUMPRODUCT((Forecast_spend!Y$16:Y$31)*(Forecast_spend!$F$16:$F$31=$C11))/1000 -> 0 | N11: =SUMPRODUCT((Forecast_spend!Z$16:Z$31)*(Forecast_spend!$F$16:$F$31=$C11))/1000 -> 0 | O11: =SUMPRODUCT((Forecast_spend!AA$16:AA$31)*(Forecast_spend!$F$16:$F$31=$C11))/1000 -> 0 | Q11: =SUMPRODUCT((Forecast_contrib!U$16:U$31)*(Forecast_contrib!$F$16:$F$31=$C11))/1000 -> 0 | R11: =SUMPRODUCT((Forecast_contrib!V$16:V$31)*(Forecast_contrib!$F$16:$F$31=$C11))/1000 -> 0 | S11: =SUMPRODUCT((Forecast_contrib!W$16:W$31)*(Forecast_contrib!$F$16:$F$31=$C11))/1000 -> 0 | T11: =SUMPRODUCT((Forecast_contrib!X$16:X$31)*(Forecast_contrib!$F$16:$F$31=$C11))/1000 -> 0 | U11: =SUMPRODUCT((Forecast_contrib!Y$16:Y$31)*(Forecast_contrib!$F$16:$F$31=$C11))/1000 -> 0 | V11: =SUMPRODUCT((Forecast_contrib!Z$16:Z$31)*(Forecast_contrib!$F$16:$F$31=$C11))/1000 -> 0 | W11: =SUMPRODUCT((Forecast_contrib!AA$16:AA$31)*(Forecast_contrib!$F$16:$F$31=$C11))/1000 -> 0 | AI11: 0 | AJ11: 0 | AK11: 0 | AL11: 0 | AM11: 0 | AN11: 0 | AO11: 0 | AP11: 0 | CP11: 1
B12: 3 | C12: LV pole top replacement | D12: 3 | F12: Replacement | G12: Replacement | I12: =SUMPRODUCT((Forecast_spend!U$16:U$31)*(Forecast_spend!$F$16:$F$31=$C12))/1000 -> 0 | J12: =SUMPRODUCT((Forecast_spend!V$16:V$31)*(Forecast_spend!$F$16:$F$31=$C12))/1000 -> 0 | K12: =SUMPRODUCT((Forecast_spend!W$16:W$31)*(Forecast_spend!$F$16:$F$31=$C12))/1000 -> 0 | L12: =SUMPRODUCT((Forecast_spend!X$16:X$31)*(Forecast_spend!$F$16:$F$31=$C12))/1000 -> 0 | M12: =SUMPRODUCT((Forecast_spend!Y$16:Y$31)*(Forecast_spend!$F$16:$F$31=$C12))/1000 -> 0 | N12: =SUMPRODUCT((Forecast_spend!Z$16:Z$31)*(Forecast_spend!$F$16:$F$31=$C12))/1000 -> 0 | O12: =SUMPRODUCT((Forecast_spend!AA$16:AA$31)*(Forecast_spend!$F$16:$F$31=$C12))/1000 -> 0 | Q12: =SUMPRODUCT((Forecast_contrib!U$16:U$31)*(Forecast_contrib!$F$16:$F$31=$C12))/1000 -> 0 | R12: =SUMPRODUCT((Forecast_contrib!V$16:V$31)*(Forecast_contrib!$F$16:$F$31=$C12))/1000 -> 0 | S12: =SUMPRODUCT((Forecast_contrib!W$16:W$31)*(Forecast_contrib!$F$16:$F$31=$C12))/1000 -> 0 | T12: =SUMPRODUCT((Forecast_contrib!X$16:X$31)*(Forecast_contrib!$F$16:$F$31=$C12))/1000 -> 0 | U12: =SUMPRODUCT((Forecast_contrib!Y$16:Y$31)*(Forecast_contrib!$F$16:$F$31=$C12))/1000 -> 0 | V12: =SUMPRODUCT((Forecast_contrib!Z$16:Z$31)*(Forecast_contrib!$F$16:$F$31=$C12))/1000 -> 0 | W12: =SUMPRODUCT((Forecast_contrib!AA$16:AA$31)*(Forecast_contrib!$F$16:$F$31=$C12))/1000 -> 0 | AI12: 0 | AJ12: 0 | AK12: 0 | AL12: 0 | AM12: 0 | AN12: 0 | AO12: 0 | AP12: 0 | CP12: 1
B13: 4 | C13: HV pole top replacement | D13: 4 | F13: Replacement | G13: Replacement | I13: =SUMPRODUCT((Forecast_spend!U$16:U$31)*(Forecast_spend!$F$16:$F$31=$C13))/1000 -> 0 | J13: =SUMPRODUCT((Forecast_spend!V$16:V$31)*(Forecast_spend!$F$16:$F$31=$C13))/1000 -> 0 | K13: =SUMPRODUCT((Forecast_spend!W$16:W$31)*(Forecast_spend!$F$16:$F$31=$C13))/1000 -> 0 | L13: =SUMPRODUCT((Forecast_spend!X$16:X$31)*(Forecast_spend!$F$16:$F$31=$C13))/1000 -> 0 | M13: =SUMPRODUCT((Forecast_spend!Y$16:Y$31)*(Forecast_spend!$F$16:$F$31=$C13))/1000 -> 0 | N13: =SUMPRODUCT((Forecast_spend!Z$16:Z$31)*(Forecast_spend!$F$16:$F$31=$C13))/1000 -> 0 | O13: =SUMPRODUCT((Forecast_spend!AA$16:AA$31)*(Forecast_spend!$F$16:$F$31=$C13))/1000 -> 0 | Q13: =SUMPRODUCT((Forecast_contrib!U$16:U$31)*(Forecast_contrib!$F$16:$F$31=$C13))/1000 -> 0 | R13: =SUMPRODUCT((Forecast_contrib!V$16:V$31)*(Forecast_contrib!$F$16:$F$31=$C13))/1000 -> 0 | S13: =SUMPRODUCT((Forecast_contrib!W$16:W$31)*(Forecast_contrib!$F$16:$F$31=$C13))/1000 -> 0 | T13: =SUMPRODUCT((Forecast_contrib!X$16:X$31)*(Forecast_contrib!$F$16:$F$31=$C13))/1000 -> 0 | U13: =SUMPRODUCT((Forecast_contrib!Y$16:Y$31)*(Forecast_contrib!$F$16:$F$31=$C13))/1000 -> 0 | V13: =SUMPRODUCT((Forecast_contrib!Z$16:Z$31)*(Forecast_contrib!$F$16:$F$31=$C13))/1000 -> 0 | W13: =SUMPRODUCT((Forecast_contrib!AA$16:AA$31)*(Forecast_contrib!$F$16:$F$31=$C13))/1000 -> 0 | AI13: 0 | AJ13: 0 | AK13: 0 | AL13: 0 | AM13: 0 | AN13: 0 | AO13: 0 | AP13: 0 | CP13: 1
B14: 5 | C14: Pole reinforcement | D14: 5 | F14: Replacement | G14: Replacement | I14: =SUMPRODUCT((Forecast_spend!U$16:U$31)*(Forecast_spend!$F$16:$F$31=$C14))/1000 -> 0 | J14: =SUMPRODUCT((Forecast_spend!V$16:V$31)*(Forecast_spend!$F$16:$F$31=$C14))/1000 -> 0 | K14: =SUMPRODUCT((Forecast_spend!W$16:W$31)*(Forecast_spend!$F$16:$F$31=$C14))/1000 -> 0 | L14: =SUMPRODUCT((Forecast_spend!X$16:X$31)*(Forecast_spend!$F$16:$F$31=$C14))/1000 -> 0 | M14: =SUMPRODUCT((Forecast_spend!Y$16:Y$31)*(Forecast_spend!$F$16:$F$31=$C14))/1000 -> 0 | N14: =SUMPRODUCT((Forecast_spend!Z$16:Z$31)*(Forecast_spend!$F$16:$F$31=$C14))/1000 -> 0 | O14: =SUMPRODUCT((Forecast_spend!AA$16:AA$31)*(Forecast_spend!$F$16:$F$31=$C14))/1000 -> 0 | Q14: =SUMPRODUCT((Forecast_contrib!U$16:U$31)*(Forecast_contrib!$F$16:$F$31=$C14))/1000 -> 0 | R14: =SUMPRODUCT((Forecast_contrib!V$16:V$31)*(Forecast_contrib!$F$16:$F$31=$C14))/1000 -> 0 | S14: =SUMPRODUCT((Forecast_contrib!W$16:W$31)*(Forecast_contrib!$F$16:$F$31=$C14))/1000 -> 0 | T14: =SUMPRODUCT((Forecast_contrib!X$16:X$31)*(Forecast_contrib!$F$16:$F$31=$C14))/1000 -> 0 | U14: =SUMPRODUCT((Forecast_contrib!Y$16:Y$31)*(Forecast_contrib!$F$16:$F$31=$C14))/1000 -> 0 | V14: =SUMPRODUCT((Forecast_contrib!Z$16:Z$31)*(Forecast_contrib!$F$16:$F$31=$C14))/1000 -> 0 | W14: =SUMPRODUCT((Forecast_contrib!AA$16:AA$31)*(Forecast_contrib!$F$16:$F$31=$C14))/1000 -> 0 | AI14: 0 | AJ14: 0 | AK14: 0 | AL14: 0 | AM14: 0 | AN14: 0 | AO14: 0 | AP14: 0 | CP14: 1
B15: 6 | C15: Risk-based HV conductor replacement | D15: 6 | F15: Replacement | G15: Replacement | I15: =SUMPRODUCT((Forecast_spend!U$16:U$31)*(Forecast_spend!$F$16:$F$31=$C15))/1000 -> 0 | J15: =SUMPRODUCT((Forecast_spend!V$16:V$31)*(Forecast_spend!$F$16:$F$31=$C15))/1000 -> 0 | K15: =SUMPRODUCT((Forecast_spend!W$16:W$31)*(Forecast_spend!$F$16:$F$31=$C15))/1000 -> 0 | L15: =SUMPRODUCT((Forecast_spend!X$16:X$31)*(Forecast_spend!$F$16:$F$31=$C15))/1000 -> 0 | M15: =SUMPRODUCT((Forecast_spend!Y$16:Y$31)*(Forecast_spend!$F$16:$F$31=$C15))/1000 -> 0 | N15: =SUMPRODUCT((Forecast_spend!Z$16:Z$31)*(Forecast_spend!$F$16:$F$31=$C15))/1000 -> 0 | O15: =SUMPRODUCT((Forecast_spend!AA$16:AA$31)*(Forecast_spend!$F$16:$F$31=$C15))/1000 -> 0 | Q15: =SUMPRODUCT((Forecast_contrib!U$16:U$31)*(Forecast_contrib!$F$16:$F$31=$C15))/1000 -> 0 | R15: =SUMPRODUCT((Forecast_contrib!V$16:V$31)*(Forecast_contrib!$F$16:$F$31=$C15))/1000 -> 0 | S15: =SUMPRODUCT((Forecast_contrib!W$16:W$31)*(Forecast_contrib!$F$16:$F$31=$C15))/1000 -> 0 | T15: =SUMPRODUCT((Forecast_contrib!X$16:X$31)*(Forecast_contrib!$F$16:$F$31=$C15))/1000 -> 0 | U15: =SUMPRODUCT((Forecast_contrib!Y$16:Y$31)*(Forecast_contrib!$F$16:$F$31=$C15))/1000 -> 0 | V15: =SUMPRODUCT((Forecast_contrib!Z$16:Z$31)*(Forecast_contrib!$F$16:$F$31=$C15))/1000 -> 0 | W15: =SUMPRODUCT((Forecast_contrib!AA$16:AA$31)*(Forecast_contrib!$F$16:$F$31=$C15))/1000 -> 0 | AI15: 0 | AJ15: 0 | AK15: 0 | AL15: 0 | AM15: 0 | AN15: 0 | AO15: 0 | AP15: 0 | CP15: 1
B16: 7 | C16: Defective conductor | D16: 7 | F16: Replacement | G16: Replacement | I16: =SUMPRODUCT((Forecast_spend!U$16:U$31)*(Forecast_spend!$F$16:$F$31=$C16))/1000 -> 0 | J16: =SUMPRODUCT((Forecast_spend!V$16:V$31)*(Forecast_spend!$F$16:$F$31=$C16))/1000 -> 0 | K16: =SUMPRODUCT((Forecast_spend!W$16:W$31)*(Forecast_spend!$F$16:$F$31=$C16))/1000 -> 0 | L16: =SUMPRODUCT((Forecast_spend!X$16:X$31)*(Forecast_spend!$F$16:$F$31=$C16))/1000 -> 0 | M16: =SUMPRODUCT((Forecast_spend!Y$16:Y$31)*(Forecast_spend!$F$16:$F$31=$C16))/1000 -> 0 | N16: =SUMPRODUCT((Forecast_spend!Z$16:Z$31)*(Forecast_spend!$F$16:$F$31=$C16))/1000 -> 0 | O16: =SUMPRODUCT((Forecast_spend!AA$16:AA$31)*(Forecast_spend!$F$16:$F$31=$C16))/1000 -> 0 | Q16: =SUMPRODUCT((Forecast_contrib!U$16:U$31)*(Forecast_contrib!$F$16:$F$31=$C16))/1000 -> 0 | R16: =SUMPRODUCT((Forecast_contrib!V$16:V$31)*(Forecast_contrib!$F$16:$F$31=$C16))/1000 -> 0 | S16: =SUMPRODUCT((Forecast_contrib!W$16:W$31)*(Forecast_contrib!$F$16:$F$31=$C16))/1000 -> 0 | T16: =SUMPRODUCT((Forecast_contrib!X$16:X$31)*(Forecast_contrib!$F$16:$F$31=$C16))/1000 -> 0 | U16: =SUMPRODUCT((Forecast_contrib!Y$16:Y$31)*(Forecast_contrib!$F$16:$F$31=$C16))/1000 -> 0 | V16: =SUMPRODUCT((Forecast_contrib!Z$16:Z$31)*(Forecast_contrib!$F$16:$F$31=$C16))/1000 -> 0 | W16: =SUMPRODUCT((Forecast_contrib!AA$16:AA$31)*(Forecast_contrib!$F$16:$F$31=$C16))/1000 -> 0 | AI16: 0 | AJ16: 0 | AK16: 0 | AL16: 0 | AM16: 0 | AN16: 0 | AO16: 0 | AP16: 0 | CP16: 1
B17: 8 | C17: Corrective HV cable replacement | D17: 8 | F17: Replacement | G17: Replacement | I17: =SUMPRODUCT((Forecast_spend!U$16:U$31)*(Forecast_spend!$F$16:$F$31=$C17))/1000 -> 0 | J17: =SUMPRODUCT((Forecast_spend!V$16:V$31)*(Forecast_spend!$F$16:$F$31=$C17))/1000 -> 0 | K17: =SUMPRODUCT((Forecast_spend!W$16:W$31)*(Forecast_spend!$F$16:$F$31=$C17))/1000 -> 0 | L17: =SUMPRODUCT((Forecast_spend!X$16:X$31)*(Forecast_spend!$F$16:$F$31=$C17))/1000 -> 0 | M17: =SUMPRODUCT((Forecast_spend!Y$16:Y$31)*(Forecast_spend!$F$16:$F$31=$C17))/1000 -> 0 | N17: =SUMPRODUCT((Forecast_spend!Z$16:Z$31)*(Forecast_spend!$F$16:$F$31=$C17))/1000 -> 0 | O17: =SUMPRODUCT((Forecast_spend!AA$16:AA$31)*(Forecast_spend!$F$16:$F$31=$C17))/1000 -> 0 | Q17: =SUMPRODUCT((Forecast_contrib!U$16:U$31)*(Forecast_contrib!$F$16:$F$31=$C17))/1000 -> 0 | R17: =SUMPRODUCT((Forecast_contrib!V$16:V$31)*(Forecast_contrib!$F$16:$F$31=$C17))/1000 -> 0 | S17: =SUMPRODUCT((Forecast_contrib!W$16:W$31)*(Forecast_contrib!$F$16:$F$31=$C17))/1000 -> 0 | T17: =SUMPRODUCT((Forecast_contrib!X$16:X$31)*(Forecast_contrib!$F$16:$F$31=$C17))/1000 -> 0 | U17: =SUMPRODUCT((Forecast_contrib!Y$16:Y$31)*(Forecast_contrib!$F$16:$F$31=$C17))/1000 -> 0 | V17: =SUMPRODUCT((Forecast_contrib!Z$16:Z$31)*(Forecast_contrib!$F$16:$F$31=$C17))/1000 -> 0 | W17: =SUMPRODUCT((Forecast_contrib!AA$16:AA$31)*(Forecast_contrib!$F$16:$F$31=$C17))/1000 -> 0 | AI17: 0 | AJ17: 0 | AK17: 0 | AL17: 0 | AM17: 0 | AN17: 0 | AO17: 0 | AP17: 0 | CP17: 1
B18: 9 | C18: Corrective LV cable replacement | D18: 9 | F18: Replacement | G18: Replacement | I18: =SUMPRODUCT((Forecast_spend!U$16:U$31)*(Forecast_spend!$F$16:$F$31=$C18))/1000 -> 0 | J18: =SUMPRODUCT((Forecast_spend!V$16:V$31)*(Forecast_spend!$F$16:$F$31=$C18))/1000 -> 0 | K18: =SUMPRODUCT((Forecast_spend!W$16:W$31)*(Forecast_spend!$F$16:$F$31=$C18))/1000 -> 0 | L18: =SUMPRODUCT((Forecast_spend!X$16:X$31)*(Forecast_spend!$F$16:$F$31=$C18))/1000 -> 0 | M18: =SUMPRODUCT((Forecast_spend!Y$16:Y$31)*(Forecast_spend!$F$16:$F$31=$C18))/1000 -> 0 | N18: =SUMPRODUCT((Forecast_spend!Z$16:Z$31)*(Forecast_spend!$F$16:$F$31=$C18))/1000 -> 0 | O18: =SUMPRODUCT((Forecast_spend!AA$16:AA$31)*(Forecast_spend!$F$16:$F$31=$C18))/1000 -> 0 | Q18: =SUMPRODUCT((Forecast_contrib!U$16:U$31)*(Forecast_contrib!$F$16:$F$31=$C18))/1000 -> 0 | R18: =SUMPRODUCT((Forecast_contrib!V$16:V$31)*(Forecast_contrib!$F$16:$F$31=$C18))/1000 -> 0 | S18: =SUMPRODUCT((Forecast_contrib!W$16:W$31)*(Forecast_contrib!$F$16:$F$31=$C18))/1000 -> 0 | T18: =SUMPRODUCT((Forecast_contrib!X$16:X$31)*(Forecast_contrib!$F$16:$F$31=$C18))/1000 -> 0 | U18: =SUMPRODUCT((Forecast_contrib!Y$16:Y$31)*(Forecast_contrib!$F$16:$F$31=$C18))/1000 -> 0 | V18: =SUMPRODUCT((Forecast_contrib!Z$16:Z$31)*(Forecast_contrib!$F$16:$F$31=$C18))/1000 -> 0 | W18: =SUMPRODUCT((Forecast_contrib!AA$16:AA$31)*(Forecast_contrib!$F$16:$F$31=$C18))/1000 -> 0 | AB18: =IF(SUM(Y18:AA18,I18:O18)=0,"",IF(SUM(Y18:AA18)=1,"",1)) ->  | AI18: 0 | AJ18: 0 | AK18: 0 | AL18: 0 | AM18: 0 | AN18: 0 | AO18: 0 | AP18: 0 | CP18: 1
B19: 10 | C19: Underground pits and pillars | D19: 10 | F19: Replacement | G19: Replacement | I19: =SUMPRODUCT((Forecast_spend!U$16:U$31)*(Forecast_spend!$F$16:$F$31=$C19))/1000 -> 0 | J19: =SUMPRODUCT((Forecast_spend!V$16:V$31)*(Forecast_spend!$F$16:$F$31=$C19))/1000 -> 0 | K19: =SUMPRODUCT((Forecast_spend!W$16:W$31)*(Forecast_spend!$F$16:$F$31=$C19))/1000 -> 0 | L19: =SUMPRODUCT((Forecast_spend!X$16:X$31)*(Forecast_spend!$F$16:$F$31=$C19))/1000 -> 0 | M19: =SUMPRODUCT((Forecast_spend!Y$16:Y$31)*(Forecast_spend!$F$16:$F$31=$C19))/1000 -> 0 | N19: =SUMPRODUCT((Forecast_spend!Z$16:Z$31)*(Forecast_spend!$F$16:$F$31=$C19))/1000 -> 0 | O19: =SUMPRODUCT((Forecast_spend!AA$16:AA$31)*(Forecast_spend!$F$16:$F$31=$C19))/1000 -> 0 | Q19: =SUMPRODUCT((Forecast_contrib!U$16:U$31)*(Forecast_contrib!$F$16:$F$31=$C19))/1000 -> 0 | R19: =SUMPRODUCT((Forecast_contrib!V$16:V$31)*(Forecast_contrib!$F$16:$F$31=$C19))/1000 -> 0 | S19: =SUMPRODUCT((Forecast_contrib!W$16:W$31)*(Forecast_contrib!$F$16:$F$31=$C19))/1000 -> 0 | T19: =SUMPRODUCT((Forecast_contrib!X$16:X$31)*(Forecast_contrib!$F$16:$F$31=$C19))/1000 -> 0 | U19: =SUMPRODUCT((Forecast_contrib!Y$16:Y$31)*(Forecast_contrib!$F$16:$F$31=$C19))/1000 -> 0 | V19: =SUMPRODUCT((Forecast_contrib!Z$16:Z$31)*(Forecast_contrib!$F$16:$F$31=$C19))/1000 -> 0 | W19: =SUMPRODUCT((Forecast_contrib!AA$16:AA$31)*(Forecast_contrib!$F$16:$F$31=$C19))/1000 -> 0 | AB19: =IF(SUM(Y19:AA19,I19:O19)=0,"",IF(SUM(Y19:AA19)=1,"",1)) ->  | AI19: 0 | AJ19: 0 | AK19: 0 | AL19: 0 | AM19: 0 | AN19: 0 | AO19: 0 | AP19: 0 | CP19: =IF(COUNT(AI19:AP19)=0,"",IF(SUM(AI19:AP19)=1,"",1)) -> 1
B20: 11 | C20: Ampact connector | D20: 11 | F20: Replacement | G20: Replacement | I20: =SUMPRODUCT((Forecast_spend!U$16:U$31)*(Forecast_spend!$F$16:$F$31=$C20))/1000 -> 0 | J20: =SUMPRODUCT((Forecast_spend!V$16:V$31)*(Forecast_spend!$F$16:$F$31=$C20))/1000 -> 0 | K20: =SUMPRODUCT((Forecast_spend!W$16:W$31)*(Forecast_spend!$F$16:$F$31=$C20))/1000 -> 0 | L20: =SUMPRODUCT((Forecast_spend!X$16:X$31)*(Forecast_spend!$F$16:$F$31=$C20))/1000 -> 0 | M20: =SUMPRODUCT((Forecast_spend!Y$16:Y$31)*(Forecast_spend!$F$16:$F$31=$C20))/1000 -> 0 | N20: =SUMPRODUCT((Forecast_spend!Z$16:Z$31)*(Forecast_spend!$F$16:$F$31=$C20))/1000 -> 0 | O20: =SUMPRODUCT((Forecast_spend!AA$16:AA$31)*(Forecast_spend!$F$16:$F$31=$C20))/1000 -> 0 | Q20: =SUMPRODUCT((Forecast_contrib!U$16:U$31)*(Forecast_contrib!$F$16:$F$31=$C20))/1000 -> 0 | R20: =SUMPRODUCT((Forecast_contrib!V$16:V$31)*(Forecast_contrib!$F$16:$F$31=$C20))/1000 -> 0 | S20: =SUMPRODUCT((Forecast_contrib!W$16:W$31)*(Forecast_contrib!$F$16:$F$31=$C20))/1000 -> 0 | T20: =SUMPRODUCT((Forecast_contrib!X$16:X$31)*(Forecast_contrib!$F$16:$F$31=$C20))/1000 -> 0 | U20: =SUMPRODUCT((Forecast_contrib!Y$16:Y$31)*(Forecast_contrib!$F$16:$F$31=$C20))/1000 -> 0 | V20: =SUMPRODUCT((Forecast_contrib!Z$16:Z$31)*(Forecast_contrib!$F$16:$F$31=$C20))/1000 -> 0 | W20: =SUMPRODUCT((Forecast_contrib!AA$16:AA$31)*(Forecast_contrib!$F$16:$F$31=$C20))/1000 -> 0 | AB20: =IF(SUM(Y20:AA20,I20:O20)=0,"",IF(SUM(Y20:AA20)=1,"",1)) ->  | AI20: 0 | AJ20: 0 | AK20: 0 | AL20: 0 | AM20: 0 | AN20: 0 | AO20: 0 | AP20: 0 | CP20: =IF(COUNT(AI20:AP20)=0,"",IF(SUM(AI20:AP20)=1,"",1)) -> 1
B21: 12 | C21: Service lines | D21: 12 | F21: Replacement | G21: Replacement | I21: =SUMPRODUCT((Forecast_spend!U$16:U$31)*(Forecast_spend!$F$16:$F$31=$C21))/1000 -> 0 | J21: =SUMPRODUCT((Forecast_spend!V$16:V$31)*(Forecast_spend!$F$16:$F$31=$C21))/1000 -> 0 | K21: =SUMPRODUCT((Forecast_spend!W$16:W$31)*(Forecast_spend!$F$16:$F$31=$C21))/1000 -> 0 | L21: =SUMPRODUCT((Forecast_spend!X$16:X$31)*(Forecast_spend!$F$16:$F$31=$C21))/1000 -> 0 | M21: =SUMPRODUCT((Forecast_spend!Y$16:Y$31)*(Forecast_spend!$F$16:$F$31=$C21))/1000 -> 0 | N21: =SUMPRODUCT((Forecast_spend!Z$16:Z$31)*(Forecast_spend!$F$16:$F$31=$C21))/1000 -> 0 | O21: =SUMPRODUCT((Forecast_spend!AA$16:AA$31)*(Forecast_spend!$F$16:$F$31=$C21))/1000 -> 0 | Q21: =SUMPRODUCT((Forecast_contrib!U$16:U$31)*(Forecast_contrib!$F$16:$F$31=$C21))/1000 -> 0 | R21: =SUMPRODUCT((Forecast_contrib!V$16:V$31)*(Forecast_contrib!$F$16:$F$31=$C21))/1000 -> 0 | S21: =SUMPRODUCT((Forecast_contrib!W$16:W$31)*(Forecast_contrib!$F$16:$F$31=$C21))/1000 -> 0 | T21: =SUMPRODUCT((Forecast_contrib!X$16:X$31)*(Forecast_contrib!$F$16:$F$31=$C21))/1000 -> 0 | U21: =SUMPRODUCT((Forecast_contrib!Y$16:Y$31)*(Forecast_contrib!$F$16:$F$31=$C21))/1000 -> 0 | V21: =SUMPRODUCT((Forecast_contrib!Z$16:Z$31)*(Forecast_contrib!$F$16:$F$31=$C21))/1000 -> 0 | W21: =SUMPRODUCT((Forecast_contrib!AA$16:AA$31)*(Forecast_contrib!$F$16:$F$31=$C21))/1000 -> 0 | AI21: 0 | AJ21: 0 | AK21: 0 | AL21: 0 | AM21: 0 | AN21: 0 | AO21: 0 | AP21: 0 | CP21: =IF(COUNT(AI21:AP21)=0,"",IF(SUM(AI21:AP21)=1,"",1)) -> 1
B22: 13 | C22: ZSS transformer replacement | D22: 13 | F22: Replacement | G22: Replacement | I22: =SUMPRODUCT((Forecast_spend!U$16:U$31)*(Forecast_spend!$F$16:$F$31=$C22))/1000 -> 0 | J22: =SUMPRODUCT((Forecast_spend!V$16:V$31)*(Forecast_spend!$F$16:$F$31=$C22))/1000 -> 0 | K22: =SUMPRODUCT((Forecast_spend!W$16:W$31)*(Forecast_spend!$F$16:$F$31=$C22))/1000 -> 0 | L22: =SUMPRODUCT((Forecast_spend!X$16:X$31)*(Forecast_spend!$F$16:$F$31=$C22))/1000 -> 0 | M22: =SUMPRODUCT((Forecast_spend!Y$16:Y$31)*(Forecast_spend!$F$16:$F$31=$C22))/1000 -> 0 | N22: =SUMPRODUCT((Forecast_spend!Z$16:Z$31)*(Forecast_spend!$F$16:$F$31=$C22))/1000 -> 0 | O22: =SUMPRODUCT((Forecast_spend!AA$16:AA$31)*(Forecast_spend!$F$16:$F$31=$C22))/1000 -> 0 | Q22: =SUMPRODUCT((Forecast_contrib!U$16:U$31)*(Forecast_contrib!$F$16:$F$31=$C22))/1000 -> 0 | R22: =SUMPRODUCT((Forecast_contrib!V$16:V$31)*(Forecast_contrib!$F$16:$F$31=$C22))/1000 -> 0 | S22: =SUMPRODUCT((Forecast_contrib!W$16:W$31)*(Forecast_contrib!$F$16:$F$31=$C22))/1000 -> 0 | T22: =SUMPRODUCT((Forecast_contrib!X$16:X$31)*(Forecast_contrib!$F$16:$F$31=$C22))/1000 -> 0 | U22: =SUMPRODUCT((Forecast_contrib!Y$16:Y$31)*(Forecast_contrib!$F$16:$F$31=$C22))/1000 -> 0 | V22: =SUMPRODUCT((Forecast_contrib!Z$16:Z$31)*(Forecast_contrib!$F$16:$F$31=$C22))/1000 -> 0 | W22: =SUMPRODUCT((Forecast_contrib!AA$16:AA$31)*(Forecast_contrib!$F$16:$F$31=$C22))/1000 -> 0 | AI22: 0 | AJ22: 0 | AK22: 0 | AL22: 0 | AM22: 0 | AN22: 0 | AO22: 0 | AP22: 0 | CP22: =IF(COUNT(AI22:AP22)=0,"",IF(SUM(AI22:AP22)=1,"",1)) -> 1
B23: 14 | C23: Transformer refurbishment | D23: 14 | F23: Replacement | G23: Replacement | I23: =SUMPRODUCT((Forecast_spend!U$16:U$31)*(Forecast_spend!$F$16:$F$31=$C23))/1000 -> 0 | J23: =SUMPRODUCT((Forecast_spend!V$16:V$31)*(Forecast_spend!$F$16:$F$31=$C23))/1000 -> 0 | K23: =SUMPRODUCT((Forecast_spend!W$16:W$31)*(Forecast_spend!$F$16:$F$31=$C23))/1000 -> 0 | L23: =SUMPRODUCT((Forecast_spend!X$16:X$31)*(Forecast_spend!$F$16:$F$31=$C23))/1000 -> 0 | M23: =SUMPRODUCT((Forecast_spend!Y$16:Y$31)*(Forecast_spend!$F$16:$F$31=$C23))/1000 -> 0 | N23: =SUMPRODUCT((Forecast_spend!Z$16:Z$31)*(Forecast_spend!$F$16:$F$31=$C23))/1000 -> 0 | O23: =SUMPRODUCT((Forecast_spend!AA$16:AA$31)*(Forecast_spend!$F$16:$F$31=$C23))/1000 -> 0 | Q23: =SUMPRODUCT((Forecast_contrib!U$16:U$31)*(Forecast_contrib!$F$16:$F$31=$C23))/1000 -> 0 | R23: =SUMPRODUCT((Forecast_contrib!V$16:V$31)*(Forecast_contrib!$F$16:$F$31=$C23))/1000 -> 0 | S23: =SUMPRODUCT((Forecast_contrib!W$16:W$31)*(Forecast_contrib!$F$16:$F$31=$C23))/1000 -> 0 | T23: =SUMPRODUCT((Forecast_contrib!X$16:X$31)*(Forecast_contrib!$F$16:$F$31=$C23))/1000 -> 0 | U23: =SUMPRODUCT((Forecast_contrib!Y$16:Y$31)*(Forecast_contrib!$F$16:$F$31=$C23))/1000 -> 0 | V23: =SUMPRODUCT((Forecast_contrib!Z$16:Z$31)*(Forecast_contrib!$F$16:$F$31=$C23))/1000 -> 0 | W23: =SUMPRODUCT((Forecast_contrib!AA$16:AA$31)*(Forecast_contrib!$F$16:$F$31=$C23))/1000 -> 0 | AI23: 0 | AJ23: 0 | AK23: 0 | AL23: 0 | AM23: 0 | AN23: 0 | AO23: 0 | AP23: 0 | CP23: =IF(COUNT(AI23:AP23)=0,"",IF(SUM(AI23:AP23)=1,"",1)) -> 1
B24: 15 | C24: Defective kiosk transformer replacement | D24: 15 | F24: Replacement | G24: Replacement | I24: =SUMPRODUCT((Forecast_spend!U$16:U$31)*(Forecast_spend!$F$16:$F$31=$C24))/1000 -> 0 | J24: =SUMPRODUCT((Forecast_spend!V$16:V$31)*(Forecast_spend!$F$16:$F$31=$C24))/1000 -> 0 | K24: =SUMPRODUCT((Forecast_spend!W$16:W$31)*(Forecast_spend!$F$16:$F$31=$C24))/1000 -> 0 | L24: =SUMPRODUCT((Forecast_spend!X$16:X$31)*(Forecast_spend!$F$16:$F$31=$C24))/1000 -> 0 | M24: =SUMPRODUCT((Forecast_spend!Y$16:Y$31)*(Forecast_spend!$F$16:$F$31=$C24))/1000 -> 0 | N24: =SUMPRODUCT((Forecast_spend!Z$16:Z$31)*(Forecast_spend!$F$16:$F$31=$C24))/1000 -> 0 | O24: =SUMPRODUCT((Forecast_spend!AA$16:AA$31)*(Forecast_spend!$F$16:$F$31=$C24))/1000 -> 0 | Q24: =SUMPRODUCT((Forecast_contrib!U$16:U$31)*(Forecast_contrib!$F$16:$F$31=$C24))/1000 -> 0 | R24: =SUMPRODUCT((Forecast_contrib!V$16:V$31)*(Forecast_contrib!$F$16:$F$31=$C24))/1000 -> 0 | S24: =SUMPRODUCT((Forecast_contrib!W$16:W$31)*(Forecast_contrib!$F$16:$F$31=$C24))/1000 -> 0 | T24: =SUMPRODUCT((Forecast_contrib!X$16:X$31)*(Forecast_contrib!$F$16:$F$31=$C24))/1000 -> 0 | U24: =SUMPRODUCT((Forecast_contrib!Y$16:Y$31)*(Forecast_contrib!$F$16:$F$31=$C24))/1000 -> 0 | V24: =SUMPRODUCT((Forecast_contrib!Z$16:Z$31)*(Forecast_contrib!$F$16:$F$31=$C24))/1000 -> 0 | W24: =SUMPRODUCT((Forecast_contrib!AA$16:AA$31)*(Forecast_contrib!$F$16:$F$31=$C24))/1000 -> 0 | AI24: 0 | AJ24: 0 | AK24: 0 | AL24: 0 | AM24: 0 | AN24: 0 | AO24: 0 | AP24: 0 | CP24: 1
B25: 16 | C25: Defective pole transformer replacement | D25: 16 | F25: Replacement | G25: Replacement | I25: =SUMPRODUCT((Forecast_spend!U$16:U$31)*(Forecast_spend!$F$16:$F$31=$C25))/1000 -> 0 | J25: =SUMPRODUCT((Forecast_spend!V$16:V$31)*(Forecast_spend!$F$16:$F$31=$C25))/1000 -> 0 | K25: =SUMPRODUCT((Forecast_spend!W$16:W$31)*(Forecast_spend!$F$16:$F$31=$C25))/1000 -> 0 | L25: =SUMPRODUCT((Forecast_spend!X$16:X$31)*(Forecast_spend!$F$16:$F$31=$C25))/1000 -> 0 | M25: =SUMPRODUCT((Forecast_spend!Y$16:Y$31)*(Forecast_spend!$F$16:$F$31=$C25))/1000 -> 0 | N25: =SUMPRODUCT((Forecast_spend!Z$16:Z$31)*(Forecast_spend!$F$16:$F$31=$C25))/1000 -> 0 | O25: =SUMPRODUCT((Forecast_spend!AA$16:AA$31)*(Forecast_spend!$F$16:$F$31=$C25))/1000 -> 0 | Q25: =SUMPRODUCT((Forecast_contrib!U$16:U$31)*(Forecast_contrib!$F$16:$F$31=$C25))/1000 -> 0 | R25: =SUMPRODUCT((Forecast_contrib!V$16:V$31)*(Forecast_contrib!$F$16:$F$31=$C25))/1000 -> 0 | S25: =SUMPRODUCT((Forecast_contrib!W$16:W$31)*(Forecast_contrib!$F$16:$F$31=$C25))/1000 -> 0 | T25: =SUMPRODUCT((Forecast_contrib!X$16:X$31)*(Forecast_contrib!$F$16:$F$31=$C25))/1000 -> 0 | U25: =SUMPRODUCT((Forecast_contrib!Y$16:Y$31)*(Forecast_contrib!$F$16:$F$31=$C25))/1000 -> 0 | V25: =SUMPRODUCT((Forecast_contrib!Z$16:Z$31)*(Forecast_contrib!$F$16:$F$31=$C25))/1000 -> 0 | W25: =SUMPRODUCT((Forecast_contrib!AA$16:AA$31)*(Forecast_contrib!$F$16:$F$31=$C25))/1000 -> 0 | AI25: 0 | AJ25: 0 | AK25: 0 | AL25: 0 | AM25: 0 | AN25: 0 | AO25: 0 | AP25: 0 | CP25: 1
B26: 17 | C26: Defective ground transformer replacement | D26: 17 | F26: Replacement | G26: Replacement | I26: =SUMPRODUCT((Forecast_spend!U$16:U$31)*(Forecast_spend!$F$16:$F$31=$C26))/1000 -> 0 | J26: =SUMPRODUCT((Forecast_spend!V$16:V$31)*(Forecast_spend!$F$16:$F$31=$C26))/1000 -> 0 | K26: =SUMPRODUCT((Forecast_spend!W$16:W$31)*(Forecast_spend!$F$16:$F$31=$C26))/1000 -> 0 | L26: =SUMPRODUCT((Forecast_spend!X$16:X$31)*(Forecast_spend!$F$16:$F$31=$C26))/1000 -> 0 | M26: =SUMPRODUCT((Forecast_spend!Y$16:Y$31)*(Forecast_spend!$F$16:$F$31=$C26))/1000 -> 0 | N26: =SUMPRODUCT((Forecast_spend!Z$16:Z$31)*(Forecast_spend!$F$16:$F$31=$C26))/1000 -> 0 | O26: =SUMPRODUCT((Forecast_spend!AA$16:AA$31)*(Forecast_spend!$F$16:$F$31=$C26))/1000 -> 0 | Q26: =SUMPRODUCT((Forecast_contrib!U$16:U$31)*(Forecast_contrib!$F$16:$F$31=$C26))/1000 -> 0 | R26: =SUMPRODUCT((Forecast_contrib!V$16:V$31)*(Forecast_contrib!$F$16:$F$31=$C26))/1000 -> 0 | S26: =SUMPRODUCT((Forecast_contrib!W$16:W$31)*(Forecast_contrib!$F$16:$F$31=$C26))/1000 -> 0 | T26: =SUMPRODUCT((Forecast_contrib!X$16:X$31)*(Forecast_contrib!$F$16:$F$31=$C26))/1000 -> 0 | U26: =SUMPRODUCT((Forecast_contrib!Y$16:Y$31)*(Forecast_contrib!$F$16:$F$31=$C26))/1000 -> 0 | V26: =SUMPRODUCT((Forecast_contrib!Z$16:Z$31)*(Forecast_contrib!$F$16:$F$31=$C26))/1000 -> 0 | W26: =SUMPRODUCT((Forecast_contrib!AA$16:AA$31)*(Forecast_contrib!$F$16:$F$31=$C26))/1000 -> 0 | AI26: 0 | AJ26: 0 | AK26: 0 | AL26: 0 | AM26: 0 | AN26: 0 | AO26: 0 | AP26: 0 | CP26: 1
B27: 18 | C27: ZSS switchboard replacement | D27: 18 | F27: Replacement | G27: Replacement | I27: =SUMPRODUCT((Forecast_spend!U$16:U$31)*(Forecast_spend!$F$16:$F$31=$C27))/1000 -> 0 | J27: =SUMPRODUCT((Forecast_spend!V$16:V$31)*(Forecast_spend!$F$16:$F$31=$C27))/1000 -> 0 | K27: =SUMPRODUCT((Forecast_spend!W$16:W$31)*(Forecast_spend!$F$16:$F$31=$C27))/1000 -> 0 | L27: =SUMPRODUCT((Forecast_spend!X$16:X$31)*(Forecast_spend!$F$16:$F$31=$C27))/1000 -> 0 | M27: =SUMPRODUCT((Forecast_spend!Y$16:Y$31)*(Forecast_spend!$F$16:$F$31=$C27))/1000 -> 0 | N27: =SUMPRODUCT((Forecast_spend!Z$16:Z$31)*(Forecast_spend!$F$16:$F$31=$C27))/1000 -> 0 | O27: =SUMPRODUCT((Forecast_spend!AA$16:AA$31)*(Forecast_spend!$F$16:$F$31=$C27))/1000 -> 0 | Q27: =SUMPRODUCT((Forecast_contrib!U$16:U$31)*(Forecast_contrib!$F$16:$F$31=$C27))/1000 -> 0 | R27: =SUMPRODUCT((Forecast_contrib!V$16:V$31)*(Forecast_contrib!$F$16:$F$31=$C27))/1000 -> 0 | S27: =SUMPRODUCT((Forecast_contrib!W$16:W$31)*(Forecast_contrib!$F$16:$F$31=$C27))/1000 -> 0 | T27: =SUMPRODUCT((Forecast_contrib!X$16:X$31)*(Forecast_contrib!$F$16:$F$31=$C27))/1000 -> 0 | U27: =SUMPRODUCT((Forecast_contrib!Y$16:Y$31)*(Forecast_contrib!$F$16:$F$31=$C27))/1000 -> 0 | V27: =SUMPRODUCT((Forecast_contrib!Z$16:Z$31)*(Forecast_contrib!$F$16:$F$31=$C27))/1000 -> 0 | W27: =SUMPRODUCT((Forecast_contrib!AA$16:AA$31)*(Forecast_contrib!$F$16:$F$31=$C27))/1000 -> 0 | AI27: 0 | AJ27: 0 | AK27: 0 | AL27: 0 | AM27: 0 | AN27: 0 | AO27: 0 | AP27: 0 | CP27: 1
